Workbook

Sheet Notes

Sheet U13 Boys Pentathlon
A1: Bib | B1: Name | C1: Club | D1: AgeGrp | E1: Surrey | F1: LJ | G1: LJWind | H1: LJPoints | I1: 75mH | J1: 75mHElec | K1: 75mHWind | L1: 75mHPoints | M1: SP | N1: SPPoints | O1: HJ | P1: HJPoints | Q1: 800mMins | R1: 800mSecs | S1: 800mElec | T1: 800mPoints | U1: AvWind | V1: TotalPoints | W1: Retired | X1: FinalPosition | Y1: AllPos
A2: 201 | B2: Alex Giles | C2: Croydon Harriers | D2: U13B | E2: Y | F2: 4.23 | G2: 1.4 | H2: =IFERROR(getpoints(t_u13b_pen[[#This Row],[LJ]],"LJ",t_u13b_pen[[#This Row],[AgeGrp]]),0) -> 244 | I2: 16.54 | J2: Y | K2: 2.3 | L2: =IFERROR(getpoints(t_u13b_pen[[#This Row],[75mH]],"75mH",t_u13b_pen[[#This Row],[AgeGrp]],t_u13b_pen[[#This Row],[75mHElec]]),0) -> 226 | M2: 6.45 | N2: =IFERROR(getpoints(t_u13b_pen[[#This Row],[SP]],"SP",t_u13b_pen[[#This Row],[AgeGrp]]),0) -> 275 | O2: 1.38 | P2: =getpoints(t_u13b_pen[[#This Row],[HJ]],"HJ",t_u13b_pen[[#This Row],[AgeGrp]]) -> 303 | Q2: 2 | R2: 33.68 | S2: Y | T2: =IFERROR(getpoints(t_u13b_pen[[#This Row],[800mMins]]*60+t_u13b_pen[[#This Row],[800mSecs]],"800m",t_u13b_pen[[#This Row],[AgeGrp]],t_u13b_pen[[#This Row],[800mElec]]),0) -> 280 | U2: =IFERROR((t_u13b_pen[[#This Row],[LJWind]]+t_u13b_pen[[#This Row],[75mHWind]])/2,"n/a") -> 1.85 | V2: =t_u13b_pen[[#This Row],[LJPoints]]+t_u13b_pen[[#This Row],[SPPoints]]+t_u13b_pen[[#This Row],[HJPoints]]+t_u13b_pen[[#This Row],[75mHPoints]]+t_u13b_pen[[#This Row],[800mPoints]] -> 1328 | W2: =IF(OR(t_u13b_pen[[#This Row],[LJ]]="DNS",t_u13b_pen[[#This Row],[SP]]="DNS",t_u13b_pen[[#This Row],[HJ]]="DNS",t_u13b_pen[[#This Row],[75mH]]="DNS",t_u13b_pen[[#This Row],[800mMins]]="DNS"),"Y","") ->  | X2: =IF(t_u13b_pen[[#This Row],[Retired]]="Y","Retired",IF(t_u13b_pen[[#This Row],[Surrey]]="N","Guest",COUNTIFS(t_u13b_pen[Retired],"<>Y",t_u13b_pen[Surrey],"<>N",t_u13b_pen[TotalPoints],">"&t_u13b_pen[[#This Row],[TotalPoints]])+1)) -> 2 | Y2: =ROW(A1) -> 1
A3: 202 | B3: Lucas Heath | C3: Herne Hill Harriers | D3: U13B | E3: Y | F3: 3.82 | G3: 1.6 | H3: =IFERROR(getpoints(t_u13b_pen[[#This Row],[LJ]],"LJ",t_u13b_pen[[#This Row],[AgeGrp]]),0) -> 177 | I3: 15.87 | J3: Y | K3: 2.3 | L3: =IFERROR(getpoints(t_u13b_pen[[#This Row],[75mH]],"75mH",t_u13b_pen[[#This Row],[AgeGrp]],t_u13b_pen[[#This Row],[75mHElec]]),0) -> 272 | M3: 4.87 | N3: =IFERROR(getpoints(t_u13b_pen[[#This Row],[SP]],"SP",t_u13b_pen[[#This Row],[AgeGrp]]),0) -> 184 | O3: 1.32 | P3: =getpoints(t_u13b_pen[[#This Row],[HJ]],"HJ",t_u13b_pen[[#This Row],[AgeGrp]]) -> 263 | Q3: 2 | R3: 35.81 | S3: Y | T3: =IFERROR(getpoints(t_u13b_pen[[#This Row],[800mMins]]*60+t_u13b_pen[[#This Row],[800mSecs]],"800m",t_u13b_pen[[#This Row],[AgeGrp]],t_u13b_pen[[#This Row],[800mElec]]),0) -> 256 | U3: =IFERROR((t_u13b_pen[[#This Row],[LJWind]]+t_u13b_pen[[#This Row],[75mHWind]])/2,"n/a") -> 1.95 | V3: =t_u13b_pen[[#This Row],[LJPoints]]+t_u13b_pen[[#This Row],[SPPoints]]+t_u13b_pen[[#This Row],[HJPoints]]+t_u13b_pen[[#This Row],[75mHPoints]]+t_u13b_pen[[#This Row],[800mPoints]] -> 1152 | W3: =IF(OR(t_u13b_pen[[#This Row],[LJ]]="DNS",t_u13b_pen[[#This Row],[SP]]="DNS",t_u13b_pen[[#This Row],[HJ]]="DNS",t_u13b_pen[[#This Row],[75mH]]="DNS",t_u13b_pen[[#This Row],[800mMins]]="DNS"),"Y","") ->  | X3: =IF(t_u13b_pen[[#This Row],[Retired]]="Y","Retired",IF(t_u13b_pen[[#This Row],[Surrey]]="N","Guest",COUNTIFS(t_u13b_pen[Retired],"<>Y",t_u13b_pen[Surrey],"<>N",t_u13b_pen[TotalPoints],">"&t_u13b_pen[[#This Row],[TotalPoints]])+1)) -> 4 | Y3: 2
A4: 203 | B4: Caspian Holmes | C4: Herne Hill Harriers | D4: U13B | E4: Y | F4: 3.21 | G4: 1.7 | H4: =IFERROR(getpoints(t_u13b_pen[[#This Row],[LJ]],"LJ",t_u13b_pen[[#This Row],[AgeGrp]]),0) -> 91 | I4: 16.47 | J4: Y | K4: 2.3 | L4: =IFERROR(getpoints(t_u13b_pen[[#This Row],[75mH]],"75mH",t_u13b_pen[[#This Row],[AgeGrp]],t_u13b_pen[[#This Row],[75mHElec]]),0) -> 231 | M4: 4.53 | N4: =IFERROR(getpoints(t_u13b_pen[[#This Row],[SP]],"SP",t_u13b_pen[[#This Row],[AgeGrp]]),0) -> 164 | O4: 1.05 | P4: =getpoints(t_u13b_pen[[#This Row],[HJ]],"HJ",t_u13b_pen[[#This Row],[AgeGrp]]) -> 105 | Q4: 2 | R4: 22.59 | S4: Y | T4: =IFERROR(getpoints(t_u13b_pen[[#This Row],[800mMins]]*60+t_u13b_pen[[#This Row],[800mSecs]],"800m",t_u13b_pen[[#This Row],[AgeGrp]],t_u13b_pen[[#This Row],[800mElec]]),0) -> 416 | U4: =IFERROR((t_u13b_pen[[#This Row],[LJWind]]+t_u13b_pen[[#This Row],[75mHWind]])/2,"n/a") -> 2 | V4: =t_u13b_pen[[#This Row],[LJPoints]]+t_u13b_pen[[#This Row],[SPPoints]]+t_u13b_pen[[#This Row],[HJPoints]]+t_u13b_pen[[#This Row],[75mHPoints]]+t_u13b_pen[[#This Row],[800mPoints]] -> 1007 | W4: =IF(OR(t_u13b_pen[[#This Row],[LJ]]="DNS",t_u13b_pen[[#This Row],[SP]]="DNS",t_u13b_pen[[#This Row],[HJ]]="DNS",t_u13b_pen[[#This Row],[75mH]]="DNS",t_u13b_pen[[#This Row],[800mMins]]="DNS"),"Y","") ->  | X4: =IF(t_u13b_pen[[#This Row],[Retired]]="Y","Retired",IF(t_u13b_pen[[#This Row],[Surrey]]="N","Guest",COUNTIFS(t_u13b_pen[Retired],"<>Y",t_u13b_pen[Surrey],"<>N",t_u13b_pen[TotalPoints],">"&t_u13b_pen[[#This Row],[TotalPoints]])+1)) -> 5 | Y4: 3
A5: 204 | B5: Max Orchard | C5: Reigate Priory AC | D5: U13B | E5: Y | F5: 5.1 | G5: 2.3 | H5: =IFERROR(getpoints(t_u13b_pen[[#This Row],[LJ]],"LJ",t_u13b_pen[[#This Row],[AgeGrp]]),0) -> 402 | I5: 12.14 | J5: Y | K5: 2.3 | L5: =IFERROR(getpoints(t_u13b_pen[[#This Row],[75mH]],"75mH",t_u13b_pen[[#This Row],[AgeGrp]],t_u13b_pen[[#This Row],[75mHElec]]),0) -> 588 | M5: 7.15 | N5: =IFERROR(getpoints(t_u13b_pen[[#This Row],[SP]],"SP",t_u13b_pen[[#This Row],[AgeGrp]]),0) -> 316 | O5: 1.29 | P5: =getpoints(t_u13b_pen[[#This Row],[HJ]],"HJ",t_u13b_pen[[#This Row],[AgeGrp]]) -> 244 | Q5: 2 | R5: 21.5 | S5: Y | T5: =IFERROR(getpoints(t_u13b_pen[[#This Row],[800mMins]]*60+t_u13b_pen[[#This Row],[800mSecs]],"800m",t_u13b_pen[[#This Row],[AgeGrp]],t_u13b_pen[[#This Row],[800mElec]]),0) -> 431 | U5: =IFERROR((t_u13b_pen[[#This Row],[LJWind]]+t_u13b_pen[[#This Row],[75mHWind]])/2,"n/a") -> 2.3 | V5: =t_u13b_pen[[#This Row],[LJPoints]]+t_u13b_pen[[#This Row],[SPPoints]]+t_u13b_pen[[#This Row],[HJPoints]]+t_u13b_pen[[#This Row],[75mHPoints]]+t_u13b_pen[[#This Row],[800mPoints]] -> 1981 | W5: =IF(OR(t_u13b_pen[[#This Row],[LJ]]="DNS",t_u13b_pen[[#This Row],[SP]]="DNS",t_u13b_pen[[#This Row],[HJ]]="DNS",t_u13b_pen[[#This Row],[75mH]]="DNS",t_u13b_pen[[#This Row],[800mMins]]="DNS"),"Y","") ->  | X5: =IF(t_u13b_pen[[#This Row],[Retired]]="Y","Retired",IF(t_u13b_pen[[#This Row],[Surrey]]="N","Guest",COUNTIFS(t_u13b_pen[Retired],"<>Y",t_u13b_pen[Surrey],"<>N",t_u13b_pen[TotalPoints],">"&t_u13b_pen[[#This Row],[TotalPoints]])+1)) -> 1 | Y5: 4
A6: 205 | B6: Solomon Thompson Moodley | C6: Herne Hill Harriers | D6: U13B | E6: Y | F6: 4.44 | G6: 2.1 | H6: =IFERROR(getpoints(t_u13b_pen[[#This Row],[LJ]],"LJ",t_u13b_pen[[#This Row],[AgeGrp]]),0) -> 280 | I6: 14.37 | J6: Y | K6: 2.3 | L6: =IFERROR(getpoints(t_u13b_pen[[#This Row],[75mH]],"75mH",t_u13b_pen[[#This Row],[AgeGrp]],t_u13b_pen[[#This Row],[75mHElec]]),0) -> 386 | M6: 6.39 | N6: =IFERROR(getpoints(t_u13b_pen[[#This Row],[SP]],"SP",t_u13b_pen[[#This Row],[AgeGrp]]),0) -> 272 | O6: 1.44 | P6: =getpoints(t_u13b_pen[[#This Row],[HJ]],"HJ",t_u13b_pen[[#This Row],[AgeGrp]]) -> 345 | Q6: 3 | R6: 24.63 | S6: Y | T6: =IFERROR(getpoints(t_u13b_pen[[#This Row],[800mMins]]*60+t_u13b_pen[[#This Row],[800mSecs]],"800m",t_u13b_pen[[#This Row],[AgeGrp]],t_u13b_pen[[#This Row],[800mElec]]),0) -> 0 | U6: =IFERROR((t_u13b_pen[[#This Row],[LJWind]]+t_u13b_pen[[#This Row],[75mHWind]])/2,"n/a") -> 2.2 | V6: =t_u13b_pen[[#This Row],[LJPoints]]+t_u13b_pen[[#This Row],[SPPoints]]+t_u13b_pen[[#This Row],[HJPoints]]+t_u13b_pen[[#This Row],[75mHPoints]]+t_u13b_pen[[#This Row],[800mPoints]] -> 1283 | W6: =IF(OR(t_u13b_pen[[#This Row],[LJ]]="DNS",t_u13b_pen[[#This Row],[SP]]="DNS",t_u13b_pen[[#This Row],[HJ]]="DNS",t_u13b_pen[[#This Row],[75mH]]="DNS",t_u13b_pen[[#This Row],[800mMins]]="DNS"),"Y","") ->  | X6: =IF(t_u13b_pen[[#This Row],[Retired]]="Y","Retired",IF(t_u13b_pen[[#This Row],[Surrey]]="N","Guest",COUNTIFS(t_u13b_pen[Retired],"<>Y",t_u13b_pen[Surrey],"<>N",t_u13b_pen[TotalPoints],">"&t_u13b_pen[[#This Row],[TotalPoints]])+1)) -> 3 | Y6: 5
A7: 206 | B7: Daniel Brown | C7: Thurrock Harriers | D7: U13B | E7: N | F7: 4.39 | G7: 0 | H7: =IFERROR(getpoints(t_u13b_pen[[#This Row],[LJ]],"LJ",t_u13b_pen[[#This Row],[AgeGrp]]),0) -> 271 | I7: 12.42 | J7: Y | K7: 1.4 | L7: =IFERROR(getpoints(t_u13b_pen[[#This Row],[75mH]],"75mH",t_u13b_pen[[#This Row],[AgeGrp]],t_u13b_pen[[#This Row],[75mHElec]]),0) -> 561 | M7: 8.12 | N7: =IFERROR(getpoints(t_u13b_pen[[#This Row],[SP]],"SP",t_u13b_pen[[#This Row],[AgeGrp]]),0) -> 373 | O7: 1.35 | P7: =getpoints(t_u13b_pen[[#This Row],[HJ]],"HJ",t_u13b_pen[[#This Row],[AgeGrp]]) -> 283 | Q7: 2 | R7: 42.21 | S7: Y | T7: =IFERROR(getpoints(t_u13b_pen[[#This Row],[800mMins]]*60+t_u13b_pen[[#This Row],[800mSecs]],"800m",t_u13b_pen[[#This Row],[AgeGrp]],t_u13b_pen[[#This Row],[800mElec]]),0) -> 192 | U7: =IFERROR((t_u13b_pen[[#This Row],[LJWind]]+t_u13b_pen[[#This Row],[75mHWind]])/2,"n/a") -> 0.7 | V7: =t_u13b_pen[[#This Row],[LJPoints]]+t_u13b_pen[[#This Row],[SPPoints]]+t_u13b_pen[[#This Row],[HJPoints]]+t_u13b_pen[[#This Row],[75mHPoints]]+t_u13b_pen[[#This Row],[800mPoints]] -> 1680 | W7: =IF(OR(t_u13b_pen[[#This Row],[LJ]]="DNS",t_u13b_pen[[#This Row],[SP]]="DNS",t_u13b_pen[[#This Row],[HJ]]="DNS",t_u13b_pen[[#This Row],[75mH]]="DNS",t_u13b_pen[[#This Row],[800mMins]]="DNS"),"Y","") ->  | X7: =IF(t_u13b_pen[[#This Row],[Retired]]="Y","Retired",IF(t_u13b_pen[[#This Row],[Surrey]]="N","Guest",COUNTIFS(t_u13b_pen[Retired],"<>Y",t_u13b_pen[Surrey],"<>N",t_u13b_pen[TotalPoints],">"&t_u13b_pen[[#This Row],[TotalPoints]])+1)) -> Guest | Y7: 6
A8: 207 | B8: Cezar Mihai Draganescu | C8: Thurrock Harriers | D8: U13B | E8: N | F8: 4.11 | G8: 1.5 | H8: =IFERROR(getpoints(t_u13b_pen[[#This Row],[LJ]],"LJ",t_u13b_pen[[#This Row],[AgeGrp]]),0) -> 224 | I8: 14.25 | J8: Y | K8: 1.4 | L8: =IFERROR(getpoints(t_u13b_pen[[#This Row],[75mH]],"75mH",t_u13b_pen[[#This Row],[AgeGrp]],t_u13b_pen[[#This Row],[75mHElec]]),0) -> 396 | M8: 8.22 | N8: =IFERROR(getpoints(t_u13b_pen[[#This Row],[SP]],"SP",t_u13b_pen[[#This Row],[AgeGrp]]),0) -> 379 | O8: 1.14 | P8: =getpoints(t_u13b_pen[[#This Row],[HJ]],"HJ",t_u13b_pen[[#This Row],[AgeGrp]]) -> 153 | Q8: 2 | R8: 52.39 | S8: Y | T8: =IFERROR(getpoints(t_u13b_pen[[#This Row],[800mMins]]*60+t_u13b_pen[[#This Row],[800mSecs]],"800m",t_u13b_pen[[#This Row],[AgeGrp]],t_u13b_pen[[#This Row],[800mElec]]),0) -> 107 | U8: =IFERROR((t_u13b_pen[[#This Row],[LJWind]]+t_u13b_pen[[#This Row],[75mHWind]])/2,"n/a") -> 1.45 | V8: =t_u13b_pen[[#This Row],[LJPoints]]+t_u13b_pen[[#This Row],[SPPoints]]+t_u13b_pen[[#This Row],[HJPoints]]+t_u13b_pen[[#This Row],[75mHPoints]]+t_u13b_pen[[#This Row],[800mPoints]] -> 1259 | W8: =IF(OR(t_u13b_pen[[#This Row],[LJ]]="DNS",t_u13b_pen[[#This Row],[SP]]="DNS",t_u13b_pen[[#This Row],[HJ]]="DNS",t_u13b_pen[[#This Row],[75mH]]="DNS",t_u13b_pen[[#This Row],[800mMins]]="DNS"),"Y","") ->  | X8: =IF(t_u13b_pen[[#This Row],[Retired]]="Y","Retired",IF(t_u13b_pen[[#This Row],[Surrey]]="N","Guest",COUNTIFS(t_u13b_pen[Retired],"<>Y",t_u13b_pen[Surrey],"<>N",t_u13b_pen[TotalPoints],">"&t_u13b_pen[[#This Row],[TotalPoints]])+1)) -> Guest | Y8: 7

Sheet U13 Boys Results
B1: Holder: | C1: =INDEX(t_holder[Name],MATCH("u13b",t_holder[AgeGrp],0)) -> Daniel Densley | F1: =INDEX(t_holder[Club],MATCH("u13b",t_holder[AgeGrp],0)) -> Aldershot Farnham & District AC | J1: =INDEX(t_holder[Points],MATCH("u13b",t_holder[AgeGrp],0)) & " pts" -> 1194 pts
B2: CBP: | C2: =INDEX(t_cbp[Name],MATCH("u13b",t_cbp[AgeGrp],0)) -> Khalil Njoya | F2: =INDEX(t_cbp[Club],MATCH("u13b",t_cbp[AgeGrp],0)) -> Herne Hill Harriers | J2: =INDEX(t_cbp[Points],MATCH("u13b",t_cbp[AgeGrp],0)) & " Pts" -> 2143 Pts | K2: =INDEX(t_cbp[Year],MATCH("u13b",t_cbp[AgeGrp],0)) -> 2006
J4: Av Wind
B5: Pos | C5: Athlete | E5: LJ | F5: 75mH | G5: Shot | H5: HJ | I5: 800m | J5: Final Total
A6: 1 | C6: =INDEX(t_u13b_pen[Bib],MATCH($A6,t_u13b_pen[AllPos],0)) -> 201 | D6: Perf | E6: =IFERROR(INDEX(t_u13b_pen[LJ],MATCH($C6,t_u13b_pen[Bib],0)),"") -> 4.23 | F6: =IFERROR(INDEX(t_u13b_pen[75mH],MATCH($C6,t_u13b_pen[Bib],0)),"") -> 16.54 | G6: =IFERROR(INDEX(t_u13b_pen[SP],MATCH($C6,t_u13b_pen[Bib],0)),"") -> 6.45 | H6: =IFERROR(INDEX(t_u13b_pen[HJ],MATCH($C6,t_u13b_pen[Bib],0)),"") -> 1.38 | I6: =IFERROR((INDEX(t_u13b_pen[800mMins],MATCH($C6,t_u13b_pen[Bib],0))*60+INDEX(t_u13b_pen[800mSecs],MATCH($C6,t_u13b_pen[Bib],0)))/86400,0) -> 0.001778703704
B7: =INDEX(t_u13b_pen[FinalPosition],MATCH($A6,t_u13b_pen[AllPos],0)) -> 2 | C7: =INDEX(t_u13b_pen[Name],MATCH($A6,t_u13b_pen[AllPos],0)) -> Alex Giles | D7: Wind | E7: =IFERROR(INDEX(t_u13b_pen[LJWind],MATCH($C6,t_u13b_pen[Bib],0)),"") -> 1.4 | F7: =IFERROR(INDEX(t_u13b_pen[75mHWind],MATCH($C6,t_u13b_pen[Bib],0)),"") -> 2.3 | J7: =IFERROR(INDEX(t_u13b_pen[AvWind],MATCH($C6,t_u13b_pen[Bib],0)),0) -> 1.85
C8: =INDEX(t_u13b_pen[Club],MATCH($A6,t_u13b_pen[AllPos],0)) -> Croydon Harriers | D8: Points | E8: =IFERROR(INDEX(t_u13b_pen[LJPoints],MATCH($C6,t_u13b_pen[Bib],0)),"") -> 244 | F8: =IFERROR(INDEX(t_u13b_pen[75mHPoints],MATCH($C6,t_u13b_pen[Bib],0)),"") -> 226 | G8: =IFERROR(INDEX(t_u13b_pen[SPPoints],MATCH($C6,t_u13b_pen[Bib],0)),"") -> 275 | H8: =IFERROR(INDEX(t_u13b_pen[HJPoints],MATCH($C6,t_u13b_pen[Bib],0)),"") -> 303 | I8: =IFERROR(INDEX(t_u13b_pen[800mPoints],MATCH($C6,t_u13b_pen[Bib],0)),"") -> 280 | J8: =IFERROR(INDEX(t_u13b_pen[TotalPoints],MATCH($C6,t_u13b_pen[Bib],0)),0) -> 1328
A9: 2 | C9: =INDEX(t_u13b_pen[Bib],MATCH($A9,t_u13b_pen[AllPos],0)) -> 202 | D9: Perf | E9: =IFERROR(INDEX(t_u13b_pen[LJ],MATCH($C9,t_u13b_pen[Bib],0)),"") -> 3.82 | F9: =IFERROR(INDEX(t_u13b_pen[75mH],MATCH($C9,t_u13b_pen[Bib],0)),"") -> 15.87 | G9: =IFERROR(INDEX(t_u13b_pen[SP],MATCH($C9,t_u13b_pen[Bib],0)),"") -> 4.87 | H9: =IFERROR(INDEX(t_u13b_pen[HJ],MATCH($C9,t_u13b_pen[Bib],0)),"") -> 1.32 | I9: =IFERROR((INDEX(t_u13b_pen[800mMins],MATCH($C9,t_u13b_pen[Bib],0))*60+INDEX(t_u13b_pen[800mSecs],MATCH($C9,t_u13b_pen[Bib],0)))/86400,0) -> 0.001803356481
B10: =INDEX(t_u13b_pen[FinalPosition],MATCH($A9,t_u13b_pen[AllPos],0)) -> 4 | C10: =INDEX(t_u13b_pen[Name],MATCH($A9,t_u13b_pen[AllPos],0)) -> Lucas Heath | D10: Wind | E10: =IFERROR(INDEX(t_u13b_pen[LJWind],MATCH($C9,t_u13b_pen[Bib],0)),"") -> 1.6 | F10: =IFERROR(INDEX(t_u13b_pen[75mHWind],MATCH($C9,t_u13b_pen[Bib],0)),"") -> 2.3 | J10: =IFERROR(INDEX(t_u13b_pen[AvWind],MATCH($C9,t_u13b_pen[Bib],0)),0) -> 1.95
C11: =INDEX(t_u13b_pen[Club],MATCH($A9,t_u13b_pen[AllPos],0)) -> Herne Hill Harriers | D11: Points | E11: =IFERROR(INDEX(t_u13b_pen[LJPoints],MATCH($C9,t_u13b_pen[Bib],0)),"") -> 177 | F11: =IFERROR(INDEX(t_u13b_pen[75mHPoints],MATCH($C9,t_u13b_pen[Bib],0)),"") -> 272 | G11: =IFERROR(INDEX(t_u13b_pen[SPPoints],MATCH($C9,t_u13b_pen[Bib],0)),"") -> 184 | H11: =IFERROR(INDEX(t_u13b_pen[HJPoints],MATCH($C9,t_u13b_pen[Bib],0)),"") -> 263 | I11: =IFERROR(INDEX(t_u13b_pen[800mPoints],MATCH($C9,t_u13b_pen[Bib],0)),"") -> 256 | J11: =IFERROR(INDEX(t_u13b_pen[TotalPoints],MATCH($C9,t_u13b_pen[Bib],0)),0) -> 1152
A12: 3 | C12: =INDEX(t_u13b_pen[Bib],MATCH($A12,t_u13b_pen[AllPos],0)) -> 203 | D12: Perf | E12: =IFERROR(INDEX(t_u13b_pen[LJ],MATCH($C12,t_u13b_pen[Bib],0)),"") -> 3.21 | F12: =IFERROR(INDEX(t_u13b_pen[75mH],MATCH($C12,t_u13b_pen[Bib],0)),"") -> 16.47 | G12: =IFERROR(INDEX(t_u13b_pen[SP],MATCH($C12,t_u13b_pen[Bib],0)),"") -> 4.53 | H12: =IFERROR(INDEX(t_u13b_pen[HJ],MATCH($C12,t_u13b_pen[Bib],0)),"") -> 1.05 | I12: =IFERROR((INDEX(t_u13b_pen[800mMins],MATCH($C12,t_u13b_pen[Bib],0))*60+INDEX(t_u13b_pen[800mSecs],MATCH($C12,t_u13b_pen[Bib],0)))/86400,0) -> 0.001650347222
B13: =INDEX(t_u13b_pen[FinalPosition],MATCH($A12,t_u13b_pen[AllPos],0)) -> 5 | C13: =INDEX(t_u13b_pen[Name],MATCH($A12,t_u13b_pen[AllPos],0)) -> Caspian Holmes | D13: Wind | E13: =IFERROR(INDEX(t_u13b_pen[LJWind],MATCH($C12,t_u13b_pen[Bib],0)),"") -> 1.7 | F13: =IFERROR(INDEX(t_u13b_pen[75mHWind],MATCH($C12,t_u13b_pen[Bib],0)),"") -> 2.3 | J13: =IFERROR(INDEX(t_u13b_pen[AvWind],MATCH($C12,t_u13b_pen[Bib],0)),0) -> 2
C14: =INDEX(t_u13b_pen[Club],MATCH($A12,t_u13b_pen[AllPos],0)) -> Herne Hill Harriers | D14: Points | E14: =IFERROR(INDEX(t_u13b_pen[LJPoints],MATCH($C12,t_u13b_pen[Bib],0)),"") -> 91 | F14: =IFERROR(INDEX(t_u13b_pen[75mHPoints],MATCH($C12,t_u13b_pen[Bib],0)),"") -> 231 | G14: =IFERROR(INDEX(t_u13b_pen[SPPoints],MATCH($C12,t_u13b_pen[Bib],0)),"") -> 164 | H14: =IFERROR(INDEX(t_u13b_pen[HJPoints],MATCH($C12,t_u13b_pen[Bib],0)),"") -> 105 | I14: =IFERROR(INDEX(t_u13b_pen[800mPoints],MATCH($C12,t_u13b_pen[Bib],0)),"") -> 416 | J14: =IFERROR(INDEX(t_u13b_pen[TotalPoints],MATCH($C12,t_u13b_pen[Bib],0)),0) -> 1007
A15: 4 | C15: =INDEX(t_u13b_pen[Bib],MATCH($A15,t_u13b_pen[AllPos],0)) -> 204 | D15: Perf | E15: =IFERROR(INDEX(t_u13b_pen[LJ],MATCH($C15,t_u13b_pen[Bib],0)),"") -> 5.1 | F15: =IFERROR(INDEX(t_u13b_pen[75mH],MATCH($C15,t_u13b_pen[Bib],0)),"") -> 12.14 | G15: =IFERROR(INDEX(t_u13b_pen[SP],MATCH($C15,t_u13b_pen[Bib],0)),"") -> 7.15 | H15: =IFERROR(INDEX(t_u13b_pen[HJ],MATCH($C15,t_u13b_pen[Bib],0)),"") -> 1.29 | I15: =IFERROR((INDEX(t_u13b_pen[800mMins],MATCH($C15,t_u13b_pen[Bib],0))*60+INDEX(t_u13b_pen[800mSecs],MATCH($C15,t_u13b_pen[Bib],0)))/86400,0) -> 0.001637731481
B16: =INDEX(t_u13b_pen[FinalPosition],MATCH($A15,t_u13b_pen[AllPos],0)) -> 1 | C16: =INDEX(t_u13b_pen[Name],MATCH($A15,t_u13b_pen[AllPos],0)) -> Max Orchard | D16: Wind | E16: =IFERROR(INDEX(t_u13b_pen[LJWind],MATCH($C15,t_u13b_pen[Bib],0)),"") -> 2.3 | F16: =IFERROR(INDEX(t_u13b_pen[75mHWind],MATCH($C15,t_u13b_pen[Bib],0)),"") -> 2.3 | J16: =IFERROR(INDEX(t_u13b_pen[AvWind],MATCH($C15,t_u13b_pen[Bib],0)),0) -> 2.3
C17: =INDEX(t_u13b_pen[Club],MATCH($A15,t_u13b_pen[AllPos],0)) -> Reigate Priory AC | D17: Points | E17: =IFERROR(INDEX(t_u13b_pen[LJPoints],MATCH($C15,t_u13b_pen[Bib],0)),"") -> 402 | F17: =IFERROR(INDEX(t_u13b_pen[75mHPoints],MATCH($C15,t_u13b_pen[Bib],0)),"") -> 588 | G17: =IFERROR(INDEX(t_u13b_pen[SPPoints],MATCH($C15,t_u13b_pen[Bib],0)),"") -> 316 | H17: =IFERROR(INDEX(t_u13b_pen[HJPoints],MATCH($C15,t_u13b_pen[Bib],0)),"") -> 244 | I17: =IFERROR(INDEX(t_u13b_pen[800mPoints],MATCH($C15,t_u13b_pen[Bib],0)),"") -> 431 | J17: =IFERROR(INDEX(t_u13b_pen[TotalPoints],MATCH($C15,t_u13b_pen[Bib],0)),0) -> 1981
A18: 5 | C18: =INDEX(t_u13b_pen[Bib],MATCH($A18,t_u13b_pen[AllPos],0)) -> 205 | D18: Perf | E18: =IFERROR(INDEX(t_u13b_pen[LJ],MATCH($C18,t_u13b_pen[Bib],0)),"") -> 4.44 | F18: =IFERROR(INDEX(t_u13b_pen[75mH],MATCH($C18,t_u13b_pen[Bib],0)),"") -> 14.37 | G18: =IFERROR(INDEX(t_u13b_pen[SP],MATCH($C18,t_u13b_pen[Bib],0)),"") -> 6.39 | H18: =IFERROR(INDEX(t_u13b_pen[HJ],MATCH($C18,t_u13b_pen[Bib],0)),"") -> 1.44 | I18: =IFERROR((INDEX(t_u13b_pen[800mMins],MATCH($C18,t_u13b_pen[Bib],0))*60+INDEX(t_u13b_pen[800mSecs],MATCH($C18,t_u13b_pen[Bib],0)))/86400,0) -> 0.002368402778
B19: =INDEX(t_u13b_pen[FinalPosition],MATCH($A18,t_u13b_pen[AllPos],0)) -> 3 | C19: =INDEX(t_u13b_pen[Name],MATCH($A18,t_u13b_pen[AllPos],0)) -> Solomon Thompson Moodley | D19: Wind | E19: =IFERROR(INDEX(t_u13b_pen[LJWind],MATCH($C18,t_u13b_pen[Bib],0)),"") -> 2.1 | F19: =IFERROR(INDEX(t_u13b_pen[75mHWind],MATCH($C18,t_u13b_pen[Bib],0)),"") -> 2.3 | J19: =IFERROR(INDEX(t_u13b_pen[AvWind],MATCH($C18,t_u13b_pen[Bib],0)),0) -> 2.2
C20: =INDEX(t_u13b_pen[Club],MATCH($A18,t_u13b_pen[AllPos],0)) -> Herne Hill Harriers | D20: Points | E20: =IFERROR(INDEX(t_u13b_pen[LJPoints],MATCH($C18,t_u13b_pen[Bib],0)),"") -> 280 | F20: =IFERROR(INDEX(t_u13b_pen[75mHPoints],MATCH($C18,t_u13b_pen[Bib],0)),"") -> 386 | G20: =IFERROR(INDEX(t_u13b_pen[SPPoints],MATCH($C18,t_u13b_pen[Bib],0)),"") -> 272 | H20: =IFERROR(INDEX(t_u13b_pen[HJPoints],MATCH($C18,t_u13b_pen[Bib],0)),"") -> 345 | I20: =IFERROR(INDEX(t_u13b_pen[800mPoints],MATCH($C18,t_u13b_pen[Bib],0)),"") -> 0 | J20: =IFERROR(INDEX(t_u13b_pen[TotalPoints],MATCH($C18,t_u13b_pen[Bib],0)),0) -> 1283
A21: 6 | C21: =INDEX(t_u13b_pen[Bib],MATCH($A21,t_u13b_pen[AllPos],0)) -> 206 | D21: Perf | E21: =IFERROR(INDEX(t_u13b_pen[LJ],MATCH($C21,t_u13b_pen[Bib],0)),"") -> 4.39 | F21: =IFERROR(INDEX(t_u13b_pen[75mH],MATCH($C21,t_u13b_pen[Bib],0)),"") -> 12.42 | G21: =IFERROR(INDEX(t_u13b_pen[SP],MATCH($C21,t_u13b_pen[Bib],0)),"") -> 8.12 | H21: =IFERROR(INDEX(t_u13b_pen[HJ],MATCH($C21,t_u13b_pen[Bib],0)),"") -> 1.35 | I21: =IFERROR((INDEX(t_u13b_pen[800mMins],MATCH($C21,t_u13b_pen[Bib],0))*60+INDEX(t_u13b_pen[800mSecs],MATCH($C21,t_u13b_pen[Bib],0)))/86400,0) -> 0.001877430556
B22: =INDEX(t_u13b_pen[FinalPosition],MATCH($A21,t_u13b_pen[AllPos],0)) -> Guest | C22: =INDEX(t_u13b_pen[Name],MATCH($A21,t_u13b_pen[AllPos],0)) -> Daniel Brown | D22: Wind | E22: =IFERROR(INDEX(t_u13b_pen[LJWind],MATCH($C21,t_u13b_pen[Bib],0)),"") -> 0 | F22: =IFERROR(INDEX(t_u13b_pen[75mHWind],MATCH($C21,t_u13b_pen[Bib],0)),"") -> 1.4 | J22: =IFERROR(INDEX(t_u13b_pen[AvWind],MATCH($C21,t_u13b_pen[Bib],0)),0) -> 0.7
C23: =INDEX(t_u13b_pen[Club],MATCH($A21,t_u13b_pen[AllPos],0)) -> Thurrock Harriers | D23: Points | E23: =IFERROR(INDEX(t_u13b_pen[LJPoints],MATCH($C21,t_u13b_pen[Bib],0)),"") -> 271 | F23: =IFERROR(INDEX(t_u13b_pen[75mHPoints],MATCH($C21,t_u13b_pen[Bib],0)),"") -> 561 | G23: =IFERROR(INDEX(t_u13b_pen[SPPoints],MATCH($C21,t_u13b_pen[Bib],0)),"") -> 373 | H23: =IFERROR(INDEX(t_u13b_pen[HJPoints],MATCH($C21,t_u13b_pen[Bib],0)),"") -> 283 | I23: =IFERROR(INDEX(t_u13b_pen[800mPoints],MATCH($C21,t_u13b_pen[Bib],0)),"") -> 192 | J23: =IFERROR(INDEX(t_u13b_pen[TotalPoints],MATCH($C21,t_u13b_pen[Bib],0)),0) -> 1680
A24: 7 | C24: =INDEX(t_u13b_pen[Bib],MATCH($A24,t_u13b_pen[AllPos],0)) -> 207 | D24: Perf | E24: =IFERROR(INDEX(t_u13b_pen[LJ],MATCH($C24,t_u13b_pen[Bib],0)),"") -> 4.11 | F24: =IFERROR(INDEX(t_u13b_pen[75mH],MATCH($C24,t_u13b_pen[Bib],0)),"") -> 14.25 | G24: =IFERROR(INDEX(t_u13b_pen[SP],MATCH($C24,t_u13b_pen[Bib],0)),"") -> 8.22 | H24: =IFERROR(INDEX(t_u13b_pen[HJ],MATCH($C24,t_u13b_pen[Bib],0)),"") -> 1.14 | I24: =IFERROR((INDEX(t_u13b_pen[800mMins],MATCH($C24,t_u13b_pen[Bib],0))*60+INDEX(t_u13b_pen[800mSecs],MATCH($C24,t_u13b_pen[Bib],0)))/86400,0) -> 0.00199525463
B25: =INDEX(t_u13b_pen[FinalPosition],MATCH($A24,t_u13b_pen[AllPos],0)) -> Guest | C25: =INDEX(t_u13b_pen[Name],MATCH($A24,t_u13b_pen[AllPos],0)) -> Cezar Mihai Draganescu | D25: Wind | E25: =IFERROR(INDEX(t_u13b_pen[LJWind],MATCH($C24,t_u13b_pen[Bib],0)),"") -> 1.5 | F25: =IFERROR(INDEX(t_u13b_pen[75mHWind],MATCH($C24,t_u13b_pen[Bib],0)),"") -> 1.4 | J25: =IFERROR(INDEX(t_u13b_pen[AvWind],MATCH($C24,t_u13b_pen[Bib],0)),0) -> 1.45
C26: =INDEX(t_u13b_pen[Club],MATCH($A24,t_u13b_pen[AllPos],0)) -> Thurrock Harriers | D26: Points | E26: =IFERROR(INDEX(t_u13b_pen[LJPoints],MATCH($C24,t_u13b_pen[Bib],0)),"") -> 224 | F26: =IFERROR(INDEX(t_u13b_pen[75mHPoints],MATCH($C24,t_u13b_pen[Bib],0)),"") -> 396 | G26: =IFERROR(INDEX(t_u13b_pen[SPPoints],MATCH($C24,t_u13b_pen[Bib],0)),"") -> 379 | H26: =IFERROR(INDEX(t_u13b_pen[HJPoints],MATCH($C24,t_u13b_pen[Bib],0)),"") -> 153 | I26: =IFERROR(INDEX(t_u13b_pen[800mPoints],MATCH($C24,t_u13b_pen[Bib],0)),"") -> 107 | J26: =IFERROR(INDEX(t_u13b_pen[TotalPoints],MATCH($C24,t_u13b_pen[Bib],0)),0) -> 1259

Sheet U15 Boys Pentathlon
A1: Bib | B1: Name | C1: Club | D1: AgeGrp | E1: Surrey | F1: LJ | G1: LJWind | H1: LJPoints | I1: 80mH | J1: 80mHElec | K1: 80mHWind | L1: 80mHPoints | M1: SP | N1: SPPoints | O1: HJ | P1: HJPoints | Q1: 800mMins | R1: 800mSecs | S1: 800mElec | T1: 800mPoints | U1: AvWind | V1: TotalPoints | W1: Retired | X1: FinalPosition | Y1: AllPos
A2: 235 | B2: Keeran Sriskandarajah | C2: Herne Hill Harriers | D2: U15B | E2: Y | F2: 5.1 | G2: 0.4 | H2: =IFERROR(getpoints(t_u15b_pen[[#This Row],[LJ]],"LJ",t_u15b_pen[[#This Row],[AgeGrp]]),0) -> 402 | I2: 12.67 | J2: Y | K2: 2.1 | L2: =IFERROR(getpoints(t_u15b_pen[[#This Row],[80mH]],"80mH",t_u15b_pen[[#This Row],[AgeGrp]],t_u15b_pen[[#This Row],[80mHElec]]),0) -> 636 | M2: 8.46 | N2: =IFERROR(getpoints(t_u15b_pen[[#This Row],[SP]],"SP",t_u15b_pen[[#This Row],[AgeGrp]]),0) -> 394 | O2: 1.57 | P2: =getpoints(t_u15b_pen[[#This Row],[HJ]],"HJ",t_u15b_pen[[#This Row],[AgeGrp]]) -> 441 | Q2: 2 | R2: 1.9 | T2: =IFERROR(getpoints(ROUNDDOWN(t_u15b_pen[[#This Row],[800mMins]]*60+t_u15b_pen[[#This Row],[800mSecs]],2),"800m",t_u15b_pen[[#This Row],[AgeGrp]],t_u15b_pen[[#This Row],[800mElec]]),0) -> 736 | U2: =IFERROR((t_u15b_pen[[#This Row],[LJWind]]+t_u15b_pen[[#This Row],[80mHWind]])/2,"n/a") -> 1.25 | V2: =IFERROR(t_u15b_pen[[#This Row],[LJPoints]]+t_u15b_pen[[#This Row],[SPPoints]]+t_u15b_pen[[#This Row],[HJPoints]]+t_u15b_pen[[#This Row],[80mHPoints]]+t_u15b_pen[[#This Row],[800mPoints]],0) -> 2609 | W2: =IF(OR(t_u15b_pen[[#This Row],[LJ]]="DNS",t_u15b_pen[[#This Row],[SP]]="DNS",t_u15b_pen[[#This Row],[HJ]]="DNS",t_u15b_pen[[#This Row],[80mH]]="DNS",t_u15b_pen[[#This Row],[800mMins]]="DNS"),"Y","") ->  | X2: =IF(t_u15b_pen[[#This Row],[Retired]]="Y","Retired",IF(t_u15b_pen[[#This Row],[Surrey]]="N","Guest",COUNTIFS(t_u15b_pen[Retired],"<>Y",t_u15b_pen[Surrey],"<>N",t_u15b_pen[TotalPoints],">"&t_u15b_pen[[#This Row],[TotalPoints]])+1)) -> 1 | Y2: =ROW(A1) -> 1
A3: 234 | B3: Quentin Pritchard | C3: Guildford & Godalming AC | D3: U15B | E3: Y | F3: 4.95 | G3: 0.8 | H3: =IFERROR(getpoints(t_u15b_pen[[#This Row],[LJ]],"LJ",t_u15b_pen[[#This Row],[AgeGrp]]),0) -> 373 | I3: 12.64 | J3: Y | L3: =IFERROR(getpoints(t_u15b_pen[[#This Row],[80mH]],"80mH",t_u15b_pen[[#This Row],[AgeGrp]],t_u15b_pen[[#This Row],[80mHElec]]),0) -> 639 | M3: 7.89 | N3: =IFERROR(getpoints(t_u15b_pen[[#This Row],[SP]],"SP",t_u15b_pen[[#This Row],[AgeGrp]]),0) -> 360 | O3: 1.39 | P3: =getpoints(t_u15b_pen[[#This Row],[HJ]],"HJ",t_u15b_pen[[#This Row],[AgeGrp]]) -> 310 | Q3: 2 | R3: 32.81 | T3: =IFERROR(getpoints(ROUNDDOWN(t_u15b_pen[[#This Row],[800mMins]]*60+t_u15b_pen[[#This Row],[800mSecs]],2),"800m",t_u15b_pen[[#This Row],[AgeGrp]],t_u15b_pen[[#This Row],[800mElec]]),0) -> 289 | U3: =IFERROR((t_u15b_pen[[#This Row],[LJWind]]+t_u15b_pen[[#This Row],[80mHWind]])/2,"n/a") -> 0.4 | V3: =IFERROR(t_u15b_pen[[#This Row],[LJPoints]]+t_u15b_pen[[#This Row],[SPPoints]]+t_u15b_pen[[#This Row],[HJPoints]]+t_u15b_pen[[#This Row],[80mHPoints]]+t_u15b_pen[[#This Row],[800mPoints]],0) -> 1971 | W3: =IF(OR(t_u15b_pen[[#This Row],[LJ]]="DNS",t_u15b_pen[[#This Row],[SP]]="DNS",t_u15b_pen[[#This Row],[HJ]]="DNS",t_u15b_pen[[#This Row],[80mH]]="DNS",t_u15b_pen[[#This Row],[800mMins]]="DNS"),"Y","") ->  | X3: =IF(t_u15b_pen[[#This Row],[Retired]]="Y","Retired",IF(t_u15b_pen[[#This Row],[Surrey]]="N","Guest",COUNTIFS(t_u15b_pen[Retired],"<>Y",t_u15b_pen[Surrey],"<>N",t_u15b_pen[TotalPoints],">"&t_u15b_pen[[#This Row],[TotalPoints]])+1)) -> 2 | Y3: 2
A4: 228 | B4: Harry Findlay | C4: Camberley & District AC | D4: U15B | E4: Y | F4: 4.8 | G4: 3.1 | H4: =IFERROR(getpoints(t_u15b_pen[[#This Row],[LJ]],"LJ",t_u15b_pen[[#This Row],[AgeGrp]]),0) -> 345 | I4: 13.19 | J4: Y | L4: =IFERROR(getpoints(t_u15b_pen[[#This Row],[80mH]],"80mH",t_u15b_pen[[#This Row],[AgeGrp]],t_u15b_pen[[#This Row],[80mHElec]]),0) -> 583 | M4: 6.82 | N4: =IFERROR(getpoints(t_u15b_pen[[#This Row],[SP]],"SP",t_u15b_pen[[#This Row],[AgeGrp]]),0) -> 297 | O4: 1.48 | P4: =getpoints(t_u15b_pen[[#This Row],[HJ]],"HJ",t_u15b_pen[[#This Row],[AgeGrp]]) -> 374 | Q4: 2 | R4: 27.63 | T4: =IFERROR(getpoints(ROUNDDOWN(t_u15b_pen[[#This Row],[800mMins]]*60+t_u15b_pen[[#This Row],[800mSecs]],2),"800m",t_u15b_pen[[#This Row],[AgeGrp]],t_u15b_pen[[#This Row],[800mElec]]),0) -> 351 | U4: =IFERROR((t_u15b_pen[[#This Row],[LJWind]]+t_u15b_pen[[#This Row],[80mHWind]])/2,"n/a") -> 1.55 | V4: =IFERROR(t_u15b_pen[[#This Row],[LJPoints]]+t_u15b_pen[[#This Row],[SPPoints]]+t_u15b_pen[[#This Row],[HJPoints]]+t_u15b_pen[[#This Row],[80mHPoints]]+t_u15b_pen[[#This Row],[800mPoints]],0) -> 1950 | W4: =IF(OR(t_u15b_pen[[#This Row],[LJ]]="DNS",t_u15b_pen[[#This Row],[SP]]="DNS",t_u15b_pen[[#This Row],[HJ]]="DNS",t_u15b_pen[[#This Row],[80mH]]="DNS",t_u15b_pen[[#This Row],[800mMins]]="DNS"),"Y","") ->  | X4: =IF(t_u15b_pen[[#This Row],[Retired]]="Y","Retired",IF(t_u15b_pen[[#This Row],[Surrey]]="N","Guest",COUNTIFS(t_u15b_pen[Retired],"<>Y",t_u15b_pen[Surrey],"<>N",t_u15b_pen[TotalPoints],">"&t_u15b_pen[[#This Row],[TotalPoints]])+1)) -> 3 | Y4: 3
A5: 229 | B5: Scott Fozard | C5: Guildford & Godalming AC | D5: U15B | E5: Y | F5: 4.76 | G5: 0.4 | H5: =IFERROR(getpoints(t_u15b_pen[[#This Row],[LJ]],"LJ",t_u15b_pen[[#This Row],[AgeGrp]]),0) -> 337 | I5: 13.45 | J5: Y | L5: =IFERROR(getpoints(t_u15b_pen[[#This Row],[80mH]],"80mH",t_u15b_pen[[#This Row],[AgeGrp]],t_u15b_pen[[#This Row],[80mHElec]]),0) -> 558 | M5: 8.15 | N5: =IFERROR(getpoints(t_u15b_pen[[#This Row],[SP]],"SP",t_u15b_pen[[#This Row],[AgeGrp]]),0) -> 375 | O5: 1.45 | P5: =getpoints(t_u15b_pen[[#This Row],[HJ]],"HJ",t_u15b_pen[[#This Row],[AgeGrp]]) -> 352 | Q5: 2 | R5: 32.15 | T5: =IFERROR(getpoints(ROUNDDOWN(t_u15b_pen[[#This Row],[800mMins]]*60+t_u15b_pen[[#This Row],[800mSecs]],2),"800m",t_u15b_pen[[#This Row],[AgeGrp]],t_u15b_pen[[#This Row],[800mElec]]),0) -> 297 | U5: =IFERROR((t_u15b_pen[[#This Row],[LJWind]]+t_u15b_pen[[#This Row],[80mHWind]])/2,"n/a") -> 0.2 | V5: =IFERROR(t_u15b_pen[[#This Row],[LJPoints]]+t_u15b_pen[[#This Row],[SPPoints]]+t_u15b_pen[[#This Row],[HJPoints]]+t_u15b_pen[[#This Row],[80mHPoints]]+t_u15b_pen[[#This Row],[800mPoints]],0) -> 1919 | W5: =IF(OR(t_u15b_pen[[#This Row],[LJ]]="DNS",t_u15b_pen[[#This Row],[SP]]="DNS",t_u15b_pen[[#This Row],[HJ]]="DNS",t_u15b_pen[[#This Row],[80mH]]="DNS",t_u15b_pen[[#This Row],[800mMins]]="DNS"),"Y","") ->  | X5: =IF(t_u15b_pen[[#This Row],[Retired]]="Y","Retired",IF(t_u15b_pen[[#This Row],[Surrey]]="N","Guest",COUNTIFS(t_u15b_pen[Retired],"<>Y",t_u15b_pen[Surrey],"<>N",t_u15b_pen[TotalPoints],">"&t_u15b_pen[[#This Row],[TotalPoints]])+1)) -> 4 | Y5: 4
A6: 236 | B6: Warren Wilson | C6: Herne Hill Harriers | D6: U15B | E6: Y | F6: 4.21 | G6: 0.5 | H6: =IFERROR(getpoints(t_u15b_pen[[#This Row],[LJ]],"LJ",t_u15b_pen[[#This Row],[AgeGrp]]),0) -> 240 | I6: 16.78 | J6: Y | L6: =IFERROR(getpoints(t_u15b_pen[[#This Row],[80mH]],"80mH",t_u15b_pen[[#This Row],[AgeGrp]],t_u15b_pen[[#This Row],[80mHElec]]),0) -> 278 | M6: 6.24 | N6: =IFERROR(getpoints(t_u15b_pen[[#This Row],[SP]],"SP",t_u15b_pen[[#This Row],[AgeGrp]]),0) -> 263 | O6: 1.24 | P6: =getpoints(t_u15b_pen[[#This Row],[HJ]],"HJ",t_u15b_pen[[#This Row],[AgeGrp]]) -> 212 | Q6: 2 | R6: 17.22 | T6: =IFERROR(getpoints(ROUNDDOWN(t_u15b_pen[[#This Row],[800mMins]]*60+t_u15b_pen[[#This Row],[800mSecs]],2),"800m",t_u15b_pen[[#This Row],[AgeGrp]],t_u15b_pen[[#This Row],[800mElec]]),0) -> 491 | U6: =IFERROR((t_u15b_pen[[#This Row],[LJWind]]+t_u15b_pen[[#This Row],[80mHWind]])/2,"n/a") -> 0.25 | V6: =IFERROR(t_u15b_pen[[#This Row],[LJPoints]]+t_u15b_pen[[#This Row],[SPPoints]]+t_u15b_pen[[#This Row],[HJPoints]]+t_u15b_pen[[#This Row],[80mHPoints]]+t_u15b_pen[[#This Row],[800mPoints]],0) -> 1484 | W6: =IF(OR(t_u15b_pen[[#This Row],[LJ]]="DNS",t_u15b_pen[[#This Row],[SP]]="DNS",t_u15b_pen[[#This Row],[HJ]]="DNS",t_u15b_pen[[#This Row],[80mH]]="DNS",t_u15b_pen[[#This Row],[800mMins]]="DNS"),"Y","") ->  | X6: =IF(t_u15b_pen[[#This Row],[Retired]]="Y","Retired",IF(t_u15b_pen[[#This Row],[Surrey]]="N","Guest",COUNTIFS(t_u15b_pen[Retired],"<>Y",t_u15b_pen[Surrey],"<>N",t_u15b_pen[TotalPoints],">"&t_u15b_pen[[#This Row],[TotalPoints]])+1)) -> 5 | Y6: 5
A7: 233 | B7: Benedict Pocock | C7: Epsom & Ewell Harriers | D7: U15B | E7: Y | F7: 4.13 | G7: 2.2 | H7: =IFERROR(getpoints(t_u15b_pen[[#This Row],[LJ]],"LJ",t_u15b_pen[[#This Row],[AgeGrp]]),0) -> 227 | I7: 16.41 | J7: Y | K7: 2.1 | L7: =IFERROR(getpoints(t_u15b_pen[[#This Row],[80mH]],"80mH",t_u15b_pen[[#This Row],[AgeGrp]],t_u15b_pen[[#This Row],[80mHElec]]),0) -> 305 | M7: 7.12 | N7: =IFERROR(getpoints(t_u15b_pen[[#This Row],[SP]],"SP",t_u15b_pen[[#This Row],[AgeGrp]]),0) -> 314 | O7: 1.39 | P7: =getpoints(t_u15b_pen[[#This Row],[HJ]],"HJ",t_u15b_pen[[#This Row],[AgeGrp]]) -> 310 | Q7: 2 | R7: 34.3 | T7: =IFERROR(getpoints(ROUNDDOWN(t_u15b_pen[[#This Row],[800mMins]]*60+t_u15b_pen[[#This Row],[800mSecs]],2),"800m",t_u15b_pen[[#This Row],[AgeGrp]],t_u15b_pen[[#This Row],[800mElec]]),0) -> 273 | U7: =IFERROR((t_u15b_pen[[#This Row],[LJWind]]+t_u15b_pen[[#This Row],[80mHWind]])/2,"n/a") -> 2.15 | V7: =IFERROR(t_u15b_pen[[#This Row],[LJPoints]]+t_u15b_pen[[#This Row],[SPPoints]]+t_u15b_pen[[#This Row],[HJPoints]]+t_u15b_pen[[#This Row],[80mHPoints]]+t_u15b_pen[[#This Row],[800mPoints]],0) -> 1429 | W7: =IF(OR(t_u15b_pen[[#This Row],[LJ]]="DNS",t_u15b_pen[[#This Row],[SP]]="DNS",t_u15b_pen[[#This Row],[HJ]]="DNS",t_u15b_pen[[#This Row],[80mH]]="DNS",t_u15b_pen[[#This Row],[800mMins]]="DNS"),"Y","") ->  | X7: =IF(t_u15b_pen[[#This Row],[Retired]]="Y","Retired",IF(t_u15b_pen[[#This Row],[Surrey]]="N","Guest",COUNTIFS(t_u15b_pen[Retired],"<>Y",t_u15b_pen[Surrey],"<>N",t_u15b_pen[TotalPoints],">"&t_u15b_pen[[#This Row],[TotalPoints]])+1)) -> 6 | Y7: 6
A8: 237 | B8: Alexander Wilson | C8: Herne Hill Harriers | D8: U15B | E8: Y | F8: 3.88 | G8: 1 | H8: =IFERROR(getpoints(t_u15b_pen[[#This Row],[LJ]],"LJ",t_u15b_pen[[#This Row],[AgeGrp]]),0) -> 187 | I8: 17.38 | J8: Y | K8: 2.1 | L8: =IFERROR(getpoints(t_u15b_pen[[#This Row],[80mH]],"80mH",t_u15b_pen[[#This Row],[AgeGrp]],t_u15b_pen[[#This Row],[80mHElec]]),0) -> 237 | M8: 4.77 | N8: =IFERROR(getpoints(t_u15b_pen[[#This Row],[SP]],"SP",t_u15b_pen[[#This Row],[AgeGrp]]),0) -> 178 | O8: 1.27 | P8: =getpoints(t_u15b_pen[[#This Row],[HJ]],"HJ",t_u15b_pen[[#This Row],[AgeGrp]]) -> 231 | Q8: 2 | R8: 21.12 | T8: =IFERROR(getpoints(ROUNDDOWN(t_u15b_pen[[#This Row],[800mMins]]*60+t_u15b_pen[[#This Row],[800mSecs]],2),"800m",t_u15b_pen[[#This Row],[AgeGrp]],t_u15b_pen[[#This Row],[800mElec]]),0) -> 436 | U8: =IFERROR((t_u15b_pen[[#This Row],[LJWind]]+t_u15b_pen[[#This Row],[80mHWind]])/2,"n/a") -> 1.55 | V8: =IFERROR(t_u15b_pen[[#This Row],[LJPoints]]+t_u15b_pen[[#This Row],[SPPoints]]+t_u15b_pen[[#This Row],[HJPoints]]+t_u15b_pen[[#This Row],[80mHPoints]]+t_u15b_pen[[#This Row],[800mPoints]],0) -> 1269 | W8: =IF(OR(t_u15b_pen[[#This Row],[LJ]]="DNS",t_u15b_pen[[#This Row],[SP]]="DNS",t_u15b_pen[[#This Row],[HJ]]="DNS",t_u15b_pen[[#This Row],[80mH]]="DNS",t_u15b_pen[[#This Row],[800mMins]]="DNS"),"Y","") ->  | X8: =IF(t_u15b_pen[[#This Row],[Retired]]="Y","Retired",IF(t_u15b_pen[[#This Row],[Surrey]]="N","Guest",COUNTIFS(t_u15b_pen[Retired],"<>Y",t_u15b_pen[Surrey],"<>N",t_u15b_pen[TotalPoints],">"&t_u15b_pen[[#This Row],[TotalPoints]])+1)) -> 7 | Y8: 7
A9: 232 | B9: Ewan Murphy | C9: Holland Sports AC | D9: U15B | E9: Y | F9: 4.43 | G9: 0.1 | H9: =IFERROR(getpoints(t_u15b_pen[[#This Row],[LJ]],"LJ",t_u15b_pen[[#This Row],[AgeGrp]]),0) -> 278 | I9: 17.44 | J9: Y | L9: =IFERROR(getpoints(t_u15b_pen[[#This Row],[80mH]],"80mH",t_u15b_pen[[#This Row],[AgeGrp]],t_u15b_pen[[#This Row],[80mHElec]]),0) -> 233 | M9: 4.33 | N9: =IFERROR(getpoints(t_u15b_pen[[#This Row],[SP]],"SP",t_u15b_pen[[#This Row],[AgeGrp]]),0) -> 153 | O9: 1.39 | P9: =getpoints(t_u15b_pen[[#This Row],[HJ]],"HJ",t_u15b_pen[[#This Row],[AgeGrp]]) -> 310 | Q9: 2 | R9: 33.57 | T9: =IFERROR(getpoints(ROUNDDOWN(t_u15b_pen[[#This Row],[800mMins]]*60+t_u15b_pen[[#This Row],[800mSecs]],2),"800m",t_u15b_pen[[#This Row],[AgeGrp]],t_u15b_pen[[#This Row],[800mElec]]),0) -> 281 | U9: =IFERROR((t_u15b_pen[[#This Row],[LJWind]]+t_u15b_pen[[#This Row],[80mHWind]])/2,"n/a") -> 0.05 | V9: =IFERROR(t_u15b_pen[[#This Row],[LJPoints]]+t_u15b_pen[[#This Row],[SPPoints]]+t_u15b_pen[[#This Row],[HJPoints]]+t_u15b_pen[[#This Row],[80mHPoints]]+t_u15b_pen[[#This Row],[800mPoints]],0) -> 1255 | W9: =IF(OR(t_u15b_pen[[#This Row],[LJ]]="DNS",t_u15b_pen[[#This Row],[SP]]="DNS",t_u15b_pen[[#This Row],[HJ]]="DNS",t_u15b_pen[[#This Row],[80mH]]="DNS",t_u15b_pen[[#This Row],[800mMins]]="DNS"),"Y","") ->  | X9: =IF(t_u15b_pen[[#This Row],[Retired]]="Y","Retired",IF(t_u15b_pen[[#This Row],[Surrey]]="N","Guest",COUNTIFS(t_u15b_pen[Retired],"<>Y",t_u15b_pen[Surrey],"<>N",t_u15b_pen[TotalPoints],">"&t_u15b_pen[[#This Row],[TotalPoints]])+1)) -> 8 | Y9: 8

Sheet U15 Boys Results
B1: Holder: | C1: =INDEX(t_holder[Name],MATCH("U15B",t_holder[AgeGrp],0)) -> Ashton McKay | F1: =INDEX(t_holder[Club],MATCH("U15B",t_holder[AgeGrp],0)) -> Epsom & Ewell Harriers | J1: =INDEX(t_holder[Points],MATCH("U15B",t_holder[AgeGrp],0)) & "pts" -> 2407pts
B2: CBP: | C2: =INDEX(t_cbp[Name],MATCH("U15B",t_cbp[AgeGrp],0)) -> Mark Awanah | F2: =INDEX(t_cbp[Club],MATCH("U15B",t_cbp[AgeGrp],0)) -> Lewisham AC | J2: =INDEX(t_cbp[Points],MATCH("U15B",t_cbp[AgeGrp],0)) & "Pts" -> 2961Pts | K2: =INDEX(t_cbp[Year],MATCH("U15B",t_cbp[AgeGrp],0)) -> 1997
J4: Av Wind
B5: Pos | C5: Athlete | E5: LJ | F5: 80mH | G5: Shot | H5: HJ | I5: 800m | J5: Final Total
A6: 1 | C6: =INDEX(t_u15b_pen[Bib],MATCH(A6,t_u15b_pen[AllPos],0)) -> 235 | D6: Perf | E6: =INDEX(t_u15b_pen[LJ],MATCH(A6,t_u15b_pen[AllPos],0)) -> 5.1 | F6: =INDEX(t_u15b_pen[80mH],MATCH(A6,t_u15b_pen[AllPos],0)) -> 12.67 | G6: =INDEX(t_u15b_pen[SP],MATCH(A6,t_u15b_pen[AllPos],0)) -> 8.46 | H6: =INDEX(t_u15b_pen[HJ],MATCH(A6,t_u15b_pen[AllPos],0)) -> 1.57 | I6: =IF(ISNUMBER(INDEX(t_u15b_pen[800mMins],MATCH($A6,t_u15b_pen[AllPos],0))),(INDEX(t_u15b_pen[800mMins],MATCH($A6,t_u15b_pen[AllPos],0))*60+INDEX(t_u15b_pen[800mSecs],MATCH($A6,t_u15b_pen[AllPos],0)))/86400,INDEX(t_u15b_pen[800mMins],MATCH($A6,t_u15b_pen[AllPos],0))) -> 0.00141087963
B7: =INDEX(t_u15b_pen[FinalPosition],MATCH(A6,t_u15b_pen[AllPos],0)) -> 1 | C7: =INDEX(t_u15b_pen[Name],MATCH(A6,t_u15b_pen[AllPos],0)) -> Keeran Sriskandarajah | D7: Wind | E7: =INDEX(t_u15b_pen[LJWind],MATCH(A6,t_u15b_pen[AllPos],0)) -> 0.4 | F7: =INDEX(t_u15b_pen[80mHWind],MATCH(A6,t_u15b_pen[AllPos],0)) -> 2.1 | J7: =IFERROR(INDEX(t_u15b_pen[AvWind],MATCH(A5,t_u15b_pen[AllPos],0)),0) -> 0
C8: =INDEX(t_u15b_pen[Club],MATCH(A6,t_u15b_pen[AllPos],0)) -> Herne Hill Harriers | D8: Points | E8: =INDEX(t_u15b_pen[LJPoints],MATCH(A6,t_u15b_pen[AllPos],0)) -> 402 | F8: =INDEX(t_u15b_pen[80mHPoints],MATCH(A6,t_u15b_pen[AllPos],0)) -> 636 | G8: =INDEX(t_u15b_pen[SPPoints],MATCH(A6,t_u15b_pen[AllPos],0)) -> 394 | H8: =INDEX(t_u15b_pen[HJPoints],MATCH(A6,t_u15b_pen[AllPos],0)) -> 441 | I8: =INDEX(t_u15b_pen[800mPoints],MATCH(A6,t_u15b_pen[AllPos],0)) -> 736 | J8: =INDEX(t_u15b_pen[TotalPoints],MATCH(A6,t_u15b_pen[AllPos],0)) -> 2609
A9: =A6+1 -> 2 | C9: =INDEX(t_u15b_pen[Bib],MATCH(A9,t_u15b_pen[AllPos],0)) -> 234 | D9: Perf | E9: =INDEX(t_u15b_pen[LJ],MATCH(A9,t_u15b_pen[AllPos],0)) -> 4.95 | F9: =INDEX(t_u15b_pen[80mH],MATCH(A9,t_u15b_pen[AllPos],0)) -> 12.64 | G9: =INDEX(t_u15b_pen[SP],MATCH(A9,t_u15b_pen[AllPos],0)) -> 7.89 | H9: =INDEX(t_u15b_pen[HJ],MATCH(A9,t_u15b_pen[AllPos],0)) -> 1.39 | I9: =IF(ISNUMBER(INDEX(t_u15b_pen[800mMins],MATCH($A9,t_u15b_pen[AllPos],0))),(INDEX(t_u15b_pen[800mMins],MATCH($A9,t_u15b_pen[AllPos],0))*60+INDEX(t_u15b_pen[800mSecs],MATCH($A9,t_u15b_pen[AllPos],0)))/86400,INDEX(t_u15b_pen[800mMins],MATCH($A9,t_u15b_pen[AllPos],0))) -> 0.001768634259
B10: =INDEX(t_u15b_pen[FinalPosition],MATCH(A9,t_u15b_pen[AllPos],0)) -> 2 | C10: =INDEX(t_u15b_pen[Name],MATCH(A9,t_u15b_pen[AllPos],0)) -> Quentin Pritchard | D10: Wind | E10: =INDEX(t_u15b_pen[LJWind],MATCH(A9,t_u15b_pen[AllPos],0)) -> 0.8 | F10: =INDEX(t_u15b_pen[80mHWind],MATCH(A9,t_u15b_pen[AllPos],0)) -> 0 | J10: =IFERROR(INDEX(t_u15b_pen[AvWind],MATCH(A8,t_u15b_pen[AllPos],0)),0) -> 0
C11: =INDEX(t_u15b_pen[Club],MATCH(A9,t_u15b_pen[AllPos],0)) -> Guildford & Godalming AC | D11: Points | E11: =INDEX(t_u15b_pen[LJPoints],MATCH(A9,t_u15b_pen[AllPos],0)) -> 373 | F11: =INDEX(t_u15b_pen[80mHPoints],MATCH(A9,t_u15b_pen[AllPos],0)) -> 639 | G11: =INDEX(t_u15b_pen[SPPoints],MATCH(A9,t_u15b_pen[AllPos],0)) -> 360 | H11: =INDEX(t_u15b_pen[HJPoints],MATCH(A9,t_u15b_pen[AllPos],0)) -> 310 | I11: =INDEX(t_u15b_pen[800mPoints],MATCH(A9,t_u15b_pen[AllPos],0)) -> 289 | J11: =INDEX(t_u15b_pen[TotalPoints],MATCH(A9,t_u15b_pen[AllPos],0)) -> 1971
A12: =A9+1 -> 3 | C12: =INDEX(t_u15b_pen[Bib],MATCH(A12,t_u15b_pen[AllPos],0)) -> 228 | D12: Perf | E12: =INDEX(t_u15b_pen[LJ],MATCH(A12,t_u15b_pen[AllPos],0)) -> 4.8 | F12: =INDEX(t_u15b_pen[80mH],MATCH(A12,t_u15b_pen[AllPos],0)) -> 13.19 | G12: =INDEX(t_u15b_pen[SP],MATCH(A12,t_u15b_pen[AllPos],0)) -> 6.82 | H12: =INDEX(t_u15b_pen[HJ],MATCH(A12,t_u15b_pen[AllPos],0)) -> 1.48 | I12: =IF(ISNUMBER(INDEX(t_u15b_pen[800mMins],MATCH($A12,t_u15b_pen[AllPos],0))),(INDEX(t_u15b_pen[800mMins],MATCH($A12,t_u15b_pen[AllPos],0))*60+INDEX(t_u15b_pen[800mSecs],MATCH($A12,t_u15b_pen[AllPos],0)))/86400,INDEX(t_u15b_pen[800mMins],MATCH($A12,t_u15b_pen[AllPos],0))) -> 0.001708680556
B13: =INDEX(t_u15b_pen[FinalPosition],MATCH(A12,t_u15b_pen[AllPos],0)) -> 3 | C13: =INDEX(t_u15b_pen[Name],MATCH(A12,t_u15b_pen[AllPos],0)) -> Harry Findlay | D13: Wind | E13: =INDEX(t_u15b_pen[LJWind],MATCH(A12,t_u15b_pen[AllPos],0)) -> 3.1 | F13: =INDEX(t_u15b_pen[80mHWind],MATCH(A12,t_u15b_pen[AllPos],0)) -> 0 | J13: =IFERROR(INDEX(t_u15b_pen[AvWind],MATCH(A11,t_u15b_pen[AllPos],0)),0) -> 0
C14: =INDEX(t_u15b_pen[Club],MATCH(A12,t_u15b_pen[AllPos],0)) -> Camberley & District AC | D14: Points | E14: =INDEX(t_u15b_pen[LJPoints],MATCH(A12,t_u15b_pen[AllPos],0)) -> 345 | F14: =INDEX(t_u15b_pen[80mHPoints],MATCH(A12,t_u15b_pen[AllPos],0)) -> 583 | G14: =INDEX(t_u15b_pen[SPPoints],MATCH(A12,t_u15b_pen[AllPos],0)) -> 297 | H14: =INDEX(t_u15b_pen[HJPoints],MATCH(A12,t_u15b_pen[AllPos],0)) -> 374 | I14: =INDEX(t_u15b_pen[800mPoints],MATCH(A12,t_u15b_pen[AllPos],0)) -> 351 | J14: =INDEX(t_u15b_pen[TotalPoints],MATCH(A12,t_u15b_pen[AllPos],0)) -> 1950
A15: =A12+1 -> 4 | C15: =INDEX(t_u15b_pen[Bib],MATCH(A15,t_u15b_pen[AllPos],0)) -> 229 | D15: Perf | E15: =INDEX(t_u15b_pen[LJ],MATCH(A15,t_u15b_pen[AllPos],0)) -> 4.76 | F15: =INDEX(t_u15b_pen[80mH],MATCH(A15,t_u15b_pen[AllPos],0)) -> 13.45 | G15: =INDEX(t_u15b_pen[SP],MATCH(A15,t_u15b_pen[AllPos],0)) -> 8.15 | H15: =INDEX(t_u15b_pen[HJ],MATCH(A15,t_u15b_pen[AllPos],0)) -> 1.45 | I15: =IF(ISNUMBER(INDEX(t_u15b_pen[800mMins],MATCH($A15,t_u15b_pen[AllPos],0))),(INDEX(t_u15b_pen[800mMins],MATCH($A15,t_u15b_pen[AllPos],0))*60+INDEX(t_u15b_pen[800mSecs],MATCH($A15,t_u15b_pen[AllPos],0)))/86400,INDEX(t_u15b_pen[800mMins],MATCH($A15,t_u15b_pen[AllPos],0))) -> 0.00176099537
B16: =INDEX(t_u15b_pen[FinalPosition],MATCH(A15,t_u15b_pen[AllPos],0)) -> 4 | C16: =INDEX(t_u15b_pen[Name],MATCH(A15,t_u15b_pen[AllPos],0)) -> Scott Fozard | D16: Wind | E16: =INDEX(t_u15b_pen[LJWind],MATCH(A15,t_u15b_pen[AllPos],0)) -> 0.4 | F16: =INDEX(t_u15b_pen[80mHWind],MATCH(A15,t_u15b_pen[AllPos],0)) -> 0 | J16: =IFERROR(INDEX(t_u15b_pen[AvWind],MATCH(A14,t_u15b_pen[AllPos],0)),0) -> 0
C17: =INDEX(t_u15b_pen[Club],MATCH(A15,t_u15b_pen[AllPos],0)) -> Guildford & Godalming AC | D17: Points | E17: =INDEX(t_u15b_pen[LJPoints],MATCH(A15,t_u15b_pen[AllPos],0)) -> 337 | F17: =INDEX(t_u15b_pen[80mHPoints],MATCH(A15,t_u15b_pen[AllPos],0)) -> 558 | G17: =INDEX(t_u15b_pen[SPPoints],MATCH(A15,t_u15b_pen[AllPos],0)) -> 375 | H17: =INDEX(t_u15b_pen[HJPoints],MATCH(A15,t_u15b_pen[AllPos],0)) -> 352 | I17: =INDEX(t_u15b_pen[800mPoints],MATCH(A15,t_u15b_pen[AllPos],0)) -> 297 | J17: =INDEX(t_u15b_pen[TotalPoints],MATCH(A15,t_u15b_pen[AllPos],0)) -> 1919
A18: =A15+1 -> 5 | C18: =INDEX(t_u15b_pen[Bib],MATCH(A18,t_u15b_pen[AllPos],0)) -> 236 | D18: Perf | E18: =INDEX(t_u15b_pen[LJ],MATCH(A18,t_u15b_pen[AllPos],0)) -> 4.21 | F18: =INDEX(t_u15b_pen[80mH],MATCH(A18,t_u15b_pen[AllPos],0)) -> 16.78 | G18: =INDEX(t_u15b_pen[SP],MATCH(A18,t_u15b_pen[AllPos],0)) -> 6.24 | H18: =INDEX(t_u15b_pen[HJ],MATCH(A18,t_u15b_pen[AllPos],0)) -> 1.24 | I18: =IF(ISNUMBER(INDEX(t_u15b_pen[800mMins],MATCH($A18,t_u15b_pen[AllPos],0))),(INDEX(t_u15b_pen[800mMins],MATCH($A18,t_u15b_pen[AllPos],0))*60+INDEX(t_u15b_pen[800mSecs],MATCH($A18,t_u15b_pen[AllPos],0)))/86400,INDEX(t_u15b_pen[800mMins],MATCH($A18,t_u15b_pen[AllPos],0))) -> 0.001588194444
B19: =INDEX(t_u15b_pen[FinalPosition],MATCH(A18,t_u15b_pen[AllPos],0)) -> 5 | C19: =INDEX(t_u15b_pen[Name],MATCH(A18,t_u15b_pen[AllPos],0)) -> Warren Wilson | D19: Wind | E19: =INDEX(t_u15b_pen[LJWind],MATCH(A18,t_u15b_pen[AllPos],0)) -> 0.5 | F19: =INDEX(t_u15b_pen[80mHWind],MATCH(A18,t_u15b_pen[AllPos],0)) -> 0 | J19: =IFERROR(INDEX(t_u15b_pen[AvWind],MATCH(A17,t_u15b_pen[AllPos],0)),0) -> 0
C20: =INDEX(t_u15b_pen[Club],MATCH(A18,t_u15b_pen[AllPos],0)) -> Herne Hill Harriers | D20: Points | E20: =INDEX(t_u15b_pen[LJPoints],MATCH(A18,t_u15b_pen[AllPos],0)) -> 240 | F20: =INDEX(t_u15b_pen[80mHPoints],MATCH(A18,t_u15b_pen[AllPos],0)) -> 278 | G20: =INDEX(t_u15b_pen[SPPoints],MATCH(A18,t_u15b_pen[AllPos],0)) -> 263 | H20: =INDEX(t_u15b_pen[HJPoints],MATCH(A18,t_u15b_pen[AllPos],0)) -> 212 | I20: =INDEX(t_u15b_pen[800mPoints],MATCH(A18,t_u15b_pen[AllPos],0)) -> 491 | J20: =INDEX(t_u15b_pen[TotalPoints],MATCH(A18,t_u15b_pen[AllPos],0)) -> 1484
A21: =A18+1 -> 6 | C21: =INDEX(t_u15b_pen[Bib],MATCH(A21,t_u15b_pen[AllPos],0)) -> 233 | D21: Perf | E21: =INDEX(t_u15b_pen[LJ],MATCH(A21,t_u15b_pen[AllPos],0)) -> 4.13 | F21: =INDEX(t_u15b_pen[80mH],MATCH(A21,t_u15b_pen[AllPos],0)) -> 16.41 | G21: =INDEX(t_u15b_pen[SP],MATCH(A21,t_u15b_pen[AllPos],0)) -> 7.12 | H21: =INDEX(t_u15b_pen[HJ],MATCH(A21,t_u15b_pen[AllPos],0)) -> 1.39 | I21: =IF(ISNUMBER(INDEX(t_u15b_pen[800mMins],MATCH($A21,t_u15b_pen[AllPos],0))),(INDEX(t_u15b_pen[800mMins],MATCH($A21,t_u15b_pen[AllPos],0))*60+INDEX(t_u15b_pen[800mSecs],MATCH($A21,t_u15b_pen[AllPos],0)))/86400,INDEX(t_u15b_pen[800mMins],MATCH($A21,t_u15b_pen[AllPos],0))) -> 0.00178587963
B22: =INDEX(t_u15b_pen[FinalPosition],MATCH(A21,t_u15b_pen[AllPos],0)) -> 6 | C22: =INDEX(t_u15b_pen[Name],MATCH(A21,t_u15b_pen[AllPos],0)) -> Benedict Pocock | D22: Wind | E22: =INDEX(t_u15b_pen[LJWind],MATCH(A21,t_u15b_pen[AllPos],0)) -> 2.2 | F22: =INDEX(t_u15b_pen[80mHWind],MATCH(A21,t_u15b_pen[AllPos],0)) -> 2.1 | J22: =IFERROR(INDEX(t_u15b_pen[AvWind],MATCH(A20,t_u15b_pen[AllPos],0)),0) -> 0
C23: =INDEX(t_u15b_pen[Club],MATCH(A21,t_u15b_pen[AllPos],0)) -> Epsom & Ewell Harriers | D23: Points | E23: =INDEX(t_u15b_pen[LJPoints],MATCH(A21,t_u15b_pen[AllPos],0)) -> 227 | F23: =INDEX(t_u15b_pen[80mHPoints],MATCH(A21,t_u15b_pen[AllPos],0)) -> 305 | G23: =INDEX(t_u15b_pen[SPPoints],MATCH(A21,t_u15b_pen[AllPos],0)) -> 314 | H23: =INDEX(t_u15b_pen[HJPoints],MATCH(A21,t_u15b_pen[AllPos],0)) -> 310 | I23: =INDEX(t_u15b_pen[800mPoints],MATCH(A21,t_u15b_pen[AllPos],0)) -> 273 | J23: =INDEX(t_u15b_pen[TotalPoints],MATCH(A21,t_u15b_pen[AllPos],0)) -> 1429
A24: 7 | C24: =INDEX(t_u15b_pen[Bib],MATCH(A24,t_u15b_pen[AllPos],0)) -> 237 | D24: Perf | E24: =INDEX(t_u15b_pen[LJ],MATCH(A24,t_u15b_pen[AllPos],0)) -> 3.88 | F24: =INDEX(t_u15b_pen[80mH],MATCH(A24,t_u15b_pen[AllPos],0)) -> 17.38 | G24: =INDEX(t_u15b_pen[SP],MATCH(A24,t_u15b_pen[AllPos],0)) -> 4.77 | H24: =INDEX(t_u15b_pen[HJ],MATCH(A24,t_u15b_pen[AllPos],0)) -> 1.27 | I24: =IF(ISNUMBER(INDEX(t_u15b_pen[800mMins],MATCH($A24,t_u15b_pen[AllPos],0))),(INDEX(t_u15b_pen[800mMins],MATCH($A24,t_u15b_pen[AllPos],0))*60+INDEX(t_u15b_pen[800mSecs],MATCH($A24,t_u15b_pen[AllPos],0)))/86400,INDEX(t_u15b_pen[800mMins],MATCH($A24,t_u15b_pen[AllPos],0))) -> 0.001633333333
B25: =INDEX(t_u15b_pen[FinalPosition],MATCH(A24,t_u15b_pen[AllPos],0)) -> 7 | C25: =INDEX(t_u15b_pen[Name],MATCH(A24,t_u15b_pen[AllPos],0)) -> Alexander Wilson | D25: Wind | E25: =INDEX(t_u15b_pen[LJWind],MATCH(A24,t_u15b_pen[AllPos],0)) -> 1 | F25: =INDEX(t_u15b_pen[80mHWind],MATCH(A24,t_u15b_pen[AllPos],0)) -> 2.1 | J25: =IFERROR(INDEX(t_u15b_pen[AvWind],MATCH(A23,t_u15b_pen[AllPos],0)),0) -> 0
C26: =INDEX(t_u15b_pen[Club],MATCH(A24,t_u15b_pen[AllPos],0)) -> Herne Hill Harriers | D26: Points | E26: =INDEX(t_u15b_pen[LJPoints],MATCH(A24,t_u15b_pen[AllPos],0)) -> 187 | F26: =INDEX(t_u15b_pen[80mHPoints],MATCH(A24,t_u15b_pen[AllPos],0)) -> 237 | G26: =INDEX(t_u15b_pen[SPPoints],MATCH(A24,t_u15b_pen[AllPos],0)) -> 178 | H26: =INDEX(t_u15b_pen[HJPoints],MATCH(A24,t_u15b_pen[AllPos],0)) -> 231 | I26: =INDEX(t_u15b_pen[800mPoints],MATCH(A24,t_u15b_pen[AllPos],0)) -> 436 | J26: =INDEX(t_u15b_pen[TotalPoints],MATCH(A24,t_u15b_pen[AllPos],0)) -> 1269
A27: 8 | C27: =INDEX(t_u15b_pen[Bib],MATCH(A27,t_u15b_pen[AllPos],0)) -> 232 | D27: Perf | E27: =INDEX(t_u15b_pen[LJ],MATCH(A27,t_u15b_pen[AllPos],0)) -> 4.43 | F27: =INDEX(t_u15b_pen[80mH],MATCH(A27,t_u15b_pen[AllPos],0)) -> 17.44 | G27: =INDEX(t_u15b_pen[SP],MATCH(A27,t_u15b_pen[AllPos],0)) -> 4.33 | H27: =INDEX(t_u15b_pen[HJ],MATCH(A27,t_u15b_pen[AllPos],0)) -> 1.39 | I27: =IF(ISNUMBER(INDEX(t_u15b_pen[800mMins],MATCH($A27,t_u15b_pen[AllPos],0))),(INDEX(t_u15b_pen[800mMins],MATCH($A27,t_u15b_pen[AllPos],0))*60+INDEX(t_u15b_pen[800mSecs],MATCH($A27,t_u15b_pen[AllPos],0)))/86400,INDEX(t_u15b_pen[800mMins],MATCH($A27,t_u15b_pen[AllPos],0))) -> 0.001777430556
B28: =INDEX(t_u15b_pen[FinalPosition],MATCH(A27,t_u15b_pen[AllPos],0)) -> 8 | C28: =INDEX(t_u15b_pen[Name],MATCH(A27,t_u15b_pen[AllPos],0)) -> Ewan Murphy | D28: Wind | E28: =INDEX(t_u15b_pen[LJWind],MATCH(A27,t_u15b_pen[AllPos],0)) -> 0.1 | F28: =INDEX(t_u15b_pen[80mHWind],MATCH(A27,t_u15b_pen[AllPos],0)) -> 0 | J28: =IFERROR(INDEX(t_u15b_pen[AvWind],MATCH(A26,t_u15b_pen[AllPos],0)),0) -> 0
C29: =INDEX(t_u15b_pen[Club],MATCH(A27,t_u15b_pen[AllPos],0)) -> Holland Sports AC | D29: Points | E29: =INDEX(t_u15b_pen[LJPoints],MATCH(A27,t_u15b_pen[AllPos],0)) -> 278 | F29: =INDEX(t_u15b_pen[80mHPoints],MATCH(A27,t_u15b_pen[AllPos],0)) -> 233 | G29: =INDEX(t_u15b_pen[SPPoints],MATCH(A27,t_u15b_pen[AllPos],0)) -> 153 | H29: =INDEX(t_u15b_pen[HJPoints],MATCH(A27,t_u15b_pen[AllPos],0)) -> 310 | I29: =INDEX(t_u15b_pen[800mPoints],MATCH(A27,t_u15b_pen[AllPos],0)) -> 281 | J29: =INDEX(t_u15b_pen[TotalPoints],MATCH(A27,t_u15b_pen[AllPos],0)) -> 1255
A30: 9
A33: =A30+1 -> 10
A36: =A33+1 -> 11

Sheet U17 Men Octathlon
A1: Bib | B1: Name | C1: Club | D1: AgeGrp | E1: Surrey | F1: 100mH | G1: 100mHElec | H1: 100mHWind | I1: 100mHPoints | J1: LJ | K1: LJWind | L1: LJPoints | M1: SP | N1: SPPoints | O1: 400m | P1: 400mElec | Q1: 400mPoints | R1: First Day Total | S1: HJ | T1: HJPoints | U1: DT | V1: DTPoints | W1: JT | X1: JTPoints | Y1: 1500mMins | Z1: 1500mSecs | AA1: 1500mElec | AB1: 1500mPoints | AC1: AvWind | AD1: TotalPoints | AE1: Retired | AF1: FinalPosition | AG1: AllPos
A2: 258 | B2: Hayden Christian | C2: Guildford & Godalming AC | D2: U17M | E2: Y | G2: Y | I2: =IFERROR(getpoints(t_u17m_oct[[#This Row],[100mH]],"100mH",t_u17m_oct[[#This Row],[AgeGrp]],t_u17m_oct[[#This Row],[100mHElec]]),"") -> 0 | L2: =IFERROR(getpoints(t_u17m_oct[[#This Row],[LJ]],"LJ",t_u17m_oct[[#This Row],[AgeGrp]]),"") -> 0 | N2: =IFERROR(getpoints(t_u17m_oct[[#This Row],[SP]],"SP",t_u17m_oct[[#This Row],[AgeGrp]]),"") -> 0 | P2: Y | Q2: =IFERROR(getpoints(t_u17m_oct[[#This Row],[400m]],"400m",t_u17m_oct[[#This Row],[AgeGrp]],t_u17m_oct[[#This Row],[400mElec]]),"") -> 0 | R2: =IFERROR(t_u17m_oct[[#This Row],[100mHPoints]]+t_u17m_oct[[#This Row],[LJPoints]]+t_u17m_oct[[#This Row],[SPPoints]]+t_u17m_oct[[#This Row],[400mPoints]],"") -> 0 | T2: =IFERROR(getpoints(t_u17m_oct[[#This Row],[HJ]],"HJ",t_u17m_oct[[#This Row],[AgeGrp]]),"") -> 0 | V2: =IFERROR(getpoints(t_u17m_oct[[#This Row],[DT]],"DT",t_u17m_oct[[#This Row],[AgeGrp]]),"") -> 0 | X2: =IFERROR(getpoints(t_u17m_oct[[#This Row],[JT]],"JT",t_u17m_oct[[#This Row],[AgeGrp]]),"") -> 0 | AB2: =IFERROR(getpoints(t_u17m_oct[[#This Row],[1500mMins]]*60+t_u17m_oct[[#This Row],[1500mSecs]],"1500m",t_u17m_oct[[#This Row],[AgeGrp]],t_u17m_oct[[#This Row],[1500mElec]]),0) -> 0 | AC2: =IFERROR((t_u17m_oct[[#This Row],[100mHWind]]+t_u17m_oct[[#This Row],[LJWind]])/2,"n/a") -> 0 | AD2: =IFERROR(t_u17m_oct[[#This Row],[100mHPoints]]+t_u17m_oct[[#This Row],[LJPoints]]+t_u17m_oct[[#This Row],[SPPoints]]+t_u17m_oct[[#This Row],[HJPoints]]+t_u17m_oct[[#This Row],[400mPoints]]+t_u17m_oct[[#This Row],[DTPoints]]+t_u17m_oct[[#This Row],[JTPoints]]+t_u17m_oct[[#This Row],[1500mPoints]],0) -> 0 | AE2: =IF(OR(t_u17m_oct[[#This Row],[100mH]]="DNS",t_u17m_oct[[#This Row],[LJ]]="DNS",t_u17m_oct[[#This Row],[SP]]="DNS",t_u17m_oct[[#This Row],[HJ]]="DNS",t_u17m_oct[[#This Row],[400m]]="DNS",t_u17m_oct[[#This Row],[DT]]="DNS",t_u17m_oct[[#This Row],[JT]]="DNS",t_u17m_oct[[#This Row],[1500mMins]]="DNS"),"Y","") ->  | AF2: =IF(t_u17m_oct[[#This Row],[Retired]]="Y","Retired",IF(t_u17m_oct[[#This Row],[Surrey]]="N","Guest",COUNTIFS(t_u17m_oct[Retired],"<>Y",t_u17m_oct[Surrey],"<>N",t_u17m_oct[TotalPoints],">"&t_u17m_oct[[#This Row],[TotalPoints]])+1)) -> 4 | AG2: =ROW(A1) -> 1
A3: 259 | B3: Dante Clarke | C3: Herne Hill Harriers | D3: U17M | E3: Y | F3: 14.26 | G3: Y | H3: 2.7 | I3: =IFERROR(getpoints(t_u17m_oct[[#This Row],[100mH]],"100mH",t_u17m_oct[[#This Row],[AgeGrp]],t_u17m_oct[[#This Row],[100mHElec]]),"") -> 771 | J3: 5.82 | K3: 0.1 | L3: =IFERROR(getpoints(t_u17m_oct[[#This Row],[LJ]],"LJ",t_u17m_oct[[#This Row],[AgeGrp]]),"") -> 548 | M3: 10.42 | N3: =IFERROR(getpoints(t_u17m_oct[[#This Row],[SP]],"SP",t_u17m_oct[[#This Row],[AgeGrp]]),"") -> 511 | O3: 56.95 | P3: Y | Q3: =IFERROR(getpoints(t_u17m_oct[[#This Row],[400m]],"400m",t_u17m_oct[[#This Row],[AgeGrp]],t_u17m_oct[[#This Row],[400mElec]]),"") -> 523 | R3: =IFERROR(t_u17m_oct[[#This Row],[100mHPoints]]+t_u17m_oct[[#This Row],[LJPoints]]+t_u17m_oct[[#This Row],[SPPoints]]+t_u17m_oct[[#This Row],[400mPoints]],"") -> 2353 | S3: 1.77 | T3: =IFERROR(getpoints(t_u17m_oct[[#This Row],[HJ]],"HJ",t_u17m_oct[[#This Row],[AgeGrp]]),"") -> 602 | U3: 30.24 | V3: =IFERROR(getpoints(t_u17m_oct[[#This Row],[DT]],"DT",t_u17m_oct[[#This Row],[AgeGrp]]),"") -> 469 | W3: 29.2 | X3: =IFERROR(getpoints(t_u17m_oct[[#This Row],[JT]],"JT",t_u17m_oct[[#This Row],[AgeGrp]]),"") -> 288 | Y3: 5 | Z3: 23.46 | AB3: =IFERROR(getpoints(t_u17m_oct[[#This Row],[1500mMins]]*60+t_u17m_oct[[#This Row],[1500mSecs]],"1500m",t_u17m_oct[[#This Row],[AgeGrp]],t_u17m_oct[[#This Row],[1500mElec]]),0) -> 432 | AC3: =IFERROR((t_u17m_oct[[#This Row],[100mHWind]]+t_u17m_oct[[#This Row],[LJWind]])/2,"n/a") -> 1.4 | AD3: =IFERROR(t_u17m_oct[[#This Row],[100mHPoints]]+t_u17m_oct[[#This Row],[LJPoints]]+t_u17m_oct[[#This Row],[SPPoints]]+t_u17m_oct[[#This Row],[HJPoints]]+t_u17m_oct[[#This Row],[400mPoints]]+t_u17m_oct[[#This Row],[DTPoints]]+t_u17m_oct[[#This Row],[JTPoints]]+t_u17m_oct[[#This Row],[1500mPoints]],0) -> 4144 | AE3: =IF(OR(t_u17m_oct[[#This Row],[100mH]]="DNS",t_u17m_oct[[#This Row],[LJ]]="DNS",t_u17m_oct[[#This Row],[SP]]="DNS",t_u17m_oct[[#This Row],[HJ]]="DNS",t_u17m_oct[[#This Row],[400m]]="DNS",t_u17m_oct[[#This Row],[DT]]="DNS",t_u17m_oct[[#This Row],[JT]]="DNS",t_u17m_oct[[#This Row],[1500mMins]]="DNS"),"Y","") ->  | AF3: =IF(t_u17m_oct[[#This Row],[Retired]]="Y","Retired",IF(t_u17m_oct[[#This Row],[Surrey]]="N","Guest",COUNTIFS(t_u17m_oct[Retired],"<>Y",t_u17m_oct[Surrey],"<>N",t_u17m_oct[TotalPoints],">"&t_u17m_oct[[#This Row],[TotalPoints]])+1)) -> 1 | AG3: =ROW(A2) -> 2
A4: 260 | B4: Thomas Erskine | C4: Holland Sports AC | D4: U17M | E4: Y | F4: 19.49 | G4: Y | H4: 2.7 | I4: =IFERROR(getpoints(t_u17m_oct[[#This Row],[100mH]],"100mH",t_u17m_oct[[#This Row],[AgeGrp]],t_u17m_oct[[#This Row],[100mHElec]]),"") -> 292 | J4: 5.16 | K4: 1.1 | L4: =IFERROR(getpoints(t_u17m_oct[[#This Row],[LJ]],"LJ",t_u17m_oct[[#This Row],[AgeGrp]]),"") -> 413 | M4: 7.99 | N4: =IFERROR(getpoints(t_u17m_oct[[#This Row],[SP]],"SP",t_u17m_oct[[#This Row],[AgeGrp]]),"") -> 366 | O4: 58.95 | P4: Y | Q4: =IFERROR(getpoints(t_u17m_oct[[#This Row],[400m]],"400m",t_u17m_oct[[#This Row],[AgeGrp]],t_u17m_oct[[#This Row],[400mElec]]),"") -> 450 | R4: =IFERROR(t_u17m_oct[[#This Row],[100mHPoints]]+t_u17m_oct[[#This Row],[LJPoints]]+t_u17m_oct[[#This Row],[SPPoints]]+t_u17m_oct[[#This Row],[400mPoints]],"") -> 1521 | S4: 1.47 | T4: =IFERROR(getpoints(t_u17m_oct[[#This Row],[HJ]],"HJ",t_u17m_oct[[#This Row],[AgeGrp]]),"") -> 367 | U4: 15.82 | V4: =IFERROR(getpoints(t_u17m_oct[[#This Row],[DT]],"DT",t_u17m_oct[[#This Row],[AgeGrp]]),"") -> 195 | W4: 22.95 | X4: =IFERROR(getpoints(t_u17m_oct[[#This Row],[JT]],"JT",t_u17m_oct[[#This Row],[AgeGrp]]),"") -> 201 | Y4: 4 | Z4: 54.63 | AB4: =IFERROR(getpoints(t_u17m_oct[[#This Row],[1500mMins]]*60+t_u17m_oct[[#This Row],[1500mSecs]],"1500m",t_u17m_oct[[#This Row],[AgeGrp]],t_u17m_oct[[#This Row],[1500mElec]]),0) -> 591 | AC4: =IFERROR((t_u17m_oct[[#This Row],[100mHWind]]+t_u17m_oct[[#This Row],[LJWind]])/2,"n/a") -> 1.9 | AD4: =IFERROR(t_u17m_oct[[#This Row],[100mHPoints]]+t_u17m_oct[[#This Row],[LJPoints]]+t_u17m_oct[[#This Row],[SPPoints]]+t_u17m_oct[[#This Row],[HJPoints]]+t_u17m_oct[[#This Row],[400mPoints]]+t_u17m_oct[[#This Row],[DTPoints]]+t_u17m_oct[[#This Row],[JTPoints]]+t_u17m_oct[[#This Row],[1500mPoints]],0) -> 2875 | AE4: =IF(OR(t_u17m_oct[[#This Row],[100mH]]="DNS",t_u17m_oct[[#This Row],[LJ]]="DNS",t_u17m_oct[[#This Row],[SP]]="DNS",t_u17m_oct[[#This Row],[HJ]]="DNS",t_u17m_oct[[#This Row],[400m]]="DNS",t_u17m_oct[[#This Row],[DT]]="DNS",t_u17m_oct[[#This Row],[JT]]="DNS",t_u17m_oct[[#This Row],[1500mMins]]="DNS"),"Y","") ->  | AF4: =IF(t_u17m_oct[[#This Row],[Retired]]="Y","Retired",IF(t_u17m_oct[[#This Row],[Surrey]]="N","Guest",COUNTIFS(t_u17m_oct[Retired],"<>Y",t_u17m_oct[Surrey],"<>N",t_u17m_oct[TotalPoints],">"&t_u17m_oct[[#This Row],[TotalPoints]])+1)) -> 3 | AG4: =ROW(A3) -> 3
A5: 261 | B5: Michael Warne | C5: Holland Sports AC | D5: U17M | E5: Y | F5: 18.4 | G5: Y | H5: 2.7 | I5: =IFERROR(getpoints(t_u17m_oct[[#This Row],[100mH]],"100mH",t_u17m_oct[[#This Row],[AgeGrp]],t_u17m_oct[[#This Row],[100mHElec]]),"") -> 375 | J5: 4.91 | K5: 1.2 | L5: =IFERROR(getpoints(t_u17m_oct[[#This Row],[LJ]],"LJ",t_u17m_oct[[#This Row],[AgeGrp]]),"") -> 365 | M5: 9.12 | N5: =IFERROR(getpoints(t_u17m_oct[[#This Row],[SP]],"SP",t_u17m_oct[[#This Row],[AgeGrp]]),"") -> 433 | O5: 58.2 | P5: Y | Q5: =IFERROR(getpoints(t_u17m_oct[[#This Row],[400m]],"400m",t_u17m_oct[[#This Row],[AgeGrp]],t_u17m_oct[[#This Row],[400mElec]]),"") -> 476 | R5: =IFERROR(t_u17m_oct[[#This Row],[100mHPoints]]+t_u17m_oct[[#This Row],[LJPoints]]+t_u17m_oct[[#This Row],[SPPoints]]+t_u17m_oct[[#This Row],[400mPoints]],"") -> 1649 | S5: 1.5 | T5: =IFERROR(getpoints(t_u17m_oct[[#This Row],[HJ]],"HJ",t_u17m_oct[[#This Row],[AgeGrp]]),"") -> 389 | U5: 15.96 | V5: =IFERROR(getpoints(t_u17m_oct[[#This Row],[DT]],"DT",t_u17m_oct[[#This Row],[AgeGrp]]),"") -> 197 | W5: 18.76 | X5: =IFERROR(getpoints(t_u17m_oct[[#This Row],[JT]],"JT",t_u17m_oct[[#This Row],[AgeGrp]]),"") -> 145 | Y5: 4 | Z5: 54.59 | AB5: =IFERROR(getpoints(t_u17m_oct[[#This Row],[1500mMins]]*60+t_u17m_oct[[#This Row],[1500mSecs]],"1500m",t_u17m_oct[[#This Row],[AgeGrp]],t_u17m_oct[[#This Row],[1500mElec]]),0) -> 591 | AC5: =IFERROR((t_u17m_oct[[#This Row],[100mHWind]]+t_u17m_oct[[#This Row],[LJWind]])/2,"n/a") -> 1.95 | AD5: =IFERROR(t_u17m_oct[[#This Row],[100mHPoints]]+t_u17m_oct[[#This Row],[LJPoints]]+t_u17m_oct[[#This Row],[SPPoints]]+t_u17m_oct[[#This Row],[HJPoints]]+t_u17m_oct[[#This Row],[400mPoints]]+t_u17m_oct[[#This Row],[DTPoints]]+t_u17m_oct[[#This Row],[JTPoints]]+t_u17m_oct[[#This Row],[1500mPoints]],0) -> 2971 | AE5: =IF(OR(t_u17m_oct[[#This Row],[100mH]]="DNS",t_u17m_oct[[#This Row],[LJ]]="DNS",t_u17m_oct[[#This Row],[SP]]="DNS",t_u17m_oct[[#This Row],[HJ]]="DNS",t_u17m_oct[[#This Row],[400m]]="DNS",t_u17m_oct[[#This Row],[DT]]="DNS",t_u17m_oct[[#This Row],[JT]]="DNS",t_u17m_oct[[#This Row],[1500mMins]]="DNS"),"Y","") ->  | AF5: =IF(t_u17m_oct[[#This Row],[Retired]]="Y","Retired",IF(t_u17m_oct[[#This Row],[Surrey]]="N","Guest",COUNTIFS(t_u17m_oct[Retired],"<>Y",t_u17m_oct[Surrey],"<>N",t_u17m_oct[TotalPoints],">"&t_u17m_oct[[#This Row],[TotalPoints]])+1)) -> 2 | AG5: =ROW(A4) -> 4
A6: 262 | B6: Otto Winiecki | C6: Reading AC | D6: U17M | E6: N | F6: 18.05 | G6: Y | H6: 2.7 | I6: =IFERROR(getpoints(t_u17m_oct[[#This Row],[100mH]],"100mH",t_u17m_oct[[#This Row],[AgeGrp]],t_u17m_oct[[#This Row],[100mHElec]]),"") -> 403 | J6: 5 | K6: 0.2 | L6: =IFERROR(getpoints(t_u17m_oct[[#This Row],[LJ]],"LJ",t_u17m_oct[[#This Row],[AgeGrp]]),"") -> 382 | M6: 8.23 | N6: =IFERROR(getpoints(t_u17m_oct[[#This Row],[SP]],"SP",t_u17m_oct[[#This Row],[AgeGrp]]),"") -> 380 | O6: 62.33 | P6: Y | Q6: =IFERROR(getpoints(t_u17m_oct[[#This Row],[400m]],"400m",t_u17m_oct[[#This Row],[AgeGrp]],t_u17m_oct[[#This Row],[400mElec]]),"") -> 337 | R6: =IFERROR(t_u17m_oct[[#This Row],[100mHPoints]]+t_u17m_oct[[#This Row],[LJPoints]]+t_u17m_oct[[#This Row],[SPPoints]]+t_u17m_oct[[#This Row],[400mPoints]],"") -> 1502 | S6: 1.56 | T6: =IFERROR(getpoints(t_u17m_oct[[#This Row],[HJ]],"HJ",t_u17m_oct[[#This Row],[AgeGrp]]),"") -> 434 | U6: 18.32 | V6: =IFERROR(getpoints(t_u17m_oct[[#This Row],[DT]],"DT",t_u17m_oct[[#This Row],[AgeGrp]]),"") -> 241 | X6: =IFERROR(getpoints(t_u17m_oct[[#This Row],[JT]],"JT",t_u17m_oct[[#This Row],[AgeGrp]]),"") -> 0 | Y6: 5 | Z6: 32.68 | AB6: =IFERROR(getpoints(t_u17m_oct[[#This Row],[1500mMins]]*60+t_u17m_oct[[#This Row],[1500mSecs]],"1500m",t_u17m_oct[[#This Row],[AgeGrp]],t_u17m_oct[[#This Row],[1500mElec]]),0) -> 386 | AC6: =IFERROR((t_u17m_oct[[#This Row],[100mHWind]]+t_u17m_oct[[#This Row],[LJWind]])/2,"n/a") -> 1.45 | AD6: =IFERROR(t_u17m_oct[[#This Row],[100mHPoints]]+t_u17m_oct[[#This Row],[LJPoints]]+t_u17m_oct[[#This Row],[SPPoints]]+t_u17m_oct[[#This Row],[HJPoints]]+t_u17m_oct[[#This Row],[400mPoints]]+t_u17m_oct[[#This Row],[DTPoints]]+t_u17m_oct[[#This Row],[JTPoints]]+t_u17m_oct[[#This Row],[1500mPoints]],0) -> 2563 | AE6: =IF(OR(t_u17m_oct[[#This Row],[100mH]]="DNS",t_u17m_oct[[#This Row],[LJ]]="DNS",t_u17m_oct[[#This Row],[SP]]="DNS",t_u17m_oct[[#This Row],[HJ]]="DNS",t_u17m_oct[[#This Row],[400m]]="DNS",t_u17m_oct[[#This Row],[DT]]="DNS",t_u17m_oct[[#This Row],[JT]]="DNS",t_u17m_oct[[#This Row],[1500mMins]]="DNS"),"Y","") ->  | AF6: =IF(t_u17m_oct[[#This Row],[Retired]]="Y","Retired",IF(t_u17m_oct[[#This Row],[Surrey]]="N","Guest",COUNTIFS(t_u17m_oct[Retired],"<>Y",t_u17m_oct[Surrey],"<>N",t_u17m_oct[TotalPoints],">"&t_u17m_oct[[#This Row],[TotalPoints]])+1)) -> Guest | AG6: =ROW(A5) -> 5

Sheet U17 Men Results
B1: Holder: | C1: =INDEX(t_holder[Name],MATCH("U17M",t_holder[AgeGrp],0)) -> N/C | F1: =INDEX(t_holder[Club],MATCH("U17M",t_holder[AgeGrp],0)) -> 0 | J1: =IF(INDEX(t_holder[Points],MATCH("U17M",t_holder[AgeGrp],0))="","",INDEX(t_holder[Points],MATCH("U17M",t_holder[AgeGrp],0)) &" pts") -> 
B2: CBP: | C2: =INDEX(t_cbp[Name],MATCH("U17M",t_holder[AgeGrp],0)) -> Kariym Irving | F2: =INDEX(t_cbp[Club],MATCH("U17M",t_holder[AgeGrp],0)) -> Croydon Harriers | J2: =INDEX(t_cbp[Points],MATCH("U17M",t_holder[AgeGrp],0)) & " pts" -> 4509 pts | K2: =INDEX(t_cbp[Year],MATCH("U17M",t_holder[AgeGrp],0)) -> 2008
N4: Av Wind
B5: Pos | C5: Athlete | E5: 100mH | F5: LJ | G5: Shot | H5: 400m | I5: Day 1 | J5: HJ | K5: Discus | L5: Jav | M5: 1500m | N5: Final Total
A6: 1
A9: =A6+1 -> 2 | C9: =INDEX(t_u17m_oct[Bib],MATCH(A9,t_u17m_oct[AllPos],0)) -> 259 | D9: Perf | E9: =INDEX(t_u17m_oct[100mH],MATCH(A9,t_u17m_oct[AllPos],0)) -> 14.26 | F9: =INDEX(t_u17m_oct[LJ],MATCH(A9,t_u17m_oct[AllPos],0)) -> 5.82 | G9: =INDEX(t_u17m_oct[SP],MATCH(A9,t_u17m_oct[AllPos],0)) -> 10.42 | H9: =INDEX(t_u17m_oct[400m],MATCH(A9,t_u17m_oct[AllPos],0)) -> 56.95 | J9: =INDEX(t_u17m_oct[HJ],MATCH(A9,t_u17m_oct[AllPos],0)) -> 1.77 | K9: =INDEX(t_u17m_oct[DT],MATCH(A9,t_u17m_oct[AllPos],0)) -> 30.24 | L9: 29.2 | M9: =IF(ISNUMBER(INDEX(t_u17m_oct[1500mMins],MATCH(A9,t_u17m_oct[AllPos],0))),(INDEX(t_u17m_oct[1500mMins],MATCH(A9,t_u17m_oct[AllPos],0))*60+INDEX(t_u17m_oct[1500mSecs],MATCH(A9,t_u17m_oct[AllPos],0)))/86400,INDEX(t_u17m_oct[1500mMins],MATCH(A9,t_u17m_oct[AllPos],0))) -> 0.00374375
B10: =INDEX(t_u17m_oct[FinalPosition],MATCH(A9,t_u17m_oct[AllPos],0)) -> 1 | C10: =INDEX(t_u17m_oct[Name],MATCH(A9,t_u17m_oct[AllPos],0)) -> Dante Clarke | D10: Wind | E10: =INDEX(t_u17m_oct[100mHWind],MATCH(A9,t_u17m_oct[AllPos],0)) -> 2.7 | F10: =INDEX(t_u17m_oct[LJWind],MATCH(A9,t_u17m_oct[AllPos],0)) -> 0.1 | N10: =IFERROR(INDEX(t_u17m_oct[AvWind],MATCH($A9,t_u17m_oct[AllPos],0)),0) -> 1.4
C11: =INDEX(t_u17m_oct[Club],MATCH(A9,t_u17m_oct[AllPos],0)) -> Herne Hill Harriers | D11: Points | E11: =INDEX(t_u17m_oct[100mHPoints],MATCH(A9,t_u17m_oct[AllPos],0)) -> 771 | F11: =INDEX(t_u17m_oct[LJPoints],MATCH(A9,t_u17m_oct[AllPos],0)) -> 548 | G11: =INDEX(t_u17m_oct[SPPoints],MATCH(A9,t_u17m_oct[AllPos],0)) -> 511 | H11: =INDEX(t_u17m_oct[400mPoints],MATCH(A9,t_u17m_oct[AllPos],0)) -> 523 | I11: =INDEX(t_u17m_oct[First Day Total],MATCH(A9,t_u17m_oct[AllPos],0)) -> 2353 | J11: =INDEX(t_u17m_oct[HJPoints],MATCH(A9,t_u17m_oct[AllPos],0)) -> 602 | K11: =INDEX(t_u17m_oct[DTPoints],MATCH(A9,t_u17m_oct[AllPos],0)) -> 469 | L11: =INDEX(t_u17m_oct[JTPoints],MATCH(A9,t_u17m_oct[AllPos],0)) -> 288 | M11: =INDEX(t_u17m_oct[1500mPoints],MATCH(A9,t_u17m_oct[AllPos],0)) -> 432 | N11: =INDEX(t_u17m_oct[TotalPoints],MATCH(A9,t_u17m_oct[AllPos],0)) -> 4144
A12: =A9+1 -> 3 | C12: =INDEX(t_u17m_oct[Bib],MATCH(A12,t_u17m_oct[AllPos],0)) -> 260 | D12: Perf | E12: =INDEX(t_u17m_oct[100mH],MATCH(A12,t_u17m_oct[AllPos],0)) -> 19.49 | F12: =INDEX(t_u17m_oct[LJ],MATCH(A12,t_u17m_oct[AllPos],0)) -> 5.16 | G12: =INDEX(t_u17m_oct[SP],MATCH(A12,t_u17m_oct[AllPos],0)) -> 7.99 | H12: =INDEX(t_u17m_oct[400m],MATCH(A12,t_u17m_oct[AllPos],0)) -> 58.95 | J12: =INDEX(t_u17m_oct[HJ],MATCH(A12,t_u17m_oct[AllPos],0)) -> 1.47 | K12: =INDEX(t_u17m_oct[DT],MATCH(A12,t_u17m_oct[AllPos],0)) -> 15.82 | L12: =INDEX(t_u17m_oct[JT],MATCH(A12,t_u17m_oct[AllPos],0)) -> 22.95 | M12: =IF(ISNUMBER(INDEX(t_u17m_oct[1500mMins],MATCH(A12,t_u17m_oct[AllPos],0))),(INDEX(t_u17m_oct[1500mMins],MATCH(A12,t_u17m_oct[AllPos],0))*60+INDEX(t_u17m_oct[1500mSecs],MATCH(A12,t_u17m_oct[AllPos],0)))/86400,INDEX(t_u17m_oct[1500mMins],MATCH(A12,t_u17m_oct[AllPos],0))) -> 0.003410069444
B13: =INDEX(t_u17m_oct[FinalPosition],MATCH(A12,t_u17m_oct[AllPos],0)) -> 3 | C13: =INDEX(t_u17m_oct[Name],MATCH(A12,t_u17m_oct[AllPos],0)) -> Thomas Erskine | D13: Wind | E13: =INDEX(t_u17m_oct[100mHWind],MATCH(A12,t_u17m_oct[AllPos],0)) -> 2.7 | F13: =INDEX(t_u17m_oct[LJWind],MATCH(A12,t_u17m_oct[AllPos],0)) -> 1.1 | N13: =IFERROR(INDEX(t_u17m_oct[AvWind],MATCH($A12,t_u17m_oct[AllPos],0)),0) -> 1.9
C14: =INDEX(t_u17m_oct[Club],MATCH(A12,t_u17m_oct[AllPos],0)) -> Holland Sports AC | D14: Points | E14: =INDEX(t_u17m_oct[100mHPoints],MATCH(A12,t_u17m_oct[AllPos],0)) -> 292 | F14: =INDEX(t_u17m_oct[LJPoints],MATCH(A12,t_u17m_oct[AllPos],0)) -> 413 | G14: =INDEX(t_u17m_oct[SPPoints],MATCH(A12,t_u17m_oct[AllPos],0)) -> 366 | H14: =INDEX(t_u17m_oct[400mPoints],MATCH(A12,t_u17m_oct[AllPos],0)) -> 450 | I14: =INDEX(t_u17m_oct[First Day Total],MATCH(A12,t_u17m_oct[AllPos],0)) -> 1521 | J14: =INDEX(t_u17m_oct[HJPoints],MATCH(A12,t_u17m_oct[AllPos],0)) -> 367 | K14: =INDEX(t_u17m_oct[DTPoints],MATCH(A12,t_u17m_oct[AllPos],0)) -> 195 | L14: =INDEX(t_u17m_oct[JTPoints],MATCH(A12,t_u17m_oct[AllPos],0)) -> 201 | M14: =INDEX(t_u17m_oct[1500mPoints],MATCH(A12,t_u17m_oct[AllPos],0)) -> 591 | N14: =INDEX(t_u17m_oct[TotalPoints],MATCH(A12,t_u17m_oct[AllPos],0)) -> 2875
A15: =A12+1 -> 4 | C15: =INDEX(t_u17m_oct[Bib],MATCH(A15,t_u17m_oct[AllPos],0)) -> 261 | D15: Perf | E15: =INDEX(t_u17m_oct[100mH],MATCH(A15,t_u17m_oct[AllPos],0)) -> 18.4 | F15: =INDEX(t_u17m_oct[LJ],MATCH(A15,t_u17m_oct[AllPos],0)) -> 4.91 | G15: =INDEX(t_u17m_oct[SP],MATCH(A15,t_u17m_oct[AllPos],0)) -> 9.12 | H15: =INDEX(t_u17m_oct[400m],MATCH(A15,t_u17m_oct[AllPos],0)) -> 58.2 | J15: =INDEX(t_u17m_oct[HJ],MATCH(A15,t_u17m_oct[AllPos],0)) -> 1.5 | K15: =INDEX(t_u17m_oct[DT],MATCH(A15,t_u17m_oct[AllPos],0)) -> 15.96 | L15: =INDEX(t_u17m_oct[JT],MATCH(A15,t_u17m_oct[AllPos],0)) -> 18.76 | M15: =IF(ISNUMBER(INDEX(t_u17m_oct[1500mMins],MATCH(A15,t_u17m_oct[AllPos],0))),(INDEX(t_u17m_oct[1500mMins],MATCH(A15,t_u17m_oct[AllPos],0))*60+INDEX(t_u17m_oct[1500mSecs],MATCH(A15,t_u17m_oct[AllPos],0)))/86400,INDEX(t_u17m_oct[1500mMins],MATCH(A15,t_u17m_oct[AllPos],0))) -> 0.003409606481
B16: =INDEX(t_u17m_oct[FinalPosition],MATCH(A15,t_u17m_oct[AllPos],0)) -> 2 | C16: =INDEX(t_u17m_oct[Name],MATCH(A15,t_u17m_oct[AllPos],0)) -> Michael Warne | D16: Wind | E16: =INDEX(t_u17m_oct[100mHWind],MATCH(A15,t_u17m_oct[AllPos],0)) -> 2.7 | F16: =INDEX(t_u17m_oct[LJWind],MATCH(A15,t_u17m_oct[AllPos],0)) -> 1.2 | N16: =IFERROR(INDEX(t_u17m_oct[AvWind],MATCH($A15,t_u17m_oct[AllPos],0)),0) -> 1.95
C17: =INDEX(t_u17m_oct[Club],MATCH(A15,t_u17m_oct[AllPos],0)) -> Holland Sports AC | D17: Points | E17: =INDEX(t_u17m_oct[100mHPoints],MATCH(A15,t_u17m_oct[AllPos],0)) -> 375 | F17: =INDEX(t_u17m_oct[LJPoints],MATCH(A15,t_u17m_oct[AllPos],0)) -> 365 | G17: =INDEX(t_u17m_oct[SPPoints],MATCH(A15,t_u17m_oct[AllPos],0)) -> 433 | H17: =INDEX(t_u17m_oct[400mPoints],MATCH(A15,t_u17m_oct[AllPos],0)) -> 476 | I17: =INDEX(t_u17m_oct[First Day Total],MATCH(A15,t_u17m_oct[AllPos],0)) -> 1649 | J17: =INDEX(t_u17m_oct[HJPoints],MATCH(A15,t_u17m_oct[AllPos],0)) -> 389 | K17: =INDEX(t_u17m_oct[DTPoints],MATCH(A15,t_u17m_oct[AllPos],0)) -> 197 | L17: =INDEX(t_u17m_oct[JTPoints],MATCH(A15,t_u17m_oct[AllPos],0)) -> 145 | M17: =INDEX(t_u17m_oct[1500mPoints],MATCH(A15,t_u17m_oct[AllPos],0)) -> 591 | N17: =INDEX(t_u17m_oct[TotalPoints],MATCH(A15,t_u17m_oct[AllPos],0)) -> 2971
A18: =A15+1 -> 5 | C18: =INDEX(t_u17m_oct[Bib],MATCH(A18,t_u17m_oct[AllPos],0)) -> 262 | D18: Perf | E18: =INDEX(t_u17m_oct[100mH],MATCH(A18,t_u17m_oct[AllPos],0)) -> 18.05 | F18: =INDEX(t_u17m_oct[LJ],MATCH(A18,t_u17m_oct[AllPos],0)) -> 5 | G18: =INDEX(t_u17m_oct[SP],MATCH(A18,t_u17m_oct[AllPos],0)) -> 8.23 | H18: =INDEX(t_u17m_oct[400m],MATCH(A18,t_u17m_oct[AllPos],0)) -> 62.33 | J18: =INDEX(t_u17m_oct[HJ],MATCH(A18,t_u17m_oct[AllPos],0)) -> 1.56 | K18: =INDEX(t_u17m_oct[DT],MATCH(A18,t_u17m_oct[AllPos],0)) -> 18.32 | L18: =INDEX(t_u17m_oct[JT],MATCH(A18,t_u17m_oct[AllPos],0)) -> 0 | M18: =IF(ISNUMBER(INDEX(t_u17m_oct[1500mMins],MATCH(A18,t_u17m_oct[AllPos],0))),(INDEX(t_u17m_oct[1500mMins],MATCH(A18,t_u17m_oct[AllPos],0))*60+INDEX(t_u17m_oct[1500mSecs],MATCH(A18,t_u17m_oct[AllPos],0)))/86400,INDEX(t_u17m_oct[1500mMins],MATCH(A18,t_u17m_oct[AllPos],0))) -> 0.003850462963
B19: =INDEX(t_u17m_oct[FinalPosition],MATCH(A18,t_u17m_oct[AllPos],0)) -> Guest | C19: =INDEX(t_u17m_oct[Name],MATCH(A18,t_u17m_oct[AllPos],0)) -> Otto Winiecki | D19: Wind | E19: =INDEX(t_u17m_oct[100mHWind],MATCH(A18,t_u17m_oct[AllPos],0)) -> 2.7 | F19: =INDEX(t_u17m_oct[LJWind],MATCH(A18,t_u17m_oct[AllPos],0)) -> 0.2 | L19: NT | N19: =IFERROR(INDEX(t_u17m_oct[AvWind],MATCH($A18,t_u17m_oct[AllPos],0)),0) -> 1.45
C20: =INDEX(t_u17m_oct[Club],MATCH(A18,t_u17m_oct[AllPos],0)) -> Reading AC | D20: Points | E20: =INDEX(t_u17m_oct[100mHPoints],MATCH(A18,t_u17m_oct[AllPos],0)) -> 403 | F20: =INDEX(t_u17m_oct[LJPoints],MATCH(A18,t_u17m_oct[AllPos],0)) -> 382 | G20: =INDEX(t_u17m_oct[SPPoints],MATCH(A18,t_u17m_oct[AllPos],0)) -> 380 | H20: =INDEX(t_u17m_oct[400mPoints],MATCH(A18,t_u17m_oct[AllPos],0)) -> 337 | I20: =INDEX(t_u17m_oct[First Day Total],MATCH(A18,t_u17m_oct[AllPos],0)) -> 1502 | J20: =INDEX(t_u17m_oct[HJPoints],MATCH(A18,t_u17m_oct[AllPos],0)) -> 434 | K20: =INDEX(t_u17m_oct[DTPoints],MATCH(A18,t_u17m_oct[AllPos],0)) -> 241 | L20: =INDEX(t_u17m_oct[JTPoints],MATCH(A18,t_u17m_oct[AllPos],0)) -> 0 | M20: =INDEX(t_u17m_oct[1500mPoints],MATCH(A18,t_u17m_oct[AllPos],0)) -> 386 | N20: =INDEX(t_u17m_oct[TotalPoints],MATCH(A18,t_u17m_oct[AllPos],0)) -> 2563

Sheet U20 Men Decathlon
A1: Bib | B1: Name | C1: Club | D1: AgeGrp | E1: Surrey | F1: 100m | G1: 100mElec | H1: 100mWind | I1: 100mPoints | J1: LJ | K1: LJWind | L1: LJPoints | M1: SP | N1: SPPoints | O1: HJ | P1: HJPoints | Q1: 400m | R1: 400mElec | S1: 400mPoints | T1: First Day Total | U1: 110mH | V1: 110mHElec | W1: 110mHWind | X1: 110mHPoints | Y1: DT | Z1: DTPoints | AA1: PV | AB1: PVPoints | AC1: JT | AD1: JTPoints | AE1: 1500mMins | AF1: 1500mSecs | AG1: 1500mElec | AH1: 1500mPoints | AI1: AvWind | AJ1: TotalPoints | AK1: Retired | AL1: FinalPosition | AM1: AllPos
A2: 263 | B2: Bryn Cann | C2: Hercules Wimbledon AC | D2: U20M | E2: Y | F2: 12.33 | G2: Y | I2: =IFERROR(getpoints(t_u20m_dec[[#This Row],[100m]],"100m",t_u20m_dec[[#This Row],[AgeGrp]],t_u20m_dec[[#This Row],[100mElec]]),0) -> 588 | J2: 4.72 | K2: 1.6 | L2: =IFERROR(getpoints(t_u20m_dec[[#This Row],[LJ]],"LJ",t_u20m_dec[[#This Row],[AgeGrp]]),0) -> 330 | M2: 6.65 | N2: =IFERROR(getpoints(t_u20m_dec[[#This Row],[SP]],"SP",t_u20m_dec[[#This Row],[AgeGrp]]),0) -> 287 | O2: 1.8 | P2: =IFERROR(getpoints(t_u20m_dec[[#This Row],[HJ]],"HJ",t_u20m_dec[[#This Row],[AgeGrp]]),0) -> 627 | Q2: 59.22 | R2: Y | S2: =IFERROR(getpoints(t_u20m_dec[[#This Row],[400m]],"400m",t_u20m_dec[[#This Row],[AgeGrp]],t_u20m_dec[[#This Row],[400mElec]]),0) -> 440 | T2: =IFERROR(t_u20m_dec[[#This Row],[100mPoints]]+t_u20m_dec[[#This Row],[LJPoints]]+t_u20m_dec[[#This Row],[SPPoints]]+t_u20m_dec[[#This Row],[HJPoints]]+t_u20m_dec[[#This Row],[400mPoints]],0) -> 2272 | U2: 20.62 | V2: Y | W2: -0.3 | X2: =IFERROR(getpoints(t_u20m_dec[[#This Row],[110mH]],"110mh",t_u20m_dec[[#This Row],[AgeGrp]]),0) -> 302 | Y2: 21.82 | Z2: =IFERROR(getpoints(t_u20m_dec[[#This Row],[DT]],"DT",t_u20m_dec[[#This Row],[AgeGrp]]),0) -> 306 | AA2: 2.23 | AB2: =IFERROR(getpoints(t_u20m_dec[[#This Row],[PV]],"PV",t_u20m_dec[[#This Row],[AgeGrp]]),0) -> 185 | AC2: 29.81 | AD2: =IFERROR(getpoints(t_u20m_dec[[#This Row],[JT]],"JT",t_u20m_dec[[#This Row],[AgeGrp]]),0) -> 297 | AE2: 5 | AF2: 55.67 | AG2: Y | AH2: =IFERROR(getpoints(t_u20m_dec[[#This Row],[1500mMins]]*60+t_u20m_dec[[#This Row],[1500mSecs]],"1500m",t_u20m_dec[[#This Row],[AgeGrp]],t_u20m_dec[[#This Row],[1500mElec]]),0) -> 282 | AI2: =(t_u20m_dec[[#This Row],[100mWind]]+t_u20m_dec[[#This Row],[LJWind]]+t_u20m_dec[[#This Row],[110mHWind]])/3 -> 0.4333333333 | AJ2: =t_u20m_dec[[#This Row],[100mPoints]]+t_u20m_dec[[#This Row],[LJPoints]]+t_u20m_dec[[#This Row],[SPPoints]]+t_u20m_dec[[#This Row],[HJPoints]]+t_u20m_dec[[#This Row],[400mPoints]]+t_u20m_dec[[#This Row],[110mHPoints]]+t_u20m_dec[[#This Row],[DTPoints]]+t_u20m_dec[[#This Row],[PVPoints]]+t_u20m_dec[[#This Row],[JTPoints]]+t_u20m_dec[[#This Row],[1500mPoints]] -> 3644 | AK2: =IF(OR(t_u20m_dec[[#This Row],[100m]]="DNS",t_u20m_dec[[#This Row],[LJ]]="DNS",t_u20m_dec[[#This Row],[SP]]="DNS",t_u20m_dec[[#This Row],[HJ]]="DNS",t_u20m_dec[[#This Row],[400m]]="DNS",t_u20m_dec[[#This Row],[110mH]]="DNS",t_u20m_dec[[#This Row],[DT]]="DNS",t_u20m_dec[[#This Row],[PV]]="DNS",t_u20m_dec[[#This Row],[JT]]="DNS",t_u20m_dec[[#This Row],[1500mMins]]="DNS"),"Y","") ->  | AL2: =IF(t_u20m_dec[[#This Row],[Retired]]="Y","Retired",IF(t_u20m_dec[[#This Row],[Surrey]]="N","Guest",COUNTIFS(t_u20m_dec[Retired],"<>Y",t_u20m_dec[Surrey],"<>N",t_u20m_dec[TotalPoints],">"&t_u20m_dec[[#This Row],[TotalPoints]])+1)) -> 2 | AM2: =ROW(A1) -> 1
A3: 264 | B3: Lawrence Pritchard | C3: Guildford & Godalming AC | D3: U20M | E3: Y | F3: 11.7 | G3: Y | I3: =IFERROR(getpoints(t_u20m_dec[[#This Row],[100m]],"100m",t_u20m_dec[[#This Row],[AgeGrp]],t_u20m_dec[[#This Row],[100mElec]]),0) -> 711 | J3: 5.48 | K3: 3.4 | L3: =IFERROR(getpoints(t_u20m_dec[[#This Row],[LJ]],"LJ",t_u20m_dec[[#This Row],[AgeGrp]]),0) -> 477 | M3: 8.75 | N3: =IFERROR(getpoints(t_u20m_dec[[#This Row],[SP]],"SP",t_u20m_dec[[#This Row],[AgeGrp]]),0) -> 411 | O3: 1.71 | P3: =IFERROR(getpoints(t_u20m_dec[[#This Row],[HJ]],"HJ",t_u20m_dec[[#This Row],[AgeGrp]]),0) -> 552 | Q3: 57.47 | R3: Y | S3: =IFERROR(getpoints(t_u20m_dec[[#This Row],[400m]],"400m",t_u20m_dec[[#This Row],[AgeGrp]],t_u20m_dec[[#This Row],[400mElec]]),0) -> 503 | T3: =IFERROR(t_u20m_dec[[#This Row],[100mPoints]]+t_u20m_dec[[#This Row],[LJPoints]]+t_u20m_dec[[#This Row],[SPPoints]]+t_u20m_dec[[#This Row],[HJPoints]]+t_u20m_dec[[#This Row],[400mPoints]],0) -> 2654 | U3: 17.37 | V3: Y | W3: -0.3 | X3: =IFERROR(getpoints(t_u20m_dec[[#This Row],[110mH]],"110mh",t_u20m_dec[[#This Row],[AgeGrp]]),0) -> 586 | Y3: 24.2 | Z3: =IFERROR(getpoints(t_u20m_dec[[#This Row],[DT]],"DT",t_u20m_dec[[#This Row],[AgeGrp]]),0) -> 352 | AA3: 2.63 | AB3: =IFERROR(getpoints(t_u20m_dec[[#This Row],[PV]],"PV",t_u20m_dec[[#This Row],[AgeGrp]]),0) -> 271 | AC3: 27.13 | AD3: =IFERROR(getpoints(t_u20m_dec[[#This Row],[JT]],"JT",t_u20m_dec[[#This Row],[AgeGrp]]),0) -> 259 | AE3: 5 | AF3: 49.49 | AG3: Y | AH3: =IFERROR(getpoints(t_u20m_dec[[#This Row],[1500mMins]]*60+t_u20m_dec[[#This Row],[1500mSecs]],"1500m",t_u20m_dec[[#This Row],[AgeGrp]],t_u20m_dec[[#This Row],[1500mElec]]),0) -> 309 | AI3: =(t_u20m_dec[[#This Row],[100mWind]]+t_u20m_dec[[#This Row],[LJWind]]+t_u20m_dec[[#This Row],[110mHWind]])/3 -> 1.033333333 | AJ3: =t_u20m_dec[[#This Row],[100mPoints]]+t_u20m_dec[[#This Row],[LJPoints]]+t_u20m_dec[[#This Row],[SPPoints]]+t_u20m_dec[[#This Row],[HJPoints]]+t_u20m_dec[[#This Row],[400mPoints]]+t_u20m_dec[[#This Row],[110mHPoints]]+t_u20m_dec[[#This Row],[DTPoints]]+t_u20m_dec[[#This Row],[PVPoints]]+t_u20m_dec[[#This Row],[JTPoints]]+t_u20m_dec[[#This Row],[1500mPoints]] -> 4431 | AK3: =IF(OR(t_u20m_dec[[#This Row],[100m]]="DNS",t_u20m_dec[[#This Row],[LJ]]="DNS",t_u20m_dec[[#This Row],[SP]]="DNS",t_u20m_dec[[#This Row],[HJ]]="DNS",t_u20m_dec[[#This Row],[400m]]="DNS",t_u20m_dec[[#This Row],[110mH]]="DNS",t_u20m_dec[[#This Row],[DT]]="DNS",t_u20m_dec[[#This Row],[PV]]="DNS",t_u20m_dec[[#This Row],[JT]]="DNS",t_u20m_dec[[#This Row],[1500mMins]]="DNS"),"Y","") ->  | AL3: =IF(t_u20m_dec[[#This Row],[Retired]]="Y","Retired",IF(t_u20m_dec[[#This Row],[Surrey]]="N","Guest",COUNTIFS(t_u20m_dec[Retired],"<>Y",t_u20m_dec[Surrey],"<>N",t_u20m_dec[TotalPoints],">"&t_u20m_dec[[#This Row],[TotalPoints]])+1)) -> 1 | AM3: =ROW(A2) -> 2
A4: 265 | B4: Harvey Noble | C4: Preston Harriers | D4: U20M | E4: N | G4: Y | I4: =IFERROR(getpoints(t_u20m_dec[[#This Row],[100m]],"100m",t_u20m_dec[[#This Row],[AgeGrp]],t_u20m_dec[[#This Row],[100mElec]]),0) -> 0 | L4: =IFERROR(getpoints(t_u20m_dec[[#This Row],[LJ]],"LJ",t_u20m_dec[[#This Row],[AgeGrp]]),0) -> 0 | N4: =IFERROR(getpoints(t_u20m_dec[[#This Row],[SP]],"SP",t_u20m_dec[[#This Row],[AgeGrp]]),0) -> 0 | P4: =IFERROR(getpoints(t_u20m_dec[[#This Row],[HJ]],"HJ",t_u20m_dec[[#This Row],[AgeGrp]]),0) -> 0 | S4: =IFERROR(getpoints(t_u20m_dec[[#This Row],[400m]],"400m",t_u20m_dec[[#This Row],[AgeGrp]],t_u20m_dec[[#This Row],[400mElec]]),0) -> 0 | T4: =IFERROR(t_u20m_dec[[#This Row],[100mPoints]]+t_u20m_dec[[#This Row],[LJPoints]]+t_u20m_dec[[#This Row],[SPPoints]]+t_u20m_dec[[#This Row],[HJPoints]]+t_u20m_dec[[#This Row],[400mPoints]],0) -> 0 | X4: =IFERROR(getpoints(t_u20m_dec[[#This Row],[110mH]],"110mh",t_u20m_dec[[#This Row],[AgeGrp]]),0) -> 0 | Z4: =IFERROR(getpoints(t_u20m_dec[[#This Row],[DT]],"DT",t_u20m_dec[[#This Row],[AgeGrp]]),0) -> 0 | AB4: =IFERROR(getpoints(t_u20m_dec[[#This Row],[PV]],"PV",t_u20m_dec[[#This Row],[AgeGrp]]),0) -> 0 | AD4: =IFERROR(getpoints(t_u20m_dec[[#This Row],[JT]],"JT",t_u20m_dec[[#This Row],[AgeGrp]]),0) -> 0 | AG4: Y | AH4: =IFERROR(getpoints(t_u20m_dec[[#This Row],[1500mMins]]*60+t_u20m_dec[[#This Row],[1500mSecs]],"1500m",t_u20m_dec[[#This Row],[AgeGrp]],t_u20m_dec[[#This Row],[1500mElec]]),0) -> 0 | AI4: =(t_u20m_dec[[#This Row],[100mWind]]+t_u20m_dec[[#This Row],[LJWind]]+t_u20m_dec[[#This Row],[110mHWind]])/3 -> 0 | AJ4: =t_u20m_dec[[#This Row],[100mPoints]]+t_u20m_dec[[#This Row],[LJPoints]]+t_u20m_dec[[#This Row],[SPPoints]]+t_u20m_dec[[#This Row],[HJPoints]]+t_u20m_dec[[#This Row],[400mPoints]]+t_u20m_dec[[#This Row],[110mHPoints]]+t_u20m_dec[[#This Row],[DTPoints]]+t_u20m_dec[[#This Row],[PVPoints]]+t_u20m_dec[[#This Row],[JTPoints]]+t_u20m_dec[[#This Row],[1500mPoints]] -> 0 | AK4: =IF(OR(t_u20m_dec[[#This Row],[100m]]="DNS",t_u20m_dec[[#This Row],[LJ]]="DNS",t_u20m_dec[[#This Row],[SP]]="DNS",t_u20m_dec[[#This Row],[HJ]]="DNS",t_u20m_dec[[#This Row],[400m]]="DNS",t_u20m_dec[[#This Row],[110mH]]="DNS",t_u20m_dec[[#This Row],[DT]]="DNS",t_u20m_dec[[#This Row],[PV]]="DNS",t_u20m_dec[[#This Row],[JT]]="DNS",t_u20m_dec[[#This Row],[1500mMins]]="DNS"),"Y","") ->  | AL4: =IF(t_u20m_dec[[#This Row],[Retired]]="Y","Retired",IF(t_u20m_dec[[#This Row],[Surrey]]="N","Guest",COUNTIFS(t_u20m_dec[Retired],"<>Y",t_u20m_dec[Surrey],"<>N",t_u20m_dec[TotalPoints],">"&t_u20m_dec[[#This Row],[TotalPoints]])+1)) -> Guest | AM4: =ROW(A3) -> 3
A5: 266 | B5: Joe Thompson | C5: Dacorum & Tring AC | D5: U20M | E5: N | F5: 11.85 | G5: Y | I5: =IFERROR(getpoints(t_u20m_dec[[#This Row],[100m]],"100m",t_u20m_dec[[#This Row],[AgeGrp]],t_u20m_dec[[#This Row],[100mElec]]),0) -> 681 | J5: 5.52 | K5: 2.8 | L5: =IFERROR(getpoints(t_u20m_dec[[#This Row],[LJ]],"LJ",t_u20m_dec[[#This Row],[AgeGrp]]),0) -> 485 | M5: 10.69 | N5: =IFERROR(getpoints(t_u20m_dec[[#This Row],[SP]],"SP",t_u20m_dec[[#This Row],[AgeGrp]]),0) -> 527 | O5: 1.59 | P5: =IFERROR(getpoints(t_u20m_dec[[#This Row],[HJ]],"HJ",t_u20m_dec[[#This Row],[AgeGrp]]),0) -> 457 | Q5: 57.36 | R5: Y | S5: =IFERROR(getpoints(t_u20m_dec[[#This Row],[400m]],"400m",t_u20m_dec[[#This Row],[AgeGrp]],t_u20m_dec[[#This Row],[400mElec]]),0) -> 507 | T5: =IFERROR(t_u20m_dec[[#This Row],[100mPoints]]+t_u20m_dec[[#This Row],[LJPoints]]+t_u20m_dec[[#This Row],[SPPoints]]+t_u20m_dec[[#This Row],[HJPoints]]+t_u20m_dec[[#This Row],[400mPoints]],0) -> 2657 | U5: 19.13 | V5: Y | W5: -0.3 | X5: =IFERROR(getpoints(t_u20m_dec[[#This Row],[110mH]],"110mh",t_u20m_dec[[#This Row],[AgeGrp]]),0) -> 421 | Y5: 29.9 | Z5: =IFERROR(getpoints(t_u20m_dec[[#This Row],[DT]],"DT",t_u20m_dec[[#This Row],[AgeGrp]]),0) -> 462 | AA5: 2.43 | AB5: =IFERROR(getpoints(t_u20m_dec[[#This Row],[PV]],"PV",t_u20m_dec[[#This Row],[AgeGrp]]),0) -> 227 | AC5: 40.09 | AD5: =IFERROR(getpoints(t_u20m_dec[[#This Row],[JT]],"JT",t_u20m_dec[[#This Row],[AgeGrp]]),0) -> 443 | AE5: 5 | AF5: 53.62 | AG5: Y | AH5: =IFERROR(getpoints(t_u20m_dec[[#This Row],[1500mMins]]*60+t_u20m_dec[[#This Row],[1500mSecs]],"1500m",t_u20m_dec[[#This Row],[AgeGrp]],t_u20m_dec[[#This Row],[1500mElec]]),0) -> 291 | AI5: =(t_u20m_dec[[#This Row],[100mWind]]+t_u20m_dec[[#This Row],[LJWind]]+t_u20m_dec[[#This Row],[110mHWind]])/3 -> 0.8333333333 | AJ5: =t_u20m_dec[[#This Row],[100mPoints]]+t_u20m_dec[[#This Row],[LJPoints]]+t_u20m_dec[[#This Row],[SPPoints]]+t_u20m_dec[[#This Row],[HJPoints]]+t_u20m_dec[[#This Row],[400mPoints]]+t_u20m_dec[[#This Row],[110mHPoints]]+t_u20m_dec[[#This Row],[DTPoints]]+t_u20m_dec[[#This Row],[PVPoints]]+t_u20m_dec[[#This Row],[JTPoints]]+t_u20m_dec[[#This Row],[1500mPoints]] -> 4501 | AK5: =IF(OR(t_u20m_dec[[#This Row],[100m]]="DNS",t_u20m_dec[[#This Row],[LJ]]="DNS",t_u20m_dec[[#This Row],[SP]]="DNS",t_u20m_dec[[#This Row],[HJ]]="DNS",t_u20m_dec[[#This Row],[400m]]="DNS",t_u20m_dec[[#This Row],[110mH]]="DNS",t_u20m_dec[[#This Row],[DT]]="DNS",t_u20m_dec[[#This Row],[PV]]="DNS",t_u20m_dec[[#This Row],[JT]]="DNS",t_u20m_dec[[#This Row],[1500mMins]]="DNS"),"Y","") ->  | AL5: =IF(t_u20m_dec[[#This Row],[Retired]]="Y","Retired",IF(t_u20m_dec[[#This Row],[Surrey]]="N","Guest",COUNTIFS(t_u20m_dec[Retired],"<>Y",t_u20m_dec[Surrey],"<>N",t_u20m_dec[TotalPoints],">"&t_u20m_dec[[#This Row],[TotalPoints]])+1)) -> Guest | AM5: =ROW(A4) -> 4

Sheet U20 Men Results
B1: Holder: | C1: =INDEX(t_holder[Name],MATCH("U20M",t_holder[AgeGrp],0)) -> James Vancliff | F1: =INDEX(t_holder[Club],MATCH("U20M",t_holder[AgeGrp],0)) -> Holland Sports AC | K1: =IF(INDEX(t_holder[Points],MATCH("U20M",t_holder[AgeGrp],0))="","",INDEX(t_holder[Points],MATCH("U20M",t_holder[AgeGrp],0)) &" pts") -> 3383 pts
B2: CBP: | C2: =INDEX(t_cbp[Name],MATCH("U20M",t_cbp[AgeGrp],0)) -> Ed Coats | F2: =INDEX(t_cbp[Club],MATCH("U20M",t_cbp[AgeGrp],0)) -> Guildford & Godalming | K2: =INDEX(t_cbp[Points],MATCH("U20M",t_cbp[AgeGrp],0)) & " pts" -> 5899 pts | M2: =INDEX(t_cbp[Year],MATCH("U20M",t_cbp[AgeGrp],0)) -> 1998
P4: Av Wind
B5: Pos | C5: Athlete | E5: 100m | F5: LJ | G5: Shot | H5: HJ | I5: 400m | J5: Day 1 | K5: 110mH | L5: Discus | M5: PV | N5: Jav | O5: 1500m | P5: Final Total
A6: 1 | C6: =INDEX(t_u20m_dec[Bib],MATCH(A6,t_u20m_dec[AllPos],0)) -> 263 | D6: Perf | E6: =INDEX(t_u20m_dec[100m],MATCH(A6,t_u20m_dec[AllPos],0)) -> 12.33 | F6: =INDEX(t_u20m_dec[LJ],MATCH(A6,t_u20m_dec[AllPos],0)) -> 4.72 | G6: =INDEX(t_u20m_dec[SP],MATCH(A6,t_u20m_dec[AllPos],0)) -> 6.65 | H6: =INDEX(t_u20m_dec[HJ],MATCH(A6,t_u20m_dec[AllPos],0)) -> 1.8 | I6: =INDEX(t_u20m_dec[400m],MATCH(A6,t_u20m_dec[AllPos],0)) -> 59.22 | K6: =INDEX(t_u20m_dec[110mH],MATCH(A6,t_u20m_dec[AllPos],0)) -> 20.62 | L6: =INDEX(t_u20m_dec[DT],MATCH(A6,t_u20m_dec[AllPos],0)) -> 21.82 | M6: =INDEX(t_u20m_dec[PV],MATCH(A6,t_u20m_dec[AllPos],0)) -> 2.23 | N6: =INDEX(t_u20m_dec[JT],MATCH(A6,t_u20m_dec[AllPos],0)) -> 29.81 | O6: =IF(ISNUMBER(INDEX(t_u20m_dec[1500mMins],MATCH(A6,t_u20m_dec[AllPos],0))),(INDEX(t_u20m_dec[1500mMins],MATCH(A6,t_u20m_dec[AllPos],0))*60+INDEX(t_u20m_dec[1500mSecs],MATCH(A6,t_u20m_dec[AllPos],0)))/86400,INDEX(t_u20m_dec[1500mMins],MATCH(A6,t_u20m_dec[AllPos],0))) -> 0.004116550926
B7: =INDEX(t_u20m_dec[FinalPosition],MATCH(A6,t_u20m_dec[AllPos],0)) -> 2 | C7: =INDEX(t_u20m_dec[Name],MATCH($A6,t_u20m_dec[AllPos],0)) -> Bryn Cann | D7: Wind | E7: =INDEX(t_u20m_dec[100mWind],MATCH(A6,t_u20m_dec[AllPos],0)) -> 0 | F7: =INDEX(t_u20m_dec[LJWind],MATCH(A6,t_u20m_dec[AllPos],0)) -> 1.6 | K7: =INDEX(t_u20m_dec[110mHWind],MATCH(A6,t_u20m_dec[AllPos],0)) -> -0.3 | P7: =INDEX(t_u20m_dec[AvWind],MATCH($A6,t_u20m_dec[AllPos],0)) -> 0.4333333333
C8: =INDEX(t_u20m_dec[Club],MATCH($A6,t_u20m_dec[AllPos],0)) -> Hercules Wimbledon AC | D8: Points | E8: =INDEX(t_u20m_dec[100mPoints],MATCH(A6,t_u20m_dec[AllPos],0)) -> 588 | F8: =INDEX(t_u20m_dec[LJPoints],MATCH(A6,t_u20m_dec[AllPos],0)) -> 330 | G8: =INDEX(t_u20m_dec[SPPoints],MATCH(A6,t_u20m_dec[AllPos],0)) -> 287 | H8: =INDEX(t_u20m_dec[HJPoints],MATCH(A6,t_u20m_dec[AllPos],0)) -> 627 | I8: =INDEX(t_u20m_dec[400mPoints],MATCH(A6,t_u20m_dec[AllPos],0)) -> 440 | J8: =INDEX(t_u20m_dec[First Day Total],MATCH(A6,t_u20m_dec[AllPos],0)) -> 2272 | K8: =INDEX(t_u20m_dec[110mHPoints],MATCH(A6,t_u20m_dec[AllPos],0)) -> 302 | L8: =INDEX(t_u20m_dec[DTPoints],MATCH(A6,t_u20m_dec[AllPos],0)) -> 306 | M8: =INDEX(t_u20m_dec[PVPoints],MATCH(A6,t_u20m_dec[AllPos],0)) -> 185 | N8: =INDEX(t_u20m_dec[JTPoints],MATCH(A6,t_u20m_dec[AllPos],0)) -> 297 | O8: =INDEX(t_u20m_dec[1500mPoints],MATCH(A6,t_u20m_dec[AllPos],0)) -> 282 | P8: =INDEX(t_u20m_dec[TotalPoints],MATCH(A6,t_u20m_dec[AllPos],0)) -> 3644
A9: =A6+1 -> 2 | C9: =INDEX(t_u20m_dec[Bib],MATCH(A9,t_u20m_dec[AllPos],0)) -> 264 | D9: Perf | E9: =INDEX(t_u20m_dec[100m],MATCH(A9,t_u20m_dec[AllPos],0)) -> 11.7 | F9: =INDEX(t_u20m_dec[LJ],MATCH(A9,t_u20m_dec[AllPos],0)) -> 5.48 | G9: =INDEX(t_u20m_dec[SP],MATCH(A9,t_u20m_dec[AllPos],0)) -> 8.75 | H9: =INDEX(t_u20m_dec[HJ],MATCH(A9,t_u20m_dec[AllPos],0)) -> 1.71 | I9: =INDEX(t_u20m_dec[400m],MATCH(A9,t_u20m_dec[AllPos],0)) -> 57.47 | K9: =INDEX(t_u20m_dec[110mH],MATCH(A9,t_u20m_dec[AllPos],0)) -> 17.37 | L9: =INDEX(t_u20m_dec[DT],MATCH(A9,t_u20m_dec[AllPos],0)) -> 24.2 | M9: =INDEX(t_u20m_dec[PV],MATCH(A9,t_u20m_dec[AllPos],0)) -> 2.63 | N9: =INDEX(t_u20m_dec[JT],MATCH(A9,t_u20m_dec[AllPos],0)) -> 27.13 | O9: =IF(ISNUMBER(INDEX(t_u20m_dec[1500mMins],MATCH(A9,t_u20m_dec[AllPos],0))),(INDEX(t_u20m_dec[1500mMins],MATCH(A9,t_u20m_dec[AllPos],0))*60+INDEX(t_u20m_dec[1500mSecs],MATCH(A9,t_u20m_dec[AllPos],0)))/86400,INDEX(t_u20m_dec[1500mMins],MATCH(A9,t_u20m_dec[AllPos],0))) -> 0.004045023148
B10: =INDEX(t_u20m_dec[FinalPosition],MATCH(A9,t_u20m_dec[AllPos],0)) -> 1 | C10: =INDEX(t_u20m_dec[Name],MATCH($A9,t_u20m_dec[AllPos],0)) -> Lawrence Pritchard | D10: Wind | E10: =INDEX(t_u20m_dec[100mWind],MATCH(A9,t_u20m_dec[AllPos],0)) -> 0 | F10: =INDEX(t_u20m_dec[LJWind],MATCH(A9,t_u20m_dec[AllPos],0)) -> 3.4 | K10: =INDEX(t_u20m_dec[110mHWind],MATCH(A9,t_u20m_dec[AllPos],0)) -> -0.3 | P10: =INDEX(t_u20m_dec[AvWind],MATCH($A9,t_u20m_dec[AllPos],0)) -> 1.033333333
C11: =INDEX(t_u20m_dec[Club],MATCH($A9,t_u20m_dec[AllPos],0)) -> Guildford & Godalming AC | D11: Points | E11: =INDEX(t_u20m_dec[100mPoints],MATCH(A9,t_u20m_dec[AllPos],0)) -> 711 | F11: =INDEX(t_u20m_dec[LJPoints],MATCH(A9,t_u20m_dec[AllPos],0)) -> 477 | G11: =INDEX(t_u20m_dec[SPPoints],MATCH(A9,t_u20m_dec[AllPos],0)) -> 411 | H11: =INDEX(t_u20m_dec[HJPoints],MATCH(A9,t_u20m_dec[AllPos],0)) -> 552 | I11: =INDEX(t_u20m_dec[400mPoints],MATCH(A9,t_u20m_dec[AllPos],0)) -> 503 | J11: =INDEX(t_u20m_dec[First Day Total],MATCH(A9,t_u20m_dec[AllPos],0)) -> 2654 | K11: =INDEX(t_u20m_dec[110mHPoints],MATCH(A9,t_u20m_dec[AllPos],0)) -> 586 | L11: =INDEX(t_u20m_dec[DTPoints],MATCH(A9,t_u20m_dec[AllPos],0)) -> 352 | M11: =INDEX(t_u20m_dec[PVPoints],MATCH(A9,t_u20m_dec[AllPos],0)) -> 271 | N11: =INDEX(t_u20m_dec[JTPoints],MATCH(A9,t_u20m_dec[AllPos],0)) -> 259 | O11: =INDEX(t_u20m_dec[1500mPoints],MATCH(A9,t_u20m_dec[AllPos],0)) -> 309 | P11: =INDEX(t_u20m_dec[TotalPoints],MATCH(A9,t_u20m_dec[AllPos],0)) -> 4431
A12: =A9+1 -> 3 | C12: =INDEX(t_u20m_dec[Bib],MATCH(A12,t_u20m_dec[AllPos],0)) -> 265 | D12: Perf | E12: =INDEX(t_u20m_dec[100m],MATCH(A12,t_u20m_dec[AllPos],0)) -> 0 | F12: =INDEX(t_u20m_dec[LJ],MATCH(A12,t_u20m_dec[AllPos],0)) -> 0 | G12: =INDEX(t_u20m_dec[SP],MATCH(A12,t_u20m_dec[AllPos],0)) -> 0 | H12: =INDEX(t_u20m_dec[HJ],MATCH(A12,t_u20m_dec[AllPos],0)) -> 0 | I12: =INDEX(t_u20m_dec[400m],MATCH(A12,t_u20m_dec[AllPos],0)) -> 0 | K12: =INDEX(t_u20m_dec[110mH],MATCH(A12,t_u20m_dec[AllPos],0)) -> 0 | L12: =INDEX(t_u20m_dec[DT],MATCH(A12,t_u20m_dec[AllPos],0)) -> 0 | M12: =INDEX(t_u20m_dec[PV],MATCH(A12,t_u20m_dec[AllPos],0)) -> 0 | N12: =INDEX(t_u20m_dec[JT],MATCH(A12,t_u20m_dec[AllPos],0)) -> 0 | O12: =IF(ISNUMBER(INDEX(t_u20m_dec[1500mMins],MATCH(A12,t_u20m_dec[AllPos],0))),(INDEX(t_u20m_dec[1500mMins],MATCH(A12,t_u20m_dec[AllPos],0))*60+INDEX(t_u20m_dec[1500mSecs],MATCH(A12,t_u20m_dec[AllPos],0)))/86400,INDEX(t_u20m_dec[1500mMins],MATCH(A12,t_u20m_dec[AllPos],0))) -> 0
B13: =INDEX(t_u20m_dec[FinalPosition],MATCH(A12,t_u20m_dec[AllPos],0)) -> Guest | C13: =INDEX(t_u20m_dec[Name],MATCH($A12,t_u20m_dec[AllPos],0)) -> Harvey Noble | D13: Wind | E13: =INDEX(t_u20m_dec[100mWind],MATCH(A12,t_u20m_dec[AllPos],0)) -> 0 | F13: =INDEX(t_u20m_dec[LJWind],MATCH(A12,t_u20m_dec[AllPos],0)) -> 0 | K13: =INDEX(t_u20m_dec[110mHWind],MATCH(A12,t_u20m_dec[AllPos],0)) -> 0 | P13: =INDEX(t_u20m_dec[AvWind],MATCH($A12,t_u20m_dec[AllPos],0)) -> 0
C14: =INDEX(t_u20m_dec[Club],MATCH($A12,t_u20m_dec[AllPos],0)) -> Preston Harriers | D14: Points | E14: =INDEX(t_u20m_dec[100mPoints],MATCH(A12,t_u20m_dec[AllPos],0)) -> 0 | F14: =INDEX(t_u20m_dec[LJPoints],MATCH(A12,t_u20m_dec[AllPos],0)) -> 0 | G14: =INDEX(t_u20m_dec[SPPoints],MATCH(A12,t_u20m_dec[AllPos],0)) -> 0 | H14: =INDEX(t_u20m_dec[HJPoints],MATCH(A12,t_u20m_dec[AllPos],0)) -> 0 | I14: =INDEX(t_u20m_dec[400mPoints],MATCH(A12,t_u20m_dec[AllPos],0)) -> 0 | J14: =INDEX(t_u20m_dec[First Day Total],MATCH(A12,t_u20m_dec[AllPos],0)) -> 0 | K14: =INDEX(t_u20m_dec[110mHPoints],MATCH(A12,t_u20m_dec[AllPos],0)) -> 0 | L14: =INDEX(t_u20m_dec[DTPoints],MATCH(A12,t_u20m_dec[AllPos],0)) -> 0 | M14: =INDEX(t_u20m_dec[PVPoints],MATCH(A12,t_u20m_dec[AllPos],0)) -> 0 | N14: =INDEX(t_u20m_dec[JTPoints],MATCH(A12,t_u20m_dec[AllPos],0)) -> 0 | O14: =INDEX(t_u20m_dec[1500mPoints],MATCH(A12,t_u20m_dec[AllPos],0)) -> 0 | P14: =INDEX(t_u20m_dec[TotalPoints],MATCH(A12,t_u20m_dec[AllPos],0)) -> 0
A15: =A12+1 -> 4 | C15: =INDEX(t_u20m_dec[Bib],MATCH(A15,t_u20m_dec[AllPos],0)) -> 266 | D15: Perf | E15: =INDEX(t_u20m_dec[100m],MATCH(A15,t_u20m_dec[AllPos],0)) -> 11.85 | F15: =INDEX(t_u20m_dec[LJ],MATCH(A15,t_u20m_dec[AllPos],0)) -> 5.52 | G15: =INDEX(t_u20m_dec[SP],MATCH(A15,t_u20m_dec[AllPos],0)) -> 10.69 | H15: =INDEX(t_u20m_dec[HJ],MATCH(A15,t_u20m_dec[AllPos],0)) -> 1.59 | I15: =INDEX(t_u20m_dec[400m],MATCH(A15,t_u20m_dec[AllPos],0)) -> 57.36 | K15: =INDEX(t_u20m_dec[110mH],MATCH(A15,t_u20m_dec[AllPos],0)) -> 19.13 | L15: =INDEX(t_u20m_dec[DT],MATCH(A15,t_u20m_dec[AllPos],0)) -> 29.9 | M15: =INDEX(t_u20m_dec[PV],MATCH(A15,t_u20m_dec[AllPos],0)) -> 2.43 | N15: =INDEX(t_u20m_dec[JT],MATCH(A15,t_u20m_dec[AllPos],0)) -> 40.09 | O15: =IF(ISNUMBER(INDEX(t_u20m_dec[1500mMins],MATCH(A15,t_u20m_dec[AllPos],0))),(INDEX(t_u20m_dec[1500mMins],MATCH(A15,t_u20m_dec[AllPos],0))*60+INDEX(t_u20m_dec[1500mSecs],MATCH(A15,t_u20m_dec[AllPos],0)))/86400,INDEX(t_u20m_dec[1500mMins],MATCH(A15,t_u20m_dec[AllPos],0))) -> 0.004092824074
B16: =INDEX(t_u20m_dec[FinalPosition],MATCH(A15,t_u20m_dec[AllPos],0)) -> Guest | C16: =INDEX(t_u20m_dec[Name],MATCH($A15,t_u20m_dec[AllPos],0)) -> Joe Thompson | D16: Wind | E16: =INDEX(t_u20m_dec[100mWind],MATCH(A15,t_u20m_dec[AllPos],0)) -> 0 | F16: =INDEX(t_u20m_dec[LJWind],MATCH(A15,t_u20m_dec[AllPos],0)) -> 2.8 | K16: =INDEX(t_u20m_dec[110mHWind],MATCH(A15,t_u20m_dec[AllPos],0)) -> -0.3 | P16: =INDEX(t_u20m_dec[AvWind],MATCH($A15,t_u20m_dec[AllPos],0)) -> 0.8333333333
C17: =INDEX(t_u20m_dec[Club],MATCH($A15,t_u20m_dec[AllPos],0)) -> Dacorum & Tring AC | D17: Points | E17: =INDEX(t_u20m_dec[100mPoints],MATCH(A15,t_u20m_dec[AllPos],0)) -> 681 | F17: =INDEX(t_u20m_dec[LJPoints],MATCH(A15,t_u20m_dec[AllPos],0)) -> 485 | G17: =INDEX(t_u20m_dec[SPPoints],MATCH(A15,t_u20m_dec[AllPos],0)) -> 527 | H17: =INDEX(t_u20m_dec[HJPoints],MATCH(A15,t_u20m_dec[AllPos],0)) -> 457 | I17: =INDEX(t_u20m_dec[400mPoints],MATCH(A15,t_u20m_dec[AllPos],0)) -> 507 | J17: =INDEX(t_u20m_dec[First Day Total],MATCH(A15,t_u20m_dec[AllPos],0)) -> 2657 | K17: =INDEX(t_u20m_dec[110mHPoints],MATCH(A15,t_u20m_dec[AllPos],0)) -> 421 | L17: =INDEX(t_u20m_dec[DTPoints],MATCH(A15,t_u20m_dec[AllPos],0)) -> 462 | M17: =INDEX(t_u20m_dec[PVPoints],MATCH(A15,t_u20m_dec[AllPos],0)) -> 227 | N17: =INDEX(t_u20m_dec[JTPoints],MATCH(A15,t_u20m_dec[AllPos],0)) -> 443 | O17: =INDEX(t_u20m_dec[1500mPoints],MATCH(A15,t_u20m_dec[AllPos],0)) -> 291 | P17: =INDEX(t_u20m_dec[TotalPoints],MATCH(A15,t_u20m_dec[AllPos],0)) -> 4501
A18: 5
A21: =A18+1 -> 6
A24: =A21+1 -> 7
A27: =A24+1 -> 8
A30: 9
A33: =A30+1 -> 10
A36: 11
A39: =A36+1 -> 12
A42: =A39+1 -> 13
A45: =A42+1 -> 14
A48: 15
A51: =A48+1 -> 16
A54: =A51+1 -> 17
A57: =A54+1 -> 18
A60: 19
A63: =A60+1 -> 20
A66: 21
A69: =A66+1 -> 22
A72: =A69+1 -> 23
A75: =A72+1 -> 24
A78: 25
A81: 26
A84: 27
A87: 28
A90: 29
A93: 30

Sheet Senior Men Decathlon
A1: Bib | B1: Name | C1: Club | D1: AgeGrp | E1: Surrey | F1: 100m | G1: 100mElec | H1: 100mWind | I1: 100mPoints | J1: LJ | K1: LJWind | L1: LJPoints | M1: SP | N1: SPPoints | O1: HJ | P1: HJPoints | Q1: 400m | R1: 400mElec | S1: 400mPoints | T1: First Day Total | U1: 110mH | V1: 110mHElec | W1: 110mHWind | X1: 110mHPoints | Y1: DT | Z1: DTPoints | AA1: PV | AB1: PVPoints | AC1: JT | AD1: JTPoints | AE1: 1500mMins | AF1: 1500mSecs | AG1: 1500mElec | AH1: 1500mPoints | AI1: AvWind | AJ1: TotalPoints | AK1: Retired | AL1: FinalPosition | AM1: AllPos
A2: 271 | B2: Mark Andrews | C2: Hercules Wimbledon AC | D2: SM | E2: Y | F2: 13.11 | G2: Y | H2: 2.4 | I2: =IFERROR(getpoints(t_sm_dec[[#This Row],[100m]],"100m",t_sm_dec[[#This Row],[AgeGrp]],t_sm_dec[[#This Row],[100mElec]]),0) -> 449 | J2: 5.48 | K2: 1.3 | L2: =IFERROR(getpoints(t_sm_dec[[#This Row],[LJ]],"LJ",t_sm_dec[[#This Row],[AgeGrp]]),0) -> 477 | M2: 9.41 | N2: =IFERROR(getpoints(t_sm_dec[[#This Row],[SP]],"SP",t_sm_dec[[#This Row],[AgeGrp]]),0) -> 450 | O2: 1.68 | P2: =IFERROR(getpoints(t_sm_dec[[#This Row],[HJ]],"HJ",t_sm_dec[[#This Row],[AgeGrp]]),0) -> 528 | Q2: 62.75 | R2: Y | S2: =IFERROR(getpoints(t_sm_dec[[#This Row],[400m]],"400m",t_sm_dec[[#This Row],[AgeGrp]],t_sm_dec[[#This Row],[400mElec]]),0) -> 324 | T2: =t_sm_dec[[#This Row],[100mPoints]]+t_sm_dec[[#This Row],[LJPoints]]+t_sm_dec[[#This Row],[SPPoints]]+t_sm_dec[[#This Row],[HJPoints]]+t_sm_dec[[#This Row],[400mPoints]] -> 2228 | U2: 20.29 | V2: Y | X2: =IFERROR(getpoints(t_sm_dec[[#This Row],[110mH]],"110mh",t_sm_dec[[#This Row],[AgeGrp]]),0) -> 327 | Y2: 31.54 | Z2: =IFERROR(getpoints(t_sm_dec[[#This Row],[DT]],"DT",t_sm_dec[[#This Row],[AgeGrp]]),0) -> 495 | AA2: 2.43 | AB2: =IFERROR(getpoints(t_sm_dec[[#This Row],[PV]],"PV",t_sm_dec[[#This Row],[AgeGrp]]),0) -> 227 | AC2: 36.59 | AD2: =IFERROR(getpoints(t_sm_dec[[#This Row],[JT]],"JT",t_sm_dec[[#This Row],[AgeGrp]]),0) -> 393 | AE2: 5 | AF2: 40.92 | AG2: Y | AH2: =IFERROR(getpoints(t_sm_dec[[#This Row],[1500mMins]]*60+t_sm_dec[[#This Row],[1500mSecs]],"1500m",t_sm_dec[[#This Row],[AgeGrp]],t_sm_dec[[#This Row],[1500mElec]]),0) -> 347 | AI2: =(t_sm_dec[[#This Row],[100mWind]]+t_sm_dec[[#This Row],[LJWind]]+t_sm_dec[[#This Row],[110mHWind]])/3 -> 1.233333333 | AJ2: =t_sm_dec[[#This Row],[100mPoints]]+t_sm_dec[[#This Row],[LJPoints]]+t_sm_dec[[#This Row],[SPPoints]]+t_sm_dec[[#This Row],[HJPoints]]+t_sm_dec[[#This Row],[400mPoints]]+t_sm_dec[[#This Row],[110mHPoints]]+t_sm_dec[[#This Row],[DTPoints]]+t_sm_dec[[#This Row],[PVPoints]]+t_sm_dec[[#This Row],[JTPoints]]+t_sm_dec[[#This Row],[1500mPoints]] -> 4017 | AK2: =IF(OR(t_sm_dec[[#This Row],[100m]]="DNS",t_sm_dec[[#This Row],[LJ]]="DNS",t_sm_dec[[#This Row],[SP]]="DNS",t_sm_dec[[#This Row],[HJ]]="DNS",t_sm_dec[[#This Row],[400m]]="DNS",t_sm_dec[[#This Row],[110mH]]="DNS",t_sm_dec[[#This Row],[DT]]="DNS",t_sm_dec[[#This Row],[PV]]="DNS",t_sm_dec[[#This Row],[JT]]="DNS",t_sm_dec[[#This Row],[1500mMins]]="DNS"),"Y","") ->  | AL2: =IF(t_sm_dec[[#This Row],[Retired]]="Y","Retired",IF(t_sm_dec[[#This Row],[Surrey]]="N","Guest",COUNTIFS(t_sm_dec[Retired],"<>Y",t_sm_dec[Surrey],"<>N",t_sm_dec[TotalPoints],">"&t_sm_dec[[#This Row],[TotalPoints]])+1)) -> 2 | AM2: =ROW(A1) -> 1
A3: 272 | B3: Justin Tarrant | C3: Crawley AC | D3: SM | E3: Y | F3: 11.74 | G3: Y | H3: 2.4 | I3: =IFERROR(getpoints(t_sm_dec[[#This Row],[100m]],"100m",t_sm_dec[[#This Row],[AgeGrp]],t_sm_dec[[#This Row],[100mElec]]),0) -> 703 | J3: 6.16 | K3: 1.1 | L3: =IFERROR(getpoints(t_sm_dec[[#This Row],[LJ]],"LJ",t_sm_dec[[#This Row],[AgeGrp]]),0) -> 621 | M3: 11.97 | N3: =IFERROR(getpoints(t_sm_dec[[#This Row],[SP]],"SP",t_sm_dec[[#This Row],[AgeGrp]]),0) -> 605 | O3: 1.8 | P3: =IFERROR(getpoints(t_sm_dec[[#This Row],[HJ]],"HJ",t_sm_dec[[#This Row],[AgeGrp]]),0) -> 627 | Q3: 58.16 | R3: Y | S3: =IFERROR(getpoints(t_sm_dec[[#This Row],[400m]],"400m",t_sm_dec[[#This Row],[AgeGrp]],t_sm_dec[[#This Row],[400mElec]]),0) -> 478 | T3: =t_sm_dec[[#This Row],[100mPoints]]+t_sm_dec[[#This Row],[LJPoints]]+t_sm_dec[[#This Row],[SPPoints]]+t_sm_dec[[#This Row],[HJPoints]]+t_sm_dec[[#This Row],[400mPoints]] -> 3034 | U3: 16.28 | V3: Y | X3: =IFERROR(getpoints(t_sm_dec[[#This Row],[110mH]],"110mh",t_sm_dec[[#This Row],[AgeGrp]]),0) -> 702 | Y3: 36.21 | Z3: =IFERROR(getpoints(t_sm_dec[[#This Row],[DT]],"DT",t_sm_dec[[#This Row],[AgeGrp]]),0) -> 588 | AA3: 3.83 | AB3: =IFERROR(getpoints(t_sm_dec[[#This Row],[PV]],"PV",t_sm_dec[[#This Row],[AgeGrp]]),0) -> 570 | AC3: 36.81 | AD3: =IFERROR(getpoints(t_sm_dec[[#This Row],[JT]],"JT",t_sm_dec[[#This Row],[AgeGrp]]),0) -> 396 | AE3: 5 | AF3: 37.14 | AG3: Y | AH3: =IFERROR(getpoints(t_sm_dec[[#This Row],[1500mMins]]*60+t_sm_dec[[#This Row],[1500mSecs]],"1500m",t_sm_dec[[#This Row],[AgeGrp]],t_sm_dec[[#This Row],[1500mElec]]),0) -> 365 | AI3: =(t_sm_dec[[#This Row],[100mWind]]+t_sm_dec[[#This Row],[LJWind]]+t_sm_dec[[#This Row],[110mHWind]])/3 -> 1.166666667 | AJ3: =t_sm_dec[[#This Row],[100mPoints]]+t_sm_dec[[#This Row],[LJPoints]]+t_sm_dec[[#This Row],[SPPoints]]+t_sm_dec[[#This Row],[HJPoints]]+t_sm_dec[[#This Row],[400mPoints]]+t_sm_dec[[#This Row],[110mHPoints]]+t_sm_dec[[#This Row],[DTPoints]]+t_sm_dec[[#This Row],[PVPoints]]+t_sm_dec[[#This Row],[JTPoints]]+t_sm_dec[[#This Row],[1500mPoints]] -> 5655 | AK3: =IF(OR(t_sm_dec[[#This Row],[100m]]="DNS",t_sm_dec[[#This Row],[LJ]]="DNS",t_sm_dec[[#This Row],[SP]]="DNS",t_sm_dec[[#This Row],[HJ]]="DNS",t_sm_dec[[#This Row],[400m]]="DNS",t_sm_dec[[#This Row],[110mH]]="DNS",t_sm_dec[[#This Row],[DT]]="DNS",t_sm_dec[[#This Row],[PV]]="DNS",t_sm_dec[[#This Row],[JT]]="DNS",t_sm_dec[[#This Row],[1500mMins]]="DNS"),"Y","") ->  | AL3: =IF(t_sm_dec[[#This Row],[Retired]]="Y","Retired",IF(t_sm_dec[[#This Row],[Surrey]]="N","Guest",COUNTIFS(t_sm_dec[Retired],"<>Y",t_sm_dec[Surrey],"<>N",t_sm_dec[TotalPoints],">"&t_sm_dec[[#This Row],[TotalPoints]])+1)) -> 1 | AM3: 2
A4: 273 | B4: Thomas Chandler | C4: Basingstoke & Mid Hants AC | D4: SM | E4: N | F4: 11.65 | G4: Y | H4: 2.4 | I4: =IFERROR(getpoints(t_sm_dec[[#This Row],[100m]],"100m",t_sm_dec[[#This Row],[AgeGrp]],t_sm_dec[[#This Row],[100mElec]]),0) -> 721 | J4: 6.31 | K4: 0.7 | L4: =IFERROR(getpoints(t_sm_dec[[#This Row],[LJ]],"LJ",t_sm_dec[[#This Row],[AgeGrp]]),0) -> 655 | M4: 11.72 | N4: =IFERROR(getpoints(t_sm_dec[[#This Row],[SP]],"SP",t_sm_dec[[#This Row],[AgeGrp]]),0) -> 589 | O4: 1.71 | P4: =IFERROR(getpoints(t_sm_dec[[#This Row],[HJ]],"HJ",t_sm_dec[[#This Row],[AgeGrp]]),0) -> 552 | Q4: 52.1 | R4: Y | S4: =IFERROR(getpoints(t_sm_dec[[#This Row],[400m]],"400m",t_sm_dec[[#This Row],[AgeGrp]],t_sm_dec[[#This Row],[400mElec]]),0) -> 720 | T4: =t_sm_dec[[#This Row],[100mPoints]]+t_sm_dec[[#This Row],[LJPoints]]+t_sm_dec[[#This Row],[SPPoints]]+t_sm_dec[[#This Row],[HJPoints]]+t_sm_dec[[#This Row],[400mPoints]] -> 3237 | U4: 16.06 | V4: Y | X4: =IFERROR(getpoints(t_sm_dec[[#This Row],[110mH]],"110mh",t_sm_dec[[#This Row],[AgeGrp]]),0) -> 726 | Y4: 36.04 | Z4: =IFERROR(getpoints(t_sm_dec[[#This Row],[DT]],"DT",t_sm_dec[[#This Row],[AgeGrp]]),0) -> 585 | AA4: 4.23 | AB4: =IFERROR(getpoints(t_sm_dec[[#This Row],[PV]],"PV",t_sm_dec[[#This Row],[AgeGrp]]),0) -> 682 | AC4: 47.83 | AD4: =IFERROR(getpoints(t_sm_dec[[#This Row],[JT]],"JT",t_sm_dec[[#This Row],[AgeGrp]]),0) -> 557 | AE4: 4 | AF4: 31.06 | AG4: Y | AH4: =IFERROR(getpoints(t_sm_dec[[#This Row],[1500mMins]]*60+t_sm_dec[[#This Row],[1500mSecs]],"1500m",t_sm_dec[[#This Row],[AgeGrp]],t_sm_dec[[#This Row],[1500mElec]]),0) -> 738 | AI4: =(t_sm_dec[[#This Row],[100mWind]]+t_sm_dec[[#This Row],[LJWind]]+t_sm_dec[[#This Row],[110mHWind]])/3 -> 1.033333333 | AJ4: =t_sm_dec[[#This Row],[100mPoints]]+t_sm_dec[[#This Row],[LJPoints]]+t_sm_dec[[#This Row],[SPPoints]]+t_sm_dec[[#This Row],[HJPoints]]+t_sm_dec[[#This Row],[400mPoints]]+t_sm_dec[[#This Row],[110mHPoints]]+t_sm_dec[[#This Row],[DTPoints]]+t_sm_dec[[#This Row],[PVPoints]]+t_sm_dec[[#This Row],[JTPoints]]+t_sm_dec[[#This Row],[1500mPoints]] -> 6525 | AK4: =IF(OR(t_sm_dec[[#This Row],[100m]]="DNS",t_sm_dec[[#This Row],[LJ]]="DNS",t_sm_dec[[#This Row],[SP]]="DNS",t_sm_dec[[#This Row],[HJ]]="DNS",t_sm_dec[[#This Row],[400m]]="DNS",t_sm_dec[[#This Row],[110mH]]="DNS",t_sm_dec[[#This Row],[DT]]="DNS",t_sm_dec[[#This Row],[PV]]="DNS",t_sm_dec[[#This Row],[JT]]="DNS",t_sm_dec[[#This Row],[1500mMins]]="DNS"),"Y","") ->  | AL4: =IF(t_sm_dec[[#This Row],[Retired]]="Y","Retired",IF(t_sm_dec[[#This Row],[Surrey]]="N","Guest",COUNTIFS(t_sm_dec[Retired],"<>Y",t_sm_dec[Surrey],"<>N",t_sm_dec[TotalPoints],">"&t_sm_dec[[#This Row],[TotalPoints]])+1)) -> Guest | AM4: 3
A5: 274 | B5: Will Goodbourn | C5: Charnwood A C | D5: SM | E5: N | F5: 13.06 | G5: Y | H5: 2.4 | I5: =IFERROR(getpoints(t_sm_dec[[#This Row],[100m]],"100m",t_sm_dec[[#This Row],[AgeGrp]],t_sm_dec[[#This Row],[100mElec]]),0) -> 458 | J5: 4.81 | K5: 1.9 | L5: =IFERROR(getpoints(t_sm_dec[[#This Row],[LJ]],"LJ",t_sm_dec[[#This Row],[AgeGrp]]),0) -> 346 | M5: 7.91 | N5: =IFERROR(getpoints(t_sm_dec[[#This Row],[SP]],"SP",t_sm_dec[[#This Row],[AgeGrp]]),0) -> 361 | O5: 1.44 | P5: =IFERROR(getpoints(t_sm_dec[[#This Row],[HJ]],"HJ",t_sm_dec[[#This Row],[AgeGrp]]),0) -> 345 | Q5: 64.25 | R5: Y | S5: =IFERROR(getpoints(t_sm_dec[[#This Row],[400m]],"400m",t_sm_dec[[#This Row],[AgeGrp]],t_sm_dec[[#This Row],[400mElec]]),0) -> 280 | T5: =t_sm_dec[[#This Row],[100mPoints]]+t_sm_dec[[#This Row],[LJPoints]]+t_sm_dec[[#This Row],[SPPoints]]+t_sm_dec[[#This Row],[HJPoints]]+t_sm_dec[[#This Row],[400mPoints]] -> 1790 | U5: 22.62 | V5: Y | X5: =IFERROR(getpoints(t_sm_dec[[#This Row],[110mH]],"110mh",t_sm_dec[[#This Row],[AgeGrp]]),0) -> 172 | Y5: 25.54 | Z5: =IFERROR(getpoints(t_sm_dec[[#This Row],[DT]],"DT",t_sm_dec[[#This Row],[AgeGrp]]),0) -> 378 | AA5: 2.43 | AB5: =IFERROR(getpoints(t_sm_dec[[#This Row],[PV]],"PV",t_sm_dec[[#This Row],[AgeGrp]]),0) -> 227 | AC5: 30.38 | AD5: =IFERROR(getpoints(t_sm_dec[[#This Row],[JT]],"JT",t_sm_dec[[#This Row],[AgeGrp]]),0) -> 305 | AE5: 5 | AF5: 26.03 | AG5: Y | AH5: =IFERROR(getpoints(t_sm_dec[[#This Row],[1500mMins]]*60+t_sm_dec[[#This Row],[1500mSecs]],"1500m",t_sm_dec[[#This Row],[AgeGrp]],t_sm_dec[[#This Row],[1500mElec]]),0) -> 419 | AI5: =(t_sm_dec[[#This Row],[100mWind]]+t_sm_dec[[#This Row],[LJWind]]+t_sm_dec[[#This Row],[110mHWind]])/3 -> 1.433333333 | AJ5: =t_sm_dec[[#This Row],[100mPoints]]+t_sm_dec[[#This Row],[LJPoints]]+t_sm_dec[[#This Row],[SPPoints]]+t_sm_dec[[#This Row],[HJPoints]]+t_sm_dec[[#This Row],[400mPoints]]+t_sm_dec[[#This Row],[110mHPoints]]+t_sm_dec[[#This Row],[DTPoints]]+t_sm_dec[[#This Row],[PVPoints]]+t_sm_dec[[#This Row],[JTPoints]]+t_sm_dec[[#This Row],[1500mPoints]] -> 3291 | AK5: =IF(OR(t_sm_dec[[#This Row],[100m]]="DNS",t_sm_dec[[#This Row],[LJ]]="DNS",t_sm_dec[[#This Row],[SP]]="DNS",t_sm_dec[[#This Row],[HJ]]="DNS",t_sm_dec[[#This Row],[400m]]="DNS",t_sm_dec[[#This Row],[110mH]]="DNS",t_sm_dec[[#This Row],[DT]]="DNS",t_sm_dec[[#This Row],[PV]]="DNS",t_sm_dec[[#This Row],[JT]]="DNS",t_sm_dec[[#This Row],[1500mMins]]="DNS"),"Y","") ->  | AL5: =IF(t_sm_dec[[#This Row],[Retired]]="Y","Retired",IF(t_sm_dec[[#This Row],[Surrey]]="N","Guest",COUNTIFS(t_sm_dec[Retired],"<>Y",t_sm_dec[Surrey],"<>N",t_sm_dec[TotalPoints],">"&t_sm_dec[[#This Row],[TotalPoints]])+1)) -> Guest | AM5: 4
A6: 275 | B6: Darren Janssen | C6: Biggleswade AC | D6: SM | E6: N | F6: 12.87 | G6: Y | H6: 2.4 | I6: =IFERROR(getpoints(t_sm_dec[[#This Row],[100m]],"100m",t_sm_dec[[#This Row],[AgeGrp]],t_sm_dec[[#This Row],[100mElec]]),0) -> 490 | J6: 4.98 | K6: 1.6 | L6: =IFERROR(getpoints(t_sm_dec[[#This Row],[LJ]],"LJ",t_sm_dec[[#This Row],[AgeGrp]]),0) -> 378 | M6: 9.07 | N6: =IFERROR(getpoints(t_sm_dec[[#This Row],[SP]],"SP",t_sm_dec[[#This Row],[AgeGrp]]),0) -> 430 | O6: 1.47 | P6: =IFERROR(getpoints(t_sm_dec[[#This Row],[HJ]],"HJ",t_sm_dec[[#This Row],[AgeGrp]]),0) -> 367 | Q6: 63.28 | R6: Y | S6: =IFERROR(getpoints(t_sm_dec[[#This Row],[400m]],"400m",t_sm_dec[[#This Row],[AgeGrp]],t_sm_dec[[#This Row],[400mElec]]),0) -> 308 | T6: =t_sm_dec[[#This Row],[100mPoints]]+t_sm_dec[[#This Row],[LJPoints]]+t_sm_dec[[#This Row],[SPPoints]]+t_sm_dec[[#This Row],[HJPoints]]+t_sm_dec[[#This Row],[400mPoints]] -> 1973 | U6: 22.01 | V6: Y | X6: =IFERROR(getpoints(t_sm_dec[[#This Row],[110mH]],"110mh",t_sm_dec[[#This Row],[AgeGrp]]),0) -> 208 | Y6: 27.79 | Z6: =IFERROR(getpoints(t_sm_dec[[#This Row],[DT]],"DT",t_sm_dec[[#This Row],[AgeGrp]]),0) -> 421 | AA6: 2.63 | AB6: =IFERROR(getpoints(t_sm_dec[[#This Row],[PV]],"PV",t_sm_dec[[#This Row],[AgeGrp]]),0) -> 271 | AC6: 28.74 | AD6: =IFERROR(getpoints(t_sm_dec[[#This Row],[JT]],"JT",t_sm_dec[[#This Row],[AgeGrp]]),0) -> 282 | AE6: 5 | AF6: 53.4 | AG6: Y | AH6: =IFERROR(getpoints(t_sm_dec[[#This Row],[1500mMins]]*60+t_sm_dec[[#This Row],[1500mSecs]],"1500m",t_sm_dec[[#This Row],[AgeGrp]],t_sm_dec[[#This Row],[1500mElec]]),0) -> 292 | AI6: =(t_sm_dec[[#This Row],[100mWind]]+t_sm_dec[[#This Row],[LJWind]]+t_sm_dec[[#This Row],[110mHWind]])/3 -> 1.333333333 | AJ6: =t_sm_dec[[#This Row],[100mPoints]]+t_sm_dec[[#This Row],[LJPoints]]+t_sm_dec[[#This Row],[SPPoints]]+t_sm_dec[[#This Row],[HJPoints]]+t_sm_dec[[#This Row],[400mPoints]]+t_sm_dec[[#This Row],[110mHPoints]]+t_sm_dec[[#This Row],[DTPoints]]+t_sm_dec[[#This Row],[PVPoints]]+t_sm_dec[[#This Row],[JTPoints]]+t_sm_dec[[#This Row],[1500mPoints]] -> 3447 | AK6: =IF(OR(t_sm_dec[[#This Row],[100m]]="DNS",t_sm_dec[[#This Row],[LJ]]="DNS",t_sm_dec[[#This Row],[SP]]="DNS",t_sm_dec[[#This Row],[HJ]]="DNS",t_sm_dec[[#This Row],[400m]]="DNS",t_sm_dec[[#This Row],[110mH]]="DNS",t_sm_dec[[#This Row],[DT]]="DNS",t_sm_dec[[#This Row],[PV]]="DNS",t_sm_dec[[#This Row],[JT]]="DNS",t_sm_dec[[#This Row],[1500mMins]]="DNS"),"Y","") ->  | AL6: =IF(t_sm_dec[[#This Row],[Retired]]="Y","Retired",IF(t_sm_dec[[#This Row],[Surrey]]="N","Guest",COUNTIFS(t_sm_dec[Retired],"<>Y",t_sm_dec[Surrey],"<>N",t_sm_dec[TotalPoints],">"&t_sm_dec[[#This Row],[TotalPoints]])+1)) -> Guest | AM6: 5
A7: 276 | B7: Dan Steel | C7: Huntingdonshire AC | D7: SM | E7: N | F7: 11.85 | G7: Y | H7: 2.4 | I7: =IFERROR(getpoints(t_sm_dec[[#This Row],[100m]],"100m",t_sm_dec[[#This Row],[AgeGrp]],t_sm_dec[[#This Row],[100mElec]]),0) -> 681 | J7: 6.05 | K7: 1.9 | L7: =IFERROR(getpoints(t_sm_dec[[#This Row],[LJ]],"LJ",t_sm_dec[[#This Row],[AgeGrp]]),0) -> 597 | M7: 8.64 | N7: =IFERROR(getpoints(t_sm_dec[[#This Row],[SP]],"SP",t_sm_dec[[#This Row],[AgeGrp]]),0) -> 404 | O7: 1.68 | P7: =IFERROR(getpoints(t_sm_dec[[#This Row],[HJ]],"HJ",t_sm_dec[[#This Row],[AgeGrp]]),0) -> 528 | Q7: 56.31 | R7: Y | S7: =IFERROR(getpoints(t_sm_dec[[#This Row],[400m]],"400m",t_sm_dec[[#This Row],[AgeGrp]],t_sm_dec[[#This Row],[400mElec]]),0) -> 547 | T7: =t_sm_dec[[#This Row],[100mPoints]]+t_sm_dec[[#This Row],[LJPoints]]+t_sm_dec[[#This Row],[SPPoints]]+t_sm_dec[[#This Row],[HJPoints]]+t_sm_dec[[#This Row],[400mPoints]] -> 2757 | U7: DNF | V7: Y | X7: =IFERROR(getpoints(t_sm_dec[[#This Row],[110mH]],"110mh",t_sm_dec[[#This Row],[AgeGrp]]),0) -> 0 | Y7: 26 | Z7: =IFERROR(getpoints(t_sm_dec[[#This Row],[DT]],"DT",t_sm_dec[[#This Row],[AgeGrp]]),0) -> 386 | AA7: NH | AB7: =IFERROR(getpoints(t_sm_dec[[#This Row],[PV]],"PV",t_sm_dec[[#This Row],[AgeGrp]]),0) -> 0 | AC7: 40.77 | AD7: =IFERROR(getpoints(t_sm_dec[[#This Row],[JT]],"JT",t_sm_dec[[#This Row],[AgeGrp]]),0) -> 453 | AE7: 6 | AF7: 8.78 | AG7: Y | AH7: =IFERROR(getpoints(t_sm_dec[[#This Row],[1500mMins]]*60+t_sm_dec[[#This Row],[1500mSecs]],"1500m",t_sm_dec[[#This Row],[AgeGrp]],t_sm_dec[[#This Row],[1500mElec]]),0) -> 229 | AI7: =(t_sm_dec[[#This Row],[100mWind]]+t_sm_dec[[#This Row],[LJWind]]+t_sm_dec[[#This Row],[110mHWind]])/3 -> 1.433333333 | AJ7: =t_sm_dec[[#This Row],[100mPoints]]+t_sm_dec[[#This Row],[LJPoints]]+t_sm_dec[[#This Row],[SPPoints]]+t_sm_dec[[#This Row],[HJPoints]]+t_sm_dec[[#This Row],[400mPoints]]+t_sm_dec[[#This Row],[110mHPoints]]+t_sm_dec[[#This Row],[DTPoints]]+t_sm_dec[[#This Row],[PVPoints]]+t_sm_dec[[#This Row],[JTPoints]]+t_sm_dec[[#This Row],[1500mPoints]] -> 3825 | AK7: =IF(OR(t_sm_dec[[#This Row],[100m]]="DNS",t_sm_dec[[#This Row],[LJ]]="DNS",t_sm_dec[[#This Row],[SP]]="DNS",t_sm_dec[[#This Row],[HJ]]="DNS",t_sm_dec[[#This Row],[400m]]="DNS",t_sm_dec[[#This Row],[110mH]]="DNS",t_sm_dec[[#This Row],[DT]]="DNS",t_sm_dec[[#This Row],[PV]]="DNS",t_sm_dec[[#This Row],[JT]]="DNS",t_sm_dec[[#This Row],[1500mMins]]="DNS"),"Y","") ->  | AL7: =IF(t_sm_dec[[#This Row],[Retired]]="Y","Retired",IF(t_sm_dec[[#This Row],[Surrey]]="N","Guest",COUNTIFS(t_sm_dec[Retired],"<>Y",t_sm_dec[Surrey],"<>N",t_sm_dec[TotalPoints],">"&t_sm_dec[[#This Row],[TotalPoints]])+1)) -> Guest | AM7: 6
A8: 277 | B8: Daniel Thomas | C8: Basingstoke & Mid Hants AC | D8: SM | E8: N | I8: =IFERROR(getpoints(t_sm_dec[[#This Row],[100m]],"100m",t_sm_dec[[#This Row],[AgeGrp]],t_sm_dec[[#This Row],[100mElec]]),0) -> 0 | L8: =IFERROR(getpoints(t_sm_dec[[#This Row],[LJ]],"LJ",t_sm_dec[[#This Row],[AgeGrp]]),0) -> 0 | N8: =IFERROR(getpoints(t_sm_dec[[#This Row],[SP]],"SP",t_sm_dec[[#This Row],[AgeGrp]]),0) -> 0 | P8: =IFERROR(getpoints(t_sm_dec[[#This Row],[HJ]],"HJ",t_sm_dec[[#This Row],[AgeGrp]]),0) -> 0 | R8: Y | S8: =IFERROR(getpoints(t_sm_dec[[#This Row],[400m]],"400m",t_sm_dec[[#This Row],[AgeGrp]],t_sm_dec[[#This Row],[400mElec]]),0) -> 0 | T8: =t_sm_dec[[#This Row],[100mPoints]]+t_sm_dec[[#This Row],[LJPoints]]+t_sm_dec[[#This Row],[SPPoints]]+t_sm_dec[[#This Row],[HJPoints]]+t_sm_dec[[#This Row],[400mPoints]] -> 0 | X8: =IFERROR(getpoints(t_sm_dec[[#This Row],[110mH]],"110mh",t_sm_dec[[#This Row],[AgeGrp]]),0) -> 0 | Z8: =IFERROR(getpoints(t_sm_dec[[#This Row],[DT]],"DT",t_sm_dec[[#This Row],[AgeGrp]]),0) -> 0 | AB8: =IFERROR(getpoints(t_sm_dec[[#This Row],[PV]],"PV",t_sm_dec[[#This Row],[AgeGrp]]),0) -> 0 | AD8: =IFERROR(getpoints(t_sm_dec[[#This Row],[JT]],"JT",t_sm_dec[[#This Row],[AgeGrp]]),0) -> 0 | AH8: =IFERROR(getpoints(t_sm_dec[[#This Row],[1500mMins]]*60+t_sm_dec[[#This Row],[1500mSecs]],"1500m",t_sm_dec[[#This Row],[AgeGrp]],t_sm_dec[[#This Row],[1500mElec]]),0) -> 0 | AI8: =(t_sm_dec[[#This Row],[100mWind]]+t_sm_dec[[#This Row],[LJWind]]+t_sm_dec[[#This Row],[110mHWind]])/3 -> 0 | AJ8: =t_sm_dec[[#This Row],[100mPoints]]+t_sm_dec[[#This Row],[LJPoints]]+t_sm_dec[[#This Row],[SPPoints]]+t_sm_dec[[#This Row],[HJPoints]]+t_sm_dec[[#This Row],[400mPoints]]+t_sm_dec[[#This Row],[110mHPoints]]+t_sm_dec[[#This Row],[DTPoints]]+t_sm_dec[[#This Row],[PVPoints]]+t_sm_dec[[#This Row],[JTPoints]]+t_sm_dec[[#This Row],[1500mPoints]] -> 0 | AK8: =IF(OR(t_sm_dec[[#This Row],[100m]]="DNS",t_sm_dec[[#This Row],[LJ]]="DNS",t_sm_dec[[#This Row],[SP]]="DNS",t_sm_dec[[#This Row],[HJ]]="DNS",t_sm_dec[[#This Row],[400m]]="DNS",t_sm_dec[[#This Row],[110mH]]="DNS",t_sm_dec[[#This Row],[DT]]="DNS",t_sm_dec[[#This Row],[PV]]="DNS",t_sm_dec[[#This Row],[JT]]="DNS",t_sm_dec[[#This Row],[1500mMins]]="DNS"),"Y","") ->  | AL8: =IF(t_sm_dec[[#This Row],[Retired]]="Y","Retired",IF(t_sm_dec[[#This Row],[Surrey]]="N","Guest",COUNTIFS(t_sm_dec[Retired],"<>Y",t_sm_dec[Surrey],"<>N",t_sm_dec[TotalPoints],">"&t_sm_dec[[#This Row],[TotalPoints]])+1)) -> Guest | AM8: 7

Sheet Senior Men Results
B1: Holder: | C1: =INDEX(t_holder[Name],MATCH("SM",t_holder[AgeGrp],0)) -> William McGinnis | F1: =INDEX(t_holder[Club],MATCH("SM",t_holder[AgeGrp],0)) -> Holland Sports AC | J1: =IF(INDEX(t_holder[Points],MATCH("SM",t_holder[AgeGrp],0))="","",INDEX(t_holder[Points],MATCH("SM",t_holder[AgeGrp],0)) &" pts") -> 2179 pts
B2: CBP: | C2: =INDEX(t_cbp[Name],MATCH("SM",t_holder[AgeGrp],0)) -> Thomas Ashby | F2: =INDEX(t_cbp[Club],MATCH("SM",t_holder[AgeGrp],0)) -> Herne Hill Harriers | J2: =INDEX(t_cbp[Points],MATCH("SM",t_holder[AgeGrp],0)) & " Pts" -> 7107 Pts | L2: =INDEX(t_cbp[Year],MATCH("SM",t_holder[AgeGrp],0)) -> 2011
P4: Av Wind
B5: Pos | C5: Athlete | E5: 100m | F5: LJ | G5: Shot | H5: HJ | I5: 400m | J5: Day 1 | K5: 110mH | L5: Discus | M5: PV | N5: Jav | O5: 1500m | P5: Final Total
A6: 1 | C6: =INDEX(t_sm_dec[Bib],MATCH(A6,t_sm_dec[AllPos],0)) -> 271 | D6: Perf | E6: =INDEX(t_sm_dec[100m],MATCH(A6,t_sm_dec[AllPos],0)) -> 13.11 | F6: =INDEX(t_sm_dec[LJ],MATCH(A6,t_sm_dec[AllPos],0)) -> 5.48 | G6: =INDEX(t_sm_dec[SP],MATCH(A6,t_sm_dec[AllPos],0)) -> 9.41 | H6: =INDEX(t_sm_dec[HJ],MATCH(A6,t_sm_dec[AllPos],0)) -> 1.68 | I6: =INDEX(t_sm_dec[400m],MATCH(A6,t_sm_dec[AllPos],0)) -> 62.75 | K6: =INDEX(t_sm_dec[110mH],MATCH(A6,t_sm_dec[AllPos],0)) -> 20.29 | L6: =INDEX(t_sm_dec[DT],MATCH(A6,t_sm_dec[AllPos],0)) -> 31.54 | M6: =INDEX(t_sm_dec[PV],MATCH(A6,t_sm_dec[AllPos],0)) -> 2.43 | N6: =INDEX(t_sm_dec[JT],MATCH(A6,t_sm_dec[AllPos],0)) -> 36.59 | O6: =IF(ISNUMBER(INDEX(t_sm_dec[1500mMins],MATCH(A6,t_sm_dec[AllPos],0))),(INDEX(t_sm_dec[1500mMins],MATCH(A6,t_sm_dec[AllPos],0))*60+INDEX(t_sm_dec[1500mSecs],MATCH(A6,t_sm_dec[AllPos],0)))/86400,INDEX(t_sm_dec[1500mMins],MATCH(A6,t_sm_dec[AllPos],0))) -> 0.003945833333
B7: =INDEX(t_sm_dec[FinalPosition],MATCH(A6,t_sm_dec[AllPos],0)) -> 2 | C7: =INDEX(t_sm_dec[Name],MATCH(A6,t_sm_dec[AllPos],0)) -> Mark Andrews | D7: Wind | E7: =INDEX(t_sm_dec[100mWind],MATCH(A6,t_sm_dec[AllPos],0)) -> 2.4 | F7: =INDEX(t_sm_dec[LJWind],MATCH(A6,t_sm_dec[AllPos],0)) -> 1.3 | K7: =INDEX(t_sm_dec[110mHWind],MATCH(A6,t_sm_dec[AllPos],0)) -> 0 | P7: =IFERROR(INDEX(t_sm_dec[AvWind],MATCH(A6,t_sm_dec[AllPos],0)),0) -> 1.233333333
C8: =INDEX(t_sm_dec[Club],MATCH(A6,t_sm_dec[AllPos],0)) -> Hercules Wimbledon AC | D8: Points | E8: =INDEX(t_sm_dec[100mPoints],MATCH(A6,t_sm_dec[AllPos],0)) -> 449 | F8: =INDEX(t_sm_dec[LJPoints],MATCH(A6,t_sm_dec[AllPos],0)) -> 477 | G8: =INDEX(t_sm_dec[SPPoints],MATCH(A6,t_sm_dec[AllPos],0)) -> 450 | H8: =INDEX(t_sm_dec[HJPoints],MATCH(A6,t_sm_dec[AllPos],0)) -> 528 | I8: =INDEX(t_sm_dec[400mPoints],MATCH(A6,t_sm_dec[AllPos],0)) -> 324 | J8: =INDEX(t_sm_dec[First Day Total],MATCH(A6,t_sm_dec[AllPos],0)) -> 2228 | K8: =INDEX(t_sm_dec[110mHPoints],MATCH(A6,t_sm_dec[AllPos],0)) -> 327 | L8: =INDEX(t_sm_dec[DTPoints],MATCH(A6,t_sm_dec[AllPos],0)) -> 495 | M8: =INDEX(t_sm_dec[PVPoints],MATCH(A6,t_sm_dec[AllPos],0)) -> 227 | N8: =INDEX(t_sm_dec[JTPoints],MATCH(A6,t_sm_dec[AllPos],0)) -> 393 | O8: =INDEX(t_sm_dec[1500mPoints],MATCH(A6,t_sm_dec[AllPos],0)) -> 347 | P8: =INDEX(t_sm_dec[TotalPoints],MATCH(A6,t_sm_dec[AllPos],0)) -> 4017
A9: =A6+1 -> 2 | C9: =INDEX(t_sm_dec[Bib],MATCH(A9,t_sm_dec[AllPos],0)) -> 272 | D9: Perf | E9: =INDEX(t_sm_dec[100m],MATCH(A9,t_sm_dec[AllPos],0)) -> 11.74 | F9: =INDEX(t_sm_dec[LJ],MATCH(A9,t_sm_dec[AllPos],0)) -> 6.16 | G9: =INDEX(t_sm_dec[SP],MATCH(A9,t_sm_dec[AllPos],0)) -> 11.97 | H9: =INDEX(t_sm_dec[HJ],MATCH(A9,t_sm_dec[AllPos],0)) -> 1.8 | I9: =INDEX(t_sm_dec[400m],MATCH(A9,t_sm_dec[AllPos],0)) -> 58.16 | K9: =INDEX(t_sm_dec[110mH],MATCH(A9,t_sm_dec[AllPos],0)) -> 16.28 | L9: =INDEX(t_sm_dec[DT],MATCH(A9,t_sm_dec[AllPos],0)) -> 36.21 | M9: =INDEX(t_sm_dec[PV],MATCH(A9,t_sm_dec[AllPos],0)) -> 3.83 | N9: =INDEX(t_sm_dec[JT],MATCH(A9,t_sm_dec[AllPos],0)) -> 36.81 | O9: =IF(ISNUMBER(INDEX(t_sm_dec[1500mMins],MATCH(A9,t_sm_dec[AllPos],0))),(INDEX(t_sm_dec[1500mMins],MATCH(A9,t_sm_dec[AllPos],0))*60+INDEX(t_sm_dec[1500mSecs],MATCH(A9,t_sm_dec[AllPos],0)))/86400,INDEX(t_sm_dec[1500mMins],MATCH(A9,t_sm_dec[AllPos],0))) -> 0.003902083333
B10: =INDEX(t_sm_dec[FinalPosition],MATCH(A9,t_sm_dec[AllPos],0)) -> 1 | C10: =INDEX(t_sm_dec[Name],MATCH(A9,t_sm_dec[AllPos],0)) -> Justin Tarrant | D10: Wind | E10: =INDEX(t_sm_dec[100mWind],MATCH(A9,t_sm_dec[AllPos],0)) -> 2.4 | F10: =INDEX(t_sm_dec[LJWind],MATCH(A9,t_sm_dec[AllPos],0)) -> 1.1 | K10: =INDEX(t_sm_dec[110mHWind],MATCH(A9,t_sm_dec[AllPos],0)) -> 0 | P10: =IFERROR(INDEX(t_sm_dec[AvWind],MATCH(A9,t_sm_dec[AllPos],0)),0) -> 1.166666667
C11: =INDEX(t_sm_dec[Club],MATCH(A9,t_sm_dec[AllPos],0)) -> Crawley AC | D11: Points | E11: =INDEX(t_sm_dec[100mPoints],MATCH(A9,t_sm_dec[AllPos],0)) -> 703 | F11: =INDEX(t_sm_dec[LJPoints],MATCH(A9,t_sm_dec[AllPos],0)) -> 621 | G11: =INDEX(t_sm_dec[SPPoints],MATCH(A9,t_sm_dec[AllPos],0)) -> 605 | H11: =INDEX(t_sm_dec[HJPoints],MATCH(A9,t_sm_dec[AllPos],0)) -> 627 | I11: =INDEX(t_sm_dec[400mPoints],MATCH(A9,t_sm_dec[AllPos],0)) -> 478 | J11: =INDEX(t_sm_dec[First Day Total],MATCH(A9,t_sm_dec[AllPos],0)) -> 3034 | K11: =INDEX(t_sm_dec[110mHPoints],MATCH(A9,t_sm_dec[AllPos],0)) -> 702 | L11: =INDEX(t_sm_dec[DTPoints],MATCH(A9,t_sm_dec[AllPos],0)) -> 588 | M11: =INDEX(t_sm_dec[PVPoints],MATCH(A9,t_sm_dec[AllPos],0)) -> 570 | N11: =INDEX(t_sm_dec[JTPoints],MATCH(A9,t_sm_dec[AllPos],0)) -> 396 | O11: =INDEX(t_sm_dec[1500mPoints],MATCH(A9,t_sm_dec[AllPos],0)) -> 365 | P11: =INDEX(t_sm_dec[TotalPoints],MATCH(A9,t_sm_dec[AllPos],0)) -> 5655
A12: =A9+1 -> 3 | C12: =INDEX(t_sm_dec[Bib],MATCH(A12,t_sm_dec[AllPos],0)) -> 273 | D12: Perf | E12: =INDEX(t_sm_dec[100m],MATCH(A12,t_sm_dec[AllPos],0)) -> 11.65 | F12: =INDEX(t_sm_dec[LJ],MATCH(A12,t_sm_dec[AllPos],0)) -> 6.31 | G12: =INDEX(t_sm_dec[SP],MATCH(A12,t_sm_dec[AllPos],0)) -> 11.72 | H12: =INDEX(t_sm_dec[HJ],MATCH(A12,t_sm_dec[AllPos],0)) -> 1.71 | I12: =INDEX(t_sm_dec[400m],MATCH(A12,t_sm_dec[AllPos],0)) -> 52.1 | K12: =INDEX(t_sm_dec[110mH],MATCH(A12,t_sm_dec[AllPos],0)) -> 16.06 | L12: =INDEX(t_sm_dec[DT],MATCH(A12,t_sm_dec[AllPos],0)) -> 36.04 | M12: =INDEX(t_sm_dec[PV],MATCH(A12,t_sm_dec[AllPos],0)) -> 4.23 | N12: =INDEX(t_sm_dec[JT],MATCH(A12,t_sm_dec[AllPos],0)) -> 47.83 | O12: =IF(ISNUMBER(INDEX(t_sm_dec[1500mMins],MATCH(A12,t_sm_dec[AllPos],0))),(INDEX(t_sm_dec[1500mMins],MATCH(A12,t_sm_dec[AllPos],0))*60+INDEX(t_sm_dec[1500mSecs],MATCH(A12,t_sm_dec[AllPos],0)))/86400,INDEX(t_sm_dec[1500mMins],MATCH(A12,t_sm_dec[AllPos],0))) -> 0.003137268519
B13: =INDEX(t_sm_dec[FinalPosition],MATCH(A12,t_sm_dec[AllPos],0)) -> Guest | C13: =INDEX(t_sm_dec[Name],MATCH(A12,t_sm_dec[AllPos],0)) -> Thomas Chandler | D13: Wind | E13: =INDEX(t_sm_dec[100mWind],MATCH(A12,t_sm_dec[AllPos],0)) -> 2.4 | F13: =INDEX(t_sm_dec[LJWind],MATCH(A12,t_sm_dec[AllPos],0)) -> 0.7 | K13: =INDEX(t_sm_dec[110mHWind],MATCH(A12,t_sm_dec[AllPos],0)) -> 0 | P13: =IFERROR(INDEX(t_sm_dec[AvWind],MATCH(A12,t_sm_dec[AllPos],0)),0) -> 1.033333333
C14: =INDEX(t_sm_dec[Club],MATCH(A12,t_sm_dec[AllPos],0)) -> Basingstoke & Mid Hants AC | D14: Points | E14: =INDEX(t_sm_dec[100mPoints],MATCH(A12,t_sm_dec[AllPos],0)) -> 721 | F14: =INDEX(t_sm_dec[LJPoints],MATCH(A12,t_sm_dec[AllPos],0)) -> 655 | G14: =INDEX(t_sm_dec[SPPoints],MATCH(A12,t_sm_dec[AllPos],0)) -> 589 | H14: =INDEX(t_sm_dec[HJPoints],MATCH(A12,t_sm_dec[AllPos],0)) -> 552 | I14: =INDEX(t_sm_dec[400mPoints],MATCH(A12,t_sm_dec[AllPos],0)) -> 720 | J14: =INDEX(t_sm_dec[First Day Total],MATCH(A12,t_sm_dec[AllPos],0)) -> 3237 | K14: =INDEX(t_sm_dec[110mHPoints],MATCH(A12,t_sm_dec[AllPos],0)) -> 726 | L14: =INDEX(t_sm_dec[DTPoints],MATCH(A12,t_sm_dec[AllPos],0)) -> 585 | M14: =INDEX(t_sm_dec[PVPoints],MATCH(A12,t_sm_dec[AllPos],0)) -> 682 | N14: =INDEX(t_sm_dec[JTPoints],MATCH(A12,t_sm_dec[AllPos],0)) -> 557 | O14: =INDEX(t_sm_dec[1500mPoints],MATCH(A12,t_sm_dec[AllPos],0)) -> 738 | P14: =INDEX(t_sm_dec[TotalPoints],MATCH(A12,t_sm_dec[AllPos],0)) -> 6525
A15: =A12+1 -> 4 | C15: =INDEX(t_sm_dec[Bib],MATCH(A15,t_sm_dec[AllPos],0)) -> 274 | D15: Perf | E15: =INDEX(t_sm_dec[100m],MATCH(A15,t_sm_dec[AllPos],0)) -> 13.06 | F15: =INDEX(t_sm_dec[LJ],MATCH(A15,t_sm_dec[AllPos],0)) -> 4.81 | G15: =INDEX(t_sm_dec[SP],MATCH(A15,t_sm_dec[AllPos],0)) -> 7.91 | H15: =INDEX(t_sm_dec[HJ],MATCH(A15,t_sm_dec[AllPos],0)) -> 1.44 | I15: =INDEX(t_sm_dec[400m],MATCH(A15,t_sm_dec[AllPos],0)) -> 64.25 | K15: =INDEX(t_sm_dec[110mH],MATCH(A15,t_sm_dec[AllPos],0)) -> 22.62 | L15: =INDEX(t_sm_dec[DT],MATCH(A15,t_sm_dec[AllPos],0)) -> 25.54 | M15: =INDEX(t_sm_dec[PV],MATCH(A15,t_sm_dec[AllPos],0)) -> 2.43 | N15: =INDEX(t_sm_dec[JT],MATCH(A15,t_sm_dec[AllPos],0)) -> 30.38 | O15: =IF(ISNUMBER(INDEX(t_sm_dec[1500mMins],MATCH(A15,t_sm_dec[AllPos],0))),(INDEX(t_sm_dec[1500mMins],MATCH(A15,t_sm_dec[AllPos],0))*60+INDEX(t_sm_dec[1500mSecs],MATCH(A15,t_sm_dec[AllPos],0)))/86400,INDEX(t_sm_dec[1500mMins],MATCH(A15,t_sm_dec[AllPos],0))) -> 0.00377349537
B16: =INDEX(t_sm_dec[FinalPosition],MATCH(A15,t_sm_dec[AllPos],0)) -> Guest | C16: =INDEX(t_sm_dec[Name],MATCH(A15,t_sm_dec[AllPos],0)) -> Will Goodbourn | D16: Wind | E16: =INDEX(t_sm_dec[100mWind],MATCH(A15,t_sm_dec[AllPos],0)) -> 2.4 | F16: =INDEX(t_sm_dec[LJWind],MATCH(A15,t_sm_dec[AllPos],0)) -> 1.9 | K16: =INDEX(t_sm_dec[110mHWind],MATCH(A15,t_sm_dec[AllPos],0)) -> 0 | P16: =IFERROR(INDEX(t_sm_dec[AvWind],MATCH(A15,t_sm_dec[AllPos],0)),0) -> 1.433333333
C17: =INDEX(t_sm_dec[Club],MATCH(A15,t_sm_dec[AllPos],0)) -> Charnwood A C | D17: Points | E17: =INDEX(t_sm_dec[100mPoints],MATCH(A15,t_sm_dec[AllPos],0)) -> 458 | F17: =INDEX(t_sm_dec[LJPoints],MATCH(A15,t_sm_dec[AllPos],0)) -> 346 | G17: =INDEX(t_sm_dec[SPPoints],MATCH(A15,t_sm_dec[AllPos],0)) -> 361 | H17: =INDEX(t_sm_dec[HJPoints],MATCH(A15,t_sm_dec[AllPos],0)) -> 345 | I17: =INDEX(t_sm_dec[400mPoints],MATCH(A15,t_sm_dec[AllPos],0)) -> 280 | J17: =INDEX(t_sm_dec[First Day Total],MATCH(A15,t_sm_dec[AllPos],0)) -> 1790 | K17: =INDEX(t_sm_dec[110mHPoints],MATCH(A15,t_sm_dec[AllPos],0)) -> 172 | L17: =INDEX(t_sm_dec[DTPoints],MATCH(A15,t_sm_dec[AllPos],0)) -> 378 | M17: =INDEX(t_sm_dec[PVPoints],MATCH(A15,t_sm_dec[AllPos],0)) -> 227 | N17: =INDEX(t_sm_dec[JTPoints],MATCH(A15,t_sm_dec[AllPos],0)) -> 305 | O17: =INDEX(t_sm_dec[1500mPoints],MATCH(A15,t_sm_dec[AllPos],0)) -> 419 | P17: =INDEX(t_sm_dec[TotalPoints],MATCH(A15,t_sm_dec[AllPos],0)) -> 3291
A18: =A15+1 -> 5 | C18: =INDEX(t_sm_dec[Bib],MATCH(A18,t_sm_dec[AllPos],0)) -> 275 | D18: Perf | E18: =INDEX(t_sm_dec[100m],MATCH(A18,t_sm_dec[AllPos],0)) -> 12.87 | F18: =INDEX(t_sm_dec[LJ],MATCH(A18,t_sm_dec[AllPos],0)) -> 4.98 | G18: =INDEX(t_sm_dec[SP],MATCH(A18,t_sm_dec[AllPos],0)) -> 9.07 | H18: =INDEX(t_sm_dec[HJ],MATCH(A18,t_sm_dec[AllPos],0)) -> 1.47 | I18: =INDEX(t_sm_dec[400m],MATCH(A18,t_sm_dec[AllPos],0)) -> 63.28 | K18: =INDEX(t_sm_dec[110mH],MATCH(A18,t_sm_dec[AllPos],0)) -> 22.01 | L18: =INDEX(t_sm_dec[DT],MATCH(A18,t_sm_dec[AllPos],0)) -> 27.79 | M18: =INDEX(t_sm_dec[PV],MATCH(A18,t_sm_dec[AllPos],0)) -> 2.63 | N18: =INDEX(t_sm_dec[JT],MATCH(A18,t_sm_dec[AllPos],0)) -> 28.74 | O18: =IF(ISNUMBER(INDEX(t_sm_dec[1500mMins],MATCH(A18,t_sm_dec[AllPos],0))),(INDEX(t_sm_dec[1500mMins],MATCH(A18,t_sm_dec[AllPos],0))*60+INDEX(t_sm_dec[1500mSecs],MATCH(A18,t_sm_dec[AllPos],0)))/86400,INDEX(t_sm_dec[1500mMins],MATCH(A18,t_sm_dec[AllPos],0))) -> 0.004090277778
B19: =INDEX(t_sm_dec[FinalPosition],MATCH(A18,t_sm_dec[AllPos],0)) -> Guest | C19: =INDEX(t_sm_dec[Name],MATCH(A18,t_sm_dec[AllPos],0)) -> Darren Janssen | D19: Wind | E19: =INDEX(t_sm_dec[100mWind],MATCH(A18,t_sm_dec[AllPos],0)) -> 2.4 | F19: =INDEX(t_sm_dec[LJWind],MATCH(A18,t_sm_dec[AllPos],0)) -> 1.6 | K19: =INDEX(t_sm_dec[110mHWind],MATCH(A18,t_sm_dec[AllPos],0)) -> 0 | P19: =IFERROR(INDEX(t_sm_dec[AvWind],MATCH(A18,t_sm_dec[AllPos],0)),0) -> 1.333333333
C20: =INDEX(t_sm_dec[Club],MATCH(A18,t_sm_dec[AllPos],0)) -> Biggleswade AC | D20: Points | E20: =INDEX(t_sm_dec[100mPoints],MATCH(A18,t_sm_dec[AllPos],0)) -> 490 | F20: =INDEX(t_sm_dec[LJPoints],MATCH(A18,t_sm_dec[AllPos],0)) -> 378 | G20: =INDEX(t_sm_dec[SPPoints],MATCH(A18,t_sm_dec[AllPos],0)) -> 430 | H20: =INDEX(t_sm_dec[HJPoints],MATCH(A18,t_sm_dec[AllPos],0)) -> 367 | I20: =INDEX(t_sm_dec[400mPoints],MATCH(A18,t_sm_dec[AllPos],0)) -> 308 | J20: =INDEX(t_sm_dec[First Day Total],MATCH(A18,t_sm_dec[AllPos],0)) -> 1973 | K20: =INDEX(t_sm_dec[110mHPoints],MATCH(A18,t_sm_dec[AllPos],0)) -> 208 | L20: =INDEX(t_sm_dec[DTPoints],MATCH(A18,t_sm_dec[AllPos],0)) -> 421 | M20: =INDEX(t_sm_dec[PVPoints],MATCH(A18,t_sm_dec[AllPos],0)) -> 271 | N20: =INDEX(t_sm_dec[JTPoints],MATCH(A18,t_sm_dec[AllPos],0)) -> 282 | O20: =INDEX(t_sm_dec[1500mPoints],MATCH(A18,t_sm_dec[AllPos],0)) -> 292 | P20: =INDEX(t_sm_dec[TotalPoints],MATCH(A18,t_sm_dec[AllPos],0)) -> 3447
A21: =A18+1 -> 6 | C21: =INDEX(t_sm_dec[Bib],MATCH(A21,t_sm_dec[AllPos],0)) -> 276 | D21: Perf | E21: =INDEX(t_sm_dec[100m],MATCH(A21,t_sm_dec[AllPos],0)) -> 11.85 | F21: =INDEX(t_sm_dec[LJ],MATCH(A21,t_sm_dec[AllPos],0)) -> 6.05 | G21: =INDEX(t_sm_dec[SP],MATCH(A21,t_sm_dec[AllPos],0)) -> 8.64 | H21: =INDEX(t_sm_dec[HJ],MATCH(A21,t_sm_dec[AllPos],0)) -> 1.68 | I21: =INDEX(t_sm_dec[400m],MATCH(A21,t_sm_dec[AllPos],0)) -> 56.31 | K21: =INDEX(t_sm_dec[110mH],MATCH(A21,t_sm_dec[AllPos],0)) -> DNF | L21: =INDEX(t_sm_dec[DT],MATCH(A21,t_sm_dec[AllPos],0)) -> 26 | M21: =INDEX(t_sm_dec[PV],MATCH(A21,t_sm_dec[AllPos],0)) -> NH | N21: =INDEX(t_sm_dec[JT],MATCH(A21,t_sm_dec[AllPos],0)) -> 40.77 | O21: =IF(ISNUMBER(INDEX(t_sm_dec[1500mMins],MATCH(A21,t_sm_dec[AllPos],0))),(INDEX(t_sm_dec[1500mMins],MATCH(A21,t_sm_dec[AllPos],0))*60+INDEX(t_sm_dec[1500mSecs],MATCH(A21,t_sm_dec[AllPos],0)))/86400,INDEX(t_sm_dec[1500mMins],MATCH(A21,t_sm_dec[AllPos],0))) -> 0.004268287037
B22: =INDEX(t_sm_dec[FinalPosition],MATCH(A21,t_sm_dec[AllPos],0)) -> Guest | C22: =INDEX(t_sm_dec[Name],MATCH(A21,t_sm_dec[AllPos],0)) -> Dan Steel | D22: Wind | E22: =INDEX(t_sm_dec[100mWind],MATCH(A21,t_sm_dec[AllPos],0)) -> 2.4 | F22: =INDEX(t_sm_dec[LJWind],MATCH(A21,t_sm_dec[AllPos],0)) -> 1.9 | K22: =INDEX(t_sm_dec[110mHWind],MATCH(A21,t_sm_dec[AllPos],0)) -> 0 | P22: =IFERROR(INDEX(t_sm_dec[AvWind],MATCH(A21,t_sm_dec[AllPos],0)),0) -> 1.433333333
C23: =INDEX(t_sm_dec[Club],MATCH(A21,t_sm_dec[AllPos],0)) -> Huntingdonshire AC | D23: Points | E23: =INDEX(t_sm_dec[100mPoints],MATCH(A21,t_sm_dec[AllPos],0)) -> 681 | F23: =INDEX(t_sm_dec[LJPoints],MATCH(A21,t_sm_dec[AllPos],0)) -> 597 | G23: =INDEX(t_sm_dec[SPPoints],MATCH(A21,t_sm_dec[AllPos],0)) -> 404 | H23: =INDEX(t_sm_dec[HJPoints],MATCH(A21,t_sm_dec[AllPos],0)) -> 528 | I23: =INDEX(t_sm_dec[400mPoints],MATCH(A21,t_sm_dec[AllPos],0)) -> 547 | J23: =INDEX(t_sm_dec[First Day Total],MATCH(A21,t_sm_dec[AllPos],0)) -> 2757 | K23: =INDEX(t_sm_dec[110mHPoints],MATCH(A21,t_sm_dec[AllPos],0)) -> 0 | L23: =INDEX(t_sm_dec[DTPoints],MATCH(A21,t_sm_dec[AllPos],0)) -> 386 | M23: =INDEX(t_sm_dec[PVPoints],MATCH(A21,t_sm_dec[AllPos],0)) -> 0 | N23: =INDEX(t_sm_dec[JTPoints],MATCH(A21,t_sm_dec[AllPos],0)) -> 453 | O23: =INDEX(t_sm_dec[1500mPoints],MATCH(A21,t_sm_dec[AllPos],0)) -> 229 | P23: =INDEX(t_sm_dec[TotalPoints],MATCH(A21,t_sm_dec[AllPos],0)) -> 3825
A24: 7 | C24: =INDEX(t_sm_dec[Bib],MATCH(A24,t_sm_dec[AllPos],0)) -> 277 | D24: Perf | E24: =INDEX(t_sm_dec[100m],MATCH(A24,t_sm_dec[AllPos],0)) -> 0 | F24: =INDEX(t_sm_dec[LJ],MATCH(A24,t_sm_dec[AllPos],0)) -> 0 | G24: =INDEX(t_sm_dec[SP],MATCH(A24,t_sm_dec[AllPos],0)) -> 0 | H24: =INDEX(t_sm_dec[HJ],MATCH(A24,t_sm_dec[AllPos],0)) -> 0 | I24: =INDEX(t_sm_dec[400m],MATCH(A24,t_sm_dec[AllPos],0)) -> 0 | K24: =INDEX(t_sm_dec[110mH],MATCH(A24,t_sm_dec[AllPos],0)) -> 0 | L24: =INDEX(t_sm_dec[DT],MATCH(A24,t_sm_dec[AllPos],0)) -> 0 | M24: =INDEX(t_sm_dec[PV],MATCH(A24,t_sm_dec[AllPos],0)) -> 0 | N24: =INDEX(t_sm_dec[JT],MATCH(A24,t_sm_dec[AllPos],0)) -> 0 | O24: =IF(ISNUMBER(INDEX(t_sm_dec[1500mMins],MATCH(A24,t_sm_dec[AllPos],0))),(INDEX(t_sm_dec[1500mMins],MATCH(A24,t_sm_dec[AllPos],0))*60+INDEX(t_sm_dec[1500mSecs],MATCH(A24,t_sm_dec[AllPos],0)))/86400,INDEX(t_sm_dec[1500mMins],MATCH(A24,t_sm_dec[AllPos],0))) -> 0
B25: =INDEX(t_sm_dec[FinalPosition],MATCH(A24,t_sm_dec[AllPos],0)) -> Guest | C25: =INDEX(t_sm_dec[Name],MATCH(A24,t_sm_dec[AllPos],0)) -> Daniel Thomas | D25: Wind | E25: =INDEX(t_sm_dec[100mWind],MATCH(A24,t_sm_dec[AllPos],0)) -> 0 | F25: =INDEX(t_sm_dec[LJWind],MATCH(A24,t_sm_dec[AllPos],0)) -> 0 | K25: =INDEX(t_sm_dec[110mHWind],MATCH(A24,t_sm_dec[AllPos],0)) -> 0 | P25: =IFERROR(INDEX(t_sm_dec[AvWind],MATCH(A24,t_sm_dec[AllPos],0)),0) -> 0
C26: =INDEX(t_sm_dec[Club],MATCH(A24,t_sm_dec[AllPos],0)) -> Basingstoke & Mid Hants AC | D26: Points | E26: =INDEX(t_sm_dec[100mPoints],MATCH(A24,t_sm_dec[AllPos],0)) -> 0 | F26: =INDEX(t_sm_dec[LJPoints],MATCH(A24,t_sm_dec[AllPos],0)) -> 0 | G26: =INDEX(t_sm_dec[SPPoints],MATCH(A24,t_sm_dec[AllPos],0)) -> 0 | H26: =INDEX(t_sm_dec[HJPoints],MATCH(A24,t_sm_dec[AllPos],0)) -> 0 | I26: =INDEX(t_sm_dec[400mPoints],MATCH(A24,t_sm_dec[AllPos],0)) -> 0 | J26: =INDEX(t_sm_dec[First Day Total],MATCH(A24,t_sm_dec[AllPos],0)) -> 0 | K26: =INDEX(t_sm_dec[110mHPoints],MATCH(A24,t_sm_dec[AllPos],0)) -> 0 | L26: =INDEX(t_sm_dec[DTPoints],MATCH(A24,t_sm_dec[AllPos],0)) -> 0 | M26: =INDEX(t_sm_dec[PVPoints],MATCH(A24,t_sm_dec[AllPos],0)) -> 0 | N26: =INDEX(t_sm_dec[JTPoints],MATCH(A24,t_sm_dec[AllPos],0)) -> 0 | O26: =INDEX(t_sm_dec[1500mPoints],MATCH(A24,t_sm_dec[AllPos],0)) -> 0 | P26: =INDEX(t_sm_dec[TotalPoints],MATCH(A24,t_sm_dec[AllPos],0)) -> 0

Sheet Masters Men Pentathlon
A1: Bib | B1: Name | C1: Club | D1: AgeGrp | E1: Surrey | F1: JT | G1: JTPoints | H1: LJ | I1: LJWind | J1: LJPoints | K1: 200m | L1: 200mElec | M1: 200mWind | N1: 200mPoints | O1: DT | P1: DTPoints | Q1: 1500mMins | R1: 1500mSecs | S1: 1500mElec | T1: 1500mPoints | U1: AvWind | V1: TotalPoints | W1: Retired | X1: FinalPosition | Y1: AllPos
A2: 268 | B2: Martin Willis | C2: Walton AC | D2: M45 | E2: Y | F2: 21.57 | G2: =IFERROR(getpoints(t_mm_pen[[#This Row],[JT]],"JT",t_mm_pen[[#This Row],[AgeGrp]]),0) -> 233 | H2: 3.6 | I2: 0.3 | J2: =IFERROR(getpoints(t_mm_pen[[#This Row],[LJ]],"LJ",t_mm_pen[[#This Row],[AgeGrp]]),0) -> 230 | K2: 29.4 | L2: Y | M2: 1.7 | N2: =IFERROR(getpoints(t_mm_pen[[#This Row],[200m]],"200m",t_mm_pen[[#This Row],[AgeGrp]],t_mm_pen[[#This Row],[200mElec]]),0) -> 436 | O2: 20.44 | P2: =IFERROR(getpoints(t_mm_pen[[#This Row],[DT]],"DT",t_mm_pen[[#This Row],[AgeGrp]]),0) -> 360 | Q2: 7 | R2: 13.65 | S2: Y | T2: =IFERROR(getpoints(ROUNDDOWN(t_mm_pen[[#This Row],[1500mMins]]*60+t_mm_pen[[#This Row],[1500mSecs]],2),"1500m",t_mm_pen[[#This Row],[AgeGrp]],t_mm_pen[[#This Row],[1500mElec]]),0) -> 137 | U2: =IFERROR((t_mm_pen[[#This Row],[LJWind]]+t_mm_pen[[#This Row],[200mWind]])/2,"n/a") -> 1 | V2: =IFERROR(t_mm_pen[[#This Row],[JTPoints]]+t_mm_pen[[#This Row],[LJPoints]]+t_mm_pen[[#This Row],[200mPoints]]+t_mm_pen[[#This Row],[DTPoints]]+t_mm_pen[[#This Row],[1500mPoints]],0) -> 1396 | W2: =IF(OR(t_mm_pen[[#This Row],[LJ]]="DNS",t_mm_pen[[#This Row],[JT]]="DNS",t_mm_pen[[#This Row],[DT]]="DNS",t_mm_pen[[#This Row],[200m]]="DNS",t_mm_pen[[#This Row],[1500mMins]]="DNS"),"Y","") ->  | X2: =IF(t_mm_pen[[#This Row],[Retired]]="Y","Retired",IF(t_mm_pen[[#This Row],[Surrey]]="N","Guest",COUNTIFS(t_mm_pen[Retired],"<>Y",t_mm_pen[Surrey],"<>N",t_mm_pen[TotalPoints],">"&t_mm_pen[[#This Row],[TotalPoints]])+1)) -> 1 | Y2: =ROW(A1) -> 1
A3: 269 | B3: Colin Leonard | C3: RunThrough | D3: M65 | E3: Y | F3: 16.88 | G3: =IFERROR(getpoints(t_mm_pen[[#This Row],[JT]],"JT",t_mm_pen[[#This Row],[AgeGrp]]),0) -> 248 | H3: 2.92 | I3: 0 | J3: =IFERROR(getpoints(t_mm_pen[[#This Row],[LJ]],"LJ",t_mm_pen[[#This Row],[AgeGrp]]),0) -> 278 | K3: 40.8 | L3: Y | M3: 1.7 | N3: =IFERROR(getpoints(t_mm_pen[[#This Row],[200m]],"200m",t_mm_pen[[#This Row],[AgeGrp]],t_mm_pen[[#This Row],[200mElec]]),0) -> 120 | O3: 19.94 | P3: =IFERROR(getpoints(t_mm_pen[[#This Row],[DT]],"DT",t_mm_pen[[#This Row],[AgeGrp]]),0) -> 333 | Q3: 7 | R3: 42.82 | S3: Y | T3: =IFERROR(getpoints(ROUNDDOWN(t_mm_pen[[#This Row],[1500mMins]]*60+t_mm_pen[[#This Row],[1500mSecs]],2),"1500m",t_mm_pen[[#This Row],[AgeGrp]],t_mm_pen[[#This Row],[1500mElec]]),0) -> 313 | U3: =IFERROR((t_mm_pen[[#This Row],[LJWind]]+t_mm_pen[[#This Row],[200mWind]])/2,"n/a") -> 0.85 | V3: =IFERROR(t_mm_pen[[#This Row],[JTPoints]]+t_mm_pen[[#This Row],[LJPoints]]+t_mm_pen[[#This Row],[200mPoints]]+t_mm_pen[[#This Row],[DTPoints]]+t_mm_pen[[#This Row],[1500mPoints]],0) -> 1292 | W3: =IF(OR(t_mm_pen[[#This Row],[LJ]]="DNS",t_mm_pen[[#This Row],[JT]]="DNS",t_mm_pen[[#This Row],[DT]]="DNS",t_mm_pen[[#This Row],[200m]]="DNS",t_mm_pen[[#This Row],[1500mMins]]="DNS"),"Y","") ->  | X3: =IF(t_mm_pen[[#This Row],[Retired]]="Y","Retired",IF(t_mm_pen[[#This Row],[Surrey]]="N","Guest",COUNTIFS(t_mm_pen[Retired],"<>Y",t_mm_pen[Surrey],"<>N",t_mm_pen[TotalPoints],">"&t_mm_pen[[#This Row],[TotalPoints]])+1)) -> 2 | Y3: 2
A4: 270 | B4: Jeremy Musselwhite | C4: Yate & District AC | D4: M60 | E4: N | F4: 28.58 | G4: =IFERROR(getpoints(t_mm_pen[[#This Row],[JT]],"JT",t_mm_pen[[#This Row],[AgeGrp]]),0) -> 448 | H4: 3.69 | I4: 1.2 | J4: =IFERROR(getpoints(t_mm_pen[[#This Row],[LJ]],"LJ",t_mm_pen[[#This Row],[AgeGrp]]),0) -> 419 | K4: 31.28 | L4: Y | M4: 1.7 | N4: =IFERROR(getpoints(t_mm_pen[[#This Row],[200m]],"200m",t_mm_pen[[#This Row],[AgeGrp]],t_mm_pen[[#This Row],[200mElec]]),0) -> 519 | O4: 21.19 | P4: =IFERROR(getpoints(t_mm_pen[[#This Row],[DT]],"DT",t_mm_pen[[#This Row],[AgeGrp]]),0) -> 320 | Q4: 5 | R4: 32.91 | S4: Y | T4: =IFERROR(getpoints(ROUNDDOWN(t_mm_pen[[#This Row],[1500mMins]]*60+t_mm_pen[[#This Row],[1500mSecs]],2),"1500m",t_mm_pen[[#This Row],[AgeGrp]],t_mm_pen[[#This Row],[1500mElec]]),0) -> 782 | U4: =IFERROR((t_mm_pen[[#This Row],[LJWind]]+t_mm_pen[[#This Row],[200mWind]])/2,"n/a") -> 1.45 | V4: =IFERROR(t_mm_pen[[#This Row],[JTPoints]]+t_mm_pen[[#This Row],[LJPoints]]+t_mm_pen[[#This Row],[200mPoints]]+t_mm_pen[[#This Row],[DTPoints]]+t_mm_pen[[#This Row],[1500mPoints]],0) -> 2488 | W4: =IF(OR(t_mm_pen[[#This Row],[LJ]]="DNS",t_mm_pen[[#This Row],[JT]]="DNS",t_mm_pen[[#This Row],[DT]]="DNS",t_mm_pen[[#This Row],[200m]]="DNS",t_mm_pen[[#This Row],[1500mMins]]="DNS"),"Y","") ->  | X4: =IF(t_mm_pen[[#This Row],[Retired]]="Y","Retired",IF(t_mm_pen[[#This Row],[Surrey]]="N","Guest",COUNTIFS(t_mm_pen[Retired],"<>Y",t_mm_pen[Surrey],"<>N",t_mm_pen[TotalPoints],">"&t_mm_pen[[#This Row],[TotalPoints]])+1)) -> Guest | Y4: =ROW(A3) -> 3

Sheet Master Men Results
B1: Holder: | C1: =INDEX(t_holder[Name],MATCH("MM",t_holder[AgeGrp],0)) -> Ian Statter | E1: =INDEX(t_holder[Club],MATCH("MM",t_holder[AgeGrp],0)) -> Croydon Harriers | H1: =IF(INDEX(t_holder[Points],MATCH("MM",t_holder[AgeGrp],0))="","",INDEX(t_holder[Points],MATCH("MM",t_holder[AgeGrp],0)) &" pts") -> 1962 pts
B2: CBP: | C2: =INDEX(t_cbp[Name],MATCH("MM",t_holder[AgeGrp],0)) -> Nick Phipps | E2: =INDEX(t_cbp[Club],MATCH("MM",t_holder[AgeGrp],0)) -> Woking AC | H2: =INDEX(t_cbp[Points],MATCH("MM",t_holder[AgeGrp],0)) & " Pts" -> 3162 Pts | J2: =INDEX(t_cbp[Year],MATCH("MM",t_holder[AgeGrp],0)) -> 2012
J4: Av Wind
B5: Pos | C5: Athlete | E5: Jav | F5: LJ | G5: 200m | H5: Discus | I5: 1500m | J5: Final Total
A6: 1 | C6: =INDEX(t_mm_pen[Bib],MATCH(A6,t_mm_pen[AllPos],0)) -> 268 | D6: Perf | E6: =INDEX(t_mm_pen[JT],MATCH(A6,t_mm_pen[AllPos],0)) -> 21.57 | F6: =INDEX(t_mm_pen[LJ],MATCH(A6,t_mm_pen[AllPos],0)) -> 3.6 | G6: =INDEX(t_mm_pen[200m],MATCH(A6,t_mm_pen[AllPos],0)) -> 29.4 | H6: =INDEX(t_mm_pen[DT],MATCH(A6,t_mm_pen[AllPos],0)) -> 20.44 | I6: =IF(ISNUMBER(INDEX(t_mm_pen[1500mMins],MATCH(A6,t_mm_pen[AllPos],0))),(INDEX(t_mm_pen[1500mMins],MATCH(A6,t_mm_pen[AllPos],0))*60+INDEX(t_mm_pen[1500mSecs],MATCH(A6,t_mm_pen[AllPos],0)))/86400,INDEX(t_mm_pen[1500mMins],MATCH(A6,t_mm_pen[AllPos],0))) -> 0.005019097222
B7: =INDEX(t_mm_pen[FinalPosition],MATCH(A6,t_mm_pen[AllPos],0)) -> 1 | C7: =INDEX(t_mm_pen[Name],MATCH(A6,t_mm_pen[AllPos],0)) -> Martin Willis | D7: Wind | F7: =INDEX(t_mm_pen[LJWind],MATCH(A6,t_mm_pen[AllPos],0)) -> 0.3 | G7: =INDEX(t_mm_pen[200mWind],MATCH(A6,t_mm_pen[AllPos],0)) -> 1.7 | J7: =INDEX(t_mm_pen[AvWind],MATCH($A6,t_mm_pen[AllPos],0)) -> 1
C8: =INDEX(t_mm_pen[Club],MATCH(A6,t_mm_pen[AllPos],0)) -> Walton AC | D8: Points | E8: =INDEX(t_mm_pen[JTPoints],MATCH(A6,t_mm_pen[AllPos],0)) -> 233 | F8: =INDEX(t_mm_pen[LJPoints],MATCH(A6,t_mm_pen[AllPos],0)) -> 230 | G8: =INDEX(t_mm_pen[200mPoints],MATCH(A6,t_mm_pen[AllPos],0)) -> 436 | H8: =INDEX(t_mm_pen[DTPoints],MATCH(A6,t_mm_pen[AllPos],0)) -> 360 | I8: =INDEX(t_mm_pen[1500mPoints],MATCH(A6,t_mm_pen[AllPos],0)) -> 137 | J8: =INDEX(t_mm_pen[TotalPoints],MATCH(A6,t_mm_pen[AllPos],0)) -> 1396
A9: =A6+1 -> 2 | C9: =INDEX(t_mm_pen[Bib],MATCH(A9,t_mm_pen[AllPos],0)) -> 269 | D9: Perf | E9: =INDEX(t_mm_pen[JT],MATCH(A9,t_mm_pen[AllPos],0)) -> 16.88 | F9: =INDEX(t_mm_pen[LJ],MATCH(A9,t_mm_pen[AllPos],0)) -> 2.92 | G9: =INDEX(t_mm_pen[200m],MATCH(A9,t_mm_pen[AllPos],0)) -> 40.8 | H9: =INDEX(t_mm_pen[DT],MATCH(A9,t_mm_pen[AllPos],0)) -> 19.94 | I9: =IF(ISNUMBER(INDEX(t_mm_pen[1500mMins],MATCH(A9,t_mm_pen[AllPos],0))),(INDEX(t_mm_pen[1500mMins],MATCH(A9,t_mm_pen[AllPos],0))*60+INDEX(t_mm_pen[1500mSecs],MATCH(A9,t_mm_pen[AllPos],0)))/86400,INDEX(t_mm_pen[1500mMins],MATCH(A9,t_mm_pen[AllPos],0))) -> 0.005356712963
B10: =INDEX(t_mm_pen[FinalPosition],MATCH(A9,t_mm_pen[AllPos],0)) -> 2 | C10: =INDEX(t_mm_pen[Name],MATCH(A9,t_mm_pen[AllPos],0)) -> Colin Leonard | D10: Wind | F10: =INDEX(t_mm_pen[LJWind],MATCH(A9,t_mm_pen[AllPos],0)) -> 0 | G10: =INDEX(t_mm_pen[200mWind],MATCH(A9,t_mm_pen[AllPos],0)) -> 1.7 | J10: =INDEX(t_mm_pen[AvWind],MATCH($A9,t_mm_pen[AllPos],0)) -> 0.85
C11: =INDEX(t_mm_pen[Club],MATCH(A9,t_mm_pen[AllPos],0)) -> RunThrough | D11: Points | E11: =INDEX(t_mm_pen[JTPoints],MATCH(A9,t_mm_pen[AllPos],0)) -> 248 | F11: =INDEX(t_mm_pen[LJPoints],MATCH(A9,t_mm_pen[AllPos],0)) -> 278 | G11: =INDEX(t_mm_pen[200mPoints],MATCH(A9,t_mm_pen[AllPos],0)) -> 120 | H11: =INDEX(t_mm_pen[DTPoints],MATCH(A9,t_mm_pen[AllPos],0)) -> 333 | I11: =INDEX(t_mm_pen[1500mPoints],MATCH(A9,t_mm_pen[AllPos],0)) -> 313 | J11: =INDEX(t_mm_pen[TotalPoints],MATCH(A9,t_mm_pen[AllPos],0)) -> 1292
A12: =A9+1 -> 3 | C12: =INDEX(t_mm_pen[Bib],MATCH(A12,t_mm_pen[AllPos],0)) -> 270 | D12: Perf | E12: =INDEX(t_mm_pen[JT],MATCH(A12,t_mm_pen[AllPos],0)) -> 28.58 | F12: =INDEX(t_mm_pen[LJ],MATCH(A12,t_mm_pen[AllPos],0)) -> 3.69 | G12: =INDEX(t_mm_pen[200m],MATCH(A12,t_mm_pen[AllPos],0)) -> 31.28 | H12: =INDEX(t_mm_pen[DT],MATCH(A12,t_mm_pen[AllPos],0)) -> 21.19 | I12: =IF(ISNUMBER(INDEX(t_mm_pen[1500mMins],MATCH(A12,t_mm_pen[AllPos],0))),(INDEX(t_mm_pen[1500mMins],MATCH(A12,t_mm_pen[AllPos],0))*60+INDEX(t_mm_pen[1500mSecs],MATCH(A12,t_mm_pen[AllPos],0)))/86400,INDEX(t_mm_pen[1500mMins],MATCH(A12,t_mm_pen[AllPos],0))) -> 0.003853125
B13: =INDEX(t_mm_pen[FinalPosition],MATCH(A12,t_mm_pen[AllPos],0)) -> Guest | C13: =INDEX(t_mm_pen[Name],MATCH(A12,t_mm_pen[AllPos],0)) -> Jeremy Musselwhite | D13: Wind | F13: =INDEX(t_mm_pen[LJWind],MATCH(A12,t_mm_pen[AllPos],0)) -> 1.2 | G13: =INDEX(t_mm_pen[200mWind],MATCH(A12,t_mm_pen[AllPos],0)) -> 1.7 | J13: =INDEX(t_mm_pen[AvWind],MATCH($A12,t_mm_pen[AllPos],0)) -> 1.45
C14: =INDEX(t_mm_pen[Club],MATCH(A12,t_mm_pen[AllPos],0)) -> Yate & District AC | D14: Points | E14: =INDEX(t_mm_pen[JTPoints],MATCH(A12,t_mm_pen[AllPos],0)) -> 448 | F14: =INDEX(t_mm_pen[LJPoints],MATCH(A12,t_mm_pen[AllPos],0)) -> 419 | G14: =INDEX(t_mm_pen[200mPoints],MATCH(A12,t_mm_pen[AllPos],0)) -> 519 | H14: =INDEX(t_mm_pen[DTPoints],MATCH(A12,t_mm_pen[AllPos],0)) -> 320 | I14: =INDEX(t_mm_pen[1500mPoints],MATCH(A12,t_mm_pen[AllPos],0)) -> 782 | J14: =INDEX(t_mm_pen[TotalPoints],MATCH(A12,t_mm_pen[AllPos],0)) -> 2488
A15: =A12+1 -> 4
A18: =A15+1 -> 5
A21: =A18+1 -> 6
A25: =A21+1 -> 7
A29: =A25+1 -> 8
A33: 9
A37: 10

Sheet U13 Girls Pentathlon
A1: Bib | B1: Name | C1: Club | D1: AgeGrp | E1: Surrey | F1: LJ | G1: LJWind | H1: LJPoints | I1: 70mH | J1: 70mHElec | K1: 70mHWind | L1: 70mHPoints | M1: SP | N1: SPPoints | O1: HJ | P1: HJPoints | Q1: 800mMins | R1: 800mSecs | S1: 800mElec | T1: 800mPoints | U1: AvWind | V1: TotalPoints | W1: Retired | X1: FinalPosition | Y1: AllPos
A2: 208 | B2: Gracie Brough | C2: Sutton & District AC | D2: U13G | E2: Y | F2: 3.06 | G2: 0 | H2: =IFERROR(getpoints(t_u13g_pen[[#This Row],[LJ]],"LJ",t_u13g_pen[[#This Row],[AgeGrp]]),0) -> 117 | I2: 14.06 | J2: y | L2: =IFERROR(getpoints(t_u13g_pen[[#This Row],[70mH]],"70mH",t_u13g_pen[[#This Row],[AgeGrp]],t_u13g_pen[[#This Row],[70mHElec]]),0) -> 391 | M2: 5.21 | N2: =IFERROR(getpoints(t_u13g_pen[[#This Row],[SP]],"SP",t_u13g_pen[[#This Row],[AgeGrp]]),0) -> 221 | O2: 1.14 | P2: =IFERROR(getpoints(t_u13g_pen[[#This Row],[HJ]],"HJ",t_u13g_pen[[#This Row],[AgeGrp]]),0) -> 257 | Q2: 2 | R2: 54.17 | S2: y | T2: =IFERROR(getpoints(ROUNDDOWN(t_u13g_pen[[#This Row],[800mMins]]*60+t_u13g_pen[[#This Row],[800mSecs]],2),"800m",t_u13g_pen[[#This Row],[AgeGrp]],t_u13g_pen[[#This Row],[800mElec]]),0) -> 421 | U2: =IFERROR((t_u13g_pen[[#This Row],[LJWind]]+t_u13g_pen[[#This Row],[70mHWind]])/2,"n/a") -> 0 | V2: =IFERROR(t_u13g_pen[[#This Row],[LJPoints]]+t_u13g_pen[[#This Row],[SPPoints]]+t_u13g_pen[[#This Row],[HJPoints]]+t_u13g_pen[[#This Row],[70mHPoints]]+t_u13g_pen[[#This Row],[800mPoints]],0) -> 1407 | W2: =IF(OR(t_u13g_pen[[#This Row],[LJ]]="DNS",t_u13g_pen[[#This Row],[SP]]="DNS",t_u13g_pen[[#This Row],[HJ]]="DNS",t_u13g_pen[[#This Row],[70mH]]="DNS",t_u13g_pen[[#This Row],[800mMins]]="DNS"),"Y","") ->  | X2: =IF(t_u13g_pen[[#This Row],[Retired]]="Y","Retired",IF(t_u13g_pen[[#This Row],[Surrey]]="N","Guest",COUNTIFS(t_u13g_pen[Retired],"<>Y",t_u13g_pen[Surrey],"<>N",t_u13g_pen[TotalPoints],">"&t_u13g_pen[[#This Row],[TotalPoints]])+1)) -> 9 | Y2: =ROW(A1) -> 1
A3: 209 | B3: Megan Burroughs | C3: Camberley & District AC | D3: U13G | E3: Y | F3: 3.21 | G3: 0 | H3: =IFERROR(getpoints(t_u13g_pen[[#This Row],[LJ]],"LJ",t_u13g_pen[[#This Row],[AgeGrp]]),0) -> 144 | I3: 17.06 | J3: y | K3: 0 | L3: =IFERROR(getpoints(t_u13g_pen[[#This Row],[70mH]],"70mH",t_u13g_pen[[#This Row],[AgeGrp]],t_u13g_pen[[#This Row],[70mHElec]]),0) -> 201 | M3: 4.46 | N3: =IFERROR(getpoints(t_u13g_pen[[#This Row],[SP]],"SP",t_u13g_pen[[#This Row],[AgeGrp]]),0) -> 175 | O3: 1.08 | P3: =IFERROR(getpoints(t_u13g_pen[[#This Row],[HJ]],"HJ",t_u13g_pen[[#This Row],[AgeGrp]]),0) -> 205 | S3: y | T3: =IFERROR(getpoints(ROUNDDOWN(t_u13g_pen[[#This Row],[800mMins]]*60+t_u13g_pen[[#This Row],[800mSecs]],2),"800m",t_u13g_pen[[#This Row],[AgeGrp]],t_u13g_pen[[#This Row],[800mElec]]),0) -> 0 | U3: =IFERROR((t_u13g_pen[[#This Row],[LJWind]]+t_u13g_pen[[#This Row],[70mHWind]])/2,"n/a") -> 0 | V3: =IFERROR(t_u13g_pen[[#This Row],[LJPoints]]+t_u13g_pen[[#This Row],[SPPoints]]+t_u13g_pen[[#This Row],[HJPoints]]+t_u13g_pen[[#This Row],[70mHPoints]]+t_u13g_pen[[#This Row],[800mPoints]],0) -> 725 | W3: =IF(OR(t_u13g_pen[[#This Row],[LJ]]="DNS",t_u13g_pen[[#This Row],[SP]]="DNS",t_u13g_pen[[#This Row],[HJ]]="DNS",t_u13g_pen[[#This Row],[70mH]]="DNS",t_u13g_pen[[#This Row],[800mMins]]="DNS"),"Y","") ->  | X3: =IF(t_u13g_pen[[#This Row],[Retired]]="Y","Retired",IF(t_u13g_pen[[#This Row],[Surrey]]="N","Guest",COUNTIFS(t_u13g_pen[Retired],"<>Y",t_u13g_pen[Surrey],"<>N",t_u13g_pen[TotalPoints],">"&t_u13g_pen[[#This Row],[TotalPoints]])+1)) -> 16 | Y3: 2
A4: 210 | B4: Elise Christian | C4: Guildford & Godalming AC | D4: U13G | E4: Y | F4: 3.98 | G4: 0 | H4: =IFERROR(getpoints(t_u13g_pen[[#This Row],[LJ]],"LJ",t_u13g_pen[[#This Row],[AgeGrp]]),0) -> 303 | I4: 11.68 | J4: y | L4: =IFERROR(getpoints(t_u13g_pen[[#This Row],[70mH]],"70mH",t_u13g_pen[[#This Row],[AgeGrp]],t_u13g_pen[[#This Row],[70mHElec]]),0) -> 601 | M4: 10.06 | N4: =IFERROR(getpoints(t_u13g_pen[[#This Row],[SP]],"SP",t_u13g_pen[[#This Row],[AgeGrp]]),0) -> 533 | O4: 1.29 | P4: =IFERROR(getpoints(t_u13g_pen[[#This Row],[HJ]],"HJ",t_u13g_pen[[#This Row],[AgeGrp]]),0) -> 399 | Q4: 2 | R4: 36.55 | S4: y | T4: =IFERROR(getpoints(ROUNDDOWN(t_u13g_pen[[#This Row],[800mMins]]*60+t_u13g_pen[[#This Row],[800mSecs]],2),"800m",t_u13g_pen[[#This Row],[AgeGrp]],t_u13g_pen[[#This Row],[800mElec]]),0) -> 613 | U4: =IFERROR((t_u13g_pen[[#This Row],[LJWind]]+t_u13g_pen[[#This Row],[70mHWind]])/2,"n/a") -> 0 | V4: =IFERROR(t_u13g_pen[[#This Row],[LJPoints]]+t_u13g_pen[[#This Row],[SPPoints]]+t_u13g_pen[[#This Row],[HJPoints]]+t_u13g_pen[[#This Row],[70mHPoints]]+t_u13g_pen[[#This Row],[800mPoints]],0) -> 2449 | W4: =IF(OR(t_u13g_pen[[#This Row],[LJ]]="DNS",t_u13g_pen[[#This Row],[SP]]="DNS",t_u13g_pen[[#This Row],[HJ]]="DNS",t_u13g_pen[[#This Row],[70mH]]="DNS",t_u13g_pen[[#This Row],[800mMins]]="DNS"),"Y","") ->  | X4: =IF(t_u13g_pen[[#This Row],[Retired]]="Y","Retired",IF(t_u13g_pen[[#This Row],[Surrey]]="N","Guest",COUNTIFS(t_u13g_pen[Retired],"<>Y",t_u13g_pen[Surrey],"<>N",t_u13g_pen[TotalPoints],">"&t_u13g_pen[[#This Row],[TotalPoints]])+1)) -> 1 | Y4: 3
A5: 211 | B5: Olivia Doherty | C5: Epsom & Ewell Harriers | D5: U13G | E5: Y | F5: 3.13 | G5: 1.2 | H5: =IFERROR(getpoints(t_u13g_pen[[#This Row],[LJ]],"LJ",t_u13g_pen[[#This Row],[AgeGrp]]),0) -> 130 | I5: 15.13 | J5: y | K5: 0 | L5: =IFERROR(getpoints(t_u13g_pen[[#This Row],[70mH]],"70mH",t_u13g_pen[[#This Row],[AgeGrp]],t_u13g_pen[[#This Row],[70mHElec]]),0) -> 314 | M5: 4.52 | N5: =IFERROR(getpoints(t_u13g_pen[[#This Row],[SP]],"SP",t_u13g_pen[[#This Row],[AgeGrp]]),0) -> 178 | O5: 1.26 | P5: =IFERROR(getpoints(t_u13g_pen[[#This Row],[HJ]],"HJ",t_u13g_pen[[#This Row],[AgeGrp]]),0) -> 369 | Q5: 3 | R5: 9.56 | S5: y | T5: =IFERROR(getpoints(ROUNDDOWN(t_u13g_pen[[#This Row],[800mMins]]*60+t_u13g_pen[[#This Row],[800mSecs]],2),"800m",t_u13g_pen[[#This Row],[AgeGrp]],t_u13g_pen[[#This Row],[800mElec]]),0) -> 281 | U5: =IFERROR((t_u13g_pen[[#This Row],[LJWind]]+t_u13g_pen[[#This Row],[70mHWind]])/2,"n/a") -> 0.6 | V5: =IFERROR(t_u13g_pen[[#This Row],[LJPoints]]+t_u13g_pen[[#This Row],[SPPoints]]+t_u13g_pen[[#This Row],[HJPoints]]+t_u13g_pen[[#This Row],[70mHPoints]]+t_u13g_pen[[#This Row],[800mPoints]],0) -> 1272 | W5: =IF(OR(t_u13g_pen[[#This Row],[LJ]]="DNS",t_u13g_pen[[#This Row],[SP]]="DNS",t_u13g_pen[[#This Row],[HJ]]="DNS",t_u13g_pen[[#This Row],[70mH]]="DNS",t_u13g_pen[[#This Row],[800mMins]]="DNS"),"Y","") ->  | X5: =IF(t_u13g_pen[[#This Row],[Retired]]="Y","Retired",IF(t_u13g_pen[[#This Row],[Surrey]]="N","Guest",COUNTIFS(t_u13g_pen[Retired],"<>Y",t_u13g_pen[Surrey],"<>N",t_u13g_pen[TotalPoints],">"&t_u13g_pen[[#This Row],[TotalPoints]])+1)) -> 11 | Y5: 4
A6: 212 | B6: Elizabeth Gilligan | C6: Waverley Harriers | D6: U13G | E6: Y | F6: 3.78 | G6: 0 | H6: =IFERROR(getpoints(t_u13g_pen[[#This Row],[LJ]],"LJ",t_u13g_pen[[#This Row],[AgeGrp]]),0) -> 259 | I6: 13.02 | J6: y | L6: =IFERROR(getpoints(t_u13g_pen[[#This Row],[70mH]],"70mH",t_u13g_pen[[#This Row],[AgeGrp]],t_u13g_pen[[#This Row],[70mHElec]]),0) -> 471 | M6: 6.53 | N6: =IFERROR(getpoints(t_u13g_pen[[#This Row],[SP]],"SP",t_u13g_pen[[#This Row],[AgeGrp]]),0) -> 305 | O6: 1.29 | P6: =IFERROR(getpoints(t_u13g_pen[[#This Row],[HJ]],"HJ",t_u13g_pen[[#This Row],[AgeGrp]]),0) -> 399 | Q6: 2 | R6: 41.54 | S6: y | T6: =IFERROR(getpoints(ROUNDDOWN(t_u13g_pen[[#This Row],[800mMins]]*60+t_u13g_pen[[#This Row],[800mSecs]],2),"800m",t_u13g_pen[[#This Row],[AgeGrp]],t_u13g_pen[[#This Row],[800mElec]]),0) -> 555 | U6: =IFERROR((t_u13g_pen[[#This Row],[LJWind]]+t_u13g_pen[[#This Row],[70mHWind]])/2,"n/a") -> 0 | V6: =IFERROR(t_u13g_pen[[#This Row],[LJPoints]]+t_u13g_pen[[#This Row],[SPPoints]]+t_u13g_pen[[#This Row],[HJPoints]]+t_u13g_pen[[#This Row],[70mHPoints]]+t_u13g_pen[[#This Row],[800mPoints]],0) -> 1989 | W6: =IF(OR(t_u13g_pen[[#This Row],[LJ]]="DNS",t_u13g_pen[[#This Row],[SP]]="DNS",t_u13g_pen[[#This Row],[HJ]]="DNS",t_u13g_pen[[#This Row],[70mH]]="DNS",t_u13g_pen[[#This Row],[800mMins]]="DNS"),"Y","") ->  | X6: =IF(t_u13g_pen[[#This Row],[Retired]]="Y","Retired",IF(t_u13g_pen[[#This Row],[Surrey]]="N","Guest",COUNTIFS(t_u13g_pen[Retired],"<>Y",t_u13g_pen[Surrey],"<>N",t_u13g_pen[TotalPoints],">"&t_u13g_pen[[#This Row],[TotalPoints]])+1)) -> 3 | Y6: 5
A7: 213 | B7: Sophie Hawthorn | C7: Guildford & Godalming AC | D7: U13G | E7: Y | F7: 3.85 | G7: 0 | H7: =IFERROR(getpoints(t_u13g_pen[[#This Row],[LJ]],"LJ",t_u13g_pen[[#This Row],[AgeGrp]]),0) -> 274 | I7: 13.27 | J7: y | K7: 0 | L7: =IFERROR(getpoints(t_u13g_pen[[#This Row],[70mH]],"70mH",t_u13g_pen[[#This Row],[AgeGrp]],t_u13g_pen[[#This Row],[70mHElec]]),0) -> 454 | M7: 5.1 | N7: =IFERROR(getpoints(t_u13g_pen[[#This Row],[SP]],"SP",t_u13g_pen[[#This Row],[AgeGrp]]),0) -> 215 | O7: 1.2 | P7: =IFERROR(getpoints(t_u13g_pen[[#This Row],[HJ]],"HJ",t_u13g_pen[[#This Row],[AgeGrp]]),0) -> 312 | Q7: 2 | R7: 30.94 | S7: y | T7: =IFERROR(getpoints(ROUNDDOWN(t_u13g_pen[[#This Row],[800mMins]]*60+t_u13g_pen[[#This Row],[800mSecs]],2),"800m",t_u13g_pen[[#This Row],[AgeGrp]],t_u13g_pen[[#This Row],[800mElec]]),0) -> 681 | U7: =IFERROR((t_u13g_pen[[#This Row],[LJWind]]+t_u13g_pen[[#This Row],[70mHWind]])/2,"n/a") -> 0 | V7: =IFERROR(t_u13g_pen[[#This Row],[LJPoints]]+t_u13g_pen[[#This Row],[SPPoints]]+t_u13g_pen[[#This Row],[HJPoints]]+t_u13g_pen[[#This Row],[70mHPoints]]+t_u13g_pen[[#This Row],[800mPoints]],0) -> 1936 | W7: =IF(OR(t_u13g_pen[[#This Row],[LJ]]="DNS",t_u13g_pen[[#This Row],[SP]]="DNS",t_u13g_pen[[#This Row],[HJ]]="DNS",t_u13g_pen[[#This Row],[70mH]]="DNS",t_u13g_pen[[#This Row],[800mMins]]="DNS"),"Y","") ->  | X7: =IF(t_u13g_pen[[#This Row],[Retired]]="Y","Retired",IF(t_u13g_pen[[#This Row],[Surrey]]="N","Guest",COUNTIFS(t_u13g_pen[Retired],"<>Y",t_u13g_pen[Surrey],"<>N",t_u13g_pen[TotalPoints],">"&t_u13g_pen[[#This Row],[TotalPoints]])+1)) -> 4 | Y7: 6
A8: 214 | B8: Neva Jansen | C8: Hercules Wimbledon AC | D8: U13G | E8: Y | F8: 3.6 | G8: 0 | H8: =IFERROR(getpoints(t_u13g_pen[[#This Row],[LJ]],"LJ",t_u13g_pen[[#This Row],[AgeGrp]]),0) -> 220 | I8: 14.51 | J8: y | L8: =IFERROR(getpoints(t_u13g_pen[[#This Row],[70mH]],"70mH",t_u13g_pen[[#This Row],[AgeGrp]],t_u13g_pen[[#This Row],[70mHElec]]),0) -> 355 | M8: 7.66 | N8: =IFERROR(getpoints(t_u13g_pen[[#This Row],[SP]],"SP",t_u13g_pen[[#This Row],[AgeGrp]]),0) -> 377 | O8: NH | P8: =IFERROR(getpoints(t_u13g_pen[[#This Row],[HJ]],"HJ",t_u13g_pen[[#This Row],[AgeGrp]]),0) -> 0 | Q8: 2 | R8: 54.18 | S8: y | T8: =IFERROR(getpoints(ROUNDDOWN(t_u13g_pen[[#This Row],[800mMins]]*60+t_u13g_pen[[#This Row],[800mSecs]],2),"800m",t_u13g_pen[[#This Row],[AgeGrp]],t_u13g_pen[[#This Row],[800mElec]]),0) -> 421 | U8: =IFERROR((t_u13g_pen[[#This Row],[LJWind]]+t_u13g_pen[[#This Row],[70mHWind]])/2,"n/a") -> 0 | V8: =IFERROR(t_u13g_pen[[#This Row],[LJPoints]]+t_u13g_pen[[#This Row],[SPPoints]]+t_u13g_pen[[#This Row],[HJPoints]]+t_u13g_pen[[#This Row],[70mHPoints]]+t_u13g_pen[[#This Row],[800mPoints]],0) -> 1373 | W8: =IF(OR(t_u13g_pen[[#This Row],[LJ]]="DNS",t_u13g_pen[[#This Row],[SP]]="DNS",t_u13g_pen[[#This Row],[HJ]]="DNS",t_u13g_pen[[#This Row],[70mH]]="DNS",t_u13g_pen[[#This Row],[800mMins]]="DNS"),"Y","") ->  | X8: =IF(t_u13g_pen[[#This Row],[Retired]]="Y","Retired",IF(t_u13g_pen[[#This Row],[Surrey]]="N","Guest",COUNTIFS(t_u13g_pen[Retired],"<>Y",t_u13g_pen[Surrey],"<>N",t_u13g_pen[TotalPoints],">"&t_u13g_pen[[#This Row],[TotalPoints]])+1)) -> 10 | Y8: 7
A9: 215 | B9: Sophie Jennings | C9: Guildford & Godalming AC | D9: U13G | E9: Y | F9: 3.98 | G9: 0 | H9: =IFERROR(getpoints(t_u13g_pen[[#This Row],[LJ]],"LJ",t_u13g_pen[[#This Row],[AgeGrp]]),0) -> 303 | I9: 13.76 | J9: y | K9: -0.4 | L9: =IFERROR(getpoints(t_u13g_pen[[#This Row],[70mH]],"70mH",t_u13g_pen[[#This Row],[AgeGrp]],t_u13g_pen[[#This Row],[70mHElec]]),0) -> 414 | M9: 4.72 | N9: =IFERROR(getpoints(t_u13g_pen[[#This Row],[SP]],"SP",t_u13g_pen[[#This Row],[AgeGrp]]),0) -> 191 | O9: 1.17 | P9: =IFERROR(getpoints(t_u13g_pen[[#This Row],[HJ]],"HJ",t_u13g_pen[[#This Row],[AgeGrp]]),0) -> 284 | Q9: 2 | R9: 41.91 | S9: y | T9: =IFERROR(getpoints(ROUNDDOWN(t_u13g_pen[[#This Row],[800mMins]]*60+t_u13g_pen[[#This Row],[800mSecs]],2),"800m",t_u13g_pen[[#This Row],[AgeGrp]],t_u13g_pen[[#This Row],[800mElec]]),0) -> 551 | U9: =IFERROR((t_u13g_pen[[#This Row],[LJWind]]+t_u13g_pen[[#This Row],[70mHWind]])/2,"n/a") -> -0.2 | V9: =IFERROR(t_u13g_pen[[#This Row],[LJPoints]]+t_u13g_pen[[#This Row],[SPPoints]]+t_u13g_pen[[#This Row],[HJPoints]]+t_u13g_pen[[#This Row],[70mHPoints]]+t_u13g_pen[[#This Row],[800mPoints]],0) -> 1743 | W9: =IF(OR(t_u13g_pen[[#This Row],[LJ]]="DNS",t_u13g_pen[[#This Row],[SP]]="DNS",t_u13g_pen[[#This Row],[HJ]]="DNS",t_u13g_pen[[#This Row],[70mH]]="DNS",t_u13g_pen[[#This Row],[800mMins]]="DNS"),"Y","") ->  | X9: =IF(t_u13g_pen[[#This Row],[Retired]]="Y","Retired",IF(t_u13g_pen[[#This Row],[Surrey]]="N","Guest",COUNTIFS(t_u13g_pen[Retired],"<>Y",t_u13g_pen[Surrey],"<>N",t_u13g_pen[TotalPoints],">"&t_u13g_pen[[#This Row],[TotalPoints]])+1)) -> 6 | Y9: 8
A10: 216 | B10: Bethan Lewis | C10: Guildford & Godalming AC | D10: U13G | E10: Y | F10: 3.11 | G10: 0.9 | H10: =IFERROR(getpoints(t_u13g_pen[[#This Row],[LJ]],"LJ",t_u13g_pen[[#This Row],[AgeGrp]]),0) -> 126 | I10: 13.99 | J10: y | L10: =IFERROR(getpoints(t_u13g_pen[[#This Row],[70mH]],"70mH",t_u13g_pen[[#This Row],[AgeGrp]],t_u13g_pen[[#This Row],[70mHElec]]),0) -> 399 | M10: 6.89 | N10: =IFERROR(getpoints(t_u13g_pen[[#This Row],[SP]],"SP",t_u13g_pen[[#This Row],[AgeGrp]]),0) -> 328 | O10: 1.17 | P10: =IFERROR(getpoints(t_u13g_pen[[#This Row],[HJ]],"HJ",t_u13g_pen[[#This Row],[AgeGrp]]),0) -> 284 | Q10: 3 | R10: 2.81 | S10: y | T10: =IFERROR(getpoints(ROUNDDOWN(t_u13g_pen[[#This Row],[800mMins]]*60+t_u13g_pen[[#This Row],[800mSecs]],2),"800m",t_u13g_pen[[#This Row],[AgeGrp]],t_u13g_pen[[#This Row],[800mElec]]),0) -> 340 | U10: =IFERROR((t_u13g_pen[[#This Row],[LJWind]]+t_u13g_pen[[#This Row],[70mHWind]])/2,"n/a") -> 0.45 | V10: =IFERROR(t_u13g_pen[[#This Row],[LJPoints]]+t_u13g_pen[[#This Row],[SPPoints]]+t_u13g_pen[[#This Row],[HJPoints]]+t_u13g_pen[[#This Row],[70mHPoints]]+t_u13g_pen[[#This Row],[800mPoints]],0) -> 1477 | W10: =IF(OR(t_u13g_pen[[#This Row],[LJ]]="DNS",t_u13g_pen[[#This Row],[SP]]="DNS",t_u13g_pen[[#This Row],[HJ]]="DNS",t_u13g_pen[[#This Row],[70mH]]="DNS",t_u13g_pen[[#This Row],[800mMins]]="DNS"),"Y","") ->  | X10: =IF(t_u13g_pen[[#This Row],[Retired]]="Y","Retired",IF(t_u13g_pen[[#This Row],[Surrey]]="N","Guest",COUNTIFS(t_u13g_pen[Retired],"<>Y",t_u13g_pen[Surrey],"<>N",t_u13g_pen[TotalPoints],">"&t_u13g_pen[[#This Row],[TotalPoints]])+1)) -> 8 | Y10: 9
A11: 217 | B11: Scarlett Muir | C11: Waverley Harriers | D11: U13G | E11: Y | F11: 3.09 | G11: 0.4 | H11: =IFERROR(getpoints(t_u13g_pen[[#This Row],[LJ]],"LJ",t_u13g_pen[[#This Row],[AgeGrp]]),0) -> 122 | I11: 15.48 | J11: y | K11: -0.4 | L11: =IFERROR(getpoints(t_u13g_pen[[#This Row],[70mH]],"70mH",t_u13g_pen[[#This Row],[AgeGrp]],t_u13g_pen[[#This Row],[70mHElec]]),0) -> 294 | M11: 3.68 | N11: =IFERROR(getpoints(t_u13g_pen[[#This Row],[SP]],"SP",t_u13g_pen[[#This Row],[AgeGrp]]),0) -> 126 | O11: 0.99 | P11: =IFERROR(getpoints(t_u13g_pen[[#This Row],[HJ]],"HJ",t_u13g_pen[[#This Row],[AgeGrp]]),0) -> 133 | Q11: 3 | R11: 8.22 | S11: y | T11: =IFERROR(getpoints(ROUNDDOWN(t_u13g_pen[[#This Row],[800mMins]]*60+t_u13g_pen[[#This Row],[800mSecs]],2),"800m",t_u13g_pen[[#This Row],[AgeGrp]],t_u13g_pen[[#This Row],[800mElec]]),0) -> 293 | U11: =IFERROR((t_u13g_pen[[#This Row],[LJWind]]+t_u13g_pen[[#This Row],[70mHWind]])/2,"n/a") -> 0 | V11: =IFERROR(t_u13g_pen[[#This Row],[LJPoints]]+t_u13g_pen[[#This Row],[SPPoints]]+t_u13g_pen[[#This Row],[HJPoints]]+t_u13g_pen[[#This Row],[70mHPoints]]+t_u13g_pen[[#This Row],[800mPoints]],0) -> 968 | W11: =IF(OR(t_u13g_pen[[#This Row],[LJ]]="DNS",t_u13g_pen[[#This Row],[SP]]="DNS",t_u13g_pen[[#This Row],[HJ]]="DNS",t_u13g_pen[[#This Row],[70mH]]="DNS",t_u13g_pen[[#This Row],[800mMins]]="DNS"),"Y","") ->  | X11: =IF(t_u13g_pen[[#This Row],[Retired]]="Y","Retired",IF(t_u13g_pen[[#This Row],[Surrey]]="N","Guest",COUNTIFS(t_u13g_pen[Retired],"<>Y",t_u13g_pen[Surrey],"<>N",t_u13g_pen[TotalPoints],">"&t_u13g_pen[[#This Row],[TotalPoints]])+1)) -> 14 | Y11: 10
A12: 218 | B12: Luchia Neal | C12: Waverley Harriers | D12: U13G | E12: Y | F12: 3.12 | G12: 0 | H12: =IFERROR(getpoints(t_u13g_pen[[#This Row],[LJ]],"LJ",t_u13g_pen[[#This Row],[AgeGrp]]),0) -> 128 | I12: 15.82 | J12: y | L12: =IFERROR(getpoints(t_u13g_pen[[#This Row],[70mH]],"70mH",t_u13g_pen[[#This Row],[AgeGrp]],t_u13g_pen[[#This Row],[70mHElec]]),0) -> 269 | M12: 3.56 | N12: =IFERROR(getpoints(t_u13g_pen[[#This Row],[SP]],"SP",t_u13g_pen[[#This Row],[AgeGrp]]),0) -> 119 | O12: 1.17 | P12: =IFERROR(getpoints(t_u13g_pen[[#This Row],[HJ]],"HJ",t_u13g_pen[[#This Row],[AgeGrp]]),0) -> 284 | Q12: 3 | R12: 2.8 | S12: y | T12: =IFERROR(getpoints(ROUNDDOWN(t_u13g_pen[[#This Row],[800mMins]]*60+t_u13g_pen[[#This Row],[800mSecs]],2),"800m",t_u13g_pen[[#This Row],[AgeGrp]],t_u13g_pen[[#This Row],[800mElec]]),0) -> 340 | U12: =IFERROR((t_u13g_pen[[#This Row],[LJWind]]+t_u13g_pen[[#This Row],[70mHWind]])/2,"n/a") -> 0 | V12: =IFERROR(t_u13g_pen[[#This Row],[LJPoints]]+t_u13g_pen[[#This Row],[SPPoints]]+t_u13g_pen[[#This Row],[HJPoints]]+t_u13g_pen[[#This Row],[70mHPoints]]+t_u13g_pen[[#This Row],[800mPoints]],0) -> 1140 | W12: =IF(OR(t_u13g_pen[[#This Row],[LJ]]="DNS",t_u13g_pen[[#This Row],[SP]]="DNS",t_u13g_pen[[#This Row],[HJ]]="DNS",t_u13g_pen[[#This Row],[70mH]]="DNS",t_u13g_pen[[#This Row],[800mMins]]="DNS"),"Y","") ->  | X12: =IF(t_u13g_pen[[#This Row],[Retired]]="Y","Retired",IF(t_u13g_pen[[#This Row],[Surrey]]="N","Guest",COUNTIFS(t_u13g_pen[Retired],"<>Y",t_u13g_pen[Surrey],"<>N",t_u13g_pen[TotalPoints],">"&t_u13g_pen[[#This Row],[TotalPoints]])+1)) -> 12 | Y12: 11
A13: 219 | B13: Keira Oxley | C13: Guildford & Godalming AC | D13: U13G | E13: Y | F13: 4.18 | G13: 0 | H13: =IFERROR(getpoints(t_u13g_pen[[#This Row],[LJ]],"LJ",t_u13g_pen[[#This Row],[AgeGrp]]),0) -> 350 | I13: 12.69 | J13: y | K13: -0.4 | L13: =IFERROR(getpoints(t_u13g_pen[[#This Row],[70mH]],"70mH",t_u13g_pen[[#This Row],[AgeGrp]],t_u13g_pen[[#This Row],[70mHElec]]),0) -> 503 | M13: 5.53 | N13: =IFERROR(getpoints(t_u13g_pen[[#This Row],[SP]],"SP",t_u13g_pen[[#This Row],[AgeGrp]]),0) -> 242 | O13: 1.4 | P13: =IFERROR(getpoints(t_u13g_pen[[#This Row],[HJ]],"HJ",t_u13g_pen[[#This Row],[AgeGrp]]),0) -> 512 | Q13: 2 | R13: 43.54 | S13: y | T13: =IFERROR(getpoints(ROUNDDOWN(t_u13g_pen[[#This Row],[800mMins]]*60+t_u13g_pen[[#This Row],[800mSecs]],2),"800m",t_u13g_pen[[#This Row],[AgeGrp]],t_u13g_pen[[#This Row],[800mElec]]),0) -> 533 | U13: =IFERROR((t_u13g_pen[[#This Row],[LJWind]]+t_u13g_pen[[#This Row],[70mHWind]])/2,"n/a") -> -0.2 | V13: =IFERROR(t_u13g_pen[[#This Row],[LJPoints]]+t_u13g_pen[[#This Row],[SPPoints]]+t_u13g_pen[[#This Row],[HJPoints]]+t_u13g_pen[[#This Row],[70mHPoints]]+t_u13g_pen[[#This Row],[800mPoints]],0) -> 2140 | W13: =IF(OR(t_u13g_pen[[#This Row],[LJ]]="DNS",t_u13g_pen[[#This Row],[SP]]="DNS",t_u13g_pen[[#This Row],[HJ]]="DNS",t_u13g_pen[[#This Row],[70mH]]="DNS",t_u13g_pen[[#This Row],[800mMins]]="DNS"),"Y","") ->  | X13: =IF(t_u13g_pen[[#This Row],[Retired]]="Y","Retired",IF(t_u13g_pen[[#This Row],[Surrey]]="N","Guest",COUNTIFS(t_u13g_pen[Retired],"<>Y",t_u13g_pen[Surrey],"<>N",t_u13g_pen[TotalPoints],">"&t_u13g_pen[[#This Row],[TotalPoints]])+1)) -> 2 | Y13: 12
A14: 220 | B14: Amelia Pocock | C14: Epsom & Ewell Harriers | D14: U13G | E14: Y | F14: 2.96 | G14: 0 | H14: =IFERROR(getpoints(t_u13g_pen[[#This Row],[LJ]],"LJ",t_u13g_pen[[#This Row],[AgeGrp]]),0) -> 100 | I14: 16.78 | J14: y | K14: 0 | L14: =IFERROR(getpoints(t_u13g_pen[[#This Row],[70mH]],"70mH",t_u13g_pen[[#This Row],[AgeGrp]],t_u13g_pen[[#This Row],[70mHElec]]),0) -> 217 | M14: 4.82 | N14: =IFERROR(getpoints(t_u13g_pen[[#This Row],[SP]],"SP",t_u13g_pen[[#This Row],[AgeGrp]]),0) -> 197 | O14: NH | P14: =IFERROR(getpoints(t_u13g_pen[[#This Row],[HJ]],"HJ",t_u13g_pen[[#This Row],[AgeGrp]]),0) -> 0 | Q14: 3 | R14: 15.41 | S14: y | T14: =IFERROR(getpoints(ROUNDDOWN(t_u13g_pen[[#This Row],[800mMins]]*60+t_u13g_pen[[#This Row],[800mSecs]],2),"800m",t_u13g_pen[[#This Row],[AgeGrp]],t_u13g_pen[[#This Row],[800mElec]]),0) -> 235 | U14: =IFERROR((t_u13g_pen[[#This Row],[LJWind]]+t_u13g_pen[[#This Row],[70mHWind]])/2,"n/a") -> 0 | V14: =IFERROR(t_u13g_pen[[#This Row],[LJPoints]]+t_u13g_pen[[#This Row],[SPPoints]]+t_u13g_pen[[#This Row],[HJPoints]]+t_u13g_pen[[#This Row],[70mHPoints]]+t_u13g_pen[[#This Row],[800mPoints]],0) -> 749 | W14: =IF(OR(t_u13g_pen[[#This Row],[LJ]]="DNS",t_u13g_pen[[#This Row],[SP]]="DNS",t_u13g_pen[[#This Row],[HJ]]="DNS",t_u13g_pen[[#This Row],[70mH]]="DNS",t_u13g_pen[[#This Row],[800mMins]]="DNS"),"Y","") ->  | X14: =IF(t_u13g_pen[[#This Row],[Retired]]="Y","Retired",IF(t_u13g_pen[[#This Row],[Surrey]]="N","Guest",COUNTIFS(t_u13g_pen[Retired],"<>Y",t_u13g_pen[Surrey],"<>N",t_u13g_pen[TotalPoints],">"&t_u13g_pen[[#This Row],[TotalPoints]])+1)) -> 15 | Y14: 13
A15: 221 | B15: Ruby Quintyne | C15: Sutton & District AC | D15: U13G | E15: Y | F15: 3.58 | G15: 0 | H15: =IFERROR(getpoints(t_u13g_pen[[#This Row],[LJ]],"LJ",t_u13g_pen[[#This Row],[AgeGrp]]),0) -> 216 | I15: 13.65 | J15: y | K15: -0.4 | L15: =IFERROR(getpoints(t_u13g_pen[[#This Row],[70mH]],"70mH",t_u13g_pen[[#This Row],[AgeGrp]],t_u13g_pen[[#This Row],[70mHElec]]),0) -> 422 | M15: 5.4 | N15: =IFERROR(getpoints(t_u13g_pen[[#This Row],[SP]],"SP",t_u13g_pen[[#This Row],[AgeGrp]]),0) -> 233 | O15: 1.2 | P15: =IFERROR(getpoints(t_u13g_pen[[#This Row],[HJ]],"HJ",t_u13g_pen[[#This Row],[AgeGrp]]),0) -> 312 | Q15: 2 | R15: 56.42 | S15: y | T15: =IFERROR(getpoints(ROUNDDOWN(t_u13g_pen[[#This Row],[800mMins]]*60+t_u13g_pen[[#This Row],[800mSecs]],2),"800m",t_u13g_pen[[#This Row],[AgeGrp]],t_u13g_pen[[#This Row],[800mElec]]),0) -> 399 | U15: =IFERROR((t_u13g_pen[[#This Row],[LJWind]]+t_u13g_pen[[#This Row],[70mHWind]])/2,"n/a") -> -0.2 | V15: =IFERROR(t_u13g_pen[[#This Row],[LJPoints]]+t_u13g_pen[[#This Row],[SPPoints]]+t_u13g_pen[[#This Row],[HJPoints]]+t_u13g_pen[[#This Row],[70mHPoints]]+t_u13g_pen[[#This Row],[800mPoints]],0) -> 1582 | W15: =IF(OR(t_u13g_pen[[#This Row],[LJ]]="DNS",t_u13g_pen[[#This Row],[SP]]="DNS",t_u13g_pen[[#This Row],[HJ]]="DNS",t_u13g_pen[[#This Row],[70mH]]="DNS",t_u13g_pen[[#This Row],[800mMins]]="DNS"),"Y","") ->  | X15: =IF(t_u13g_pen[[#This Row],[Retired]]="Y","Retired",IF(t_u13g_pen[[#This Row],[Surrey]]="N","Guest",COUNTIFS(t_u13g_pen[Retired],"<>Y",t_u13g_pen[Surrey],"<>N",t_u13g_pen[TotalPoints],">"&t_u13g_pen[[#This Row],[TotalPoints]])+1)) -> 7 | Y15: 14
A16: 222 | B16: Alice Ridge | C16: Camberley & District AC | D16: U13G | E16: Y | F16: 3.36 | G16: 0 | H16: =IFERROR(getpoints(t_u13g_pen[[#This Row],[LJ]],"LJ",t_u13g_pen[[#This Row],[AgeGrp]]),0) -> 172 | I16: 17.09 | J16: y | K16: 0 | L16: =IFERROR(getpoints(t_u13g_pen[[#This Row],[70mH]],"70mH",t_u13g_pen[[#This Row],[AgeGrp]],t_u13g_pen[[#This Row],[70mHElec]]),0) -> 201 | M16: 5.22 | N16: =IFERROR(getpoints(t_u13g_pen[[#This Row],[SP]],"SP",t_u13g_pen[[#This Row],[AgeGrp]]),0) -> 222 | O16: 1.08 | P16: =IFERROR(getpoints(t_u13g_pen[[#This Row],[HJ]],"HJ",t_u13g_pen[[#This Row],[AgeGrp]]),0) -> 205 | Q16: 3 | R16: 22 | S16: y | T16: =IFERROR(getpoints(ROUNDDOWN(t_u13g_pen[[#This Row],[800mMins]]*60+t_u13g_pen[[#This Row],[800mSecs]],2),"800m",t_u13g_pen[[#This Row],[AgeGrp]],t_u13g_pen[[#This Row],[800mElec]]),0) -> 188 | U16: =IFERROR((t_u13g_pen[[#This Row],[LJWind]]+t_u13g_pen[[#This Row],[70mHWind]])/2,"n/a") -> 0 | V16: =IFERROR(t_u13g_pen[[#This Row],[LJPoints]]+t_u13g_pen[[#This Row],[SPPoints]]+t_u13g_pen[[#This Row],[HJPoints]]+t_u13g_pen[[#This Row],[70mHPoints]]+t_u13g_pen[[#This Row],[800mPoints]],0) -> 988 | W16: =IF(OR(t_u13g_pen[[#This Row],[LJ]]="DNS",t_u13g_pen[[#This Row],[SP]]="DNS",t_u13g_pen[[#This Row],[HJ]]="DNS",t_u13g_pen[[#This Row],[70mH]]="DNS",t_u13g_pen[[#This Row],[800mMins]]="DNS"),"Y","") ->  | X16: =IF(t_u13g_pen[[#This Row],[Retired]]="Y","Retired",IF(t_u13g_pen[[#This Row],[Surrey]]="N","Guest",COUNTIFS(t_u13g_pen[Retired],"<>Y",t_u13g_pen[Surrey],"<>N",t_u13g_pen[TotalPoints],">"&t_u13g_pen[[#This Row],[TotalPoints]])+1)) -> 13 | Y16: 15
A17: 223 | B17: Tyler Walton | C17: Waverley Harriers | D17: U13G | E17: Y | H17: =IFERROR(getpoints(t_u13g_pen[[#This Row],[LJ]],"LJ",t_u13g_pen[[#This Row],[AgeGrp]]),0) -> 0 | J17: y | L17: =IFERROR(getpoints(t_u13g_pen[[#This Row],[70mH]],"70mH",t_u13g_pen[[#This Row],[AgeGrp]],t_u13g_pen[[#This Row],[70mHElec]]),0) -> 0 | N17: =IFERROR(getpoints(t_u13g_pen[[#This Row],[SP]],"SP",t_u13g_pen[[#This Row],[AgeGrp]]),0) -> 0 | P17: =IFERROR(getpoints(t_u13g_pen[[#This Row],[HJ]],"HJ",t_u13g_pen[[#This Row],[AgeGrp]]),0) -> 0 | S17: y | T17: =IFERROR(getpoints(ROUNDDOWN(t_u13g_pen[[#This Row],[800mMins]]*60+t_u13g_pen[[#This Row],[800mSecs]],2),"800m",t_u13g_pen[[#This Row],[AgeGrp]],t_u13g_pen[[#This Row],[800mElec]]),0) -> 0 | U17: =IFERROR((t_u13g_pen[[#This Row],[LJWind]]+t_u13g_pen[[#This Row],[70mHWind]])/2,"n/a") -> 0 | V17: =IFERROR(t_u13g_pen[[#This Row],[LJPoints]]+t_u13g_pen[[#This Row],[SPPoints]]+t_u13g_pen[[#This Row],[HJPoints]]+t_u13g_pen[[#This Row],[70mHPoints]]+t_u13g_pen[[#This Row],[800mPoints]],0) -> 0 | W17: =IF(OR(t_u13g_pen[[#This Row],[LJ]]="DNS",t_u13g_pen[[#This Row],[SP]]="DNS",t_u13g_pen[[#This Row],[HJ]]="DNS",t_u13g_pen[[#This Row],[70mH]]="DNS",t_u13g_pen[[#This Row],[800mMins]]="DNS"),"Y","") ->  | X17: =IF(t_u13g_pen[[#This Row],[Retired]]="Y","Retired",IF(t_u13g_pen[[#This Row],[Surrey]]="N","Guest",COUNTIFS(t_u13g_pen[Retired],"<>Y",t_u13g_pen[Surrey],"<>N",t_u13g_pen[TotalPoints],">"&t_u13g_pen[[#This Row],[TotalPoints]])+1)) -> 17 | Y17: 16
A18: 224 | B18: Emily Williams | C18: Guildford & Godalming AC | D18: U13G | E18: Y | F18: 3.81 | G18: 0 | H18: =IFERROR(getpoints(t_u13g_pen[[#This Row],[LJ]],"LJ",t_u13g_pen[[#This Row],[AgeGrp]]),0) -> 265 | I18: 14.17 | J18: y | K18: 0 | L18: =IFERROR(getpoints(t_u13g_pen[[#This Row],[70mH]],"70mH",t_u13g_pen[[#This Row],[AgeGrp]],t_u13g_pen[[#This Row],[70mHElec]]),0) -> 384 | M18: 5.3 | N18: =IFERROR(getpoints(t_u13g_pen[[#This Row],[SP]],"SP",t_u13g_pen[[#This Row],[AgeGrp]]),0) -> 227 | O18: 1.23 | P18: =IFERROR(getpoints(t_u13g_pen[[#This Row],[HJ]],"HJ",t_u13g_pen[[#This Row],[AgeGrp]]),0) -> 340 | Q18: 2 | R18: 42.92 | S18: y | T18: =IFERROR(getpoints(ROUNDDOWN(t_u13g_pen[[#This Row],[800mMins]]*60+t_u13g_pen[[#This Row],[800mSecs]],2),"800m",t_u13g_pen[[#This Row],[AgeGrp]],t_u13g_pen[[#This Row],[800mElec]]),0) -> 540 | U18: =IFERROR((t_u13g_pen[[#This Row],[LJWind]]+t_u13g_pen[[#This Row],[70mHWind]])/2,"n/a") -> 0 | V18: =IFERROR(t_u13g_pen[[#This Row],[LJPoints]]+t_u13g_pen[[#This Row],[SPPoints]]+t_u13g_pen[[#This Row],[HJPoints]]+t_u13g_pen[[#This Row],[70mHPoints]]+t_u13g_pen[[#This Row],[800mPoints]],0) -> 1756 | W18: =IF(OR(t_u13g_pen[[#This Row],[LJ]]="DNS",t_u13g_pen[[#This Row],[SP]]="DNS",t_u13g_pen[[#This Row],[HJ]]="DNS",t_u13g_pen[[#This Row],[70mH]]="DNS",t_u13g_pen[[#This Row],[800mMins]]="DNS"),"Y","") ->  | X18: =IF(t_u13g_pen[[#This Row],[Retired]]="Y","Retired",IF(t_u13g_pen[[#This Row],[Surrey]]="N","Guest",COUNTIFS(t_u13g_pen[Retired],"<>Y",t_u13g_pen[Surrey],"<>N",t_u13g_pen[TotalPoints],">"&t_u13g_pen[[#This Row],[TotalPoints]])+1)) -> 5 | Y18: 17
A19: 225 | B19: Chelsea Clarke | C19: Thurrock Harriers | D19: U13G | E19: N | F19: 4.1 | G19: 0 | H19: =IFERROR(getpoints(t_u13g_pen[[#This Row],[LJ]],"LJ",t_u13g_pen[[#This Row],[AgeGrp]]),0) -> 331 | I19: 13.18 | J19: y | K19: -0.4 | L19: =IFERROR(getpoints(t_u13g_pen[[#This Row],[70mH]],"70mH",t_u13g_pen[[#This Row],[AgeGrp]],t_u13g_pen[[#This Row],[70mHElec]]),0) -> 463 | M19: 6.02 | N19: =IFERROR(getpoints(t_u13g_pen[[#This Row],[SP]],"SP",t_u13g_pen[[#This Row],[AgeGrp]]),0) -> 273 | O19: 1.32 | P19: =IFERROR(getpoints(t_u13g_pen[[#This Row],[HJ]],"HJ",t_u13g_pen[[#This Row],[AgeGrp]]),0) -> 429 | Q19: 3 | R19: 1.35 | S19: y | T19: =IFERROR(getpoints(ROUNDDOWN(t_u13g_pen[[#This Row],[800mMins]]*60+t_u13g_pen[[#This Row],[800mSecs]],2),"800m",t_u13g_pen[[#This Row],[AgeGrp]],t_u13g_pen[[#This Row],[800mElec]]),0) -> 353 | U19: =IFERROR((t_u13g_pen[[#This Row],[LJWind]]+t_u13g_pen[[#This Row],[70mHWind]])/2,"n/a") -> -0.2 | V19: =IFERROR(t_u13g_pen[[#This Row],[LJPoints]]+t_u13g_pen[[#This Row],[SPPoints]]+t_u13g_pen[[#This Row],[HJPoints]]+t_u13g_pen[[#This Row],[70mHPoints]]+t_u13g_pen[[#This Row],[800mPoints]],0) -> 1849 | W19: =IF(OR(t_u13g_pen[[#This Row],[LJ]]="DNS",t_u13g_pen[[#This Row],[SP]]="DNS",t_u13g_pen[[#This Row],[HJ]]="DNS",t_u13g_pen[[#This Row],[70mH]]="DNS",t_u13g_pen[[#This Row],[800mMins]]="DNS"),"Y","") ->  | X19: =IF(t_u13g_pen[[#This Row],[Retired]]="Y","Retired",IF(t_u13g_pen[[#This Row],[Surrey]]="N","Guest",COUNTIFS(t_u13g_pen[Retired],"<>Y",t_u13g_pen[Surrey],"<>N",t_u13g_pen[TotalPoints],">"&t_u13g_pen[[#This Row],[TotalPoints]])+1)) -> Guest | Y19: 18
A20: 226 | B20: Alice Coshell | C20: Thurrock Harriers | D20: U13G | E20: N | F20: 4.04 | G20: 0 | H20: =IFERROR(getpoints(t_u13g_pen[[#This Row],[LJ]],"LJ",t_u13g_pen[[#This Row],[AgeGrp]]),0) -> 317 | I20: 12.36 | J20: y | K20: -0.4 | L20: =IFERROR(getpoints(t_u13g_pen[[#This Row],[70mH]],"70mH",t_u13g_pen[[#This Row],[AgeGrp]],t_u13g_pen[[#This Row],[70mHElec]]),0) -> 534 | M20: 5.37 | N20: =IFERROR(getpoints(t_u13g_pen[[#This Row],[SP]],"SP",t_u13g_pen[[#This Row],[AgeGrp]]),0) -> 231 | O20: 1.14 | P20: =IFERROR(getpoints(t_u13g_pen[[#This Row],[HJ]],"HJ",t_u13g_pen[[#This Row],[AgeGrp]]),0) -> 257 | Q20: 3 | R20: 2.22 | S20: y | T20: =IFERROR(getpoints(ROUNDDOWN(t_u13g_pen[[#This Row],[800mMins]]*60+t_u13g_pen[[#This Row],[800mSecs]],2),"800m",t_u13g_pen[[#This Row],[AgeGrp]],t_u13g_pen[[#This Row],[800mElec]]),0) -> 345 | U20: =IFERROR((t_u13g_pen[[#This Row],[LJWind]]+t_u13g_pen[[#This Row],[70mHWind]])/2,"n/a") -> -0.2 | V20: =IFERROR(t_u13g_pen[[#This Row],[LJPoints]]+t_u13g_pen[[#This Row],[SPPoints]]+t_u13g_pen[[#This Row],[HJPoints]]+t_u13g_pen[[#This Row],[70mHPoints]]+t_u13g_pen[[#This Row],[800mPoints]],0) -> 1684 | W20: =IF(OR(t_u13g_pen[[#This Row],[LJ]]="DNS",t_u13g_pen[[#This Row],[SP]]="DNS",t_u13g_pen[[#This Row],[HJ]]="DNS",t_u13g_pen[[#This Row],[70mH]]="DNS",t_u13g_pen[[#This Row],[800mMins]]="DNS"),"Y","") ->  | X20: =IF(t_u13g_pen[[#This Row],[Retired]]="Y","Retired",IF(t_u13g_pen[[#This Row],[Surrey]]="N","Guest",COUNTIFS(t_u13g_pen[Retired],"<>Y",t_u13g_pen[Surrey],"<>N",t_u13g_pen[TotalPoints],">"&t_u13g_pen[[#This Row],[TotalPoints]])+1)) -> Guest | Y20: 19
A21: 227 | B21: Leila Newth | C21: Ealing Southall & Middlesex AC | D21: U13G | E21: N | H21: =IFERROR(getpoints(t_u13g_pen[[#This Row],[LJ]],"LJ",t_u13g_pen[[#This Row],[AgeGrp]]),0) -> 0 | J21: y | L21: =IFERROR(getpoints(t_u13g_pen[[#This Row],[70mH]],"70mH",t_u13g_pen[[#This Row],[AgeGrp]],t_u13g_pen[[#This Row],[70mHElec]]),0) -> 0 | N21: =IFERROR(getpoints(t_u13g_pen[[#This Row],[SP]],"SP",t_u13g_pen[[#This Row],[AgeGrp]]),0) -> 0 | P21: =IFERROR(getpoints(t_u13g_pen[[#This Row],[HJ]],"HJ",t_u13g_pen[[#This Row],[AgeGrp]]),0) -> 0 | S21: y | T21: =IFERROR(getpoints(ROUNDDOWN(t_u13g_pen[[#This Row],[800mMins]]*60+t_u13g_pen[[#This Row],[800mSecs]],2),"800m",t_u13g_pen[[#This Row],[AgeGrp]],t_u13g_pen[[#This Row],[800mElec]]),0) -> 0 | U21: =IFERROR((t_u13g_pen[[#This Row],[LJWind]]+t_u13g_pen[[#This Row],[70mHWind]])/2,"n/a") -> 0 | V21: =IFERROR(t_u13g_pen[[#This Row],[LJPoints]]+t_u13g_pen[[#This Row],[SPPoints]]+t_u13g_pen[[#This Row],[HJPoints]]+t_u13g_pen[[#This Row],[70mHPoints]]+t_u13g_pen[[#This Row],[800mPoints]],0) -> 0 | W21: =IF(OR(t_u13g_pen[[#This Row],[LJ]]="DNS",t_u13g_pen[[#This Row],[SP]]="DNS",t_u13g_pen[[#This Row],[HJ]]="DNS",t_u13g_pen[[#This Row],[70mH]]="DNS",t_u13g_pen[[#This Row],[800mMins]]="DNS"),"Y","") ->  | X21: =IF(t_u13g_pen[[#This Row],[Retired]]="Y","Retired",IF(t_u13g_pen[[#This Row],[Surrey]]="N","Guest",COUNTIFS(t_u13g_pen[Retired],"<>Y",t_u13g_pen[Surrey],"<>N",t_u13g_pen[TotalPoints],">"&t_u13g_pen[[#This Row],[TotalPoints]])+1)) -> Guest | Y21: 20

Sheet U13 Girls Results
B1: Holder: | C1: =INDEX(t_holder[Name],MATCH("u13g",t_holder[AgeGrp],0)) -> Sienna Kidd | F1: =INDEX(t_holder[Club],MATCH("u13g",t_holder[AgeGrp],0)) -> Epsom & Ewell Harriers | J1: =INDEX(t_holder[Points],MATCH("u13g",t_holder[AgeGrp],0)) & " pts" -> 2648 pts
B2: CBP: | C2: =INDEX(t_cbp[Name],MATCH("u13g",t_cbp[AgeGrp],0)) -> Sienna Kidd | F2: =INDEX(t_cbp[Club],MATCH("u13g",t_cbp[AgeGrp],0)) -> Epsom & Ewell Harriers | J2: =INDEX(t_cbp[Points],MATCH("u13g",t_cbp[AgeGrp],0)) & " Pts" -> 2648 Pts | K2: =INDEX(t_cbp[Year],MATCH("u13g",t_cbp[AgeGrp],0)) -> 2019
J4: Av Wind
B5: Pos | C5: Athlete | E5: LJ | F5: 70mH | G5: Shot | H5: HJ | I5: 800m | J5: Final Total
A6: 1 | C6: =INDEX(t_u13g_pen[Bib],MATCH(A6,t_u13g_pen[AllPos],0)) -> 208 | D6: Perf | E6: =INDEX(t_u13g_pen[LJ],MATCH(A6,t_u13g_pen[AllPos],0)) -> 3.06 | F6: =INDEX(t_u13g_pen[70mH],MATCH(A6,t_u13g_pen[AllPos],0)) -> 14.06 | G6: =INDEX(t_u13g_pen[SP],MATCH(A6,t_u13g_pen[AllPos],0)) -> 5.21 | H6: =INDEX(t_u13g_pen[HJ],MATCH(A6,t_u13g_pen[AllPos],0)) -> 1.14 | I6: =(INDEX(t_u13g_pen[800mMins],MATCH(A6,t_u13g_pen[AllPos],0))*60+INDEX(t_u13g_pen[800mSecs],MATCH(A6,t_u13g_pen[AllPos],0)))/86400 -> 0.002015856481
B7: =INDEX(t_u13g_pen[FinalPosition],MATCH(A6,t_u13g_pen[AllPos],0)) -> 9 | C7: =INDEX(t_u13g_pen[Name],MATCH(A6,t_u13g_pen[AllPos],0)) -> Gracie Brough | D7: Wind | E7: =INDEX(t_u13g_pen[LJWind],MATCH(A6,t_u13g_pen[AllPos],0)) -> 0 | F7: =INDEX(t_u13g_pen[70mHWind],MATCH(A6,t_u13g_pen[AllPos],0)) -> 0 | J7: =INDEX(t_u13g_pen[AvWind],MATCH($A6,t_u13g_pen[AllPos],0)) -> 0
C8: =INDEX(t_u13g_pen[Club],MATCH(A6,t_u13g_pen[AllPos],0)) -> Sutton & District AC | D8: Points | E8: =INDEX(t_u13g_pen[LJPoints],MATCH(A6,t_u13g_pen[AllPos],0)) -> 117 | F8: =INDEX(t_u13g_pen[70mHPoints],MATCH(A6,t_u13g_pen[AllPos],0)) -> 391 | G8: =INDEX(t_u13g_pen[SPPoints],MATCH(A6,t_u13g_pen[AllPos],0)) -> 221 | H8: =INDEX(t_u13g_pen[HJPoints],MATCH(A6,t_u13g_pen[AllPos],0)) -> 257 | I8: =INDEX(t_u13g_pen[800mPoints],MATCH(A6,t_u13g_pen[AllPos],0)) -> 421 | J8: =INDEX(t_u13g_pen[TotalPoints],MATCH(A6,t_u13g_pen[AllPos],0)) -> 1407
A9: =A6+1 -> 2 | C9: =INDEX(t_u13g_pen[Bib],MATCH(A9,t_u13g_pen[AllPos],0)) -> 209 | D9: Perf | E9: =INDEX(t_u13g_pen[LJ],MATCH(A9,t_u13g_pen[AllPos],0)) -> 3.21 | F9: =INDEX(t_u13g_pen[70mH],MATCH(A9,t_u13g_pen[AllPos],0)) -> 17.06 | G9: =INDEX(t_u13g_pen[SP],MATCH(A9,t_u13g_pen[AllPos],0)) -> 4.46 | H9: =INDEX(t_u13g_pen[HJ],MATCH(A9,t_u13g_pen[AllPos],0)) -> 1.08 | I9: =(INDEX(t_u13g_pen[800mMins],MATCH(A9,t_u13g_pen[AllPos],0))*60+INDEX(t_u13g_pen[800mSecs],MATCH(A9,t_u13g_pen[AllPos],0)))/86400 -> 0
B10: =INDEX(t_u13g_pen[FinalPosition],MATCH(A9,t_u13g_pen[AllPos],0)) -> 16 | C10: =INDEX(t_u13g_pen[Name],MATCH(A9,t_u13g_pen[AllPos],0)) -> Megan Burroughs | D10: Wind | E10: =INDEX(t_u13g_pen[LJWind],MATCH(A9,t_u13g_pen[AllPos],0)) -> 0 | F10: =INDEX(t_u13g_pen[70mHWind],MATCH(A9,t_u13g_pen[AllPos],0)) -> 0 | J10: =INDEX(t_u13g_pen[AvWind],MATCH($A9,t_u13g_pen[AllPos],0)) -> 0
C11: =INDEX(t_u13g_pen[Club],MATCH(A9,t_u13g_pen[AllPos],0)) -> Camberley & District AC | D11: Points | E11: =INDEX(t_u13g_pen[LJPoints],MATCH(A9,t_u13g_pen[AllPos],0)) -> 144 | F11: =INDEX(t_u13g_pen[70mHPoints],MATCH(A9,t_u13g_pen[AllPos],0)) -> 201 | G11: =INDEX(t_u13g_pen[SPPoints],MATCH(A9,t_u13g_pen[AllPos],0)) -> 175 | H11: =INDEX(t_u13g_pen[HJPoints],MATCH(A9,t_u13g_pen[AllPos],0)) -> 205 | I11: =INDEX(t_u13g_pen[800mPoints],MATCH(A9,t_u13g_pen[AllPos],0)) -> 0 | J11: =INDEX(t_u13g_pen[TotalPoints],MATCH(A9,t_u13g_pen[AllPos],0)) -> 725
A12: =A9+1 -> 3 | C12: =INDEX(t_u13g_pen[Bib],MATCH(A12,t_u13g_pen[AllPos],0)) -> 210 | D12: Perf | E12: =INDEX(t_u13g_pen[LJ],MATCH(A12,t_u13g_pen[AllPos],0)) -> 3.98 | F12: =INDEX(t_u13g_pen[70mH],MATCH(A12,t_u13g_pen[AllPos],0)) -> 11.68 | G12: =INDEX(t_u13g_pen[SP],MATCH(A12,t_u13g_pen[AllPos],0)) -> 10.06 | H12: =INDEX(t_u13g_pen[HJ],MATCH(A12,t_u13g_pen[AllPos],0)) -> 1.29 | I12: =(INDEX(t_u13g_pen[800mMins],MATCH(A12,t_u13g_pen[AllPos],0))*60+INDEX(t_u13g_pen[800mSecs],MATCH(A12,t_u13g_pen[AllPos],0)))/86400 -> 0.001811921296
B13: =INDEX(t_u13g_pen[FinalPosition],MATCH(A12,t_u13g_pen[AllPos],0)) -> 1 | C13: =INDEX(t_u13g_pen[Name],MATCH(A12,t_u13g_pen[AllPos],0)) -> Elise Christian | D13: Wind | E13: =INDEX(t_u13g_pen[LJWind],MATCH(A12,t_u13g_pen[AllPos],0)) -> 0 | F13: =INDEX(t_u13g_pen[70mHWind],MATCH(A12,t_u13g_pen[AllPos],0)) -> 0 | J13: =INDEX(t_u13g_pen[AvWind],MATCH($A12,t_u13g_pen[AllPos],0)) -> 0
C14: =INDEX(t_u13g_pen[Club],MATCH(A12,t_u13g_pen[AllPos],0)) -> Guildford & Godalming AC | D14: Points | E14: =INDEX(t_u13g_pen[LJPoints],MATCH(A12,t_u13g_pen[AllPos],0)) -> 303 | F14: =INDEX(t_u13g_pen[70mHPoints],MATCH(A12,t_u13g_pen[AllPos],0)) -> 601 | G14: =INDEX(t_u13g_pen[SPPoints],MATCH(A12,t_u13g_pen[AllPos],0)) -> 533 | H14: =INDEX(t_u13g_pen[HJPoints],MATCH(A12,t_u13g_pen[AllPos],0)) -> 399 | I14: =INDEX(t_u13g_pen[800mPoints],MATCH(A12,t_u13g_pen[AllPos],0)) -> 613 | J14: =INDEX(t_u13g_pen[TotalPoints],MATCH(A12,t_u13g_pen[AllPos],0)) -> 2449
A15: =A12+1 -> 4 | C15: =INDEX(t_u13g_pen[Bib],MATCH(A15,t_u13g_pen[AllPos],0)) -> 211 | D15: Perf | E15: =INDEX(t_u13g_pen[LJ],MATCH(A15,t_u13g_pen[AllPos],0)) -> 3.13 | F15: =INDEX(t_u13g_pen[70mH],MATCH(A15,t_u13g_pen[AllPos],0)) -> 15.13 | G15: =INDEX(t_u13g_pen[SP],MATCH(A15,t_u13g_pen[AllPos],0)) -> 4.52 | H15: =INDEX(t_u13g_pen[HJ],MATCH(A15,t_u13g_pen[AllPos],0)) -> 1.26 | I15: =(INDEX(t_u13g_pen[800mMins],MATCH(A15,t_u13g_pen[AllPos],0))*60+INDEX(t_u13g_pen[800mSecs],MATCH(A15,t_u13g_pen[AllPos],0)))/86400 -> 0.002193981481
B16: =INDEX(t_u13g_pen[FinalPosition],MATCH(A15,t_u13g_pen[AllPos],0)) -> 11 | C16: =INDEX(t_u13g_pen[Name],MATCH(A15,t_u13g_pen[AllPos],0)) -> Olivia Doherty | D16: Wind | E16: =INDEX(t_u13g_pen[LJWind],MATCH(A15,t_u13g_pen[AllPos],0)) -> 1.2 | F16: =INDEX(t_u13g_pen[70mHWind],MATCH(A15,t_u13g_pen[AllPos],0)) -> 0 | J16: =INDEX(t_u13g_pen[AvWind],MATCH($A15,t_u13g_pen[AllPos],0)) -> 0.6
C17: =INDEX(t_u13g_pen[Club],MATCH(A15,t_u13g_pen[AllPos],0)) -> Epsom & Ewell Harriers | D17: Points | E17: =INDEX(t_u13g_pen[LJPoints],MATCH(A15,t_u13g_pen[AllPos],0)) -> 130 | F17: =INDEX(t_u13g_pen[70mHPoints],MATCH(A15,t_u13g_pen[AllPos],0)) -> 314 | G17: =INDEX(t_u13g_pen[SPPoints],MATCH(A15,t_u13g_pen[AllPos],0)) -> 178 | H17: =INDEX(t_u13g_pen[HJPoints],MATCH(A15,t_u13g_pen[AllPos],0)) -> 369 | I17: =INDEX(t_u13g_pen[800mPoints],MATCH(A15,t_u13g_pen[AllPos],0)) -> 281 | J17: =INDEX(t_u13g_pen[TotalPoints],MATCH(A15,t_u13g_pen[AllPos],0)) -> 1272
A18: =A15+1 -> 5 | C18: =INDEX(t_u13g_pen[Bib],MATCH(A18,t_u13g_pen[AllPos],0)) -> 212 | D18: Perf | E18: =INDEX(t_u13g_pen[LJ],MATCH(A18,t_u13g_pen[AllPos],0)) -> 3.78 | F18: =INDEX(t_u13g_pen[70mH],MATCH(A18,t_u13g_pen[AllPos],0)) -> 13.02 | G18: =INDEX(t_u13g_pen[SP],MATCH(A18,t_u13g_pen[AllPos],0)) -> 6.53 | H18: =INDEX(t_u13g_pen[HJ],MATCH(A18,t_u13g_pen[AllPos],0)) -> 1.29 | I18: =(INDEX(t_u13g_pen[800mMins],MATCH(A18,t_u13g_pen[AllPos],0))*60+INDEX(t_u13g_pen[800mSecs],MATCH(A18,t_u13g_pen[AllPos],0)))/86400 -> 0.001869675926
B19: =INDEX(t_u13g_pen[FinalPosition],MATCH(A18,t_u13g_pen[AllPos],0)) -> 3 | C19: =INDEX(t_u13g_pen[Name],MATCH(A18,t_u13g_pen[AllPos],0)) -> Elizabeth Gilligan | D19: Wind | E19: =INDEX(t_u13g_pen[LJWind],MATCH(A18,t_u13g_pen[AllPos],0)) -> 0 | F19: =INDEX(t_u13g_pen[70mHWind],MATCH(A18,t_u13g_pen[AllPos],0)) -> 0 | J19: =INDEX(t_u13g_pen[AvWind],MATCH($A18,t_u13g_pen[AllPos],0)) -> 0
C20: =INDEX(t_u13g_pen[Club],MATCH(A18,t_u13g_pen[AllPos],0)) -> Waverley Harriers | D20: Points | E20: =INDEX(t_u13g_pen[LJPoints],MATCH(A18,t_u13g_pen[AllPos],0)) -> 259 | F20: =INDEX(t_u13g_pen[70mHPoints],MATCH(A18,t_u13g_pen[AllPos],0)) -> 471 | G20: =INDEX(t_u13g_pen[SPPoints],MATCH(A18,t_u13g_pen[AllPos],0)) -> 305 | H20: =INDEX(t_u13g_pen[HJPoints],MATCH(A18,t_u13g_pen[AllPos],0)) -> 399 | I20: =INDEX(t_u13g_pen[800mPoints],MATCH(A18,t_u13g_pen[AllPos],0)) -> 555 | J20: =INDEX(t_u13g_pen[TotalPoints],MATCH(A18,t_u13g_pen[AllPos],0)) -> 1989
A21: =A18+1 -> 6 | C21: =INDEX(t_u13g_pen[Bib],MATCH(A21,t_u13g_pen[AllPos],0)) -> 213 | D21: Perf | E21: =INDEX(t_u13g_pen[LJ],MATCH(A21,t_u13g_pen[AllPos],0)) -> 3.85 | F21: =INDEX(t_u13g_pen[70mH],MATCH(A21,t_u13g_pen[AllPos],0)) -> 13.27 | G21: =INDEX(t_u13g_pen[SP],MATCH(A21,t_u13g_pen[AllPos],0)) -> 5.1 | H21: =INDEX(t_u13g_pen[HJ],MATCH(A21,t_u13g_pen[AllPos],0)) -> 1.2 | I21: =(INDEX(t_u13g_pen[800mMins],MATCH(A21,t_u13g_pen[AllPos],0))*60+INDEX(t_u13g_pen[800mSecs],MATCH(A21,t_u13g_pen[AllPos],0)))/86400 -> 0.001746990741
B22: =INDEX(t_u13g_pen[FinalPosition],MATCH(A21,t_u13g_pen[AllPos],0)) -> 4 | C22: =INDEX(t_u13g_pen[Name],MATCH(A21,t_u13g_pen[AllPos],0)) -> Sophie Hawthorn | D22: Wind | E22: =INDEX(t_u13g_pen[LJWind],MATCH(A21,t_u13g_pen[AllPos],0)) -> 0 | F22: =INDEX(t_u13g_pen[70mHWind],MATCH(A21,t_u13g_pen[AllPos],0)) -> 0 | J22: =INDEX(t_u13g_pen[AvWind],MATCH($A21,t_u13g_pen[AllPos],0)) -> 0
C23: =INDEX(t_u13g_pen[Club],MATCH(A21,t_u13g_pen[AllPos],0)) -> Guildford & Godalming AC | D23: Points | E23: =INDEX(t_u13g_pen[LJPoints],MATCH(A21,t_u13g_pen[AllPos],0)) -> 274 | F23: =INDEX(t_u13g_pen[70mHPoints],MATCH(A21,t_u13g_pen[AllPos],0)) -> 454 | G23: =INDEX(t_u13g_pen[SPPoints],MATCH(A21,t_u13g_pen[AllPos],0)) -> 215 | H23: =INDEX(t_u13g_pen[HJPoints],MATCH(A21,t_u13g_pen[AllPos],0)) -> 312 | I23: =INDEX(t_u13g_pen[800mPoints],MATCH(A21,t_u13g_pen[AllPos],0)) -> 681 | J23: =INDEX(t_u13g_pen[TotalPoints],MATCH(A21,t_u13g_pen[AllPos],0)) -> 1936
A24: 7 | C24: =INDEX(t_u13g_pen[Bib],MATCH(A24,t_u13g_pen[AllPos],0)) -> 214 | D24: Perf | E24: =INDEX(t_u13g_pen[LJ],MATCH(A24,t_u13g_pen[AllPos],0)) -> 3.6 | F24: =INDEX(t_u13g_pen[70mH],MATCH(A24,t_u13g_pen[AllPos],0)) -> 14.51 | G24: =INDEX(t_u13g_pen[SP],MATCH(A24,t_u13g_pen[AllPos],0)) -> 7.66 | H24: =INDEX(t_u13g_pen[HJ],MATCH(A24,t_u13g_pen[AllPos],0)) -> NH | I24: =(INDEX(t_u13g_pen[800mMins],MATCH(A24,t_u13g_pen[AllPos],0))*60+INDEX(t_u13g_pen[800mSecs],MATCH(A24,t_u13g_pen[AllPos],0)))/86400 -> 0.002015972222
B25: =INDEX(t_u13g_pen[FinalPosition],MATCH(A24,t_u13g_pen[AllPos],0)) -> 10 | C25: =INDEX(t_u13g_pen[Name],MATCH(A24,t_u13g_pen[AllPos],0)) -> Neva Jansen | D25: Wind | E25: =INDEX(t_u13g_pen[LJWind],MATCH(A24,t_u13g_pen[AllPos],0)) -> 0 | F25: =INDEX(t_u13g_pen[70mHWind],MATCH(A24,t_u13g_pen[AllPos],0)) -> 0 | J25: =INDEX(t_u13g_pen[AvWind],MATCH($A24,t_u13g_pen[AllPos],0)) -> 0
C26: =INDEX(t_u13g_pen[Club],MATCH(A24,t_u13g_pen[AllPos],0)) -> Hercules Wimbledon AC | D26: Points | E26: =INDEX(t_u13g_pen[LJPoints],MATCH(A24,t_u13g_pen[AllPos],0)) -> 220 | F26: =INDEX(t_u13g_pen[70mHPoints],MATCH(A24,t_u13g_pen[AllPos],0)) -> 355 | G26: =INDEX(t_u13g_pen[SPPoints],MATCH(A24,t_u13g_pen[AllPos],0)) -> 377 | H26: =INDEX(t_u13g_pen[HJPoints],MATCH(A24,t_u13g_pen[AllPos],0)) -> 0 | I26: =INDEX(t_u13g_pen[800mPoints],MATCH(A24,t_u13g_pen[AllPos],0)) -> 421 | J26: =INDEX(t_u13g_pen[TotalPoints],MATCH(A24,t_u13g_pen[AllPos],0)) -> 1373
A27: 8 | C27: =INDEX(t_u13g_pen[Bib],MATCH(A27,t_u13g_pen[AllPos],0)) -> 215 | D27: Perf | E27: =INDEX(t_u13g_pen[LJ],MATCH(A27,t_u13g_pen[AllPos],0)) -> 3.98 | F27: =INDEX(t_u13g_pen[70mH],MATCH(A27,t_u13g_pen[AllPos],0)) -> 13.76 | G27: =INDEX(t_u13g_pen[SP],MATCH(A27,t_u13g_pen[AllPos],0)) -> 4.72 | H27: =INDEX(t_u13g_pen[HJ],MATCH(A27,t_u13g_pen[AllPos],0)) -> 1.17 | I27: =(INDEX(t_u13g_pen[800mMins],MATCH(A27,t_u13g_pen[AllPos],0))*60+INDEX(t_u13g_pen[800mSecs],MATCH(A27,t_u13g_pen[AllPos],0)))/86400 -> 0.001873958333
B28: =INDEX(t_u13g_pen[FinalPosition],MATCH(A27,t_u13g_pen[AllPos],0)) -> 6 | C28: =INDEX(t_u13g_pen[Name],MATCH(A27,t_u13g_pen[AllPos],0)) -> Sophie Jennings | D28: Wind | E28: =INDEX(t_u13g_pen[LJWind],MATCH(A27,t_u13g_pen[AllPos],0)) -> 0 | F28: =INDEX(t_u13g_pen[70mHWind],MATCH(A27,t_u13g_pen[AllPos],0)) -> -0.4 | J28: =INDEX(t_u13g_pen[AvWind],MATCH($A27,t_u13g_pen[AllPos],0)) -> -0.2
C29: =INDEX(t_u13g_pen[Club],MATCH(A27,t_u13g_pen[AllPos],0)) -> Guildford & Godalming AC | D29: Points | E29: =INDEX(t_u13g_pen[LJPoints],MATCH(A27,t_u13g_pen[AllPos],0)) -> 303 | F29: =INDEX(t_u13g_pen[70mHPoints],MATCH(A27,t_u13g_pen[AllPos],0)) -> 414 | G29: =INDEX(t_u13g_pen[SPPoints],MATCH(A27,t_u13g_pen[AllPos],0)) -> 191 | H29: =INDEX(t_u13g_pen[HJPoints],MATCH(A27,t_u13g_pen[AllPos],0)) -> 284 | I29: =INDEX(t_u13g_pen[800mPoints],MATCH(A27,t_u13g_pen[AllPos],0)) -> 551 | J29: =INDEX(t_u13g_pen[TotalPoints],MATCH(A27,t_u13g_pen[AllPos],0)) -> 1743
A30: 9 | C30: =INDEX(t_u13g_pen[Bib],MATCH(A30,t_u13g_pen[AllPos],0)) -> 216 | D30: Perf | E30: =INDEX(t_u13g_pen[LJ],MATCH(A30,t_u13g_pen[AllPos],0)) -> 3.11 | F30: =INDEX(t_u13g_pen[70mH],MATCH(A30,t_u13g_pen[AllPos],0)) -> 13.99 | G30: =INDEX(t_u13g_pen[SP],MATCH(A30,t_u13g_pen[AllPos],0)) -> 6.89 | H30: =INDEX(t_u13g_pen[HJ],MATCH(A30,t_u13g_pen[AllPos],0)) -> 1.17 | I30: =(INDEX(t_u13g_pen[800mMins],MATCH(A30,t_u13g_pen[AllPos],0))*60+INDEX(t_u13g_pen[800mSecs],MATCH(A30,t_u13g_pen[AllPos],0)))/86400 -> 0.002115856481
B31: =INDEX(t_u13g_pen[FinalPosition],MATCH(A30,t_u13g_pen[AllPos],0)) -> 8 | C31: =INDEX(t_u13g_pen[Name],MATCH(A30,t_u13g_pen[AllPos],0)) -> Bethan Lewis | D31: Wind | E31: =INDEX(t_u13g_pen[LJWind],MATCH(A30,t_u13g_pen[AllPos],0)) -> 0.9 | F31: =INDEX(t_u13g_pen[70mHWind],MATCH(A30,t_u13g_pen[AllPos],0)) -> 0 | J31: =INDEX(t_u13g_pen[AvWind],MATCH($A30,t_u13g_pen[AllPos],0)) -> 0.45
C32: =INDEX(t_u13g_pen[Club],MATCH(A30,t_u13g_pen[AllPos],0)) -> Guildford & Godalming AC | D32: Points | E32: =INDEX(t_u13g_pen[LJPoints],MATCH(A30,t_u13g_pen[AllPos],0)) -> 126 | F32: =INDEX(t_u13g_pen[70mHPoints],MATCH(A30,t_u13g_pen[AllPos],0)) -> 399 | G32: =INDEX(t_u13g_pen[SPPoints],MATCH(A30,t_u13g_pen[AllPos],0)) -> 328 | H32: =INDEX(t_u13g_pen[HJPoints],MATCH(A30,t_u13g_pen[AllPos],0)) -> 284 | I32: =INDEX(t_u13g_pen[800mPoints],MATCH(A30,t_u13g_pen[AllPos],0)) -> 340 | J32: =INDEX(t_u13g_pen[TotalPoints],MATCH(A30,t_u13g_pen[AllPos],0)) -> 1477
A33: 10 | C33: =INDEX(t_u13g_pen[Bib],MATCH(A33,t_u13g_pen[AllPos],0)) -> 217 | D33: Perf | E33: =INDEX(t_u13g_pen[LJ],MATCH(A33,t_u13g_pen[AllPos],0)) -> 3.09 | F33: =INDEX(t_u13g_pen[70mH],MATCH(A33,t_u13g_pen[AllPos],0)) -> 15.48 | G33: =INDEX(t_u13g_pen[SP],MATCH(A33,t_u13g_pen[AllPos],0)) -> 3.68 | H33: =INDEX(t_u13g_pen[HJ],MATCH(A33,t_u13g_pen[AllPos],0)) -> 0.99 | I33: =(INDEX(t_u13g_pen[800mMins],MATCH(A33,t_u13g_pen[AllPos],0))*60+INDEX(t_u13g_pen[800mSecs],MATCH(A33,t_u13g_pen[AllPos],0)))/86400 -> 0.002178472222
B34: =INDEX(t_u13g_pen[FinalPosition],MATCH(A33,t_u13g_pen[AllPos],0)) -> 14 | C34: =INDEX(t_u13g_pen[Name],MATCH(A33,t_u13g_pen[AllPos],0)) -> Scarlett Muir | D34: Wind | E34: =INDEX(t_u13g_pen[LJWind],MATCH(A33,t_u13g_pen[AllPos],0)) -> 0.4 | F34: =INDEX(t_u13g_pen[70mHWind],MATCH(A33,t_u13g_pen[AllPos],0)) -> -0.4 | J34: =INDEX(t_u13g_pen[AvWind],MATCH($A33,t_u13g_pen[AllPos],0)) -> 0
C35: =INDEX(t_u13g_pen[Club],MATCH(A33,t_u13g_pen[AllPos],0)) -> Waverley Harriers | D35: Points | E35: =INDEX(t_u13g_pen[LJPoints],MATCH(A33,t_u13g_pen[AllPos],0)) -> 122 | F35: =INDEX(t_u13g_pen[70mHPoints],MATCH(A33,t_u13g_pen[AllPos],0)) -> 294 | G35: =INDEX(t_u13g_pen[SPPoints],MATCH(A33,t_u13g_pen[AllPos],0)) -> 126 | H35: =INDEX(t_u13g_pen[HJPoints],MATCH(A33,t_u13g_pen[AllPos],0)) -> 133 | I35: =INDEX(t_u13g_pen[800mPoints],MATCH(A33,t_u13g_pen[AllPos],0)) -> 293 | J35: =INDEX(t_u13g_pen[TotalPoints],MATCH(A33,t_u13g_pen[AllPos],0)) -> 968
A36: 11 | C36: =INDEX(t_u13g_pen[Bib],MATCH(A36,t_u13g_pen[AllPos],0)) -> 218 | D36: Perf | E36: =INDEX(t_u13g_pen[LJ],MATCH(A36,t_u13g_pen[AllPos],0)) -> 3.12 | F36: =INDEX(t_u13g_pen[70mH],MATCH(A36,t_u13g_pen[AllPos],0)) -> 15.82 | G36: =INDEX(t_u13g_pen[SP],MATCH(A36,t_u13g_pen[AllPos],0)) -> 3.56 | H36: =INDEX(t_u13g_pen[HJ],MATCH(A36,t_u13g_pen[AllPos],0)) -> 1.17 | I36: =(INDEX(t_u13g_pen[800mMins],MATCH(A36,t_u13g_pen[AllPos],0))*60+INDEX(t_u13g_pen[800mSecs],MATCH(A36,t_u13g_pen[AllPos],0)))/86400 -> 0.002115740741
B37: =INDEX(t_u13g_pen[FinalPosition],MATCH(A36,t_u13g_pen[AllPos],0)) -> 12 | C37: =INDEX(t_u13g_pen[Name],MATCH(A36,t_u13g_pen[AllPos],0)) -> Luchia Neal | D37: Wind | E37: =INDEX(t_u13g_pen[LJWind],MATCH(A36,t_u13g_pen[AllPos],0)) -> 0 | F37: =INDEX(t_u13g_pen[70mHWind],MATCH(A36,t_u13g_pen[AllPos],0)) -> 0 | J37: =INDEX(t_u13g_pen[AvWind],MATCH($A36,t_u13g_pen[AllPos],0)) -> 0
C38: =INDEX(t_u13g_pen[Club],MATCH(A36,t_u13g_pen[AllPos],0)) -> Waverley Harriers | D38: Points | E38: =INDEX(t_u13g_pen[LJPoints],MATCH(A36,t_u13g_pen[AllPos],0)) -> 128 | F38: =INDEX(t_u13g_pen[70mHPoints],MATCH(A36,t_u13g_pen[AllPos],0)) -> 269 | G38: =INDEX(t_u13g_pen[SPPoints],MATCH(A36,t_u13g_pen[AllPos],0)) -> 119 | H38: =INDEX(t_u13g_pen[HJPoints],MATCH(A36,t_u13g_pen[AllPos],0)) -> 284 | I38: =INDEX(t_u13g_pen[800mPoints],MATCH(A36,t_u13g_pen[AllPos],0)) -> 340 | J38: =INDEX(t_u13g_pen[TotalPoints],MATCH(A36,t_u13g_pen[AllPos],0)) -> 1140
A39: 12 | C39: =INDEX(t_u13g_pen[Bib],MATCH(A39,t_u13g_pen[AllPos],0)) -> 219 | D39: Perf | E39: =INDEX(t_u13g_pen[LJ],MATCH(A39,t_u13g_pen[AllPos],0)) -> 4.18 | F39: =INDEX(t_u13g_pen[70mH],MATCH(A39,t_u13g_pen[AllPos],0)) -> 12.69 | G39: =INDEX(t_u13g_pen[SP],MATCH(A39,t_u13g_pen[AllPos],0)) -> 5.53 | H39: =INDEX(t_u13g_pen[HJ],MATCH(A39,t_u13g_pen[AllPos],0)) -> 1.4 | I39: =(INDEX(t_u13g_pen[800mMins],MATCH(A39,t_u13g_pen[AllPos],0))*60+INDEX(t_u13g_pen[800mSecs],MATCH(A39,t_u13g_pen[AllPos],0)))/86400 -> 0.001892824074
B40: =INDEX(t_u13g_pen[FinalPosition],MATCH(A39,t_u13g_pen[AllPos],0)) -> 2 | C40: =INDEX(t_u13g_pen[Name],MATCH(A39,t_u13g_pen[AllPos],0)) -> Keira Oxley | D40: Wind | E40: =INDEX(t_u13g_pen[LJWind],MATCH(A39,t_u13g_pen[AllPos],0)) -> 0 | F40: =INDEX(t_u13g_pen[70mHWind],MATCH(A39,t_u13g_pen[AllPos],0)) -> -0.4 | J40: =INDEX(t_u13g_pen[AvWind],MATCH($A39,t_u13g_pen[AllPos],0)) -> -0.2
C41: =INDEX(t_u13g_pen[Club],MATCH(A39,t_u13g_pen[AllPos],0)) -> Guildford & Godalming AC | D41: Points | E41: =INDEX(t_u13g_pen[LJPoints],MATCH(A39,t_u13g_pen[AllPos],0)) -> 350 | F41: =INDEX(t_u13g_pen[70mHPoints],MATCH(A39,t_u13g_pen[AllPos],0)) -> 503 | G41: =INDEX(t_u13g_pen[SPPoints],MATCH(A39,t_u13g_pen[AllPos],0)) -> 242 | H41: =INDEX(t_u13g_pen[HJPoints],MATCH(A39,t_u13g_pen[AllPos],0)) -> 512 | I41: =INDEX(t_u13g_pen[800mPoints],MATCH(A39,t_u13g_pen[AllPos],0)) -> 533 | J41: =INDEX(t_u13g_pen[TotalPoints],MATCH(A39,t_u13g_pen[AllPos],0)) -> 2140
A42: 13 | C42: =INDEX(t_u13g_pen[Bib],MATCH(A42,t_u13g_pen[AllPos],0)) -> 220 | D42: Perf | E42: =INDEX(t_u13g_pen[LJ],MATCH(A42,t_u13g_pen[AllPos],0)) -> 2.96 | F42: =INDEX(t_u13g_pen[70mH],MATCH(A42,t_u13g_pen[AllPos],0)) -> 16.78 | G42: =INDEX(t_u13g_pen[SP],MATCH(A42,t_u13g_pen[AllPos],0)) -> 4.82 | H42: =INDEX(t_u13g_pen[HJ],MATCH(A42,t_u13g_pen[AllPos],0)) -> NH | I42: =(INDEX(t_u13g_pen[800mMins],MATCH(A42,t_u13g_pen[AllPos],0))*60+INDEX(t_u13g_pen[800mSecs],MATCH(A42,t_u13g_pen[AllPos],0)))/86400 -> 0.002261689815
B43: =INDEX(t_u13g_pen[FinalPosition],MATCH(A42,t_u13g_pen[AllPos],0)) -> 15 | C43: =INDEX(t_u13g_pen[Name],MATCH(A42,t_u13g_pen[AllPos],0)) -> Amelia Pocock | D43: Wind | E43: =INDEX(t_u13g_pen[LJWind],MATCH(A42,t_u13g_pen[AllPos],0)) -> 0 | F43: =INDEX(t_u13g_pen[70mHWind],MATCH(A42,t_u13g_pen[AllPos],0)) -> 0 | J43: =INDEX(t_u13g_pen[AvWind],MATCH($A42,t_u13g_pen[AllPos],0)) -> 0
C44: =INDEX(t_u13g_pen[Club],MATCH(A42,t_u13g_pen[AllPos],0)) -> Epsom & Ewell Harriers | D44: Points | E44: =INDEX(t_u13g_pen[LJPoints],MATCH(A42,t_u13g_pen[AllPos],0)) -> 100 | F44: =INDEX(t_u13g_pen[70mHPoints],MATCH(A42,t_u13g_pen[AllPos],0)) -> 217 | G44: =INDEX(t_u13g_pen[SPPoints],MATCH(A42,t_u13g_pen[AllPos],0)) -> 197 | H44: =INDEX(t_u13g_pen[HJPoints],MATCH(A42,t_u13g_pen[AllPos],0)) -> 0 | I44: =INDEX(t_u13g_pen[800mPoints],MATCH(A42,t_u13g_pen[AllPos],0)) -> 235 | J44: =INDEX(t_u13g_pen[TotalPoints],MATCH(A42,t_u13g_pen[AllPos],0)) -> 749
A45: 14 | C45: =INDEX(t_u13g_pen[Bib],MATCH(A45,t_u13g_pen[AllPos],0)) -> 221 | D45: Perf | E45: =INDEX(t_u13g_pen[LJ],MATCH(A45,t_u13g_pen[AllPos],0)) -> 3.58 | F45: =INDEX(t_u13g_pen[70mH],MATCH(A45,t_u13g_pen[AllPos],0)) -> 13.65 | G45: =INDEX(t_u13g_pen[SP],MATCH(A45,t_u13g_pen[AllPos],0)) -> 5.4 | H45: =INDEX(t_u13g_pen[HJ],MATCH(A45,t_u13g_pen[AllPos],0)) -> 1.2 | I45: =(INDEX(t_u13g_pen[800mMins],MATCH(A45,t_u13g_pen[AllPos],0))*60+INDEX(t_u13g_pen[800mSecs],MATCH(A45,t_u13g_pen[AllPos],0)))/86400 -> 0.002041898148
B46: =INDEX(t_u13g_pen[FinalPosition],MATCH(A45,t_u13g_pen[AllPos],0)) -> 7 | C46: =INDEX(t_u13g_pen[Name],MATCH(A45,t_u13g_pen[AllPos],0)) -> Ruby Quintyne | D46: Wind | E46: =INDEX(t_u13g_pen[LJWind],MATCH(A45,t_u13g_pen[AllPos],0)) -> 0 | F46: =INDEX(t_u13g_pen[70mHWind],MATCH(A45,t_u13g_pen[AllPos],0)) -> -0.4 | J46: =INDEX(t_u13g_pen[AvWind],MATCH($A45,t_u13g_pen[AllPos],0)) -> -0.2
C47: =INDEX(t_u13g_pen[Club],MATCH(A45,t_u13g_pen[AllPos],0)) -> Sutton & District AC | D47: Points | E47: =INDEX(t_u13g_pen[LJPoints],MATCH(A45,t_u13g_pen[AllPos],0)) -> 216 | F47: =INDEX(t_u13g_pen[70mHPoints],MATCH(A45,t_u13g_pen[AllPos],0)) -> 422 | G47: =INDEX(t_u13g_pen[SPPoints],MATCH(A45,t_u13g_pen[AllPos],0)) -> 233 | H47: =INDEX(t_u13g_pen[HJPoints],MATCH(A45,t_u13g_pen[AllPos],0)) -> 312 | I47: =INDEX(t_u13g_pen[800mPoints],MATCH(A45,t_u13g_pen[AllPos],0)) -> 399 | J47: =INDEX(t_u13g_pen[TotalPoints],MATCH(A45,t_u13g_pen[AllPos],0)) -> 1582
A48: 15 | C48: =INDEX(t_u13g_pen[Bib],MATCH(A48,t_u13g_pen[AllPos],0)) -> 222 | D48: Perf | E48: =INDEX(t_u13g_pen[LJ],MATCH(A48,t_u13g_pen[AllPos],0)) -> 3.36 | F48: =INDEX(t_u13g_pen[70mH],MATCH(A48,t_u13g_pen[AllPos],0)) -> 17.09 | G48: =INDEX(t_u13g_pen[SP],MATCH(A48,t_u13g_pen[AllPos],0)) -> 5.22 | H48: =INDEX(t_u13g_pen[HJ],MATCH(A48,t_u13g_pen[AllPos],0)) -> 1.08 | I48: =(INDEX(t_u13g_pen[800mMins],MATCH(A48,t_u13g_pen[AllPos],0))*60+INDEX(t_u13g_pen[800mSecs],MATCH(A48,t_u13g_pen[AllPos],0)))/86400 -> 0.002337962963
B49: =INDEX(t_u13g_pen[FinalPosition],MATCH(A48,t_u13g_pen[AllPos],0)) -> 13 | C49: =INDEX(t_u13g_pen[Name],MATCH(A48,t_u13g_pen[AllPos],0)) -> Alice Ridge | D49: Wind | E49: =INDEX(t_u13g_pen[LJWind],MATCH(A48,t_u13g_pen[AllPos],0)) -> 0 | F49: =INDEX(t_u13g_pen[70mHWind],MATCH(A48,t_u13g_pen[AllPos],0)) -> 0 | J49: =INDEX(t_u13g_pen[AvWind],MATCH($A48,t_u13g_pen[AllPos],0)) -> 0
C50: =INDEX(t_u13g_pen[Club],MATCH(A48,t_u13g_pen[AllPos],0)) -> Camberley & District AC | D50: Points | E50: =INDEX(t_u13g_pen[LJPoints],MATCH(A48,t_u13g_pen[AllPos],0)) -> 172 | F50: =INDEX(t_u13g_pen[70mHPoints],MATCH(A48,t_u13g_pen[AllPos],0)) -> 201 | G50: =INDEX(t_u13g_pen[SPPoints],MATCH(A48,t_u13g_pen[AllPos],0)) -> 222 | H50: =INDEX(t_u13g_pen[HJPoints],MATCH(A48,t_u13g_pen[AllPos],0)) -> 205 | I50: =INDEX(t_u13g_pen[800mPoints],MATCH(A48,t_u13g_pen[AllPos],0)) -> 188 | J50: =INDEX(t_u13g_pen[TotalPoints],MATCH(A48,t_u13g_pen[AllPos],0)) -> 988
A51: 16 | C51: =INDEX(t_u13g_pen[Bib],MATCH(A51,t_u13g_pen[AllPos],0)) -> 223 | D51: Perf | E51: =INDEX(t_u13g_pen[LJ],MATCH(A51,t_u13g_pen[AllPos],0)) -> 0 | F51: =INDEX(t_u13g_pen[70mH],MATCH(A51,t_u13g_pen[AllPos],0)) -> 0 | G51: =INDEX(t_u13g_pen[SP],MATCH(A51,t_u13g_pen[AllPos],0)) -> 0 | H51: =INDEX(t_u13g_pen[HJ],MATCH(A51,t_u13g_pen[AllPos],0)) -> 0 | I51: =(INDEX(t_u13g_pen[800mMins],MATCH(A51,t_u13g_pen[AllPos],0))*60+INDEX(t_u13g_pen[800mSecs],MATCH(A51,t_u13g_pen[AllPos],0)))/86400 -> 0
B52: =INDEX(t_u13g_pen[FinalPosition],MATCH(A51,t_u13g_pen[AllPos],0)) -> 17 | C52: =INDEX(t_u13g_pen[Name],MATCH(A51,t_u13g_pen[AllPos],0)) -> Tyler Walton | D52: Wind | E52: =INDEX(t_u13g_pen[LJWind],MATCH(A51,t_u13g_pen[AllPos],0)) -> 0 | F52: =INDEX(t_u13g_pen[70mHWind],MATCH(A51,t_u13g_pen[AllPos],0)) -> 0 | J52: =INDEX(t_u13g_pen[AvWind],MATCH($A51,t_u13g_pen[AllPos],0)) -> 0
C53: =INDEX(t_u13g_pen[Club],MATCH(A51,t_u13g_pen[AllPos],0)) -> Waverley Harriers | D53: Points | E53: =INDEX(t_u13g_pen[LJPoints],MATCH(A51,t_u13g_pen[AllPos],0)) -> 0 | F53: =INDEX(t_u13g_pen[70mHPoints],MATCH(A51,t_u13g_pen[AllPos],0)) -> 0 | G53: =INDEX(t_u13g_pen[SPPoints],MATCH(A51,t_u13g_pen[AllPos],0)) -> 0 | H53: =INDEX(t_u13g_pen[HJPoints],MATCH(A51,t_u13g_pen[AllPos],0)) -> 0 | I53: =INDEX(t_u13g_pen[800mPoints],MATCH(A51,t_u13g_pen[AllPos],0)) -> 0 | J53: =INDEX(t_u13g_pen[TotalPoints],MATCH(A51,t_u13g_pen[AllPos],0)) -> 0
A54: 17 | C54: =INDEX(t_u13g_pen[Bib],MATCH(A54,t_u13g_pen[AllPos],0)) -> 224 | D54: Perf | E54: =INDEX(t_u13g_pen[LJ],MATCH(A54,t_u13g_pen[AllPos],0)) -> 3.81 | F54: =INDEX(t_u13g_pen[70mH],MATCH(A54,t_u13g_pen[AllPos],0)) -> 14.17 | G54: =INDEX(t_u13g_pen[SP],MATCH(A54,t_u13g_pen[AllPos],0)) -> 5.3 | H54: =INDEX(t_u13g_pen[HJ],MATCH(A54,t_u13g_pen[AllPos],0)) -> 1.23 | I54: =(INDEX(t_u13g_pen[800mMins],MATCH(A54,t_u13g_pen[AllPos],0))*60+INDEX(t_u13g_pen[800mSecs],MATCH(A54,t_u13g_pen[AllPos],0)))/86400 -> 0.001885648148
B55: =INDEX(t_u13g_pen[FinalPosition],MATCH(A54,t_u13g_pen[AllPos],0)) -> 5 | C55: =INDEX(t_u13g_pen[Name],MATCH(A54,t_u13g_pen[AllPos],0)) -> Emily Williams | D55: Wind | E55: =INDEX(t_u13g_pen[LJWind],MATCH(A54,t_u13g_pen[AllPos],0)) -> 0 | F55: =INDEX(t_u13g_pen[70mHWind],MATCH(A54,t_u13g_pen[AllPos],0)) -> 0 | J55: =INDEX(t_u13g_pen[AvWind],MATCH($A54,t_u13g_pen[AllPos],0)) -> 0
C56: =INDEX(t_u13g_pen[Club],MATCH(A54,t_u13g_pen[AllPos],0)) -> Guildford & Godalming AC | D56: Points | E56: =INDEX(t_u13g_pen[LJPoints],MATCH(A54,t_u13g_pen[AllPos],0)) -> 265 | F56: =INDEX(t_u13g_pen[70mHPoints],MATCH(A54,t_u13g_pen[AllPos],0)) -> 384 | G56: =INDEX(t_u13g_pen[SPPoints],MATCH(A54,t_u13g_pen[AllPos],0)) -> 227 | H56: =INDEX(t_u13g_pen[HJPoints],MATCH(A54,t_u13g_pen[AllPos],0)) -> 340 | I56: =INDEX(t_u13g_pen[800mPoints],MATCH(A54,t_u13g_pen[AllPos],0)) -> 540 | J56: =INDEX(t_u13g_pen[TotalPoints],MATCH(A54,t_u13g_pen[AllPos],0)) -> 1756
A57: 18 | C57: =INDEX(t_u13g_pen[Bib],MATCH(A57,t_u13g_pen[AllPos],0)) -> 225 | D57: Perf | E57: =INDEX(t_u13g_pen[LJ],MATCH(A57,t_u13g_pen[AllPos],0)) -> 4.1 | F57: =INDEX(t_u13g_pen[70mH],MATCH(A57,t_u13g_pen[AllPos],0)) -> 13.18 | G57: =INDEX(t_u13g_pen[SP],MATCH(A57,t_u13g_pen[AllPos],0)) -> 6.02 | H57: =INDEX(t_u13g_pen[HJ],MATCH(A57,t_u13g_pen[AllPos],0)) -> 1.32 | I57: =(INDEX(t_u13g_pen[800mMins],MATCH(A57,t_u13g_pen[AllPos],0))*60+INDEX(t_u13g_pen[800mSecs],MATCH(A57,t_u13g_pen[AllPos],0)))/86400 -> 0.002098958333
B58: =INDEX(t_u13g_pen[FinalPosition],MATCH(A57,t_u13g_pen[AllPos],0)) -> Guest | C58: =INDEX(t_u13g_pen[Name],MATCH(A57,t_u13g_pen[AllPos],0)) -> Chelsea Clarke | D58: Wind | E58: =INDEX(t_u13g_pen[LJWind],MATCH(A57,t_u13g_pen[AllPos],0)) -> 0 | F58: =INDEX(t_u13g_pen[70mHWind],MATCH(A57,t_u13g_pen[AllPos],0)) -> -0.4 | J58: =INDEX(t_u13g_pen[AvWind],MATCH($A56,t_u13g_pen[AllPos],0)) -> 
C59: =INDEX(t_u13g_pen[Club],MATCH(A57,t_u13g_pen[AllPos],0)) -> Thurrock Harriers | D59: Points | E59: =INDEX(t_u13g_pen[LJPoints],MATCH(A57,t_u13g_pen[AllPos],0)) -> 331 | F59: =INDEX(t_u13g_pen[70mHPoints],MATCH(A57,t_u13g_pen[AllPos],0)) -> 463 | G59: =INDEX(t_u13g_pen[SPPoints],MATCH(A57,t_u13g_pen[AllPos],0)) -> 273 | H59: =INDEX(t_u13g_pen[HJPoints],MATCH(A57,t_u13g_pen[AllPos],0)) -> 429 | I59: =INDEX(t_u13g_pen[800mPoints],MATCH(A57,t_u13g_pen[AllPos],0)) -> 353 | J59: =INDEX(t_u13g_pen[TotalPoints],MATCH(A57,t_u13g_pen[AllPos],0)) -> 1849
A60: 19 | C60: =INDEX(t_u13g_pen[Bib],MATCH(A60,t_u13g_pen[AllPos],0)) -> 226 | D60: Perf | E60: =INDEX(t_u13g_pen[LJ],MATCH(A60,t_u13g_pen[AllPos],0)) -> 4.04 | F60: =INDEX(t_u13g_pen[70mH],MATCH(A60,t_u13g_pen[AllPos],0)) -> 12.36 | G60: =INDEX(t_u13g_pen[SP],MATCH(A60,t_u13g_pen[AllPos],0)) -> 5.37 | H60: =INDEX(t_u13g_pen[HJ],MATCH(A60,t_u13g_pen[AllPos],0)) -> 1.14 | I60: =(INDEX(t_u13g_pen[800mMins],MATCH(A60,t_u13g_pen[AllPos],0))*60+INDEX(t_u13g_pen[800mSecs],MATCH(A60,t_u13g_pen[AllPos],0)))/86400 -> 0.002109027778
B61: =INDEX(t_u13g_pen[FinalPosition],MATCH(A60,t_u13g_pen[AllPos],0)) -> Guest | C61: =INDEX(t_u13g_pen[Name],MATCH(A60,t_u13g_pen[AllPos],0)) -> Alice Coshell | D61: Wind | E61: =INDEX(t_u13g_pen[LJWind],MATCH(A60,t_u13g_pen[AllPos],0)) -> 0 | F61: =INDEX(t_u13g_pen[70mHWind],MATCH(A60,t_u13g_pen[AllPos],0)) -> -0.4 | J61: =INDEX(t_u13g_pen[AvWind],MATCH($A60,t_u13g_pen[AllPos],0)) -> -0.2
C62: =INDEX(t_u13g_pen[Club],MATCH(A60,t_u13g_pen[AllPos],0)) -> Thurrock Harriers | D62: Points | E62: =INDEX(t_u13g_pen[LJPoints],MATCH(A60,t_u13g_pen[AllPos],0)) -> 317 | F62: =INDEX(t_u13g_pen[70mHPoints],MATCH(A60,t_u13g_pen[AllPos],0)) -> 534 | G62: =INDEX(t_u13g_pen[SPPoints],MATCH(A60,t_u13g_pen[AllPos],0)) -> 231 | H62: =INDEX(t_u13g_pen[HJPoints],MATCH(A60,t_u13g_pen[AllPos],0)) -> 257 | I62: =INDEX(t_u13g_pen[800mPoints],MATCH(A60,t_u13g_pen[AllPos],0)) -> 345 | J62: =INDEX(t_u13g_pen[TotalPoints],MATCH(A60,t_u13g_pen[AllPos],0)) -> 1684
A63: 20 | C63: =INDEX(t_u13g_pen[Bib],MATCH(A63,t_u13g_pen[AllPos],0)) -> 227 | D63: Perf | E63: =INDEX(t_u13g_pen[LJ],MATCH(A63,t_u13g_pen[AllPos],0)) -> 0 | F63: =INDEX(t_u13g_pen[70mH],MATCH(A63,t_u13g_pen[AllPos],0)) -> 0 | G63: =INDEX(t_u13g_pen[SP],MATCH(A63,t_u13g_pen[AllPos],0)) -> 0 | H63: =INDEX(t_u13g_pen[HJ],MATCH(A63,t_u13g_pen[AllPos],0)) -> 0 | I63: =(INDEX(t_u13g_pen[800mMins],MATCH(A63,t_u13g_pen[AllPos],0))*60+INDEX(t_u13g_pen[800mSecs],MATCH(A63,t_u13g_pen[AllPos],0)))/86400 -> 0
B64: =INDEX(t_u13g_pen[FinalPosition],MATCH(A63,t_u13g_pen[AllPos],0)) -> Guest | C64: =INDEX(t_u13g_pen[Name],MATCH(A63,t_u13g_pen[AllPos],0)) -> Leila Newth | D64: Wind | E64: =INDEX(t_u13g_pen[LJWind],MATCH(A63,t_u13g_pen[AllPos],0)) -> 0 | F64: =INDEX(t_u13g_pen[70mHWind],MATCH(A63,t_u13g_pen[AllPos],0)) -> 0 | J64: =INDEX(t_u13g_pen[AvWind],MATCH($A63,t_u13g_pen[AllPos],0)) -> 0
C65: =INDEX(t_u13g_pen[Club],MATCH(A63,t_u13g_pen[AllPos],0)) -> Ealing Southall & Middlesex AC | D65: Points | E65: =INDEX(t_u13g_pen[LJPoints],MATCH(A63,t_u13g_pen[AllPos],0)) -> 0 | F65: =INDEX(t_u13g_pen[70mHPoints],MATCH(A63,t_u13g_pen[AllPos],0)) -> 0 | G65: =INDEX(t_u13g_pen[SPPoints],MATCH(A63,t_u13g_pen[AllPos],0)) -> 0 | H65: =INDEX(t_u13g_pen[HJPoints],MATCH(A63,t_u13g_pen[AllPos],0)) -> 0 | I65: =INDEX(t_u13g_pen[800mPoints],MATCH(A63,t_u13g_pen[AllPos],0)) -> 0 | J65: =INDEX(t_u13g_pen[TotalPoints],MATCH(A63,t_u13g_pen[AllPos],0)) -> 0

Sheet U15 Girls Pentathlon
A1: Bib | B1: Name | C1: Club | D1: AgeGrp | E1: Surrey | F1: LJ | G1: LJWind | H1: LJPoints | I1: 75mH | J1: 75mHElec | K1: 75mHWind | L1: 75mHPoints | M1: SP | N1: SPPoints | O1: HJ | P1: HJPoints | Q1: 800mMins | R1: 800mSecs | S1: 800mElec | T1: 800mPoints | U1: AvWind | V1: TotalPoints | W1: Retired | X1: FinalPosition | Y1: AllPos
A2: 244 | B2: Jessica Howells | C2: Guildford & Godalming AC | D2: U15G | E2: Y | F2: 4.56 | G2: 0.1 | H2: =IFERROR(getpoints(t_u15g_pen[[#This Row],[LJ]],"LJ",t_u15g_pen[[#This Row],[AgeGrp]]),0) -> 443 | I2: 12.39 | J2: y | K2: 0.2 | L2: =IFERROR(getpoints(t_u15g_pen[[#This Row],[75mH]],"75mH",t_u15g_pen[[#This Row],[AgeGrp]],t_u15g_pen[[#This Row],[75mHElec]]),0) -> 631 | M2: 10.05 | N2: =IFERROR(getpoints(t_u15g_pen[[#This Row],[SP]],"SP",t_u15g_pen[[#This Row],[AgeGrp]]),0) -> 533 | O2: 1.41 | P2: =IFERROR(getpoints(t_u15g_pen[[#This Row],[HJ]],"HJ",t_u15g_pen[[#This Row],[AgeGrp]]),0) -> 523 | Q2: 2 | R2: 35.83 | S2: y | T2: =IFERROR(getpoints(ROUNDDOWN(t_u15g_pen[[#This Row],[800mMins]]*60+t_u15g_pen[[#This Row],[800mSecs]],2),"800m",t_u15g_pen[[#This Row],[AgeGrp]],t_u15g_pen[[#This Row],[800mElec]]),0) -> 622 | U2: =IFERROR((t_u15g_pen[[#This Row],[LJWind]]+t_u15g_pen[[#This Row],[75mHWind]])/2,"n/a") -> 0.15 | V2: =t_u15g_pen[[#This Row],[LJPoints]]+t_u15g_pen[[#This Row],[SPPoints]]+t_u15g_pen[[#This Row],[HJPoints]]+t_u15g_pen[[#This Row],[75mHPoints]]+t_u15g_pen[[#This Row],[800mPoints]] -> 2752 | W2: =IF(OR(t_u15g_pen[[#This Row],[LJ]]="DNS",t_u15g_pen[[#This Row],[SP]]="DNS",t_u15g_pen[[#This Row],[HJ]]="DNS",t_u15g_pen[[#This Row],[75mH]]="DNS",t_u15g_pen[[#This Row],[800mMins]]="DNS"),"Y","") ->  | X2: =IF(t_u15g_pen[[#This Row],[Retired]]="Y","Retired",IF(t_u15g_pen[[#This Row],[Surrey]]="N","Guest",COUNTIFS(t_u15g_pen[Retired],"<>Y",t_u15g_pen[Surrey],"<>N",t_u15g_pen[TotalPoints],">"&t_u15g_pen[[#This Row],[TotalPoints]])+1)) -> 1 | Y2: =ROW(A1) -> 1
A3: 245 | B3: Rosalie Laban | C3: Herne Hill Harriers | D3: U15G | E3: Y | F3: 4.18 | G3: 0 | H3: =IFERROR(getpoints(t_u15g_pen[[#This Row],[LJ]],"LJ",t_u15g_pen[[#This Row],[AgeGrp]]),0) -> 350 | I3: 13.78 | J3: y | K3: 0.2 | L3: =IFERROR(getpoints(t_u15g_pen[[#This Row],[75mH]],"75mH",t_u15g_pen[[#This Row],[AgeGrp]],t_u15g_pen[[#This Row],[75mHElec]]),0) -> 497 | M3: 4.71 | N3: =IFERROR(getpoints(t_u15g_pen[[#This Row],[SP]],"SP",t_u15g_pen[[#This Row],[AgeGrp]]),0) -> 190 | O3: 1.11 | P3: =IFERROR(getpoints(t_u15g_pen[[#This Row],[HJ]],"HJ",t_u15g_pen[[#This Row],[AgeGrp]]),0) -> 231 | Q3: 2 | R3: 39.31 | S3: y | T3: =IFERROR(getpoints(ROUNDDOWN(t_u15g_pen[[#This Row],[800mMins]]*60+t_u15g_pen[[#This Row],[800mSecs]],2),"800m",t_u15g_pen[[#This Row],[AgeGrp]],t_u15g_pen[[#This Row],[800mElec]]),0) -> 581 | U3: =IFERROR((t_u15g_pen[[#This Row],[LJWind]]+t_u15g_pen[[#This Row],[75mHWind]])/2,"n/a") -> 0.1 | V3: =t_u15g_pen[[#This Row],[LJPoints]]+t_u15g_pen[[#This Row],[SPPoints]]+t_u15g_pen[[#This Row],[HJPoints]]+t_u15g_pen[[#This Row],[75mHPoints]]+t_u15g_pen[[#This Row],[800mPoints]] -> 1849 | W3: =IF(OR(t_u15g_pen[[#This Row],[LJ]]="DNS",t_u15g_pen[[#This Row],[SP]]="DNS",t_u15g_pen[[#This Row],[HJ]]="DNS",t_u15g_pen[[#This Row],[75mH]]="DNS",t_u15g_pen[[#This Row],[800mMins]]="DNS"),"Y","") ->  | X3: =IF(t_u15g_pen[[#This Row],[Retired]]="Y","Retired",IF(t_u15g_pen[[#This Row],[Surrey]]="N","Guest",COUNTIFS(t_u15g_pen[Retired],"<>Y",t_u15g_pen[Surrey],"<>N",t_u15g_pen[TotalPoints],">"&t_u15g_pen[[#This Row],[TotalPoints]])+1)) -> 8 | Y3: 2
A4: 239 | B4: Poppy Batchelor | C4: Windsor Slough Eton & Hounslow AC | D4: U15G | E4: Y | F4: 4.01 | G4: 0 | H4: =IFERROR(getpoints(t_u15g_pen[[#This Row],[LJ]],"LJ",t_u15g_pen[[#This Row],[AgeGrp]]),0) -> 310 | I4: 14.04 | J4: y | K4: 0.2 | L4: =IFERROR(getpoints(t_u15g_pen[[#This Row],[75mH]],"75mH",t_u15g_pen[[#This Row],[AgeGrp]],t_u15g_pen[[#This Row],[75mHElec]]),0) -> 471 | M4: 7.94 | N4: =IFERROR(getpoints(t_u15g_pen[[#This Row],[SP]],"SP",t_u15g_pen[[#This Row],[AgeGrp]]),0) -> 395 | O4: 1.38 | P4: =IFERROR(getpoints(t_u15g_pen[[#This Row],[HJ]],"HJ",t_u15g_pen[[#This Row],[AgeGrp]]),0) -> 491 | Q4: 3 | R4: 8.62 | S4: y | T4: =IFERROR(getpoints(ROUNDDOWN(t_u15g_pen[[#This Row],[800mMins]]*60+t_u15g_pen[[#This Row],[800mSecs]],2),"800m",t_u15g_pen[[#This Row],[AgeGrp]],t_u15g_pen[[#This Row],[800mElec]]),0) -> 289 | U4: =IFERROR((t_u15g_pen[[#This Row],[LJWind]]+t_u15g_pen[[#This Row],[75mHWind]])/2,"n/a") -> 0.1 | V4: =t_u15g_pen[[#This Row],[LJPoints]]+t_u15g_pen[[#This Row],[SPPoints]]+t_u15g_pen[[#This Row],[HJPoints]]+t_u15g_pen[[#This Row],[75mHPoints]]+t_u15g_pen[[#This Row],[800mPoints]] -> 1956 | W4: =IF(OR(t_u15g_pen[[#This Row],[LJ]]="DNS",t_u15g_pen[[#This Row],[SP]]="DNS",t_u15g_pen[[#This Row],[HJ]]="DNS",t_u15g_pen[[#This Row],[75mH]]="DNS",t_u15g_pen[[#This Row],[800mMins]]="DNS"),"Y","") ->  | X4: =IF(t_u15g_pen[[#This Row],[Retired]]="Y","Retired",IF(t_u15g_pen[[#This Row],[Surrey]]="N","Guest",COUNTIFS(t_u15g_pen[Retired],"<>Y",t_u15g_pen[Surrey],"<>N",t_u15g_pen[TotalPoints],">"&t_u15g_pen[[#This Row],[TotalPoints]])+1)) -> 7 | Y4: 3
A5: 246 | B5: Julia Newman | C5: Sutton & District AC | D5: U15G | E5: Y | F5: 4.68 | G5: 0 | H5: =IFERROR(getpoints(t_u15g_pen[[#This Row],[LJ]],"LJ",t_u15g_pen[[#This Row],[AgeGrp]]),0) -> 474 | I5: 13.41 | J5: y | K5: 0.2 | L5: =IFERROR(getpoints(t_u15g_pen[[#This Row],[75mH]],"75mH",t_u15g_pen[[#This Row],[AgeGrp]],t_u15g_pen[[#This Row],[75mHElec]]),0) -> 529 | M5: 7.75 | N5: =IFERROR(getpoints(t_u15g_pen[[#This Row],[SP]],"SP",t_u15g_pen[[#This Row],[AgeGrp]]),0) -> 383 | O5: 1.47 | P5: =IFERROR(getpoints(t_u15g_pen[[#This Row],[HJ]],"HJ",t_u15g_pen[[#This Row],[AgeGrp]]),0) -> 588 | Q5: 2 | R5: 36.22 | S5: y | T5: =IFERROR(getpoints(ROUNDDOWN(t_u15g_pen[[#This Row],[800mMins]]*60+t_u15g_pen[[#This Row],[800mSecs]],2),"800m",t_u15g_pen[[#This Row],[AgeGrp]],t_u15g_pen[[#This Row],[800mElec]]),0) -> 617 | U5: =IFERROR((t_u15g_pen[[#This Row],[LJWind]]+t_u15g_pen[[#This Row],[75mHWind]])/2,"n/a") -> 0.1 | V5: =t_u15g_pen[[#This Row],[LJPoints]]+t_u15g_pen[[#This Row],[SPPoints]]+t_u15g_pen[[#This Row],[HJPoints]]+t_u15g_pen[[#This Row],[75mHPoints]]+t_u15g_pen[[#This Row],[800mPoints]] -> 2591 | W5: =IF(OR(t_u15g_pen[[#This Row],[LJ]]="DNS",t_u15g_pen[[#This Row],[SP]]="DNS",t_u15g_pen[[#This Row],[HJ]]="DNS",t_u15g_pen[[#This Row],[75mH]]="DNS",t_u15g_pen[[#This Row],[800mMins]]="DNS"),"Y","") ->  | X5: =IF(t_u15g_pen[[#This Row],[Retired]]="Y","Retired",IF(t_u15g_pen[[#This Row],[Surrey]]="N","Guest",COUNTIFS(t_u15g_pen[Retired],"<>Y",t_u15g_pen[Surrey],"<>N",t_u15g_pen[TotalPoints],">"&t_u15g_pen[[#This Row],[TotalPoints]])+1)) -> 2 | Y5: 4
A6: 248 | B6: Ella Pugh | C6: Guildford & Godalming AC | D6: U15G | E6: Y | F6: 4.47 | G6: 0 | H6: =IFERROR(getpoints(t_u15g_pen[[#This Row],[LJ]],"LJ",t_u15g_pen[[#This Row],[AgeGrp]]),0) -> 421 | I6: 12.82 | J6: y | K6: 0.2 | L6: =IFERROR(getpoints(t_u15g_pen[[#This Row],[75mH]],"75mH",t_u15g_pen[[#This Row],[AgeGrp]],t_u15g_pen[[#This Row],[75mHElec]]),0) -> 586 | M6: 8.21 | N6: =IFERROR(getpoints(t_u15g_pen[[#This Row],[SP]],"SP",t_u15g_pen[[#This Row],[AgeGrp]]),0) -> 413 | O6: 1.41 | P6: =IFERROR(getpoints(t_u15g_pen[[#This Row],[HJ]],"HJ",t_u15g_pen[[#This Row],[AgeGrp]]),0) -> 523 | Q6: 2 | R6: 34.87 | S6: y | T6: =IFERROR(getpoints(ROUNDDOWN(t_u15g_pen[[#This Row],[800mMins]]*60+t_u15g_pen[[#This Row],[800mSecs]],2),"800m",t_u15g_pen[[#This Row],[AgeGrp]],t_u15g_pen[[#This Row],[800mElec]]),0) -> 633 | U6: =IFERROR((t_u15g_pen[[#This Row],[LJWind]]+t_u15g_pen[[#This Row],[75mHWind]])/2,"n/a") -> 0.1 | V6: =t_u15g_pen[[#This Row],[LJPoints]]+t_u15g_pen[[#This Row],[SPPoints]]+t_u15g_pen[[#This Row],[HJPoints]]+t_u15g_pen[[#This Row],[75mHPoints]]+t_u15g_pen[[#This Row],[800mPoints]] -> 2576 | W6: =IF(OR(t_u15g_pen[[#This Row],[LJ]]="DNS",t_u15g_pen[[#This Row],[SP]]="DNS",t_u15g_pen[[#This Row],[HJ]]="DNS",t_u15g_pen[[#This Row],[75mH]]="DNS",t_u15g_pen[[#This Row],[800mMins]]="DNS"),"Y","") ->  | X6: =IF(t_u15g_pen[[#This Row],[Retired]]="Y","Retired",IF(t_u15g_pen[[#This Row],[Surrey]]="N","Guest",COUNTIFS(t_u15g_pen[Retired],"<>Y",t_u15g_pen[Surrey],"<>N",t_u15g_pen[TotalPoints],">"&t_u15g_pen[[#This Row],[TotalPoints]])+1)) -> 3 | Y6: 5
A7: 242 | B7: Lily-Rose Brown | C7: Herne Hill Harriers | D7: U15G | E7: Y | F7: 3.87 | G7: 1 | H7: =IFERROR(getpoints(t_u15g_pen[[#This Row],[LJ]],"LJ",t_u15g_pen[[#This Row],[AgeGrp]]),0) -> 279 | I7: 14.17 | J7: y | K7: 0.2 | L7: =IFERROR(getpoints(t_u15g_pen[[#This Row],[75mH]],"75mH",t_u15g_pen[[#This Row],[AgeGrp]],t_u15g_pen[[#This Row],[75mHElec]]),0) -> 463 | M7: 6.67 | N7: =IFERROR(getpoints(t_u15g_pen[[#This Row],[SP]],"SP",t_u15g_pen[[#This Row],[AgeGrp]]),0) -> 314 | O7: 1.5 | P7: =IFERROR(getpoints(t_u15g_pen[[#This Row],[HJ]],"HJ",t_u15g_pen[[#This Row],[AgeGrp]]),0) -> 621 | Q7: 2 | R7: 34.06 | S7: y | T7: =IFERROR(getpoints(ROUNDDOWN(t_u15g_pen[[#This Row],[800mMins]]*60+t_u15g_pen[[#This Row],[800mSecs]],2),"800m",t_u15g_pen[[#This Row],[AgeGrp]],t_u15g_pen[[#This Row],[800mElec]]),0) -> 643 | U7: =IFERROR((t_u15g_pen[[#This Row],[LJWind]]+t_u15g_pen[[#This Row],[75mHWind]])/2,"n/a") -> 0.6 | V7: =t_u15g_pen[[#This Row],[LJPoints]]+t_u15g_pen[[#This Row],[SPPoints]]+t_u15g_pen[[#This Row],[HJPoints]]+t_u15g_pen[[#This Row],[75mHPoints]]+t_u15g_pen[[#This Row],[800mPoints]] -> 2320 | W7: =IF(OR(t_u15g_pen[[#This Row],[LJ]]="DNS",t_u15g_pen[[#This Row],[SP]]="DNS",t_u15g_pen[[#This Row],[HJ]]="DNS",t_u15g_pen[[#This Row],[75mH]]="DNS",t_u15g_pen[[#This Row],[800mMins]]="DNS"),"Y","") ->  | X7: =IF(t_u15g_pen[[#This Row],[Retired]]="Y","Retired",IF(t_u15g_pen[[#This Row],[Surrey]]="N","Guest",COUNTIFS(t_u15g_pen[Retired],"<>Y",t_u15g_pen[Surrey],"<>N",t_u15g_pen[TotalPoints],">"&t_u15g_pen[[#This Row],[TotalPoints]])+1)) -> 5 | Y7: 6
A8: 240 | B8: India Blakey | C8: Herne Hill Harriers | D8: U15G | E8: Y | H8: =IFERROR(getpoints(t_u15g_pen[[#This Row],[LJ]],"LJ",t_u15g_pen[[#This Row],[AgeGrp]]),0) -> 0 | J8: y | L8: =IFERROR(getpoints(t_u15g_pen[[#This Row],[75mH]],"75mH",t_u15g_pen[[#This Row],[AgeGrp]],t_u15g_pen[[#This Row],[75mHElec]]),0) -> 0 | N8: =IFERROR(getpoints(t_u15g_pen[[#This Row],[SP]],"SP",t_u15g_pen[[#This Row],[AgeGrp]]),0) -> 0 | P8: =IFERROR(getpoints(t_u15g_pen[[#This Row],[HJ]],"HJ",t_u15g_pen[[#This Row],[AgeGrp]]),0) -> 0 | S8: y | T8: =IFERROR(getpoints(ROUNDDOWN(t_u15g_pen[[#This Row],[800mMins]]*60+t_u15g_pen[[#This Row],[800mSecs]],2),"800m",t_u15g_pen[[#This Row],[AgeGrp]],t_u15g_pen[[#This Row],[800mElec]]),0) -> 0 | U8: =IFERROR((t_u15g_pen[[#This Row],[LJWind]]+t_u15g_pen[[#This Row],[75mHWind]])/2,"n/a") -> 0 | V8: =t_u15g_pen[[#This Row],[LJPoints]]+t_u15g_pen[[#This Row],[SPPoints]]+t_u15g_pen[[#This Row],[HJPoints]]+t_u15g_pen[[#This Row],[75mHPoints]]+t_u15g_pen[[#This Row],[800mPoints]] -> 0 | W8: =IF(OR(t_u15g_pen[[#This Row],[LJ]]="DNS",t_u15g_pen[[#This Row],[SP]]="DNS",t_u15g_pen[[#This Row],[HJ]]="DNS",t_u15g_pen[[#This Row],[75mH]]="DNS",t_u15g_pen[[#This Row],[800mMins]]="DNS"),"Y","") ->  | X8: =IF(t_u15g_pen[[#This Row],[Retired]]="Y","Retired",IF(t_u15g_pen[[#This Row],[Surrey]]="N","Guest",COUNTIFS(t_u15g_pen[Retired],"<>Y",t_u15g_pen[Surrey],"<>N",t_u15g_pen[TotalPoints],">"&t_u15g_pen[[#This Row],[TotalPoints]])+1)) -> 9 | Y8: 7
A9: 249 | B9: Claudia Warren | C9: Waverley Harriers | D9: U15G | E9: Y | H9: =IFERROR(getpoints(t_u15g_pen[[#This Row],[LJ]],"LJ",t_u15g_pen[[#This Row],[AgeGrp]]),0) -> 0 | J9: y | L9: =IFERROR(getpoints(t_u15g_pen[[#This Row],[75mH]],"75mH",t_u15g_pen[[#This Row],[AgeGrp]],t_u15g_pen[[#This Row],[75mHElec]]),0) -> 0 | N9: =IFERROR(getpoints(t_u15g_pen[[#This Row],[SP]],"SP",t_u15g_pen[[#This Row],[AgeGrp]]),0) -> 0 | P9: =IFERROR(getpoints(t_u15g_pen[[#This Row],[HJ]],"HJ",t_u15g_pen[[#This Row],[AgeGrp]]),0) -> 0 | S9: y | T9: =IFERROR(getpoints(ROUNDDOWN(t_u15g_pen[[#This Row],[800mMins]]*60+t_u15g_pen[[#This Row],[800mSecs]],2),"800m",t_u15g_pen[[#This Row],[AgeGrp]],t_u15g_pen[[#This Row],[800mElec]]),0) -> 0 | U9: =IFERROR((t_u15g_pen[[#This Row],[LJWind]]+t_u15g_pen[[#This Row],[75mHWind]])/2,"n/a") -> 0 | V9: =t_u15g_pen[[#This Row],[LJPoints]]+t_u15g_pen[[#This Row],[SPPoints]]+t_u15g_pen[[#This Row],[HJPoints]]+t_u15g_pen[[#This Row],[75mHPoints]]+t_u15g_pen[[#This Row],[800mPoints]] -> 0 | W9: =IF(OR(t_u15g_pen[[#This Row],[LJ]]="DNS",t_u15g_pen[[#This Row],[SP]]="DNS",t_u15g_pen[[#This Row],[HJ]]="DNS",t_u15g_pen[[#This Row],[75mH]]="DNS",t_u15g_pen[[#This Row],[800mMins]]="DNS"),"Y","") ->  | X9: =IF(t_u15g_pen[[#This Row],[Retired]]="Y","Retired",IF(t_u15g_pen[[#This Row],[Surrey]]="N","Guest",COUNTIFS(t_u15g_pen[Retired],"<>Y",t_u15g_pen[Surrey],"<>N",t_u15g_pen[TotalPoints],">"&t_u15g_pen[[#This Row],[TotalPoints]])+1)) -> 9 | Y9: 8
A10: 243 | B10: Isabel Caamano | C10: Camberley & District AC | D10: U15G | E10: Y | F10: 4.36 | G10: 0 | H10: =IFERROR(getpoints(t_u15g_pen[[#This Row],[LJ]],"LJ",t_u15g_pen[[#This Row],[AgeGrp]]),0) -> 393 | I10: 13.61 | J10: y | K10: 0.2 | L10: =IFERROR(getpoints(t_u15g_pen[[#This Row],[75mH]],"75mH",t_u15g_pen[[#This Row],[AgeGrp]],t_u15g_pen[[#This Row],[75mHElec]]),0) -> 510 | M10: 7.1 | N10: =IFERROR(getpoints(t_u15g_pen[[#This Row],[SP]],"SP",t_u15g_pen[[#This Row],[AgeGrp]]),0) -> 341 | O10: 1.5 | P10: =IFERROR(getpoints(t_u15g_pen[[#This Row],[HJ]],"HJ",t_u15g_pen[[#This Row],[AgeGrp]]),0) -> 621 | Q10: 2 | R10: 54.43 | S10: y | T10: =IFERROR(getpoints(ROUNDDOWN(t_u15g_pen[[#This Row],[800mMins]]*60+t_u15g_pen[[#This Row],[800mSecs]],2),"800m",t_u15g_pen[[#This Row],[AgeGrp]],t_u15g_pen[[#This Row],[800mElec]]),0) -> 419 | U10: =IFERROR((t_u15g_pen[[#This Row],[LJWind]]+t_u15g_pen[[#This Row],[75mHWind]])/2,"n/a") -> 0.1 | V10: =t_u15g_pen[[#This Row],[LJPoints]]+t_u15g_pen[[#This Row],[SPPoints]]+t_u15g_pen[[#This Row],[HJPoints]]+t_u15g_pen[[#This Row],[75mHPoints]]+t_u15g_pen[[#This Row],[800mPoints]] -> 2284 | W10: =IF(OR(t_u15g_pen[[#This Row],[LJ]]="DNS",t_u15g_pen[[#This Row],[SP]]="DNS",t_u15g_pen[[#This Row],[HJ]]="DNS",t_u15g_pen[[#This Row],[75mH]]="DNS",t_u15g_pen[[#This Row],[800mMins]]="DNS"),"Y","") ->  | X10: =IF(t_u15g_pen[[#This Row],[Retired]]="Y","Retired",IF(t_u15g_pen[[#This Row],[Surrey]]="N","Guest",COUNTIFS(t_u15g_pen[Retired],"<>Y",t_u15g_pen[Surrey],"<>N",t_u15g_pen[TotalPoints],">"&t_u15g_pen[[#This Row],[TotalPoints]])+1)) -> 6 | Y10: 9
A11: 247 | B11: Estee Norman | C11: Epsom & Ewell Harriers | D11: U15G | E11: Y | H11: =IFERROR(getpoints(t_u15g_pen[[#This Row],[LJ]],"LJ",t_u15g_pen[[#This Row],[AgeGrp]]),0) -> 0 | J11: y | L11: =IFERROR(getpoints(t_u15g_pen[[#This Row],[75mH]],"75mH",t_u15g_pen[[#This Row],[AgeGrp]],t_u15g_pen[[#This Row],[75mHElec]]),0) -> 0 | N11: =IFERROR(getpoints(t_u15g_pen[[#This Row],[SP]],"SP",t_u15g_pen[[#This Row],[AgeGrp]]),0) -> 0 | P11: =IFERROR(getpoints(t_u15g_pen[[#This Row],[HJ]],"HJ",t_u15g_pen[[#This Row],[AgeGrp]]),0) -> 0 | S11: y | T11: =IFERROR(getpoints(ROUNDDOWN(t_u15g_pen[[#This Row],[800mMins]]*60+t_u15g_pen[[#This Row],[800mSecs]],2),"800m",t_u15g_pen[[#This Row],[AgeGrp]],t_u15g_pen[[#This Row],[800mElec]]),0) -> 0 | U11: =IFERROR((t_u15g_pen[[#This Row],[LJWind]]+t_u15g_pen[[#This Row],[75mHWind]])/2,"n/a") -> 0 | V11: =t_u15g_pen[[#This Row],[LJPoints]]+t_u15g_pen[[#This Row],[SPPoints]]+t_u15g_pen[[#This Row],[HJPoints]]+t_u15g_pen[[#This Row],[75mHPoints]]+t_u15g_pen[[#This Row],[800mPoints]] -> 0 | W11: =IF(OR(t_u15g_pen[[#This Row],[LJ]]="DNS",t_u15g_pen[[#This Row],[SP]]="DNS",t_u15g_pen[[#This Row],[HJ]]="DNS",t_u15g_pen[[#This Row],[75mH]]="DNS",t_u15g_pen[[#This Row],[800mMins]]="DNS"),"Y","") ->  | X11: =IF(t_u15g_pen[[#This Row],[Retired]]="Y","Retired",IF(t_u15g_pen[[#This Row],[Surrey]]="N","Guest",COUNTIFS(t_u15g_pen[Retired],"<>Y",t_u15g_pen[Surrey],"<>N",t_u15g_pen[TotalPoints],">"&t_u15g_pen[[#This Row],[TotalPoints]])+1)) -> 9 | Y11: 10
A12: 241 | B12: Amber Bloomfield | C12: Croydon Harriers | D12: U15G | E12: Y | F12: 4.44 | G12: 0 | H12: =IFERROR(getpoints(t_u15g_pen[[#This Row],[LJ]],"LJ",t_u15g_pen[[#This Row],[AgeGrp]]),0) -> 413 | I12: 12.59 | J12: y | K12: 0.2 | L12: =IFERROR(getpoints(t_u15g_pen[[#This Row],[75mH]],"75mH",t_u15g_pen[[#This Row],[AgeGrp]],t_u15g_pen[[#This Row],[75mHElec]]),0) -> 610 | M12: 9 | N12: =IFERROR(getpoints(t_u15g_pen[[#This Row],[SP]],"SP",t_u15g_pen[[#This Row],[AgeGrp]]),0) -> 464 | O12: 1.41 | P12: =IFERROR(getpoints(t_u15g_pen[[#This Row],[HJ]],"HJ",t_u15g_pen[[#This Row],[AgeGrp]]),0) -> 523 | Q12: 2 | R12: 59.84 | S12: y | T12: =IFERROR(getpoints(ROUNDDOWN(t_u15g_pen[[#This Row],[800mMins]]*60+t_u15g_pen[[#This Row],[800mSecs]],2),"800m",t_u15g_pen[[#This Row],[AgeGrp]],t_u15g_pen[[#This Row],[800mElec]]),0) -> 367 | U12: =IFERROR((t_u15g_pen[[#This Row],[LJWind]]+t_u15g_pen[[#This Row],[75mHWind]])/2,"n/a") -> 0.1 | V12: =t_u15g_pen[[#This Row],[LJPoints]]+t_u15g_pen[[#This Row],[SPPoints]]+t_u15g_pen[[#This Row],[HJPoints]]+t_u15g_pen[[#This Row],[75mHPoints]]+t_u15g_pen[[#This Row],[800mPoints]] -> 2377 | W12: =IF(OR(t_u15g_pen[[#This Row],[LJ]]="DNS",t_u15g_pen[[#This Row],[SP]]="DNS",t_u15g_pen[[#This Row],[HJ]]="DNS",t_u15g_pen[[#This Row],[75mH]]="DNS",t_u15g_pen[[#This Row],[800mMins]]="DNS"),"Y","") ->  | X12: =IF(t_u15g_pen[[#This Row],[Retired]]="Y","Retired",IF(t_u15g_pen[[#This Row],[Surrey]]="N","Guest",COUNTIFS(t_u15g_pen[Retired],"<>Y",t_u15g_pen[Surrey],"<>N",t_u15g_pen[TotalPoints],">"&t_u15g_pen[[#This Row],[TotalPoints]])+1)) -> 4 | Y12: 11
A13: 254 | B13: Lucy Chapelhow | C13: Thurrock Harriers | D13: U15G | E13: N | F13: 4.21 | G13: 0 | H13: =IFERROR(getpoints(t_u15g_pen[[#This Row],[LJ]],"LJ",t_u15g_pen[[#This Row],[AgeGrp]]),0) -> 357 | I13: 13.06 | J13: y | K13: -1.2 | L13: =IFERROR(getpoints(t_u15g_pen[[#This Row],[75mH]],"75mH",t_u15g_pen[[#This Row],[AgeGrp]],t_u15g_pen[[#This Row],[75mHElec]]),0) -> 562 | M13: 6.43 | N13: =IFERROR(getpoints(t_u15g_pen[[#This Row],[SP]],"SP",t_u15g_pen[[#This Row],[AgeGrp]]),0) -> 299 | O13: 1.35 | P13: =IFERROR(getpoints(t_u15g_pen[[#This Row],[HJ]],"HJ",t_u15g_pen[[#This Row],[AgeGrp]]),0) -> 460 | Q13: 2 | R13: 36.55 | S13: y | T13: =IFERROR(getpoints(ROUNDDOWN(t_u15g_pen[[#This Row],[800mMins]]*60+t_u15g_pen[[#This Row],[800mSecs]],2),"800m",t_u15g_pen[[#This Row],[AgeGrp]],t_u15g_pen[[#This Row],[800mElec]]),0) -> 613 | U13: =IFERROR((t_u15g_pen[[#This Row],[LJWind]]+t_u15g_pen[[#This Row],[75mHWind]])/2,"n/a") -> -0.6 | V13: =t_u15g_pen[[#This Row],[LJPoints]]+t_u15g_pen[[#This Row],[SPPoints]]+t_u15g_pen[[#This Row],[HJPoints]]+t_u15g_pen[[#This Row],[75mHPoints]]+t_u15g_pen[[#This Row],[800mPoints]] -> 2291 | W13: =IF(OR(t_u15g_pen[[#This Row],[LJ]]="DNS",t_u15g_pen[[#This Row],[SP]]="DNS",t_u15g_pen[[#This Row],[HJ]]="DNS",t_u15g_pen[[#This Row],[75mH]]="DNS",t_u15g_pen[[#This Row],[800mMins]]="DNS"),"Y","") ->  | X13: =IF(t_u15g_pen[[#This Row],[Retired]]="Y","Retired",IF(t_u15g_pen[[#This Row],[Surrey]]="N","Guest",COUNTIFS(t_u15g_pen[Retired],"<>Y",t_u15g_pen[Surrey],"<>N",t_u15g_pen[TotalPoints],">"&t_u15g_pen[[#This Row],[TotalPoints]])+1)) -> Guest | Y13: 12
A14: 257 | B14: Zairah Newth | C14: Ealing Southall & Middlesex AC | D14: U15G | E14: N | F14: 4.04 | G14: 0 | H14: =IFERROR(getpoints(t_u15g_pen[[#This Row],[LJ]],"LJ",t_u15g_pen[[#This Row],[AgeGrp]]),0) -> 317 | I14: 15.67 | J14: y | K14: -1.2 | L14: =IFERROR(getpoints(t_u15g_pen[[#This Row],[75mH]],"75mH",t_u15g_pen[[#This Row],[AgeGrp]],t_u15g_pen[[#This Row],[75mHElec]]),0) -> 348 | M14: 5.73 | N14: =IFERROR(getpoints(t_u15g_pen[[#This Row],[SP]],"SP",t_u15g_pen[[#This Row],[AgeGrp]]),0) -> 254 | O14: 1.26 | P14: =IFERROR(getpoints(t_u15g_pen[[#This Row],[HJ]],"HJ",t_u15g_pen[[#This Row],[AgeGrp]]),0) -> 369 | Q14: 2 | R14: 50.03 | S14: y | T14: =IFERROR(getpoints(ROUNDDOWN(t_u15g_pen[[#This Row],[800mMins]]*60+t_u15g_pen[[#This Row],[800mSecs]],2),"800m",t_u15g_pen[[#This Row],[AgeGrp]],t_u15g_pen[[#This Row],[800mElec]]),0) -> 463 | U14: =IFERROR((t_u15g_pen[[#This Row],[LJWind]]+t_u15g_pen[[#This Row],[75mHWind]])/2,"n/a") -> -0.6 | V14: =t_u15g_pen[[#This Row],[LJPoints]]+t_u15g_pen[[#This Row],[SPPoints]]+t_u15g_pen[[#This Row],[HJPoints]]+t_u15g_pen[[#This Row],[75mHPoints]]+t_u15g_pen[[#This Row],[800mPoints]] -> 1751 | W14: =IF(OR(t_u15g_pen[[#This Row],[LJ]]="DNS",t_u15g_pen[[#This Row],[SP]]="DNS",t_u15g_pen[[#This Row],[HJ]]="DNS",t_u15g_pen[[#This Row],[75mH]]="DNS",t_u15g_pen[[#This Row],[800mMins]]="DNS"),"Y","") ->  | X14: =IF(t_u15g_pen[[#This Row],[Retired]]="Y","Retired",IF(t_u15g_pen[[#This Row],[Surrey]]="N","Guest",COUNTIFS(t_u15g_pen[Retired],"<>Y",t_u15g_pen[Surrey],"<>N",t_u15g_pen[TotalPoints],">"&t_u15g_pen[[#This Row],[TotalPoints]])+1)) -> Guest | Y14: 13
A15: 256 | B15: Olivia London | C15: Vale Of Aylesbury AC | D15: U15G | E15: N | H15: =IFERROR(getpoints(t_u15g_pen[[#This Row],[LJ]],"LJ",t_u15g_pen[[#This Row],[AgeGrp]]),0) -> 0 | J15: y | L15: =IFERROR(getpoints(t_u15g_pen[[#This Row],[75mH]],"75mH",t_u15g_pen[[#This Row],[AgeGrp]],t_u15g_pen[[#This Row],[75mHElec]]),0) -> 0 | N15: =IFERROR(getpoints(t_u15g_pen[[#This Row],[SP]],"SP",t_u15g_pen[[#This Row],[AgeGrp]]),0) -> 0 | P15: =IFERROR(getpoints(t_u15g_pen[[#This Row],[HJ]],"HJ",t_u15g_pen[[#This Row],[AgeGrp]]),0) -> 0 | S15: y | T15: =IFERROR(getpoints(ROUNDDOWN(t_u15g_pen[[#This Row],[800mMins]]*60+t_u15g_pen[[#This Row],[800mSecs]],2),"800m",t_u15g_pen[[#This Row],[AgeGrp]],t_u15g_pen[[#This Row],[800mElec]]),0) -> 0 | U15: =IFERROR((t_u15g_pen[[#This Row],[LJWind]]+t_u15g_pen[[#This Row],[75mHWind]])/2,"n/a") -> 0 | V15: =t_u15g_pen[[#This Row],[LJPoints]]+t_u15g_pen[[#This Row],[SPPoints]]+t_u15g_pen[[#This Row],[HJPoints]]+t_u15g_pen[[#This Row],[75mHPoints]]+t_u15g_pen[[#This Row],[800mPoints]] -> 0 | W15: =IF(OR(t_u15g_pen[[#This Row],[LJ]]="DNS",t_u15g_pen[[#This Row],[SP]]="DNS",t_u15g_pen[[#This Row],[HJ]]="DNS",t_u15g_pen[[#This Row],[75mH]]="DNS",t_u15g_pen[[#This Row],[800mMins]]="DNS"),"Y","") ->  | X15: =IF(t_u15g_pen[[#This Row],[Retired]]="Y","Retired",IF(t_u15g_pen[[#This Row],[Surrey]]="N","Guest",COUNTIFS(t_u15g_pen[Retired],"<>Y",t_u15g_pen[Surrey],"<>N",t_u15g_pen[TotalPoints],">"&t_u15g_pen[[#This Row],[TotalPoints]])+1)) -> Guest | Y15: 14
A16: 252 | B16: Megan Banks | C16: Basingstoke & Mid Hants AC | D16: U15G | E16: N | F16: 4.04 | G16: 0 | H16: =IFERROR(getpoints(t_u15g_pen[[#This Row],[LJ]],"LJ",t_u15g_pen[[#This Row],[AgeGrp]]),0) -> 317 | I16: 14.64 | J16: y | K16: -1.2 | L16: =IFERROR(getpoints(t_u15g_pen[[#This Row],[75mH]],"75mH",t_u15g_pen[[#This Row],[AgeGrp]],t_u15g_pen[[#This Row],[75mHElec]]),0) -> 422 | M16: 6.06 | N16: =IFERROR(getpoints(t_u15g_pen[[#This Row],[SP]],"SP",t_u15g_pen[[#This Row],[AgeGrp]]),0) -> 275 | O16: 1.35 | P16: =IFERROR(getpoints(t_u15g_pen[[#This Row],[HJ]],"HJ",t_u15g_pen[[#This Row],[AgeGrp]]),0) -> 460 | Q16: 2 | R16: 54.42 | S16: y | T16: =IFERROR(getpoints(ROUNDDOWN(t_u15g_pen[[#This Row],[800mMins]]*60+t_u15g_pen[[#This Row],[800mSecs]],2),"800m",t_u15g_pen[[#This Row],[AgeGrp]],t_u15g_pen[[#This Row],[800mElec]]),0) -> 419 | U16: =IFERROR((t_u15g_pen[[#This Row],[LJWind]]+t_u15g_pen[[#This Row],[75mHWind]])/2,"n/a") -> -0.6 | V16: =t_u15g_pen[[#This Row],[LJPoints]]+t_u15g_pen[[#This Row],[SPPoints]]+t_u15g_pen[[#This Row],[HJPoints]]+t_u15g_pen[[#This Row],[75mHPoints]]+t_u15g_pen[[#This Row],[800mPoints]] -> 1893 | W16: =IF(OR(t_u15g_pen[[#This Row],[LJ]]="DNS",t_u15g_pen[[#This Row],[SP]]="DNS",t_u15g_pen[[#This Row],[HJ]]="DNS",t_u15g_pen[[#This Row],[75mH]]="DNS",t_u15g_pen[[#This Row],[800mMins]]="DNS"),"Y","") ->  | X16: =IF(t_u15g_pen[[#This Row],[Retired]]="Y","Retired",IF(t_u15g_pen[[#This Row],[Surrey]]="N","Guest",COUNTIFS(t_u15g_pen[Retired],"<>Y",t_u15g_pen[Surrey],"<>N",t_u15g_pen[TotalPoints],">"&t_u15g_pen[[#This Row],[TotalPoints]])+1)) -> Guest | Y16: 15
A17: 251 | B17: Charlotte Ashby | C17: Reading AC | D17: U15G | E17: N | F17: 4.55 | G17: 0 | H17: =IFERROR(getpoints(t_u15g_pen[[#This Row],[LJ]],"LJ",t_u15g_pen[[#This Row],[AgeGrp]]),0) -> 441 | I17: 13.12 | J17: y | K17: -1.2 | L17: =IFERROR(getpoints(t_u15g_pen[[#This Row],[75mH]],"75mH",t_u15g_pen[[#This Row],[AgeGrp]],t_u15g_pen[[#This Row],[75mHElec]]),0) -> 556 | M17: 7.89 | N17: =IFERROR(getpoints(t_u15g_pen[[#This Row],[SP]],"SP",t_u15g_pen[[#This Row],[AgeGrp]]),0) -> 392 | O17: 1.29 | P17: =IFERROR(getpoints(t_u15g_pen[[#This Row],[HJ]],"HJ",t_u15g_pen[[#This Row],[AgeGrp]]),0) -> 399 | Q17: 2 | R17: 49.19 | S17: y | T17: =IFERROR(getpoints(ROUNDDOWN(t_u15g_pen[[#This Row],[800mMins]]*60+t_u15g_pen[[#This Row],[800mSecs]],2),"800m",t_u15g_pen[[#This Row],[AgeGrp]],t_u15g_pen[[#This Row],[800mElec]]),0) -> 472 | U17: =IFERROR((t_u15g_pen[[#This Row],[LJWind]]+t_u15g_pen[[#This Row],[75mHWind]])/2,"n/a") -> -0.6 | V17: =t_u15g_pen[[#This Row],[LJPoints]]+t_u15g_pen[[#This Row],[SPPoints]]+t_u15g_pen[[#This Row],[HJPoints]]+t_u15g_pen[[#This Row],[75mHPoints]]+t_u15g_pen[[#This Row],[800mPoints]] -> 2260 | W17: =IF(OR(t_u15g_pen[[#This Row],[LJ]]="DNS",t_u15g_pen[[#This Row],[SP]]="DNS",t_u15g_pen[[#This Row],[HJ]]="DNS",t_u15g_pen[[#This Row],[75mH]]="DNS",t_u15g_pen[[#This Row],[800mMins]]="DNS"),"Y","") ->  | X17: =IF(t_u15g_pen[[#This Row],[Retired]]="Y","Retired",IF(t_u15g_pen[[#This Row],[Surrey]]="N","Guest",COUNTIFS(t_u15g_pen[Retired],"<>Y",t_u15g_pen[Surrey],"<>N",t_u15g_pen[TotalPoints],">"&t_u15g_pen[[#This Row],[TotalPoints]])+1)) -> Guest | Y17: 16
A18: 253 | B18: Charlotte Bigmore | C18: Reading AC | D18: U15G | E18: N | H18: =IFERROR(getpoints(t_u15g_pen[[#This Row],[LJ]],"LJ",t_u15g_pen[[#This Row],[AgeGrp]]),0) -> 0 | J18: y | L18: =IFERROR(getpoints(t_u15g_pen[[#This Row],[75mH]],"75mH",t_u15g_pen[[#This Row],[AgeGrp]],t_u15g_pen[[#This Row],[75mHElec]]),0) -> 0 | N18: =IFERROR(getpoints(t_u15g_pen[[#This Row],[SP]],"SP",t_u15g_pen[[#This Row],[AgeGrp]]),0) -> 0 | P18: =IFERROR(getpoints(t_u15g_pen[[#This Row],[HJ]],"HJ",t_u15g_pen[[#This Row],[AgeGrp]]),0) -> 0 | S18: y | T18: =IFERROR(getpoints(ROUNDDOWN(t_u15g_pen[[#This Row],[800mMins]]*60+t_u15g_pen[[#This Row],[800mSecs]],2),"800m",t_u15g_pen[[#This Row],[AgeGrp]],t_u15g_pen[[#This Row],[800mElec]]),0) -> 0 | U18: =IFERROR((t_u15g_pen[[#This Row],[LJWind]]+t_u15g_pen[[#This Row],[75mHWind]])/2,"n/a") -> 0 | V18: =t_u15g_pen[[#This Row],[LJPoints]]+t_u15g_pen[[#This Row],[SPPoints]]+t_u15g_pen[[#This Row],[HJPoints]]+t_u15g_pen[[#This Row],[75mHPoints]]+t_u15g_pen[[#This Row],[800mPoints]] -> 0 | W18: =IF(OR(t_u15g_pen[[#This Row],[LJ]]="DNS",t_u15g_pen[[#This Row],[SP]]="DNS",t_u15g_pen[[#This Row],[HJ]]="DNS",t_u15g_pen[[#This Row],[75mH]]="DNS",t_u15g_pen[[#This Row],[800mMins]]="DNS"),"Y","") ->  | X18: =IF(t_u15g_pen[[#This Row],[Retired]]="Y","Retired",IF(t_u15g_pen[[#This Row],[Surrey]]="N","Guest",COUNTIFS(t_u15g_pen[Retired],"<>Y",t_u15g_pen[Surrey],"<>N",t_u15g_pen[TotalPoints],">"&t_u15g_pen[[#This Row],[TotalPoints]])+1)) -> Guest | Y18: 17
A19: 255 | B19: Moriah Hurst | C19: Reading AC | D19: U15G | E19: N | F19: 4.11 | G19: 0 | H19: =IFERROR(getpoints(t_u15g_pen[[#This Row],[LJ]],"LJ",t_u15g_pen[[#This Row],[AgeGrp]]),0) -> 333 | I19: 12.49 | J19: y | K19: -1.2 | L19: =IFERROR(getpoints(t_u15g_pen[[#This Row],[75mH]],"75mH",t_u15g_pen[[#This Row],[AgeGrp]],t_u15g_pen[[#This Row],[75mHElec]]),0) -> 621 | M19: 8.1 | N19: =IFERROR(getpoints(t_u15g_pen[[#This Row],[SP]],"SP",t_u15g_pen[[#This Row],[AgeGrp]]),0) -> 406 | O19: 1.38 | P19: =IFERROR(getpoints(t_u15g_pen[[#This Row],[HJ]],"HJ",t_u15g_pen[[#This Row],[AgeGrp]]),0) -> 491 | Q19: 2 | R19: 51.41 | S19: y | T19: =IFERROR(getpoints(ROUNDDOWN(t_u15g_pen[[#This Row],[800mMins]]*60+t_u15g_pen[[#This Row],[800mSecs]],2),"800m",t_u15g_pen[[#This Row],[AgeGrp]],t_u15g_pen[[#This Row],[800mElec]]),0) -> 449 | U19: =IFERROR((t_u15g_pen[[#This Row],[LJWind]]+t_u15g_pen[[#This Row],[75mHWind]])/2,"n/a") -> -0.6 | V19: =t_u15g_pen[[#This Row],[LJPoints]]+t_u15g_pen[[#This Row],[SPPoints]]+t_u15g_pen[[#This Row],[HJPoints]]+t_u15g_pen[[#This Row],[75mHPoints]]+t_u15g_pen[[#This Row],[800mPoints]] -> 2300 | W19: =IF(OR(t_u15g_pen[[#This Row],[LJ]]="DNS",t_u15g_pen[[#This Row],[SP]]="DNS",t_u15g_pen[[#This Row],[HJ]]="DNS",t_u15g_pen[[#This Row],[75mH]]="DNS",t_u15g_pen[[#This Row],[800mMins]]="DNS"),"Y","") ->  | X19: =IF(t_u15g_pen[[#This Row],[Retired]]="Y","Retired",IF(t_u15g_pen[[#This Row],[Surrey]]="N","Guest",COUNTIFS(t_u15g_pen[Retired],"<>Y",t_u15g_pen[Surrey],"<>N",t_u15g_pen[TotalPoints],">"&t_u15g_pen[[#This Row],[TotalPoints]])+1)) -> Guest | Y19: 18
A20: 250 | B20: Tomi Adejuwon | C20: Reading AC | D20: U15G | E20: N | H20: =IFERROR(getpoints(t_u15g_pen[[#This Row],[LJ]],"LJ",t_u15g_pen[[#This Row],[AgeGrp]]),0) -> 0 | J20: y | L20: =IFERROR(getpoints(t_u15g_pen[[#This Row],[75mH]],"75mH",t_u15g_pen[[#This Row],[AgeGrp]],t_u15g_pen[[#This Row],[75mHElec]]),0) -> 0 | N20: =IFERROR(getpoints(t_u15g_pen[[#This Row],[SP]],"SP",t_u15g_pen[[#This Row],[AgeGrp]]),0) -> 0 | P20: =IFERROR(getpoints(t_u15g_pen[[#This Row],[HJ]],"HJ",t_u15g_pen[[#This Row],[AgeGrp]]),0) -> 0 | S20: y | T20: =IFERROR(getpoints(ROUNDDOWN(t_u15g_pen[[#This Row],[800mMins]]*60+t_u15g_pen[[#This Row],[800mSecs]],2),"800m",t_u15g_pen[[#This Row],[AgeGrp]],t_u15g_pen[[#This Row],[800mElec]]),0) -> 0 | U20: =IFERROR((t_u15g_pen[[#This Row],[LJWind]]+t_u15g_pen[[#This Row],[75mHWind]])/2,"n/a") -> 0 | V20: =t_u15g_pen[[#This Row],[LJPoints]]+t_u15g_pen[[#This Row],[SPPoints]]+t_u15g_pen[[#This Row],[HJPoints]]+t_u15g_pen[[#This Row],[75mHPoints]]+t_u15g_pen[[#This Row],[800mPoints]] -> 0 | W20: =IF(OR(t_u15g_pen[[#This Row],[LJ]]="DNS",t_u15g_pen[[#This Row],[SP]]="DNS",t_u15g_pen[[#This Row],[HJ]]="DNS",t_u15g_pen[[#This Row],[75mH]]="DNS",t_u15g_pen[[#This Row],[800mMins]]="DNS"),"Y","") ->  | X20: =IF(t_u15g_pen[[#This Row],[Retired]]="Y","Retired",IF(t_u15g_pen[[#This Row],[Surrey]]="N","Guest",COUNTIFS(t_u15g_pen[Retired],"<>Y",t_u15g_pen[Surrey],"<>N",t_u15g_pen[TotalPoints],">"&t_u15g_pen[[#This Row],[TotalPoints]])+1)) -> Guest | Y20: 19

Sheet U15 Girls Results
B1: Holder: | C1: =INDEX(t_holder[Name],MATCH("u15g",t_holder[AgeGrp],0)) -> Gabriella Thoburn | F1: =INDEX(t_holder[Club],MATCH("u15g",t_holder[AgeGrp],0)) -> South London Harriers | J1: =INDEX(t_holder[Points],MATCH("u15g",t_holder[AgeGrp],0)) & " pts" -> 2641 pts
B2: CBP: | C2: =INDEX(t_cbp[Name],MATCH("u15g",t_cbp[AgeGrp],0)) -> Sandra Fench | F2: =INDEX(t_cbp[Club],MATCH("u15g",t_cbp[AgeGrp],0)) -> Feltham AC | J2: =INDEX(t_cbp[Points],MATCH("u15g",t_cbp[AgeGrp],0)) & " Pts" -> 3338 Pts | K2: =INDEX(t_cbp[Year],MATCH("u15g",t_cbp[AgeGrp],0)) -> 1978
J4: Av Wind
B5: Pos | C5: Athlete | E5: LJ | F5: 75mH | G5: Shot | H5: HJ | I5: 800m | J5: Final Total
A6: 1 | C6: =INDEX(t_u15g_pen[Bib],MATCH(A6,t_u15g_pen[AllPos],0)) -> 244 | D6: Perf | E6: =INDEX(t_u15g_pen[LJ],MATCH(A6,t_u15g_pen[AllPos],0)) -> 4.56 | F6: =INDEX(t_u15g_pen[75mH],MATCH(A6,t_u15g_pen[AllPos],0)) -> 12.39 | G6: =INDEX(t_u15g_pen[SP],MATCH(A6,t_u15g_pen[AllPos],0)) -> 10.05 | H6: =INDEX(t_u15g_pen[HJ],MATCH(A6,t_u15g_pen[AllPos],0)) -> 1.41 | I6: =IFERROR((INDEX(t_u15g_pen[800mMins],MATCH(A6,t_u15g_pen[AllPos],0))*60+INDEX(t_u15g_pen[800mSecs],MATCH(A6,t_u15g_pen[AllPos],0)))/86400,"") -> 0.001803587963
B7: =INDEX(t_u15g_pen[FinalPosition],MATCH(A6,t_u15g_pen[AllPos],0)) -> 1 | C7: =INDEX(t_u15g_pen[Name],MATCH(A6,t_u15g_pen[AllPos],0)) -> Jessica Howells | D7: Wind | E7: =INDEX(t_u15g_pen[LJWind],MATCH(A6,t_u15g_pen[AllPos],0)) -> 0.1 | F7: =INDEX(t_u15g_pen[75mHWind],MATCH(A6,t_u15g_pen[AllPos],0)) -> 0.2 | J7: =INDEX(t_u15g_pen[AvWind],MATCH(A6,t_u15g_pen[AllPos],0)) -> 0.15
C8: =INDEX(t_u15g_pen[Club],MATCH(A6,t_u15g_pen[AllPos],0)) -> Guildford & Godalming AC | D8: Points | E8: =INDEX(t_u15g_pen[LJPoints],MATCH(A6,t_u15g_pen[AllPos],0)) -> 443 | F8: =INDEX(t_u15g_pen[75mHPoints],MATCH(A6,t_u15g_pen[AllPos],0)) -> 631 | G8: =INDEX(t_u15g_pen[SPPoints],MATCH(A6,t_u15g_pen[AllPos],0)) -> 533 | H8: =INDEX(t_u15g_pen[HJPoints],MATCH(A6,t_u15g_pen[AllPos],0)) -> 523 | I8: =INDEX(t_u15g_pen[800mPoints],MATCH(A6,t_u15g_pen[AllPos],0)) -> 622 | J8: =INDEX(t_u15g_pen[TotalPoints],MATCH(A6,t_u15g_pen[AllPos],0)) -> 2752
A9: =A6+1 -> 2 | C9: =INDEX(t_u15g_pen[Bib],MATCH(A9,t_u15g_pen[AllPos],0)) -> 245 | D9: Perf | E9: =INDEX(t_u15g_pen[LJ],MATCH(A9,t_u15g_pen[AllPos],0)) -> 4.18 | F9: =INDEX(t_u15g_pen[75mH],MATCH(A9,t_u15g_pen[AllPos],0)) -> 13.78 | G9: =INDEX(t_u15g_pen[SP],MATCH(A9,t_u15g_pen[AllPos],0)) -> 4.71 | H9: =INDEX(t_u15g_pen[HJ],MATCH(A9,t_u15g_pen[AllPos],0)) -> 1.11 | I9: =IFERROR((INDEX(t_u15g_pen[800mMins],MATCH(A9,t_u15g_pen[AllPos],0))*60+INDEX(t_u15g_pen[800mSecs],MATCH(A9,t_u15g_pen[AllPos],0)))/86400,"") -> 0.001843865741
B10: =INDEX(t_u15g_pen[FinalPosition],MATCH(A9,t_u15g_pen[AllPos],0)) -> 8 | C10: =INDEX(t_u15g_pen[Name],MATCH(A9,t_u15g_pen[AllPos],0)) -> Rosalie Laban | D10: Wind | E10: =INDEX(t_u15g_pen[LJWind],MATCH(A9,t_u15g_pen[AllPos],0)) -> 0 | F10: =INDEX(t_u15g_pen[75mHWind],MATCH(A9,t_u15g_pen[AllPos],0)) -> 0.2 | J10: =INDEX(t_u15g_pen[AvWind],MATCH(A9,t_u15g_pen[AllPos],0)) -> 0.1
C11: =INDEX(t_u15g_pen[Club],MATCH(A9,t_u15g_pen[AllPos],0)) -> Herne Hill Harriers | D11: Points | E11: =INDEX(t_u15g_pen[LJPoints],MATCH(A9,t_u15g_pen[AllPos],0)) -> 350 | F11: =INDEX(t_u15g_pen[75mHPoints],MATCH(A9,t_u15g_pen[AllPos],0)) -> 497 | G11: =INDEX(t_u15g_pen[SPPoints],MATCH(A9,t_u15g_pen[AllPos],0)) -> 190 | H11: =INDEX(t_u15g_pen[HJPoints],MATCH(A9,t_u15g_pen[AllPos],0)) -> 231 | I11: =INDEX(t_u15g_pen[800mPoints],MATCH(A9,t_u15g_pen[AllPos],0)) -> 581 | J11: =INDEX(t_u15g_pen[TotalPoints],MATCH(A9,t_u15g_pen[AllPos],0)) -> 1849
A12: =A9+1 -> 3 | C12: =INDEX(t_u15g_pen[Bib],MATCH(A12,t_u15g_pen[AllPos],0)) -> 239 | D12: Perf | E12: =INDEX(t_u15g_pen[LJ],MATCH(A12,t_u15g_pen[AllPos],0)) -> 4.01 | F12: =INDEX(t_u15g_pen[75mH],MATCH(A12,t_u15g_pen[AllPos],0)) -> 14.04 | G12: =INDEX(t_u15g_pen[SP],MATCH(A12,t_u15g_pen[AllPos],0)) -> 7.94 | H12: =INDEX(t_u15g_pen[HJ],MATCH(A12,t_u15g_pen[AllPos],0)) -> 1.38 | I12: =IFERROR((INDEX(t_u15g_pen[800mMins],MATCH(A12,t_u15g_pen[AllPos],0))*60+INDEX(t_u15g_pen[800mSecs],MATCH(A12,t_u15g_pen[AllPos],0)))/86400,"") -> 0.002183101852
B13: =INDEX(t_u15g_pen[FinalPosition],MATCH(A12,t_u15g_pen[AllPos],0)) -> 7 | C13: =INDEX(t_u15g_pen[Name],MATCH(A12,t_u15g_pen[AllPos],0)) -> Poppy Batchelor | D13: Wind | E13: =INDEX(t_u15g_pen[LJWind],MATCH(A12,t_u15g_pen[AllPos],0)) -> 0 | F13: =INDEX(t_u15g_pen[75mHWind],MATCH(A12,t_u15g_pen[AllPos],0)) -> 0.2 | J13: =INDEX(t_u15g_pen[AvWind],MATCH(A12,t_u15g_pen[AllPos],0)) -> 0.1
C14: =INDEX(t_u15g_pen[Club],MATCH(A12,t_u15g_pen[AllPos],0)) -> Windsor Slough Eton & Hounslow AC | D14: Points | E14: =INDEX(t_u15g_pen[LJPoints],MATCH(A12,t_u15g_pen[AllPos],0)) -> 310 | F14: =INDEX(t_u15g_pen[75mHPoints],MATCH(A12,t_u15g_pen[AllPos],0)) -> 471 | G14: =INDEX(t_u15g_pen[SPPoints],MATCH(A12,t_u15g_pen[AllPos],0)) -> 395 | H14: =INDEX(t_u15g_pen[HJPoints],MATCH(A12,t_u15g_pen[AllPos],0)) -> 491 | I14: =INDEX(t_u15g_pen[800mPoints],MATCH(A12,t_u15g_pen[AllPos],0)) -> 289 | J14: =INDEX(t_u15g_pen[TotalPoints],MATCH(A12,t_u15g_pen[AllPos],0)) -> 1956
A15: =A12+1 -> 4 | C15: =INDEX(t_u15g_pen[Bib],MATCH(A15,t_u15g_pen[AllPos],0)) -> 246 | D15: Perf | E15: =INDEX(t_u15g_pen[LJ],MATCH(A15,t_u15g_pen[AllPos],0)) -> 4.68 | F15: =INDEX(t_u15g_pen[75mH],MATCH(A15,t_u15g_pen[AllPos],0)) -> 13.41 | G15: =INDEX(t_u15g_pen[SP],MATCH(A15,t_u15g_pen[AllPos],0)) -> 7.75 | H15: =INDEX(t_u15g_pen[HJ],MATCH(A15,t_u15g_pen[AllPos],0)) -> 1.47 | I15: =IFERROR((INDEX(t_u15g_pen[800mMins],MATCH(A15,t_u15g_pen[AllPos],0))*60+INDEX(t_u15g_pen[800mSecs],MATCH(A15,t_u15g_pen[AllPos],0)))/86400,"") -> 0.001808101852
B16: =INDEX(t_u15g_pen[FinalPosition],MATCH(A15,t_u15g_pen[AllPos],0)) -> 2 | C16: =INDEX(t_u15g_pen[Name],MATCH(A15,t_u15g_pen[AllPos],0)) -> Julia Newman | D16: Wind | E16: =INDEX(t_u15g_pen[LJWind],MATCH(A15,t_u15g_pen[AllPos],0)) -> 0 | F16: =INDEX(t_u15g_pen[75mHWind],MATCH(A15,t_u15g_pen[AllPos],0)) -> 0.2 | J16: =INDEX(t_u15g_pen[AvWind],MATCH(A15,t_u15g_pen[AllPos],0)) -> 0.1
C17: =INDEX(t_u15g_pen[Club],MATCH(A15,t_u15g_pen[AllPos],0)) -> Sutton & District AC | D17: Points | E17: =INDEX(t_u15g_pen[LJPoints],MATCH(A15,t_u15g_pen[AllPos],0)) -> 474 | F17: =INDEX(t_u15g_pen[75mHPoints],MATCH(A15,t_u15g_pen[AllPos],0)) -> 529 | G17: =INDEX(t_u15g_pen[SPPoints],MATCH(A15,t_u15g_pen[AllPos],0)) -> 383 | H17: =INDEX(t_u15g_pen[HJPoints],MATCH(A15,t_u15g_pen[AllPos],0)) -> 588 | I17: =INDEX(t_u15g_pen[800mPoints],MATCH(A15,t_u15g_pen[AllPos],0)) -> 617 | J17: =INDEX(t_u15g_pen[TotalPoints],MATCH(A15,t_u15g_pen[AllPos],0)) -> 2591
A18: =A15+1 -> 5 | C18: =INDEX(t_u15g_pen[Bib],MATCH(A18,t_u15g_pen[AllPos],0)) -> 248 | D18: Perf | E18: =INDEX(t_u15g_pen[LJ],MATCH(A18,t_u15g_pen[AllPos],0)) -> 4.47 | F18: =INDEX(t_u15g_pen[75mH],MATCH(A18,t_u15g_pen[AllPos],0)) -> 12.82 | G18: =INDEX(t_u15g_pen[SP],MATCH(A18,t_u15g_pen[AllPos],0)) -> 8.21 | H18: =INDEX(t_u15g_pen[HJ],MATCH(A18,t_u15g_pen[AllPos],0)) -> 1.41 | I18: =IFERROR((INDEX(t_u15g_pen[800mMins],MATCH(A18,t_u15g_pen[AllPos],0))*60+INDEX(t_u15g_pen[800mSecs],MATCH(A18,t_u15g_pen[AllPos],0)))/86400,"") -> 0.001792476852
B19: =INDEX(t_u15g_pen[FinalPosition],MATCH(A18,t_u15g_pen[AllPos],0)) -> 3 | C19: =INDEX(t_u15g_pen[Name],MATCH(A18,t_u15g_pen[AllPos],0)) -> Ella Pugh | D19: Wind | E19: =INDEX(t_u15g_pen[LJWind],MATCH(A18,t_u15g_pen[AllPos],0)) -> 0 | F19: =INDEX(t_u15g_pen[75mHWind],MATCH(A18,t_u15g_pen[AllPos],0)) -> 0.2 | J19: =INDEX(t_u15g_pen[AvWind],MATCH(A18,t_u15g_pen[AllPos],0)) -> 0.1
C20: =INDEX(t_u15g_pen[Club],MATCH(A18,t_u15g_pen[AllPos],0)) -> Guildford & Godalming AC | D20: Points | E20: =INDEX(t_u15g_pen[LJPoints],MATCH(A18,t_u15g_pen[AllPos],0)) -> 421 | F20: =INDEX(t_u15g_pen[75mHPoints],MATCH(A18,t_u15g_pen[AllPos],0)) -> 586 | G20: =INDEX(t_u15g_pen[SPPoints],MATCH(A18,t_u15g_pen[AllPos],0)) -> 413 | H20: =INDEX(t_u15g_pen[HJPoints],MATCH(A18,t_u15g_pen[AllPos],0)) -> 523 | I20: =INDEX(t_u15g_pen[800mPoints],MATCH(A18,t_u15g_pen[AllPos],0)) -> 633 | J20: =INDEX(t_u15g_pen[TotalPoints],MATCH(A18,t_u15g_pen[AllPos],0)) -> 2576
A21: =A18+1 -> 6 | C21: =INDEX(t_u15g_pen[Bib],MATCH(A21,t_u15g_pen[AllPos],0)) -> 242 | D21: Perf | E21: =INDEX(t_u15g_pen[LJ],MATCH(A21,t_u15g_pen[AllPos],0)) -> 3.87 | F21: =INDEX(t_u15g_pen[75mH],MATCH(A21,t_u15g_pen[AllPos],0)) -> 14.17 | G21: =INDEX(t_u15g_pen[SP],MATCH(A21,t_u15g_pen[AllPos],0)) -> 6.67 | H21: =INDEX(t_u15g_pen[HJ],MATCH(A21,t_u15g_pen[AllPos],0)) -> 1.5 | I21: =IFERROR((INDEX(t_u15g_pen[800mMins],MATCH(A21,t_u15g_pen[AllPos],0))*60+INDEX(t_u15g_pen[800mSecs],MATCH(A21,t_u15g_pen[AllPos],0)))/86400,"") -> 0.001783101852
B22: =INDEX(t_u15g_pen[FinalPosition],MATCH(A21,t_u15g_pen[AllPos],0)) -> 5 | C22: =INDEX(t_u15g_pen[Name],MATCH(A21,t_u15g_pen[AllPos],0)) -> Lily-Rose Brown | D22: Wind | E22: =INDEX(t_u15g_pen[LJWind],MATCH(A21,t_u15g_pen[AllPos],0)) -> 1 | F22: =INDEX(t_u15g_pen[75mHWind],MATCH(A21,t_u15g_pen[AllPos],0)) -> 0.2 | J22: =INDEX(t_u15g_pen[AvWind],MATCH(A21,t_u15g_pen[AllPos],0)) -> 0.6
C23: =INDEX(t_u15g_pen[Club],MATCH(A21,t_u15g_pen[AllPos],0)) -> Herne Hill Harriers | D23: Points | E23: =INDEX(t_u15g_pen[LJPoints],MATCH(A21,t_u15g_pen[AllPos],0)) -> 279 | F23: =INDEX(t_u15g_pen[75mHPoints],MATCH(A21,t_u15g_pen[AllPos],0)) -> 463 | G23: =INDEX(t_u15g_pen[SPPoints],MATCH(A21,t_u15g_pen[AllPos],0)) -> 314 | H23: =INDEX(t_u15g_pen[HJPoints],MATCH(A21,t_u15g_pen[AllPos],0)) -> 621 | I23: =INDEX(t_u15g_pen[800mPoints],MATCH(A21,t_u15g_pen[AllPos],0)) -> 643 | J23: =INDEX(t_u15g_pen[TotalPoints],MATCH(A21,t_u15g_pen[AllPos],0)) -> 2320
A24: 7 | C24: =INDEX(t_u15g_pen[Bib],MATCH(A24,t_u15g_pen[AllPos],0)) -> 240 | D24: Perf | E24: =INDEX(t_u15g_pen[LJ],MATCH(A24,t_u15g_pen[AllPos],0)) -> 0 | F24: =INDEX(t_u15g_pen[75mH],MATCH(A24,t_u15g_pen[AllPos],0)) -> 0 | G24: =INDEX(t_u15g_pen[SP],MATCH(A24,t_u15g_pen[AllPos],0)) -> 0 | H24: =INDEX(t_u15g_pen[HJ],MATCH(A24,t_u15g_pen[AllPos],0)) -> 0 | I24: =IFERROR((INDEX(t_u15g_pen[800mMins],MATCH(A24,t_u15g_pen[AllPos],0))*60+INDEX(t_u15g_pen[800mSecs],MATCH(A24,t_u15g_pen[AllPos],0)))/86400,"") -> 0
B25: =INDEX(t_u15g_pen[FinalPosition],MATCH(A24,t_u15g_pen[AllPos],0)) -> 9 | C25: =INDEX(t_u15g_pen[Name],MATCH(A24,t_u15g_pen[AllPos],0)) -> India Blakey | D25: Wind | E25: =INDEX(t_u15g_pen[LJWind],MATCH(A24,t_u15g_pen[AllPos],0)) -> 0 | F25: =INDEX(t_u15g_pen[75mHWind],MATCH(A24,t_u15g_pen[AllPos],0)) -> 0 | J25: =INDEX(t_u15g_pen[AvWind],MATCH(A24,t_u15g_pen[AllPos],0)) -> 0
C26: =INDEX(t_u15g_pen[Club],MATCH(A24,t_u15g_pen[AllPos],0)) -> Herne Hill Harriers | D26: Points | E26: =INDEX(t_u15g_pen[LJPoints],MATCH(A24,t_u15g_pen[AllPos],0)) -> 0 | F26: =INDEX(t_u15g_pen[75mHPoints],MATCH(A24,t_u15g_pen[AllPos],0)) -> 0 | G26: =INDEX(t_u15g_pen[SPPoints],MATCH(A24,t_u15g_pen[AllPos],0)) -> 0 | H26: =INDEX(t_u15g_pen[HJPoints],MATCH(A24,t_u15g_pen[AllPos],0)) -> 0 | I26: =INDEX(t_u15g_pen[800mPoints],MATCH(A24,t_u15g_pen[AllPos],0)) -> 0 | J26: =INDEX(t_u15g_pen[TotalPoints],MATCH(A24,t_u15g_pen[AllPos],0)) -> 0
A27: 8 | C27: =INDEX(t_u15g_pen[Bib],MATCH(A27,t_u15g_pen[AllPos],0)) -> 249 | D27: Perf | E27: =INDEX(t_u15g_pen[LJ],MATCH(A27,t_u15g_pen[AllPos],0)) -> 0 | F27: =INDEX(t_u15g_pen[75mH],MATCH(A27,t_u15g_pen[AllPos],0)) -> 0 | G27: =INDEX(t_u15g_pen[SP],MATCH(A27,t_u15g_pen[AllPos],0)) -> 0 | H27: =INDEX(t_u15g_pen[HJ],MATCH(A27,t_u15g_pen[AllPos],0)) -> 0 | I27: =IFERROR((INDEX(t_u15g_pen[800mMins],MATCH(A27,t_u15g_pen[AllPos],0))*60+INDEX(t_u15g_pen[800mSecs],MATCH(A27,t_u15g_pen[AllPos],0)))/86400,"") -> 0
B28: =INDEX(t_u15g_pen[FinalPosition],MATCH(A27,t_u15g_pen[AllPos],0)) -> 9 | C28: =INDEX(t_u15g_pen[Name],MATCH(A27,t_u15g_pen[AllPos],0)) -> Claudia Warren | D28: Wind | E28: =INDEX(t_u15g_pen[LJWind],MATCH(A27,t_u15g_pen[AllPos],0)) -> 0 | F28: =INDEX(t_u15g_pen[75mHWind],MATCH(A27,t_u15g_pen[AllPos],0)) -> 0 | J28: =INDEX(t_u15g_pen[AvWind],MATCH(A27,t_u15g_pen[AllPos],0)) -> 0
C29: =INDEX(t_u15g_pen[Club],MATCH(A27,t_u15g_pen[AllPos],0)) -> Waverley Harriers | D29: Points | E29: =INDEX(t_u15g_pen[LJPoints],MATCH(A27,t_u15g_pen[AllPos],0)) -> 0 | F29: =INDEX(t_u15g_pen[75mHPoints],MATCH(A27,t_u15g_pen[AllPos],0)) -> 0 | G29: =INDEX(t_u15g_pen[SPPoints],MATCH(A27,t_u15g_pen[AllPos],0)) -> 0 | H29: =INDEX(t_u15g_pen[HJPoints],MATCH(A27,t_u15g_pen[AllPos],0)) -> 0 | I29: =INDEX(t_u15g_pen[800mPoints],MATCH(A27,t_u15g_pen[AllPos],0)) -> 0 | J29: =INDEX(t_u15g_pen[TotalPoints],MATCH(A27,t_u15g_pen[AllPos],0)) -> 0
A30: 9 | C30: =INDEX(t_u15g_pen[Bib],MATCH(A30,t_u15g_pen[AllPos],0)) -> 243 | D30: Perf | E30: =INDEX(t_u15g_pen[LJ],MATCH(A30,t_u15g_pen[AllPos],0)) -> 4.36 | F30: =INDEX(t_u15g_pen[75mH],MATCH(A30,t_u15g_pen[AllPos],0)) -> 13.61 | G30: =INDEX(t_u15g_pen[SP],MATCH(A30,t_u15g_pen[AllPos],0)) -> 7.1 | H30: =INDEX(t_u15g_pen[HJ],MATCH(A30,t_u15g_pen[AllPos],0)) -> 1.5 | I30: =IFERROR((INDEX(t_u15g_pen[800mMins],MATCH(A30,t_u15g_pen[AllPos],0))*60+INDEX(t_u15g_pen[800mSecs],MATCH(A30,t_u15g_pen[AllPos],0)))/86400,"") -> 0.002018865741
B31: =INDEX(t_u15g_pen[FinalPosition],MATCH(A30,t_u15g_pen[AllPos],0)) -> 6 | C31: =INDEX(t_u15g_pen[Name],MATCH(A30,t_u15g_pen[AllPos],0)) -> Isabel Caamano | D31: Wind | E31: =INDEX(t_u15g_pen[LJWind],MATCH(A30,t_u15g_pen[AllPos],0)) -> 0 | F31: =INDEX(t_u15g_pen[75mHWind],MATCH(A30,t_u15g_pen[AllPos],0)) -> 0.2 | J31: =INDEX(t_u15g_pen[AvWind],MATCH(A30,t_u15g_pen[AllPos],0)) -> 0.1
C32: =INDEX(t_u15g_pen[Club],MATCH(A30,t_u15g_pen[AllPos],0)) -> Camberley & District AC | D32: Points | E32: =INDEX(t_u15g_pen[LJPoints],MATCH(A30,t_u15g_pen[AllPos],0)) -> 393 | F32: =INDEX(t_u15g_pen[75mHPoints],MATCH(A30,t_u15g_pen[AllPos],0)) -> 510 | G32: =INDEX(t_u15g_pen[SPPoints],MATCH(A30,t_u15g_pen[AllPos],0)) -> 341 | H32: =INDEX(t_u15g_pen[HJPoints],MATCH(A30,t_u15g_pen[AllPos],0)) -> 621 | I32: =INDEX(t_u15g_pen[800mPoints],MATCH(A30,t_u15g_pen[AllPos],0)) -> 419 | J32: =INDEX(t_u15g_pen[TotalPoints],MATCH(A30,t_u15g_pen[AllPos],0)) -> 2284
A33: 10 | C33: =INDEX(t_u15g_pen[Bib],MATCH(A33,t_u15g_pen[AllPos],0)) -> 247 | D33: Perf | E33: =INDEX(t_u15g_pen[LJ],MATCH(A33,t_u15g_pen[AllPos],0)) -> 0 | F33: =INDEX(t_u15g_pen[75mH],MATCH(A33,t_u15g_pen[AllPos],0)) -> 0 | G33: =INDEX(t_u15g_pen[SP],MATCH(A33,t_u15g_pen[AllPos],0)) -> 0 | H33: =INDEX(t_u15g_pen[HJ],MATCH(A33,t_u15g_pen[AllPos],0)) -> 0 | I33: =IFERROR((INDEX(t_u15g_pen[800mMins],MATCH(A33,t_u15g_pen[AllPos],0))*60+INDEX(t_u15g_pen[800mSecs],MATCH(A33,t_u15g_pen[AllPos],0)))/86400,"") -> 0
B34: =INDEX(t_u15g_pen[FinalPosition],MATCH(A33,t_u15g_pen[AllPos],0)) -> 9 | C34: =INDEX(t_u15g_pen[Name],MATCH(A33,t_u15g_pen[AllPos],0)) -> Estee Norman | D34: Wind | E34: =INDEX(t_u15g_pen[LJWind],MATCH(A33,t_u15g_pen[AllPos],0)) -> 0 | F34: =INDEX(t_u15g_pen[75mHWind],MATCH(A33,t_u15g_pen[AllPos],0)) -> 0 | J34: =INDEX(t_u15g_pen[AvWind],MATCH(A33,t_u15g_pen[AllPos],0)) -> 0
C35: =INDEX(t_u15g_pen[Club],MATCH(A33,t_u15g_pen[AllPos],0)) -> Epsom & Ewell Harriers | D35: Points | E35: =INDEX(t_u15g_pen[LJPoints],MATCH(A33,t_u15g_pen[AllPos],0)) -> 0 | F35: =INDEX(t_u15g_pen[75mHPoints],MATCH(A33,t_u15g_pen[AllPos],0)) -> 0 | G35: =INDEX(t_u15g_pen[SPPoints],MATCH(A33,t_u15g_pen[AllPos],0)) -> 0 | H35: =INDEX(t_u15g_pen[HJPoints],MATCH(A33,t_u15g_pen[AllPos],0)) -> 0 | I35: =INDEX(t_u15g_pen[800mPoints],MATCH(A33,t_u15g_pen[AllPos],0)) -> 0 | J35: =INDEX(t_u15g_pen[TotalPoints],MATCH(A33,t_u15g_pen[AllPos],0)) -> 0
A36: 11 | C36: =INDEX(t_u15g_pen[Bib],MATCH(A36,t_u15g_pen[AllPos],0)) -> 241 | D36: Perf | E36: =INDEX(t_u15g_pen[LJ],MATCH(A36,t_u15g_pen[AllPos],0)) -> 4.44 | F36: =INDEX(t_u15g_pen[75mH],MATCH(A36,t_u15g_pen[AllPos],0)) -> 12.59 | G36: 9 | H36: =INDEX(t_u15g_pen[HJ],MATCH(A36,t_u15g_pen[AllPos],0)) -> 1.41 | I36: =IFERROR((INDEX(t_u15g_pen[800mMins],MATCH(A36,t_u15g_pen[AllPos],0))*60+INDEX(t_u15g_pen[800mSecs],MATCH(A36,t_u15g_pen[AllPos],0)))/86400,"") -> 0.002081481481
B37: =INDEX(t_u15g_pen[FinalPosition],MATCH(A36,t_u15g_pen[AllPos],0)) -> 4 | C37: =INDEX(t_u15g_pen[Name],MATCH(A36,t_u15g_pen[AllPos],0)) -> Amber Bloomfield | D37: Wind | E37: =INDEX(t_u15g_pen[LJWind],MATCH(A36,t_u15g_pen[AllPos],0)) -> 0 | F37: =INDEX(t_u15g_pen[75mHWind],MATCH(A36,t_u15g_pen[AllPos],0)) -> 0.2 | J37: =INDEX(t_u15g_pen[AvWind],MATCH(A36,t_u15g_pen[AllPos],0)) -> 0.1
C38: =INDEX(t_u15g_pen[Club],MATCH(A36,t_u15g_pen[AllPos],0)) -> Croydon Harriers | D38: Points | E38: =INDEX(t_u15g_pen[LJPoints],MATCH(A36,t_u15g_pen[AllPos],0)) -> 413 | F38: =INDEX(t_u15g_pen[75mHPoints],MATCH(A36,t_u15g_pen[AllPos],0)) -> 610 | G38: =INDEX(t_u15g_pen[SPPoints],MATCH(A36,t_u15g_pen[AllPos],0)) -> 464 | H38: =INDEX(t_u15g_pen[HJPoints],MATCH(A36,t_u15g_pen[AllPos],0)) -> 523 | I38: =INDEX(t_u15g_pen[800mPoints],MATCH(A36,t_u15g_pen[AllPos],0)) -> 367 | J38: =INDEX(t_u15g_pen[TotalPoints],MATCH(A36,t_u15g_pen[AllPos],0)) -> 2377
A39: 12 | C39: =INDEX(t_u15g_pen[Bib],MATCH(A39,t_u15g_pen[AllPos],0)) -> 254 | D39: Perf | E39: =INDEX(t_u15g_pen[LJ],MATCH(A39,t_u15g_pen[AllPos],0)) -> 4.21 | F39: =INDEX(t_u15g_pen[75mH],MATCH(A39,t_u15g_pen[AllPos],0)) -> 13.06 | G39: =INDEX(t_u15g_pen[SP],MATCH(A39,t_u15g_pen[AllPos],0)) -> 6.43 | H39: =INDEX(t_u15g_pen[HJ],MATCH(A39,t_u15g_pen[AllPos],0)) -> 1.35 | I39: =IFERROR((INDEX(t_u15g_pen[800mMins],MATCH(A39,t_u15g_pen[AllPos],0))*60+INDEX(t_u15g_pen[800mSecs],MATCH(A39,t_u15g_pen[AllPos],0)))/86400,"") -> 0.001811921296
B40: =INDEX(t_u15g_pen[FinalPosition],MATCH(A39,t_u15g_pen[AllPos],0)) -> Guest | C40: =INDEX(t_u15g_pen[Name],MATCH(A39,t_u15g_pen[AllPos],0)) -> Lucy Chapelhow | D40: Wind | E40: =INDEX(t_u15g_pen[LJWind],MATCH(A39,t_u15g_pen[AllPos],0)) -> 0 | F40: =INDEX(t_u15g_pen[75mHWind],MATCH(A39,t_u15g_pen[AllPos],0)) -> -1.2 | J40: =INDEX(t_u15g_pen[AvWind],MATCH(A39,t_u15g_pen[AllPos],0)) -> -0.6
C41: =INDEX(t_u15g_pen[Club],MATCH(A39,t_u15g_pen[AllPos],0)) -> Thurrock Harriers | D41: Points | E41: =INDEX(t_u15g_pen[LJPoints],MATCH(A39,t_u15g_pen[AllPos],0)) -> 357 | F41: =INDEX(t_u15g_pen[75mHPoints],MATCH(A39,t_u15g_pen[AllPos],0)) -> 562 | G41: =INDEX(t_u15g_pen[SPPoints],MATCH(A39,t_u15g_pen[AllPos],0)) -> 299 | H41: =INDEX(t_u15g_pen[HJPoints],MATCH(A39,t_u15g_pen[AllPos],0)) -> 460 | I41: =INDEX(t_u15g_pen[800mPoints],MATCH(A39,t_u15g_pen[AllPos],0)) -> 613 | J41: =INDEX(t_u15g_pen[TotalPoints],MATCH(A39,t_u15g_pen[AllPos],0)) -> 2291
A42: 13 | C42: =INDEX(t_u15g_pen[Bib],MATCH(A42,t_u15g_pen[AllPos],0)) -> 257 | D42: Perf | E42: =INDEX(t_u15g_pen[LJ],MATCH(A42,t_u15g_pen[AllPos],0)) -> 4.04 | F42: =INDEX(t_u15g_pen[75mH],MATCH(A42,t_u15g_pen[AllPos],0)) -> 15.67 | G42: =INDEX(t_u15g_pen[SP],MATCH(A42,t_u15g_pen[AllPos],0)) -> 5.73 | H42: =INDEX(t_u15g_pen[HJ],MATCH(A42,t_u15g_pen[AllPos],0)) -> 1.26 | I42: =IFERROR((INDEX(t_u15g_pen[800mMins],MATCH(A42,t_u15g_pen[AllPos],0))*60+INDEX(t_u15g_pen[800mSecs],MATCH(A42,t_u15g_pen[AllPos],0)))/86400,"") -> 0.001967939815
B43: =INDEX(t_u15g_pen[FinalPosition],MATCH(A42,t_u15g_pen[AllPos],0)) -> Guest | C43: =INDEX(t_u15g_pen[Name],MATCH(A42,t_u15g_pen[AllPos],0)) -> Zairah Newth | D43: Wind | E43: =INDEX(t_u15g_pen[LJWind],MATCH(A42,t_u15g_pen[AllPos],0)) -> 0 | F43: =INDEX(t_u15g_pen[75mHWind],MATCH(A42,t_u15g_pen[AllPos],0)) -> -1.2 | J43: =INDEX(t_u15g_pen[AvWind],MATCH(A42,t_u15g_pen[AllPos],0)) -> -0.6
C44: =INDEX(t_u15g_pen[Club],MATCH(A42,t_u15g_pen[AllPos],0)) -> Ealing Southall & Middlesex AC | D44: Points | E44: =INDEX(t_u15g_pen[LJPoints],MATCH(A42,t_u15g_pen[AllPos],0)) -> 317 | F44: =INDEX(t_u15g_pen[75mHPoints],MATCH(A42,t_u15g_pen[AllPos],0)) -> 348 | G44: =INDEX(t_u15g_pen[SPPoints],MATCH(A42,t_u15g_pen[AllPos],0)) -> 254 | H44: =INDEX(t_u15g_pen[HJPoints],MATCH(A42,t_u15g_pen[AllPos],0)) -> 369 | I44: =INDEX(t_u15g_pen[800mPoints],MATCH(A42,t_u15g_pen[AllPos],0)) -> 463 | J44: =INDEX(t_u15g_pen[TotalPoints],MATCH(A42,t_u15g_pen[AllPos],0)) -> 1751
A45: 14 | C45: =INDEX(t_u15g_pen[Bib],MATCH(A45,t_u15g_pen[AllPos],0)) -> 256 | D45: Perf | E45: =INDEX(t_u15g_pen[LJ],MATCH(A45,t_u15g_pen[AllPos],0)) -> 0 | F45: =INDEX(t_u15g_pen[75mH],MATCH(A45,t_u15g_pen[AllPos],0)) -> 0 | G45: =INDEX(t_u15g_pen[SP],MATCH(A45,t_u15g_pen[AllPos],0)) -> 0 | H45: =INDEX(t_u15g_pen[HJ],MATCH(A45,t_u15g_pen[AllPos],0)) -> 0 | I45: =IFERROR((INDEX(t_u15g_pen[800mMins],MATCH(A45,t_u15g_pen[AllPos],0))*60+INDEX(t_u15g_pen[800mSecs],MATCH(A45,t_u15g_pen[AllPos],0)))/86400,"") -> 0
B46: =INDEX(t_u15g_pen[FinalPosition],MATCH(A45,t_u15g_pen[AllPos],0)) -> Guest | C46: =INDEX(t_u15g_pen[Name],MATCH(A45,t_u15g_pen[AllPos],0)) -> Olivia London | D46: Wind | E46: =INDEX(t_u15g_pen[LJWind],MATCH(A45,t_u15g_pen[AllPos],0)) -> 0 | F46: =INDEX(t_u15g_pen[75mHWind],MATCH(A45,t_u15g_pen[AllPos],0)) -> 0 | J46: =INDEX(t_u15g_pen[AvWind],MATCH(A45,t_u15g_pen[AllPos],0)) -> 0
C47: =INDEX(t_u15g_pen[Club],MATCH(A45,t_u15g_pen[AllPos],0)) -> Vale Of Aylesbury AC | D47: Points | E47: =INDEX(t_u15g_pen[LJPoints],MATCH(A45,t_u15g_pen[AllPos],0)) -> 0 | F47: =INDEX(t_u15g_pen[75mHPoints],MATCH(A45,t_u15g_pen[AllPos],0)) -> 0 | G47: =INDEX(t_u15g_pen[SPPoints],MATCH(A45,t_u15g_pen[AllPos],0)) -> 0 | H47: =INDEX(t_u15g_pen[HJPoints],MATCH(A45,t_u15g_pen[AllPos],0)) -> 0 | I47: =INDEX(t_u15g_pen[800mPoints],MATCH(A45,t_u15g_pen[AllPos],0)) -> 0 | J47: =INDEX(t_u15g_pen[TotalPoints],MATCH(A45,t_u15g_pen[AllPos],0)) -> 0
A48: 15 | C48: =INDEX(t_u15g_pen[Bib],MATCH(A48,t_u15g_pen[AllPos],0)) -> 252 | D48: Perf | E48: =INDEX(t_u15g_pen[LJ],MATCH(A48,t_u15g_pen[AllPos],0)) -> 4.04 | F48: =INDEX(t_u15g_pen[75mH],MATCH(A48,t_u15g_pen[AllPos],0)) -> 14.64 | G48: =INDEX(t_u15g_pen[SP],MATCH(A48,t_u15g_pen[AllPos],0)) -> 6.06 | H48: =INDEX(t_u15g_pen[HJ],MATCH(A48,t_u15g_pen[AllPos],0)) -> 1.35 | I48: =IFERROR((INDEX(t_u15g_pen[800mMins],MATCH(A48,t_u15g_pen[AllPos],0))*60+INDEX(t_u15g_pen[800mSecs],MATCH(A48,t_u15g_pen[AllPos],0)))/86400,"") -> 0.00201875
B49: =INDEX(t_u15g_pen[FinalPosition],MATCH(A48,t_u15g_pen[AllPos],0)) -> Guest | C49: =INDEX(t_u15g_pen[Name],MATCH(A48,t_u15g_pen[AllPos],0)) -> Megan Banks | D49: Wind | E49: =INDEX(t_u15g_pen[LJWind],MATCH(A48,t_u15g_pen[AllPos],0)) -> 0 | F49: =INDEX(t_u15g_pen[75mHWind],MATCH(A48,t_u15g_pen[AllPos],0)) -> -1.2 | J49: =INDEX(t_u15g_pen[AvWind],MATCH(A48,t_u15g_pen[AllPos],0)) -> -0.6
C50: =INDEX(t_u15g_pen[Club],MATCH(A48,t_u15g_pen[AllPos],0)) -> Basingstoke & Mid Hants AC | D50: Points | E50: =INDEX(t_u15g_pen[LJPoints],MATCH(A48,t_u15g_pen[AllPos],0)) -> 317 | F50: =INDEX(t_u15g_pen[75mHPoints],MATCH(A48,t_u15g_pen[AllPos],0)) -> 422 | G50: =INDEX(t_u15g_pen[SPPoints],MATCH(A48,t_u15g_pen[AllPos],0)) -> 275 | H50: =INDEX(t_u15g_pen[HJPoints],MATCH(A48,t_u15g_pen[AllPos],0)) -> 460 | I50: =INDEX(t_u15g_pen[800mPoints],MATCH(A48,t_u15g_pen[AllPos],0)) -> 419 | J50: =INDEX(t_u15g_pen[TotalPoints],MATCH(A48,t_u15g_pen[AllPos],0)) -> 1893
A51: 16 | C51: =INDEX(t_u15g_pen[Bib],MATCH(A51,t_u15g_pen[AllPos],0)) -> 251 | D51: Perf | E51: =INDEX(t_u15g_pen[LJ],MATCH(A51,t_u15g_pen[AllPos],0)) -> 4.55 | F51: =INDEX(t_u15g_pen[75mH],MATCH(A51,t_u15g_pen[AllPos],0)) -> 13.12 | G51: =INDEX(t_u15g_pen[SP],MATCH(A51,t_u15g_pen[AllPos],0)) -> 7.89 | H51: =INDEX(t_u15g_pen[HJ],MATCH(A51,t_u15g_pen[AllPos],0)) -> 1.29 | I51: =IFERROR((INDEX(t_u15g_pen[800mMins],MATCH(A51,t_u15g_pen[AllPos],0))*60+INDEX(t_u15g_pen[800mSecs],MATCH(A51,t_u15g_pen[AllPos],0)))/86400,"") -> 0.001958217593
B52: =INDEX(t_u15g_pen[FinalPosition],MATCH(A51,t_u15g_pen[AllPos],0)) -> Guest | C52: =INDEX(t_u15g_pen[Name],MATCH(A51,t_u15g_pen[AllPos],0)) -> Charlotte Ashby | D52: Wind | E52: =INDEX(t_u15g_pen[LJWind],MATCH(A51,t_u15g_pen[AllPos],0)) -> 0 | F52: =INDEX(t_u15g_pen[75mHWind],MATCH(A51,t_u15g_pen[AllPos],0)) -> -1.2 | J52: =INDEX(t_u15g_pen[AvWind],MATCH(A51,t_u15g_pen[AllPos],0)) -> -0.6
C53: =INDEX(t_u15g_pen[Club],MATCH(A51,t_u15g_pen[AllPos],0)) -> Reading AC | D53: Points | E53: =INDEX(t_u15g_pen[LJPoints],MATCH(A51,t_u15g_pen[AllPos],0)) -> 441 | F53: =INDEX(t_u15g_pen[75mHPoints],MATCH(A51,t_u15g_pen[AllPos],0)) -> 556 | G53: =INDEX(t_u15g_pen[SPPoints],MATCH(A51,t_u15g_pen[AllPos],0)) -> 392 | H53: =INDEX(t_u15g_pen[HJPoints],MATCH(A51,t_u15g_pen[AllPos],0)) -> 399 | I53: =INDEX(t_u15g_pen[800mPoints],MATCH(A51,t_u15g_pen[AllPos],0)) -> 472 | J53: =INDEX(t_u15g_pen[TotalPoints],MATCH(A51,t_u15g_pen[AllPos],0)) -> 2260
A54: 17 | C54: =INDEX(t_u15g_pen[Bib],MATCH(A54,t_u15g_pen[AllPos],0)) -> 253 | D54: Perf | E54: =INDEX(t_u15g_pen[LJ],MATCH(A54,t_u15g_pen[AllPos],0)) -> 0 | F54: =INDEX(t_u15g_pen[75mH],MATCH(A54,t_u15g_pen[AllPos],0)) -> 0 | G54: =INDEX(t_u15g_pen[SP],MATCH(A54,t_u15g_pen[AllPos],0)) -> 0 | H54: =INDEX(t_u15g_pen[HJ],MATCH(A54,t_u15g_pen[AllPos],0)) -> 0 | I54: =IFERROR((INDEX(t_u15g_pen[800mMins],MATCH(A54,t_u15g_pen[AllPos],0))*60+INDEX(t_u15g_pen[800mSecs],MATCH(A54,t_u15g_pen[AllPos],0)))/86400,"") -> 0
B55: =INDEX(t_u15g_pen[FinalPosition],MATCH(A54,t_u15g_pen[AllPos],0)) -> Guest | C55: =INDEX(t_u15g_pen[Name],MATCH(A54,t_u15g_pen[AllPos],0)) -> Charlotte Bigmore | D55: Wind | E55: =INDEX(t_u15g_pen[LJWind],MATCH(A54,t_u15g_pen[AllPos],0)) -> 0 | F55: =INDEX(t_u15g_pen[75mHWind],MATCH(A54,t_u15g_pen[AllPos],0)) -> 0 | J55: =INDEX(t_u15g_pen[AvWind],MATCH(A54,t_u15g_pen[AllPos],0)) -> 0
C56: =INDEX(t_u15g_pen[Club],MATCH(A54,t_u15g_pen[AllPos],0)) -> Reading AC | D56: Points | E56: =INDEX(t_u15g_pen[LJPoints],MATCH(A54,t_u15g_pen[AllPos],0)) -> 0 | F56: =INDEX(t_u15g_pen[75mHPoints],MATCH(A54,t_u15g_pen[AllPos],0)) -> 0 | G56: =INDEX(t_u15g_pen[SPPoints],MATCH(A54,t_u15g_pen[AllPos],0)) -> 0 | H56: =INDEX(t_u15g_pen[HJPoints],MATCH(A54,t_u15g_pen[AllPos],0)) -> 0 | I56: =INDEX(t_u15g_pen[800mPoints],MATCH(A54,t_u15g_pen[AllPos],0)) -> 0 | J56: =INDEX(t_u15g_pen[TotalPoints],MATCH(A54,t_u15g_pen[AllPos],0)) -> 0
A57: 18 | C57: =INDEX(t_u15g_pen[Bib],MATCH(A57,t_u15g_pen[AllPos],0)) -> 255 | D57: Perf | E57: =INDEX(t_u15g_pen[LJ],MATCH(A57,t_u15g_pen[AllPos],0)) -> 4.11 | F57: =INDEX(t_u15g_pen[75mH],MATCH(A57,t_u15g_pen[AllPos],0)) -> 12.49 | G57: =INDEX(t_u15g_pen[SP],MATCH(A57,t_u15g_pen[AllPos],0)) -> 8.1 | H57: =INDEX(t_u15g_pen[HJ],MATCH(A57,t_u15g_pen[AllPos],0)) -> 1.38 | I57: =IFERROR((INDEX(t_u15g_pen[800mMins],MATCH(A57,t_u15g_pen[AllPos],0))*60+INDEX(t_u15g_pen[800mSecs],MATCH(A57,t_u15g_pen[AllPos],0)))/86400,"") -> 0.001983912037
B58: =INDEX(t_u15g_pen[FinalPosition],MATCH(A57,t_u15g_pen[AllPos],0)) -> Guest | C58: =INDEX(t_u15g_pen[Name],MATCH(A57,t_u15g_pen[AllPos],0)) -> Moriah Hurst | D58: Wind | E58: =INDEX(t_u15g_pen[LJWind],MATCH(A57,t_u15g_pen[AllPos],0)) -> 0 | F58: =INDEX(t_u15g_pen[75mHWind],MATCH(A57,t_u15g_pen[AllPos],0)) -> -1.2 | J58: =INDEX(t_u15g_pen[AvWind],MATCH(A57,t_u15g_pen[AllPos],0)) -> -0.6
C59: =INDEX(t_u15g_pen[Club],MATCH(A57,t_u15g_pen[AllPos],0)) -> Reading AC | D59: Points | E59: =INDEX(t_u15g_pen[LJPoints],MATCH(A57,t_u15g_pen[AllPos],0)) -> 333 | F59: =INDEX(t_u15g_pen[75mHPoints],MATCH(A57,t_u15g_pen[AllPos],0)) -> 621 | G59: =INDEX(t_u15g_pen[SPPoints],MATCH(A57,t_u15g_pen[AllPos],0)) -> 406 | H59: =INDEX(t_u15g_pen[HJPoints],MATCH(A57,t_u15g_pen[AllPos],0)) -> 491 | I59: =INDEX(t_u15g_pen[800mPoints],MATCH(A57,t_u15g_pen[AllPos],0)) -> 449 | J59: =INDEX(t_u15g_pen[TotalPoints],MATCH(A57,t_u15g_pen[AllPos],0)) -> 2300
A60: 19 | C60: =INDEX(t_u15g_pen[Bib],MATCH(A60,t_u15g_pen[AllPos],0)) -> 250 | D60: Perf | E60: =INDEX(t_u15g_pen[LJ],MATCH(A60,t_u15g_pen[AllPos],0)) -> 0 | F60: =INDEX(t_u15g_pen[75mH],MATCH(A60,t_u15g_pen[AllPos],0)) -> 0 | G60: =INDEX(t_u15g_pen[SP],MATCH(A60,t_u15g_pen[AllPos],0)) -> 0 | H60: =INDEX(t_u15g_pen[HJ],MATCH(A60,t_u15g_pen[AllPos],0)) -> 0 | I60: =IFERROR((INDEX(t_u15g_pen[800mMins],MATCH(A60,t_u15g_pen[AllPos],0))*60+INDEX(t_u15g_pen[800mSecs],MATCH(A60,t_u15g_pen[AllPos],0)))/86400,"") -> 0
B61: =INDEX(t_u15g_pen[FinalPosition],MATCH(A60,t_u15g_pen[AllPos],0)) -> Guest | C61: =INDEX(t_u15g_pen[Name],MATCH(A60,t_u15g_pen[AllPos],0)) -> Tomi Adejuwon | D61: Wind | E61: =INDEX(t_u15g_pen[LJWind],MATCH(A60,t_u15g_pen[AllPos],0)) -> 0 | F61: =INDEX(t_u15g_pen[75mHWind],MATCH(A60,t_u15g_pen[AllPos],0)) -> 0 | J61: =INDEX(t_u15g_pen[AvWind],MATCH(A60,t_u15g_pen[AllPos],0)) -> 0
C62: =INDEX(t_u15g_pen[Club],MATCH(A60,t_u15g_pen[AllPos],0)) -> Reading AC | D62: Points | E62: =INDEX(t_u15g_pen[LJPoints],MATCH(A60,t_u15g_pen[AllPos],0)) -> 0 | F62: =INDEX(t_u15g_pen[75mHPoints],MATCH(A60,t_u15g_pen[AllPos],0)) -> 0 | G62: =INDEX(t_u15g_pen[SPPoints],MATCH(A60,t_u15g_pen[AllPos],0)) -> 0 | H62: =INDEX(t_u15g_pen[HJPoints],MATCH(A60,t_u15g_pen[AllPos],0)) -> 0 | I62: =INDEX(t_u15g_pen[800mPoints],MATCH(A60,t_u15g_pen[AllPos],0)) -> 0 | J62: =INDEX(t_u15g_pen[TotalPoints],MATCH(A60,t_u15g_pen[AllPos],0)) -> 0

Sheet U17 Women Heptathlon
A1: Bib | B1: Name | C1: Club | D1: AgeGrp | E1: Surrey | F1: 80mH | G1: 80mHElec | H1: 80mHWind | I1: 80mHPoints | J1: HJ | K1: HJPoints | L1: SP | M1: SPPoints | N1: 200m | O1: 200mElec | P1: 200mWind | Q1: 200mPoints | R1: First Day Total | S1: LJ | T1: LJWind | U1: LJPoints | V1: JT | W1: JTPoints | X1: 800mMins | Y1: 800mSecs | Z1: 800mElec | AA1: 800mPoints | AB1: AvWind | AC1: TotalPoints | AD1: Retired | AE1: FinalPosition | AF1: AllPos
A2: 280 | B2: Millie Henson | C2: Holland Sports AC | D2: U17W | E2: Y | F2: 16.28 | G2: N | I2: =IFERROR(getpoints(t_u17w_hep[[#This Row],[80mH]],"80mH",t_u17w_hep[[#This Row],[AgeGrp]],t_u17w_hep[[#This Row],[80mHElec]]),"") -> 376 | J2: 1.5 | K2: =IFERROR(getpoints(t_u17w_hep[[#This Row],[HJ]],"HJ",t_u17w_hep[[#This Row],[AgeGrp]]),"") -> 621 | L2: 6.75 | M2: =IFERROR(getpoints(t_u17w_hep[[#This Row],[SP]],"SP",t_u17w_hep[[#This Row],[AgeGrp]]),"") -> 319 | N2: 28.21 | O2: =IF(TRUE,"Y","Y") -> Y | P2: 1 | Q2: =IFERROR(getpoints(t_u17w_hep[[#This Row],[200m]],"200m",t_u17w_hep[[#This Row],[AgeGrp]],t_u17w_hep[[#This Row],[200mElec]]),"") -> 614 | R2: =t_u17w_hep[[#This Row],[80mHPoints]]+t_u17w_hep[[#This Row],[HJPoints]]+t_u17w_hep[[#This Row],[SPPoints]]+t_u17w_hep[[#This Row],[200mPoints]] -> 1930 | S2: 4.56 | T2: 0 | U2: =IFERROR(getpoints(t_u17w_hep[[#This Row],[LJ]],"LJ",t_u17w_hep[[#This Row],[AgeGrp]]),"") -> 443 | V2: 16.39 | W2: =IFERROR(getpoints(t_u17w_hep[[#This Row],[JT]],"JT",t_u17w_hep[[#This Row],[AgeGrp]]),"") -> 222 | X2: 2 | Y2: 28.69 | Z2: y | AA2: =IFERROR(getpoints(t_u17w_hep[[#This Row],[800mMins]]*60+t_u17w_hep[[#This Row],[800mSecs]],"800m",t_u17w_hep[[#This Row],[AgeGrp]],t_u17w_hep[[#This Row],[800mElec]]),0) -> 709 | AB2: =IFERROR((t_u17w_hep[[#This Row],[80mHWind]]+t_u17w_hep[[#This Row],[LJWind]]+t_u17w_hep[[#This Row],[200mWind]])/3,"n/a") -> 0.3333333333 | AC2: =IFERROR(t_u17w_hep[[#This Row],[80mHPoints]]+t_u17w_hep[[#This Row],[HJPoints]]+t_u17w_hep[[#This Row],[SPPoints]]+t_u17w_hep[[#This Row],[200mPoints]]+t_u17w_hep[[#This Row],[LJPoints]]+t_u17w_hep[[#This Row],[JTPoints]]+t_u17w_hep[[#This Row],[800mPoints]],0) -> 3304 | AD2: =IF(OR(t_u17w_hep[[#This Row],[80mH]]="DNS",t_u17w_hep[[#This Row],[LJ]]="DNS",t_u17w_hep[[#This Row],[SP]]="DNS",t_u17w_hep[[#This Row],[HJ]]="DNS",t_u17w_hep[[#This Row],[200m]]="DNS",t_u17w_hep[[#This Row],[JT]]="DNS",t_u17w_hep[[#This Row],[800mMins]]="DNS"),"Y","") ->  | AE2: =IF(t_u17w_hep[[#This Row],[Retired]]="Y","Retired",IF(t_u17w_hep[[#This Row],[Surrey]]="N","Guest",COUNTIFS(t_u17w_hep[Retired],"<>Y",t_u17w_hep[Surrey],"<>N",t_u17w_hep[TotalPoints],">"&t_u17w_hep[[#This Row],[TotalPoints]])+1)) -> 2 | AF2: =ROW(A1) -> 1
A3: 281 | B3: Gabriella Thoburn | C3: South London Harriers | D3: U17W | E3: Y | F3: 13.64 | G3: N | I3: =IFERROR(getpoints(t_u17w_hep[[#This Row],[80mH]],"80mH",t_u17w_hep[[#This Row],[AgeGrp]],t_u17w_hep[[#This Row],[80mHElec]]),"") -> 599 | J3: 1.62 | K3: =IFERROR(getpoints(t_u17w_hep[[#This Row],[HJ]],"HJ",t_u17w_hep[[#This Row],[AgeGrp]]),"") -> 759 | L3: 9.49 | M3: =IFERROR(getpoints(t_u17w_hep[[#This Row],[SP]],"SP",t_u17w_hep[[#This Row],[AgeGrp]]),"") -> 496 | N3: 26.87 | O3: Y | P3: 1 | Q3: =IFERROR(getpoints(t_u17w_hep[[#This Row],[200m]],"200m",t_u17w_hep[[#This Row],[AgeGrp]],t_u17w_hep[[#This Row],[200mElec]]),"") -> 723 | R3: =t_u17w_hep[[#This Row],[80mHPoints]]+t_u17w_hep[[#This Row],[HJPoints]]+t_u17w_hep[[#This Row],[SPPoints]]+t_u17w_hep[[#This Row],[200mPoints]] -> 2577 | S3: 4.51 | T3: 0 | U3: =IFERROR(getpoints(t_u17w_hep[[#This Row],[LJ]],"LJ",t_u17w_hep[[#This Row],[AgeGrp]]),"") -> 431 | V3: 21.17 | W3: =IFERROR(getpoints(t_u17w_hep[[#This Row],[JT]],"JT",t_u17w_hep[[#This Row],[AgeGrp]]),"") -> 311 | X3: 2 | Y3: 42.78 | Z3: y | AA3: =IFERROR(getpoints(t_u17w_hep[[#This Row],[800mMins]]*60+t_u17w_hep[[#This Row],[800mSecs]],"800m",t_u17w_hep[[#This Row],[AgeGrp]],t_u17w_hep[[#This Row],[800mElec]]),0) -> 541 | AB3: =IFERROR((t_u17w_hep[[#This Row],[80mHWind]]+t_u17w_hep[[#This Row],[LJWind]]+t_u17w_hep[[#This Row],[200mWind]])/3,"n/a") -> 0.3333333333 | AC3: =IFERROR(t_u17w_hep[[#This Row],[80mHPoints]]+t_u17w_hep[[#This Row],[HJPoints]]+t_u17w_hep[[#This Row],[SPPoints]]+t_u17w_hep[[#This Row],[200mPoints]]+t_u17w_hep[[#This Row],[LJPoints]]+t_u17w_hep[[#This Row],[JTPoints]]+t_u17w_hep[[#This Row],[800mPoints]],0) -> 3860 | AD3: =IF(OR(t_u17w_hep[[#This Row],[80mH]]="DNS",t_u17w_hep[[#This Row],[LJ]]="DNS",t_u17w_hep[[#This Row],[SP]]="DNS",t_u17w_hep[[#This Row],[HJ]]="DNS",t_u17w_hep[[#This Row],[200m]]="DNS",t_u17w_hep[[#This Row],[JT]]="DNS",t_u17w_hep[[#This Row],[800mMins]]="DNS"),"Y","") ->  | AE3: =IF(t_u17w_hep[[#This Row],[Retired]]="Y","Retired",IF(t_u17w_hep[[#This Row],[Surrey]]="N","Guest",COUNTIFS(t_u17w_hep[Retired],"<>Y",t_u17w_hep[Surrey],"<>N",t_u17w_hep[TotalPoints],">"&t_u17w_hep[[#This Row],[TotalPoints]])+1)) -> 1 | AF3: 2
A4: 282 | B4: Poppy Wells | C4: Holland Sports AC | D4: U17W | E4: Y | F4: 15.02 | G4: N | I4: =IFERROR(getpoints(t_u17w_hep[[#This Row],[80mH]],"80mH",t_u17w_hep[[#This Row],[AgeGrp]],t_u17w_hep[[#This Row],[80mHElec]]),"") -> 471 | J4: 1.44 | K4: =IFERROR(getpoints(t_u17w_hep[[#This Row],[HJ]],"HJ",t_u17w_hep[[#This Row],[AgeGrp]]),"") -> 555 | L4: 6.14 | M4: =IFERROR(getpoints(t_u17w_hep[[#This Row],[SP]],"SP",t_u17w_hep[[#This Row],[AgeGrp]]),"") -> 280 | N4: 31.27 | O4: Y | P4: 1 | Q4: =IFERROR(getpoints(t_u17w_hep[[#This Row],[200m]],"200m",t_u17w_hep[[#This Row],[AgeGrp]],t_u17w_hep[[#This Row],[200mElec]]),"") -> 397 | R4: =t_u17w_hep[[#This Row],[80mHPoints]]+t_u17w_hep[[#This Row],[HJPoints]]+t_u17w_hep[[#This Row],[SPPoints]]+t_u17w_hep[[#This Row],[200mPoints]] -> 1703 | S4: 3.99 | T4: 0 | U4: =IFERROR(getpoints(t_u17w_hep[[#This Row],[LJ]],"LJ",t_u17w_hep[[#This Row],[AgeGrp]]),"") -> 306 | V4: 13.69 | W4: =IFERROR(getpoints(t_u17w_hep[[#This Row],[JT]],"JT",t_u17w_hep[[#This Row],[AgeGrp]]),"") -> 173 | X4: 2 | Y4: 51.66 | Z4: y | AA4: =IFERROR(getpoints(t_u17w_hep[[#This Row],[800mMins]]*60+t_u17w_hep[[#This Row],[800mSecs]],"800m",t_u17w_hep[[#This Row],[AgeGrp]],t_u17w_hep[[#This Row],[800mElec]]),0) -> 446 | AB4: =IFERROR((t_u17w_hep[[#This Row],[80mHWind]]+t_u17w_hep[[#This Row],[LJWind]]+t_u17w_hep[[#This Row],[200mWind]])/3,"n/a") -> 0.3333333333 | AC4: =IFERROR(t_u17w_hep[[#This Row],[80mHPoints]]+t_u17w_hep[[#This Row],[HJPoints]]+t_u17w_hep[[#This Row],[SPPoints]]+t_u17w_hep[[#This Row],[200mPoints]]+t_u17w_hep[[#This Row],[LJPoints]]+t_u17w_hep[[#This Row],[JTPoints]]+t_u17w_hep[[#This Row],[800mPoints]],0) -> 2628 | AD4: =IF(OR(t_u17w_hep[[#This Row],[80mH]]="DNS",t_u17w_hep[[#This Row],[LJ]]="DNS",t_u17w_hep[[#This Row],[SP]]="DNS",t_u17w_hep[[#This Row],[HJ]]="DNS",t_u17w_hep[[#This Row],[200m]]="DNS",t_u17w_hep[[#This Row],[JT]]="DNS",t_u17w_hep[[#This Row],[800mMins]]="DNS"),"Y","") ->  | AE4: =IF(t_u17w_hep[[#This Row],[Retired]]="Y","Retired",IF(t_u17w_hep[[#This Row],[Surrey]]="N","Guest",COUNTIFS(t_u17w_hep[Retired],"<>Y",t_u17w_hep[Surrey],"<>N",t_u17w_hep[TotalPoints],">"&t_u17w_hep[[#This Row],[TotalPoints]])+1)) -> 3 | AF4: 3
A5: 283 | B5: Ema Aldea | C5: Thurrock Harriers | D5: U17W | E5: N | F5: 14.2 | G5: N | I5: =IFERROR(getpoints(t_u17w_hep[[#This Row],[80mH]],"80mH",t_u17w_hep[[#This Row],[AgeGrp]],t_u17w_hep[[#This Row],[80mHElec]]),"") -> 549 | J5: 1.35 | K5: =IFERROR(getpoints(t_u17w_hep[[#This Row],[HJ]],"HJ",t_u17w_hep[[#This Row],[AgeGrp]]),"") -> 460 | L5: 6.59 | M5: =IFERROR(getpoints(t_u17w_hep[[#This Row],[SP]],"SP",t_u17w_hep[[#This Row],[AgeGrp]]),"") -> 309 | N5: 30.86 | O5: Y | P5: 1 | Q5: =IFERROR(getpoints(t_u17w_hep[[#This Row],[200m]],"200m",t_u17w_hep[[#This Row],[AgeGrp]],t_u17w_hep[[#This Row],[200mElec]]),"") -> 424 | R5: =t_u17w_hep[[#This Row],[80mHPoints]]+t_u17w_hep[[#This Row],[HJPoints]]+t_u17w_hep[[#This Row],[SPPoints]]+t_u17w_hep[[#This Row],[200mPoints]] -> 1742 | S5: 4.34 | T5: 0 | U5: =IFERROR(getpoints(t_u17w_hep[[#This Row],[LJ]],"LJ",t_u17w_hep[[#This Row],[AgeGrp]]),"") -> 388 | V5: 14.51 | W5: =IFERROR(getpoints(t_u17w_hep[[#This Row],[JT]],"JT",t_u17w_hep[[#This Row],[AgeGrp]]),"") -> 188 | X5: 3 | Y5: 17.85 | Z5: y | AA5: =IFERROR(getpoints(t_u17w_hep[[#This Row],[800mMins]]*60+t_u17w_hep[[#This Row],[800mSecs]],"800m",t_u17w_hep[[#This Row],[AgeGrp]],t_u17w_hep[[#This Row],[800mElec]]),0) -> 217 | AB5: =IFERROR((t_u17w_hep[[#This Row],[80mHWind]]+t_u17w_hep[[#This Row],[LJWind]]+t_u17w_hep[[#This Row],[200mWind]])/3,"n/a") -> 0.3333333333 | AC5: =IFERROR(t_u17w_hep[[#This Row],[80mHPoints]]+t_u17w_hep[[#This Row],[HJPoints]]+t_u17w_hep[[#This Row],[SPPoints]]+t_u17w_hep[[#This Row],[200mPoints]]+t_u17w_hep[[#This Row],[LJPoints]]+t_u17w_hep[[#This Row],[JTPoints]]+t_u17w_hep[[#This Row],[800mPoints]],0) -> 2535 | AD5: =IF(OR(t_u17w_hep[[#This Row],[80mH]]="DNS",t_u17w_hep[[#This Row],[LJ]]="DNS",t_u17w_hep[[#This Row],[SP]]="DNS",t_u17w_hep[[#This Row],[HJ]]="DNS",t_u17w_hep[[#This Row],[200m]]="DNS",t_u17w_hep[[#This Row],[JT]]="DNS",t_u17w_hep[[#This Row],[800mMins]]="DNS"),"Y","") ->  | AE5: =IF(t_u17w_hep[[#This Row],[Retired]]="Y","Retired",IF(t_u17w_hep[[#This Row],[Surrey]]="N","Guest",COUNTIFS(t_u17w_hep[Retired],"<>Y",t_u17w_hep[Surrey],"<>N",t_u17w_hep[TotalPoints],">"&t_u17w_hep[[#This Row],[TotalPoints]])+1)) -> Guest | AF5: 4
A6: 284 | B6: Georgina Ashby | C6: Reading AC | D6: U17W | E6: N | G6: N | I6: =IFERROR(getpoints(t_u17w_hep[[#This Row],[80mH]],"80mH",t_u17w_hep[[#This Row],[AgeGrp]],t_u17w_hep[[#This Row],[80mHElec]]),"") -> 0 | K6: =IFERROR(getpoints(t_u17w_hep[[#This Row],[HJ]],"HJ",t_u17w_hep[[#This Row],[AgeGrp]]),"") -> 0 | M6: =IFERROR(getpoints(t_u17w_hep[[#This Row],[SP]],"SP",t_u17w_hep[[#This Row],[AgeGrp]]),"") -> 0 | O6: Y | Q6: =IFERROR(getpoints(t_u17w_hep[[#This Row],[200m]],"200m",t_u17w_hep[[#This Row],[AgeGrp]],t_u17w_hep[[#This Row],[200mElec]]),"") -> 0 | R6: =t_u17w_hep[[#This Row],[80mHPoints]]+t_u17w_hep[[#This Row],[HJPoints]]+t_u17w_hep[[#This Row],[SPPoints]]+t_u17w_hep[[#This Row],[200mPoints]] -> 0 | U6: =IFERROR(getpoints(t_u17w_hep[[#This Row],[LJ]],"LJ",t_u17w_hep[[#This Row],[AgeGrp]]),"") -> 0 | W6: =IFERROR(getpoints(t_u17w_hep[[#This Row],[JT]],"JT",t_u17w_hep[[#This Row],[AgeGrp]]),"") -> 0 | Z6: y | AA6: =IFERROR(getpoints(t_u17w_hep[[#This Row],[800mMins]]*60+t_u17w_hep[[#This Row],[800mSecs]],"800m",t_u17w_hep[[#This Row],[AgeGrp]],t_u17w_hep[[#This Row],[800mElec]]),0) -> 0 | AB6: =IFERROR((t_u17w_hep[[#This Row],[80mHWind]]+t_u17w_hep[[#This Row],[LJWind]]+t_u17w_hep[[#This Row],[200mWind]])/3,"n/a") -> 0 | AC6: =IFERROR(t_u17w_hep[[#This Row],[80mHPoints]]+t_u17w_hep[[#This Row],[HJPoints]]+t_u17w_hep[[#This Row],[SPPoints]]+t_u17w_hep[[#This Row],[200mPoints]]+t_u17w_hep[[#This Row],[LJPoints]]+t_u17w_hep[[#This Row],[JTPoints]]+t_u17w_hep[[#This Row],[800mPoints]],0) -> 0 | AD6: =IF(OR(t_u17w_hep[[#This Row],[80mH]]="DNS",t_u17w_hep[[#This Row],[LJ]]="DNS",t_u17w_hep[[#This Row],[SP]]="DNS",t_u17w_hep[[#This Row],[HJ]]="DNS",t_u17w_hep[[#This Row],[200m]]="DNS",t_u17w_hep[[#This Row],[JT]]="DNS",t_u17w_hep[[#This Row],[800mMins]]="DNS"),"Y","") ->  | AE6: =IF(t_u17w_hep[[#This Row],[Retired]]="Y","Retired",IF(t_u17w_hep[[#This Row],[Surrey]]="N","Guest",COUNTIFS(t_u17w_hep[Retired],"<>Y",t_u17w_hep[Surrey],"<>N",t_u17w_hep[TotalPoints],">"&t_u17w_hep[[#This Row],[TotalPoints]])+1)) -> Guest | AF6: 5
A7: 285 | B7: Isobelle Beer | C7: North Devon AC | D7: U17W | E7: N | F7: 13.07 | G7: N | I7: =IFERROR(getpoints(t_u17w_hep[[#This Row],[80mH]],"80mH",t_u17w_hep[[#This Row],[AgeGrp]],t_u17w_hep[[#This Row],[80mHElec]]),"") -> 663 | J7: 1.53 | K7: =IFERROR(getpoints(t_u17w_hep[[#This Row],[HJ]],"HJ",t_u17w_hep[[#This Row],[AgeGrp]]),"") -> 655 | L7: 9.57 | M7: =IFERROR(getpoints(t_u17w_hep[[#This Row],[SP]],"SP",t_u17w_hep[[#This Row],[AgeGrp]]),"") -> 501 | N7: 28.82 | O7: Y | P7: 1 | Q7: =IFERROR(getpoints(t_u17w_hep[[#This Row],[200m]],"200m",t_u17w_hep[[#This Row],[AgeGrp]],t_u17w_hep[[#This Row],[200mElec]]),"") -> 568 | R7: =t_u17w_hep[[#This Row],[80mHPoints]]+t_u17w_hep[[#This Row],[HJPoints]]+t_u17w_hep[[#This Row],[SPPoints]]+t_u17w_hep[[#This Row],[200mPoints]] -> 2387 | S7: 4.43 | T7: 0 | U7: =IFERROR(getpoints(t_u17w_hep[[#This Row],[LJ]],"LJ",t_u17w_hep[[#This Row],[AgeGrp]]),"") -> 411 | V7: NT | W7: =IFERROR(getpoints(t_u17w_hep[[#This Row],[JT]],"JT",t_u17w_hep[[#This Row],[AgeGrp]]),"") -> 0 | X7: 2 | Y7: 41.37 | Z7: y | AA7: =IFERROR(getpoints(t_u17w_hep[[#This Row],[800mMins]]*60+t_u17w_hep[[#This Row],[800mSecs]],"800m",t_u17w_hep[[#This Row],[AgeGrp]],t_u17w_hep[[#This Row],[800mElec]]),0) -> 557 | AB7: =IFERROR((t_u17w_hep[[#This Row],[80mHWind]]+t_u17w_hep[[#This Row],[LJWind]]+t_u17w_hep[[#This Row],[200mWind]])/3,"n/a") -> 0.3333333333 | AC7: =IFERROR(t_u17w_hep[[#This Row],[80mHPoints]]+t_u17w_hep[[#This Row],[HJPoints]]+t_u17w_hep[[#This Row],[SPPoints]]+t_u17w_hep[[#This Row],[200mPoints]]+t_u17w_hep[[#This Row],[LJPoints]]+t_u17w_hep[[#This Row],[JTPoints]]+t_u17w_hep[[#This Row],[800mPoints]],0) -> 3355 | AD7: =IF(OR(t_u17w_hep[[#This Row],[80mH]]="DNS",t_u17w_hep[[#This Row],[LJ]]="DNS",t_u17w_hep[[#This Row],[SP]]="DNS",t_u17w_hep[[#This Row],[HJ]]="DNS",t_u17w_hep[[#This Row],[200m]]="DNS",t_u17w_hep[[#This Row],[JT]]="DNS",t_u17w_hep[[#This Row],[800mMins]]="DNS"),"Y","") ->  | AE7: =IF(t_u17w_hep[[#This Row],[Retired]]="Y","Retired",IF(t_u17w_hep[[#This Row],[Surrey]]="N","Guest",COUNTIFS(t_u17w_hep[Retired],"<>Y",t_u17w_hep[Surrey],"<>N",t_u17w_hep[TotalPoints],">"&t_u17w_hep[[#This Row],[TotalPoints]])+1)) -> Guest | AF7: 6
A8: 286 | B8: Josie Booker | C8: Ealing Southall & Middlesex AC | D8: U17W | E8: N | F8: 14.2 | G8: N | I8: =IFERROR(getpoints(t_u17w_hep[[#This Row],[80mH]],"80mH",t_u17w_hep[[#This Row],[AgeGrp]],t_u17w_hep[[#This Row],[80mHElec]]),"") -> 549 | J8: 1.41 | K8: =IFERROR(getpoints(t_u17w_hep[[#This Row],[HJ]],"HJ",t_u17w_hep[[#This Row],[AgeGrp]]),"") -> 523 | L8: 9.63 | M8: =IFERROR(getpoints(t_u17w_hep[[#This Row],[SP]],"SP",t_u17w_hep[[#This Row],[AgeGrp]]),"") -> 505 | N8: 29.76 | O8: Y | P8: 1 | Q8: =IFERROR(getpoints(t_u17w_hep[[#This Row],[200m]],"200m",t_u17w_hep[[#This Row],[AgeGrp]],t_u17w_hep[[#This Row],[200mElec]]),"") -> 499 | R8: =t_u17w_hep[[#This Row],[80mHPoints]]+t_u17w_hep[[#This Row],[HJPoints]]+t_u17w_hep[[#This Row],[SPPoints]]+t_u17w_hep[[#This Row],[200mPoints]] -> 2076 | S8: 4.21 | T8: 0 | U8: =IFERROR(getpoints(t_u17w_hep[[#This Row],[LJ]],"LJ",t_u17w_hep[[#This Row],[AgeGrp]]),"") -> 357 | V8: 15.61 | W8: =IFERROR(getpoints(t_u17w_hep[[#This Row],[JT]],"JT",t_u17w_hep[[#This Row],[AgeGrp]]),"") -> 208 | X8: 2 | Y8: 49 | Z8: y | AA8: =IFERROR(getpoints(t_u17w_hep[[#This Row],[800mMins]]*60+t_u17w_hep[[#This Row],[800mSecs]],"800m",t_u17w_hep[[#This Row],[AgeGrp]],t_u17w_hep[[#This Row],[800mElec]]),0) -> 474 | AB8: =IFERROR((t_u17w_hep[[#This Row],[80mHWind]]+t_u17w_hep[[#This Row],[LJWind]]+t_u17w_hep[[#This Row],[200mWind]])/3,"n/a") -> 0.3333333333 | AC8: =IFERROR(t_u17w_hep[[#This Row],[80mHPoints]]+t_u17w_hep[[#This Row],[HJPoints]]+t_u17w_hep[[#This Row],[SPPoints]]+t_u17w_hep[[#This Row],[200mPoints]]+t_u17w_hep[[#This Row],[LJPoints]]+t_u17w_hep[[#This Row],[JTPoints]]+t_u17w_hep[[#This Row],[800mPoints]],0) -> 3115 | AD8: =IF(OR(t_u17w_hep[[#This Row],[80mH]]="DNS",t_u17w_hep[[#This Row],[LJ]]="DNS",t_u17w_hep[[#This Row],[SP]]="DNS",t_u17w_hep[[#This Row],[HJ]]="DNS",t_u17w_hep[[#This Row],[200m]]="DNS",t_u17w_hep[[#This Row],[JT]]="DNS",t_u17w_hep[[#This Row],[800mMins]]="DNS"),"Y","") ->  | AE8: =IF(t_u17w_hep[[#This Row],[Retired]]="Y","Retired",IF(t_u17w_hep[[#This Row],[Surrey]]="N","Guest",COUNTIFS(t_u17w_hep[Retired],"<>Y",t_u17w_hep[Surrey],"<>N",t_u17w_hep[TotalPoints],">"&t_u17w_hep[[#This Row],[TotalPoints]])+1)) -> Guest | AF8: 7
A9: 287 | B9: Kayin Hurst | C9: Reading AC | D9: U17W | E9: N | F9: 13.31 | G9: N | I9: =IFERROR(getpoints(t_u17w_hep[[#This Row],[80mH]],"80mH",t_u17w_hep[[#This Row],[AgeGrp]],t_u17w_hep[[#This Row],[80mHElec]]),"") -> 630 | J9: 1.41 | K9: =IFERROR(getpoints(t_u17w_hep[[#This Row],[HJ]],"HJ",t_u17w_hep[[#This Row],[AgeGrp]]),"") -> 523 | L9: 7.85 | M9: =IFERROR(getpoints(t_u17w_hep[[#This Row],[SP]],"SP",t_u17w_hep[[#This Row],[AgeGrp]]),"") -> 390 | N9: 27.6 | O9: Y | P9: 1 | Q9: =IFERROR(getpoints(t_u17w_hep[[#This Row],[200m]],"200m",t_u17w_hep[[#This Row],[AgeGrp]],t_u17w_hep[[#This Row],[200mElec]]),"") -> 663 | R9: =t_u17w_hep[[#This Row],[80mHPoints]]+t_u17w_hep[[#This Row],[HJPoints]]+t_u17w_hep[[#This Row],[SPPoints]]+t_u17w_hep[[#This Row],[200mPoints]] -> 2206 | S9: 4.82 | T9: 0.6 | U9: =IFERROR(getpoints(t_u17w_hep[[#This Row],[LJ]],"LJ",t_u17w_hep[[#This Row],[AgeGrp]]),"") -> 511 | V9: 11.65 | W9: =IFERROR(getpoints(t_u17w_hep[[#This Row],[JT]],"JT",t_u17w_hep[[#This Row],[AgeGrp]]),"") -> 136 | X9: 3 | Y9: 1.68 | Z9: y | AA9: =IFERROR(getpoints(t_u17w_hep[[#This Row],[800mMins]]*60+t_u17w_hep[[#This Row],[800mSecs]],"800m",t_u17w_hep[[#This Row],[AgeGrp]],t_u17w_hep[[#This Row],[800mElec]]),0) -> 350 | AB9: =IFERROR((t_u17w_hep[[#This Row],[80mHWind]]+t_u17w_hep[[#This Row],[LJWind]]+t_u17w_hep[[#This Row],[200mWind]])/3,"n/a") -> 0.5333333333 | AC9: =IFERROR(t_u17w_hep[[#This Row],[80mHPoints]]+t_u17w_hep[[#This Row],[HJPoints]]+t_u17w_hep[[#This Row],[SPPoints]]+t_u17w_hep[[#This Row],[200mPoints]]+t_u17w_hep[[#This Row],[LJPoints]]+t_u17w_hep[[#This Row],[JTPoints]]+t_u17w_hep[[#This Row],[800mPoints]],0) -> 3203 | AD9: =IF(OR(t_u17w_hep[[#This Row],[80mH]]="DNS",t_u17w_hep[[#This Row],[LJ]]="DNS",t_u17w_hep[[#This Row],[SP]]="DNS",t_u17w_hep[[#This Row],[HJ]]="DNS",t_u17w_hep[[#This Row],[200m]]="DNS",t_u17w_hep[[#This Row],[JT]]="DNS",t_u17w_hep[[#This Row],[800mMins]]="DNS"),"Y","") ->  | AE9: =IF(t_u17w_hep[[#This Row],[Retired]]="Y","Retired",IF(t_u17w_hep[[#This Row],[Surrey]]="N","Guest",COUNTIFS(t_u17w_hep[Retired],"<>Y",t_u17w_hep[Surrey],"<>N",t_u17w_hep[TotalPoints],">"&t_u17w_hep[[#This Row],[TotalPoints]])+1)) -> Guest | AF9: 8
A10: 288 | B10: Elizabeth Kelly | C10: Dacorum & Tring AC | D10: U17W | E10: N | G10: N | I10: =IFERROR(getpoints(t_u17w_hep[[#This Row],[80mH]],"80mH",t_u17w_hep[[#This Row],[AgeGrp]],t_u17w_hep[[#This Row],[80mHElec]]),"") -> 0 | K10: =IFERROR(getpoints(t_u17w_hep[[#This Row],[HJ]],"HJ",t_u17w_hep[[#This Row],[AgeGrp]]),"") -> 0 | M10: =IFERROR(getpoints(t_u17w_hep[[#This Row],[SP]],"SP",t_u17w_hep[[#This Row],[AgeGrp]]),"") -> 0 | O10: Y | Q10: =IFERROR(getpoints(t_u17w_hep[[#This Row],[200m]],"200m",t_u17w_hep[[#This Row],[AgeGrp]],t_u17w_hep[[#This Row],[200mElec]]),"") -> 0 | R10: =t_u17w_hep[[#This Row],[80mHPoints]]+t_u17w_hep[[#This Row],[HJPoints]]+t_u17w_hep[[#This Row],[SPPoints]]+t_u17w_hep[[#This Row],[200mPoints]] -> 0 | S10: WD | U10: =IFERROR(getpoints(t_u17w_hep[[#This Row],[LJ]],"LJ",t_u17w_hep[[#This Row],[AgeGrp]]),"") -> 0 | W10: =IFERROR(getpoints(t_u17w_hep[[#This Row],[JT]],"JT",t_u17w_hep[[#This Row],[AgeGrp]]),"") -> 0 | Z10: y | AA10: =IFERROR(getpoints(t_u17w_hep[[#This Row],[800mMins]]*60+t_u17w_hep[[#This Row],[800mSecs]],"800m",t_u17w_hep[[#This Row],[AgeGrp]],t_u17w_hep[[#This Row],[800mElec]]),0) -> 0 | AB10: =IFERROR((t_u17w_hep[[#This Row],[80mHWind]]+t_u17w_hep[[#This Row],[LJWind]]+t_u17w_hep[[#This Row],[200mWind]])/3,"n/a") -> 0 | AC10: =IFERROR(t_u17w_hep[[#This Row],[80mHPoints]]+t_u17w_hep[[#This Row],[HJPoints]]+t_u17w_hep[[#This Row],[SPPoints]]+t_u17w_hep[[#This Row],[200mPoints]]+t_u17w_hep[[#This Row],[LJPoints]]+t_u17w_hep[[#This Row],[JTPoints]]+t_u17w_hep[[#This Row],[800mPoints]],0) -> 0 | AD10: =IF(OR(t_u17w_hep[[#This Row],[80mH]]="DNS",t_u17w_hep[[#This Row],[LJ]]="DNS",t_u17w_hep[[#This Row],[SP]]="DNS",t_u17w_hep[[#This Row],[HJ]]="DNS",t_u17w_hep[[#This Row],[200m]]="DNS",t_u17w_hep[[#This Row],[JT]]="DNS",t_u17w_hep[[#This Row],[800mMins]]="DNS"),"Y","") ->  | AE10: =IF(t_u17w_hep[[#This Row],[Retired]]="Y","Retired",IF(t_u17w_hep[[#This Row],[Surrey]]="N","Guest",COUNTIFS(t_u17w_hep[Retired],"<>Y",t_u17w_hep[Surrey],"<>N",t_u17w_hep[TotalPoints],">"&t_u17w_hep[[#This Row],[TotalPoints]])+1)) -> Guest | AF10: 9
A11: 289 | B11: Amani Kohler | C11: Highgate Harriers | D11: U17W | E11: N | F11: 13.84 | G11: N | I11: =IFERROR(getpoints(t_u17w_hep[[#This Row],[80mH]],"80mH",t_u17w_hep[[#This Row],[AgeGrp]],t_u17w_hep[[#This Row],[80mHElec]]),"") -> 578 | J11: 1.41 | K11: =IFERROR(getpoints(t_u17w_hep[[#This Row],[HJ]],"HJ",t_u17w_hep[[#This Row],[AgeGrp]]),"") -> 523 | L11: 9.32 | M11: =IFERROR(getpoints(t_u17w_hep[[#This Row],[SP]],"SP",t_u17w_hep[[#This Row],[AgeGrp]]),"") -> 485 | N11: 29.03 | O11: Y | P11: 1 | Q11: =IFERROR(getpoints(t_u17w_hep[[#This Row],[200m]],"200m",t_u17w_hep[[#This Row],[AgeGrp]],t_u17w_hep[[#This Row],[200mElec]]),"") -> 552 | R11: =t_u17w_hep[[#This Row],[80mHPoints]]+t_u17w_hep[[#This Row],[HJPoints]]+t_u17w_hep[[#This Row],[SPPoints]]+t_u17w_hep[[#This Row],[200mPoints]] -> 2138 | U11: =IFERROR(getpoints(t_u17w_hep[[#This Row],[LJ]],"LJ",t_u17w_hep[[#This Row],[AgeGrp]]),"") -> 0 | W11: =IFERROR(getpoints(t_u17w_hep[[#This Row],[JT]],"JT",t_u17w_hep[[#This Row],[AgeGrp]]),"") -> 0 | Z11: y | AA11: =IFERROR(getpoints(t_u17w_hep[[#This Row],[800mMins]]*60+t_u17w_hep[[#This Row],[800mSecs]],"800m",t_u17w_hep[[#This Row],[AgeGrp]],t_u17w_hep[[#This Row],[800mElec]]),0) -> 0 | AB11: =IFERROR((t_u17w_hep[[#This Row],[80mHWind]]+t_u17w_hep[[#This Row],[LJWind]]+t_u17w_hep[[#This Row],[200mWind]])/3,"n/a") -> 0.3333333333 | AC11: =IFERROR(t_u17w_hep[[#This Row],[80mHPoints]]+t_u17w_hep[[#This Row],[HJPoints]]+t_u17w_hep[[#This Row],[SPPoints]]+t_u17w_hep[[#This Row],[200mPoints]]+t_u17w_hep[[#This Row],[LJPoints]]+t_u17w_hep[[#This Row],[JTPoints]]+t_u17w_hep[[#This Row],[800mPoints]],0) -> 2138 | AD11: =IF(OR(t_u17w_hep[[#This Row],[80mH]]="DNS",t_u17w_hep[[#This Row],[LJ]]="DNS",t_u17w_hep[[#This Row],[SP]]="DNS",t_u17w_hep[[#This Row],[HJ]]="DNS",t_u17w_hep[[#This Row],[200m]]="DNS",t_u17w_hep[[#This Row],[JT]]="DNS",t_u17w_hep[[#This Row],[800mMins]]="DNS"),"Y","") ->  | AE11: =IF(t_u17w_hep[[#This Row],[Retired]]="Y","Retired",IF(t_u17w_hep[[#This Row],[Surrey]]="N","Guest",COUNTIFS(t_u17w_hep[Retired],"<>Y",t_u17w_hep[Surrey],"<>N",t_u17w_hep[TotalPoints],">"&t_u17w_hep[[#This Row],[TotalPoints]])+1)) -> Guest | AF11: 10

Sheet U17 Women Results
B1: Holder: | C1: =INDEX(t_holder[Name],MATCH("u17w",t_holder[AgeGrp],0)) -> Zoe Shepherd | D1: =INDEX(t_holder[Club],MATCH("u17w",t_holder[AgeGrp],0)) -> Kingston AC & Polytechnic Harriers | H1: =INDEX(t_holder[Points],MATCH("u17w",t_holder[AgeGrp],0)) & " pts" -> 3960 pts
B2: CBP: | C2: =INDEX(t_cbp[Name],MATCH("u17w",t_cbp[AgeGrp],0)) -> Clover Wynter-Pink | D2: =INDEX(t_cbp[Club],MATCH("u17w",t_cbp[AgeGrp],0)) -> Croydon Harriers | H2: =INDEX(t_cbp[Points],MATCH("u17w",t_cbp[AgeGrp],0)) & " Pts" -> 4674 Pts | I2: =INDEX(t_cbp[Year],MATCH("u17w",t_cbp[AgeGrp],0)) -> 1993
L4: Av Wind
B5: Pos | C5: Athlete | E5: 80mH | F5: HJ | G5: Shot | H5: 200m | I5: LJ | J5: Jav | K5: 800m | L5: Final Total
A6: 1 | C6: =INDEX(t_u17w_hep[Bib],MATCH(A6,t_u17w_hep[AllPos],0)) -> 280 | D6: Perf | E6: =INDEX(t_u17w_hep[80mH],MATCH(A6,t_u17w_hep[AllPos],0)) -> 16.28 | F6: =INDEX(t_u17w_hep[HJ],MATCH(A6,t_u17w_hep[AllPos],0)) -> 1.5 | G6: =INDEX(t_u17w_hep[SP],MATCH(A6,t_u17w_hep[AllPos],0)) -> 6.75 | H6: =INDEX(t_u17w_hep[200m],MATCH(A6,t_u17w_hep[AllPos],0)) -> 28.21 | I6: =INDEX(t_u17w_hep[LJ],MATCH(A6,t_u17w_hep[AllPos],0)) -> 4.56 | J6: =INDEX(t_u17w_hep[JT],MATCH(A6,t_u17w_hep[AllPos],0)) -> 16.39 | K6: =(INDEX(t_u17w_hep[800mMins],MATCH(A6,t_u17w_hep[AllPos],0))*60+INDEX(t_u17w_hep[800mSecs],MATCH(A6,t_u17w_hep[AllPos],0)))/86400 -> 0.001720949074
B7: =INDEX(t_u17w_hep[FinalPosition],MATCH(A6,t_u17w_hep[AllPos],0)) -> 2 | C7: =INDEX(t_u17w_hep[Name],MATCH(A6,t_u17w_hep[AllPos],0)) -> Millie Henson | D7: Wind | E7: =INDEX(t_u17w_hep[80mHWind],MATCH(A6,t_u17w_hep[AllPos],0)) -> 0 | H7: =INDEX(t_u17w_hep[200mWind],MATCH(A6,t_u17w_hep[AllPos],0)) -> 1 | I7: =INDEX(t_u17w_hep[LJWind],MATCH(A6,t_u17w_hep[AllPos],0)) -> 0 | L7: =INDEX(t_u17w_hep[AvWind],MATCH(A6,t_u17w_hep[AllPos],0)) -> 0.3333333333
C8: =INDEX(t_u17w_hep[Club],MATCH(A6,t_u17w_hep[AllPos],0)) -> Holland Sports AC | D8: Points | E8: =INDEX(t_u17w_hep[80mHPoints],MATCH(A6,t_u17w_hep[AllPos],0)) -> 376 | F8: =INDEX(t_u17w_hep[HJPoints],MATCH(A6,t_u17w_hep[AllPos],0)) -> 621 | G8: =INDEX(t_u17w_hep[SPPoints],MATCH(A6,t_u17w_hep[AllPos],0)) -> 319 | H8: =INDEX(t_u17w_hep[200mPoints],MATCH(A6,t_u17w_hep[AllPos],0)) -> 614 | I8: =INDEX(t_u17w_hep[LJPoints],MATCH(A6,t_u17w_hep[AllPos],0)) -> 443 | J8: =INDEX(t_u17w_hep[JTPoints],MATCH(A6,t_u17w_hep[AllPos],0)) -> 222 | K8: =INDEX(t_u17w_hep[800mPoints],MATCH(A6,t_u17w_hep[AllPos],0)) -> 709 | L8: =INDEX(t_u17w_hep[TotalPoints],MATCH(A6,t_u17w_hep[AllPos],0)) -> 3304
A9: =A6+1 -> 2 | C9: =INDEX(t_u17w_hep[Bib],MATCH(A9,t_u17w_hep[AllPos],0)) -> 281 | D9: Perf | E9: =INDEX(t_u17w_hep[80mH],MATCH(A9,t_u17w_hep[AllPos],0)) -> 13.64 | F9: =INDEX(t_u17w_hep[HJ],MATCH(A9,t_u17w_hep[AllPos],0)) -> 1.62 | G9: =INDEX(t_u17w_hep[SP],MATCH(A9,t_u17w_hep[AllPos],0)) -> 9.49 | H9: =INDEX(t_u17w_hep[200m],MATCH(A9,t_u17w_hep[AllPos],0)) -> 26.87 | I9: =INDEX(t_u17w_hep[LJ],MATCH(A9,t_u17w_hep[AllPos],0)) -> 4.51 | J9: =INDEX(t_u17w_hep[JT],MATCH(A9,t_u17w_hep[AllPos],0)) -> 21.17 | K9: =(INDEX(t_u17w_hep[800mMins],MATCH(A9,t_u17w_hep[AllPos],0))*60+INDEX(t_u17w_hep[800mSecs],MATCH(A9,t_u17w_hep[AllPos],0)))/86400 -> 0.001884027778
B10: =INDEX(t_u17w_hep[FinalPosition],MATCH(A9,t_u17w_hep[AllPos],0)) -> 1 | C10: =INDEX(t_u17w_hep[Name],MATCH(A9,t_u17w_hep[AllPos],0)) -> Gabriella Thoburn | D10: Wind | E10: =INDEX(t_u17w_hep[80mHWind],MATCH(A9,t_u17w_hep[AllPos],0)) -> 0 | H10: =INDEX(t_u17w_hep[200mWind],MATCH(A9,t_u17w_hep[AllPos],0)) -> 1 | I10: =INDEX(t_u17w_hep[LJWind],MATCH(A9,t_u17w_hep[AllPos],0)) -> 0 | L10: =INDEX(t_u17w_hep[AvWind],MATCH(A9,t_u17w_hep[AllPos],0)) -> 0.3333333333
C11: =INDEX(t_u17w_hep[Club],MATCH(A9,t_u17w_hep[AllPos],0)) -> South London Harriers | D11: Points | E11: =INDEX(t_u17w_hep[80mHPoints],MATCH(A9,t_u17w_hep[AllPos],0)) -> 599 | F11: =INDEX(t_u17w_hep[HJPoints],MATCH(A9,t_u17w_hep[AllPos],0)) -> 759 | G11: =INDEX(t_u17w_hep[SPPoints],MATCH(A9,t_u17w_hep[AllPos],0)) -> 496 | H11: =INDEX(t_u17w_hep[200mPoints],MATCH(A9,t_u17w_hep[AllPos],0)) -> 723 | I11: =INDEX(t_u17w_hep[LJPoints],MATCH(A9,t_u17w_hep[AllPos],0)) -> 431 | J11: =INDEX(t_u17w_hep[JTPoints],MATCH(A9,t_u17w_hep[AllPos],0)) -> 311 | K11: =INDEX(t_u17w_hep[800mPoints],MATCH(A9,t_u17w_hep[AllPos],0)) -> 541 | L11: =INDEX(t_u17w_hep[TotalPoints],MATCH(A9,t_u17w_hep[AllPos],0)) -> 3860
A12: =A9+1 -> 3 | C12: =INDEX(t_u17w_hep[Bib],MATCH(A12,t_u17w_hep[AllPos],0)) -> 282 | D12: Perf | E12: =INDEX(t_u17w_hep[80mH],MATCH(A12,t_u17w_hep[AllPos],0)) -> 15.02 | F12: =INDEX(t_u17w_hep[HJ],MATCH(A12,t_u17w_hep[AllPos],0)) -> 1.44 | G12: =INDEX(t_u17w_hep[SP],MATCH(A12,t_u17w_hep[AllPos],0)) -> 6.14 | H12: =INDEX(t_u17w_hep[200m],MATCH(A12,t_u17w_hep[AllPos],0)) -> 31.27 | I12: =INDEX(t_u17w_hep[LJ],MATCH(A12,t_u17w_hep[AllPos],0)) -> 3.99 | J12: =INDEX(t_u17w_hep[JT],MATCH(A12,t_u17w_hep[AllPos],0)) -> 13.69 | K12: =(INDEX(t_u17w_hep[800mMins],MATCH(A12,t_u17w_hep[AllPos],0))*60+INDEX(t_u17w_hep[800mSecs],MATCH(A12,t_u17w_hep[AllPos],0)))/86400 -> 0.001986805556
B13: =INDEX(t_u17w_hep[FinalPosition],MATCH(A12,t_u17w_hep[AllPos],0)) -> 3 | C13: =INDEX(t_u17w_hep[Name],MATCH(A12,t_u17w_hep[AllPos],0)) -> Poppy Wells | D13: Wind | E13: =INDEX(t_u17w_hep[80mHWind],MATCH(A12,t_u17w_hep[AllPos],0)) -> 0 | H13: =INDEX(t_u17w_hep[200mWind],MATCH(A12,t_u17w_hep[AllPos],0)) -> 1 | I13: =INDEX(t_u17w_hep[LJWind],MATCH(A12,t_u17w_hep[AllPos],0)) -> 0 | L13: =INDEX(t_u17w_hep[AvWind],MATCH(A12,t_u17w_hep[AllPos],0)) -> 0.3333333333
C14: =INDEX(t_u17w_hep[Club],MATCH(A12,t_u17w_hep[AllPos],0)) -> Holland Sports AC | D14: Points | E14: =INDEX(t_u17w_hep[80mHPoints],MATCH(A12,t_u17w_hep[AllPos],0)) -> 471 | F14: =INDEX(t_u17w_hep[HJPoints],MATCH(A12,t_u17w_hep[AllPos],0)) -> 555 | G14: =INDEX(t_u17w_hep[SPPoints],MATCH(A12,t_u17w_hep[AllPos],0)) -> 280 | H14: =INDEX(t_u17w_hep[200mPoints],MATCH(A12,t_u17w_hep[AllPos],0)) -> 397 | I14: =INDEX(t_u17w_hep[LJPoints],MATCH(A12,t_u17w_hep[AllPos],0)) -> 306 | J14: =INDEX(t_u17w_hep[JTPoints],MATCH(A12,t_u17w_hep[AllPos],0)) -> 173 | K14: =INDEX(t_u17w_hep[800mPoints],MATCH(A12,t_u17w_hep[AllPos],0)) -> 446 | L14: =INDEX(t_u17w_hep[TotalPoints],MATCH(A12,t_u17w_hep[AllPos],0)) -> 2628
A15: =A12+1 -> 4 | C15: =INDEX(t_u17w_hep[Bib],MATCH(A15,t_u17w_hep[AllPos],0)) -> 283 | D15: Perf | E15: =INDEX(t_u17w_hep[80mH],MATCH(A15,t_u17w_hep[AllPos],0)) -> 14.2 | F15: =INDEX(t_u17w_hep[HJ],MATCH(A15,t_u17w_hep[AllPos],0)) -> 1.35 | G15: =INDEX(t_u17w_hep[SP],MATCH(A15,t_u17w_hep[AllPos],0)) -> 6.59 | H15: =INDEX(t_u17w_hep[200m],MATCH(A15,t_u17w_hep[AllPos],0)) -> 30.86 | I15: =INDEX(t_u17w_hep[LJ],MATCH(A15,t_u17w_hep[AllPos],0)) -> 4.34 | J15: =INDEX(t_u17w_hep[JT],MATCH(A15,t_u17w_hep[AllPos],0)) -> 14.51 | K15: =(INDEX(t_u17w_hep[800mMins],MATCH(A15,t_u17w_hep[AllPos],0))*60+INDEX(t_u17w_hep[800mSecs],MATCH(A15,t_u17w_hep[AllPos],0)))/86400 -> 0.002289930556
B16: =INDEX(t_u17w_hep[FinalPosition],MATCH(A15,t_u17w_hep[AllPos],0)) -> Guest | C16: =INDEX(t_u17w_hep[Name],MATCH(A15,t_u17w_hep[AllPos],0)) -> Ema Aldea | D16: Wind | E16: =INDEX(t_u17w_hep[80mHWind],MATCH(A15,t_u17w_hep[AllPos],0)) -> 0 | H16: =INDEX(t_u17w_hep[200mWind],MATCH(A15,t_u17w_hep[AllPos],0)) -> 1 | I16: =INDEX(t_u17w_hep[LJWind],MATCH(A15,t_u17w_hep[AllPos],0)) -> 0 | L16: =INDEX(t_u17w_hep[AvWind],MATCH(A15,t_u17w_hep[AllPos],0)) -> 0.3333333333
C17: =INDEX(t_u17w_hep[Club],MATCH(A15,t_u17w_hep[AllPos],0)) -> Thurrock Harriers | D17: Points | E17: =INDEX(t_u17w_hep[80mHPoints],MATCH(A15,t_u17w_hep[AllPos],0)) -> 549 | F17: =INDEX(t_u17w_hep[HJPoints],MATCH(A15,t_u17w_hep[AllPos],0)) -> 460 | G17: =INDEX(t_u17w_hep[SPPoints],MATCH(A15,t_u17w_hep[AllPos],0)) -> 309 | H17: =INDEX(t_u17w_hep[200mPoints],MATCH(A15,t_u17w_hep[AllPos],0)) -> 424 | I17: =INDEX(t_u17w_hep[LJPoints],MATCH(A15,t_u17w_hep[AllPos],0)) -> 388 | J17: =INDEX(t_u17w_hep[JTPoints],MATCH(A15,t_u17w_hep[AllPos],0)) -> 188 | K17: =INDEX(t_u17w_hep[800mPoints],MATCH(A15,t_u17w_hep[AllPos],0)) -> 217 | L17: =INDEX(t_u17w_hep[TotalPoints],MATCH(A15,t_u17w_hep[AllPos],0)) -> 2535
A18: =A15+1 -> 5 | C18: =INDEX(t_u17w_hep[Bib],MATCH(A18,t_u17w_hep[AllPos],0)) -> 284 | D18: Perf | E18: =INDEX(t_u17w_hep[80mH],MATCH(A18,t_u17w_hep[AllPos],0)) -> 0 | F18: =INDEX(t_u17w_hep[HJ],MATCH(A18,t_u17w_hep[AllPos],0)) -> 0 | G18: =INDEX(t_u17w_hep[SP],MATCH(A18,t_u17w_hep[AllPos],0)) -> 0 | H18: =INDEX(t_u17w_hep[200m],MATCH(A18,t_u17w_hep[AllPos],0)) -> 0 | I18: =INDEX(t_u17w_hep[LJ],MATCH(A18,t_u17w_hep[AllPos],0)) -> 0 | J18: =INDEX(t_u17w_hep[JT],MATCH(A18,t_u17w_hep[AllPos],0)) -> 0 | K18: =(INDEX(t_u17w_hep[800mMins],MATCH(A18,t_u17w_hep[AllPos],0))*60+INDEX(t_u17w_hep[800mSecs],MATCH(A18,t_u17w_hep[AllPos],0)))/86400 -> 0
B19: =INDEX(t_u17w_hep[FinalPosition],MATCH(A18,t_u17w_hep[AllPos],0)) -> Guest | C19: =INDEX(t_u17w_hep[Name],MATCH(A18,t_u17w_hep[AllPos],0)) -> Georgina Ashby | D19: Wind | E19: =INDEX(t_u17w_hep[80mHWind],MATCH(A18,t_u17w_hep[AllPos],0)) -> 0 | H19: =INDEX(t_u17w_hep[200mWind],MATCH(A18,t_u17w_hep[AllPos],0)) -> 0 | I19: =INDEX(t_u17w_hep[LJWind],MATCH(A18,t_u17w_hep[AllPos],0)) -> 0 | L19: =INDEX(t_u17w_hep[AvWind],MATCH(A18,t_u17w_hep[AllPos],0)) -> 0
C20: =INDEX(t_u17w_hep[Club],MATCH(A18,t_u17w_hep[AllPos],0)) -> Reading AC | D20: Points | E20: =INDEX(t_u17w_hep[80mHPoints],MATCH(A18,t_u17w_hep[AllPos],0)) -> 0 | F20: =INDEX(t_u17w_hep[HJPoints],MATCH(A18,t_u17w_hep[AllPos],0)) -> 0 | G20: =INDEX(t_u17w_hep[SPPoints],MATCH(A18,t_u17w_hep[AllPos],0)) -> 0 | H20: =INDEX(t_u17w_hep[200mPoints],MATCH(A18,t_u17w_hep[AllPos],0)) -> 0 | I20: =INDEX(t_u17w_hep[LJPoints],MATCH(A18,t_u17w_hep[AllPos],0)) -> 0 | J20: =INDEX(t_u17w_hep[JTPoints],MATCH(A18,t_u17w_hep[AllPos],0)) -> 0 | K20: =INDEX(t_u17w_hep[800mPoints],MATCH(A18,t_u17w_hep[AllPos],0)) -> 0 | L20: =INDEX(t_u17w_hep[TotalPoints],MATCH(A18,t_u17w_hep[AllPos],0)) -> 0
A21: =A18+1 -> 6 | C21: =INDEX(t_u17w_hep[Bib],MATCH(A21,t_u17w_hep[AllPos],0)) -> 285 | D21: Perf | E21: =INDEX(t_u17w_hep[80mH],MATCH(A21,t_u17w_hep[AllPos],0)) -> 13.07 | F21: =INDEX(t_u17w_hep[HJ],MATCH(A21,t_u17w_hep[AllPos],0)) -> 1.53 | G21: =INDEX(t_u17w_hep[SP],MATCH(A21,t_u17w_hep[AllPos],0)) -> 9.57 | H21: =INDEX(t_u17w_hep[200m],MATCH(A21,t_u17w_hep[AllPos],0)) -> 28.82 | I21: =INDEX(t_u17w_hep[LJ],MATCH(A21,t_u17w_hep[AllPos],0)) -> 4.43 | J21: =INDEX(t_u17w_hep[JT],MATCH(A21,t_u17w_hep[AllPos],0)) -> NT | K21: =(INDEX(t_u17w_hep[800mMins],MATCH(A21,t_u17w_hep[AllPos],0))*60+INDEX(t_u17w_hep[800mSecs],MATCH(A21,t_u17w_hep[AllPos],0)))/86400 -> 0.001867708333
B22: =INDEX(t_u17w_hep[FinalPosition],MATCH(A21,t_u17w_hep[AllPos],0)) -> Guest | C22: =INDEX(t_u17w_hep[Name],MATCH(A21,t_u17w_hep[AllPos],0)) -> Isobelle Beer | D22: Wind | E22: =INDEX(t_u17w_hep[80mHWind],MATCH(A21,t_u17w_hep[AllPos],0)) -> 0 | H22: =INDEX(t_u17w_hep[200mWind],MATCH(A21,t_u17w_hep[AllPos],0)) -> 1 | I22: =INDEX(t_u17w_hep[LJWind],MATCH(A21,t_u17w_hep[AllPos],0)) -> 0 | L22: =INDEX(t_u17w_hep[AvWind],MATCH(A21,t_u17w_hep[AllPos],0)) -> 0.3333333333
C23: =INDEX(t_u17w_hep[Club],MATCH(A21,t_u17w_hep[AllPos],0)) -> North Devon AC | D23: Points | E23: =INDEX(t_u17w_hep[80mHPoints],MATCH(A21,t_u17w_hep[AllPos],0)) -> 663 | F23: =INDEX(t_u17w_hep[HJPoints],MATCH(A21,t_u17w_hep[AllPos],0)) -> 655 | G23: =INDEX(t_u17w_hep[SPPoints],MATCH(A21,t_u17w_hep[AllPos],0)) -> 501 | H23: =INDEX(t_u17w_hep[200mPoints],MATCH(A21,t_u17w_hep[AllPos],0)) -> 568 | I23: =INDEX(t_u17w_hep[LJPoints],MATCH(A21,t_u17w_hep[AllPos],0)) -> 411 | J23: =INDEX(t_u17w_hep[JTPoints],MATCH(A21,t_u17w_hep[AllPos],0)) -> 0 | K23: =INDEX(t_u17w_hep[800mPoints],MATCH(A21,t_u17w_hep[AllPos],0)) -> 557 | L23: =INDEX(t_u17w_hep[TotalPoints],MATCH(A21,t_u17w_hep[AllPos],0)) -> 3355
A24: 7 | C24: =INDEX(t_u17w_hep[Bib],MATCH(A24,t_u17w_hep[AllPos],0)) -> 286 | D24: Perf | E24: =INDEX(t_u17w_hep[80mH],MATCH(A24,t_u17w_hep[AllPos],0)) -> 14.2 | F24: =INDEX(t_u17w_hep[HJ],MATCH(A24,t_u17w_hep[AllPos],0)) -> 1.41 | G24: =INDEX(t_u17w_hep[SP],MATCH(A24,t_u17w_hep[AllPos],0)) -> 9.63 | H24: =INDEX(t_u17w_hep[200m],MATCH(A24,t_u17w_hep[AllPos],0)) -> 29.76 | I24: =INDEX(t_u17w_hep[LJ],MATCH(A24,t_u17w_hep[AllPos],0)) -> 4.21 | J24: =INDEX(t_u17w_hep[JT],MATCH(A24,t_u17w_hep[AllPos],0)) -> 15.61 | K24: =(INDEX(t_u17w_hep[800mMins],MATCH(A24,t_u17w_hep[AllPos],0))*60+INDEX(t_u17w_hep[800mSecs],MATCH(A24,t_u17w_hep[AllPos],0)))/86400 -> 0.001956018519
B25: =INDEX(t_u17w_hep[FinalPosition],MATCH(A24,t_u17w_hep[AllPos],0)) -> Guest | C25: =INDEX(t_u17w_hep[Name],MATCH(A24,t_u17w_hep[AllPos],0)) -> Josie Booker | D25: Wind | E25: =INDEX(t_u17w_hep[80mHWind],MATCH(A24,t_u17w_hep[AllPos],0)) -> 0 | H25: =INDEX(t_u17w_hep[200mWind],MATCH(A24,t_u17w_hep[AllPos],0)) -> 1 | I25: =INDEX(t_u17w_hep[LJWind],MATCH(A24,t_u17w_hep[AllPos],0)) -> 0 | L25: =INDEX(t_u17w_hep[AvWind],MATCH(A24,t_u17w_hep[AllPos],0)) -> 0.3333333333
C26: =INDEX(t_u17w_hep[Club],MATCH(A24,t_u17w_hep[AllPos],0)) -> Ealing Southall & Middlesex AC | D26: Points | E26: =INDEX(t_u17w_hep[80mHPoints],MATCH(A24,t_u17w_hep[AllPos],0)) -> 549 | F26: =INDEX(t_u17w_hep[HJPoints],MATCH(A24,t_u17w_hep[AllPos],0)) -> 523 | G26: =INDEX(t_u17w_hep[SPPoints],MATCH(A24,t_u17w_hep[AllPos],0)) -> 505 | H26: =INDEX(t_u17w_hep[200mPoints],MATCH(A24,t_u17w_hep[AllPos],0)) -> 499 | I26: =INDEX(t_u17w_hep[LJPoints],MATCH(A24,t_u17w_hep[AllPos],0)) -> 357 | J26: =INDEX(t_u17w_hep[JTPoints],MATCH(A24,t_u17w_hep[AllPos],0)) -> 208 | K26: =INDEX(t_u17w_hep[800mPoints],MATCH(A24,t_u17w_hep[AllPos],0)) -> 474 | L26: =INDEX(t_u17w_hep[TotalPoints],MATCH(A24,t_u17w_hep[AllPos],0)) -> 3115
A27: 8 | C27: =INDEX(t_u17w_hep[Bib],MATCH(A27,t_u17w_hep[AllPos],0)) -> 287 | D27: Perf | E27: =INDEX(t_u17w_hep[80mH],MATCH(A27,t_u17w_hep[AllPos],0)) -> 13.31 | F27: =INDEX(t_u17w_hep[HJ],MATCH(A27,t_u17w_hep[AllPos],0)) -> 1.41 | G27: =INDEX(t_u17w_hep[SP],MATCH(A27,t_u17w_hep[AllPos],0)) -> 7.85 | H27: =INDEX(t_u17w_hep[200m],MATCH(A27,t_u17w_hep[AllPos],0)) -> 27.6 | I27: =INDEX(t_u17w_hep[LJ],MATCH(A27,t_u17w_hep[AllPos],0)) -> 4.82 | J27: =INDEX(t_u17w_hep[JT],MATCH(A27,t_u17w_hep[AllPos],0)) -> 11.65 | K27: =(INDEX(t_u17w_hep[800mMins],MATCH(A27,t_u17w_hep[AllPos],0))*60+INDEX(t_u17w_hep[800mSecs],MATCH(A27,t_u17w_hep[AllPos],0)))/86400 -> 0.002102777778
B28: =INDEX(t_u17w_hep[FinalPosition],MATCH(A27,t_u17w_hep[AllPos],0)) -> Guest | C28: =INDEX(t_u17w_hep[Name],MATCH(A27,t_u17w_hep[AllPos],0)) -> Kayin Hurst | D28: Wind | E28: =INDEX(t_u17w_hep[80mHWind],MATCH(A27,t_u17w_hep[AllPos],0)) -> 0 | H28: =INDEX(t_u17w_hep[200mWind],MATCH(A27,t_u17w_hep[AllPos],0)) -> 1 | I28: =INDEX(t_u17w_hep[LJWind],MATCH(A27,t_u17w_hep[AllPos],0)) -> 0.6 | L28: =INDEX(t_u17w_hep[AvWind],MATCH(A27,t_u17w_hep[AllPos],0)) -> 0.5333333333
C29: =INDEX(t_u17w_hep[Club],MATCH(A27,t_u17w_hep[AllPos],0)) -> Reading AC | D29: Points | E29: =INDEX(t_u17w_hep[80mHPoints],MATCH(A27,t_u17w_hep[AllPos],0)) -> 630 | F29: =INDEX(t_u17w_hep[HJPoints],MATCH(A27,t_u17w_hep[AllPos],0)) -> 523 | G29: =INDEX(t_u17w_hep[SPPoints],MATCH(A27,t_u17w_hep[AllPos],0)) -> 390 | H29: =INDEX(t_u17w_hep[200mPoints],MATCH(A27,t_u17w_hep[AllPos],0)) -> 663 | I29: =INDEX(t_u17w_hep[LJPoints],MATCH(A27,t_u17w_hep[AllPos],0)) -> 511 | J29: =INDEX(t_u17w_hep[JTPoints],MATCH(A27,t_u17w_hep[AllPos],0)) -> 136 | K29: =INDEX(t_u17w_hep[800mPoints],MATCH(A27,t_u17w_hep[AllPos],0)) -> 350 | L29: =INDEX(t_u17w_hep[TotalPoints],MATCH(A27,t_u17w_hep[AllPos],0)) -> 3203
